{"text_format":"1","workbook":"xlsx","n_sheets":42,"sheets":["функция","2","3","4","5","6","7","9","10","11","13","14","18","19","21","28","29","31","34","35","36","38","42","43","45","46","47","50","51","52","57","58","60","61","67","71","73","74","75","77","Аркуш1","Аркуш2"],"not_rendered":{"charts":0,"images":3,"macros":1,"external_links":0,"defined_names":0,"comments":0,"pivot_tables":0},"unopened":[],"bounds":{"document_bytes":16777216,"sheet_cells":100000,"rows_first":2000,"rows_last":500,"rows_between":2000,"halvings":0,"cell_chars":16384,"cell_head_chars":4096},"cells_cut":0,"cells_raw":0,"read":"whole","date_system":"1900"}

{"sheet":"функция","index":0,"n_rows":149,"n_cols":1,"rows_kept":149,"cut":false,"hidden":false,"merged":[]}
["Очень часто бывает, что нам необходимо отразить цифры прописью (например, отобразить прописью количество страниц в документе), или для целей бухгалтерского учета, стоимость торговой операции нужно прописывать словам, то есть необходимая сумма прописью, однако в Excel нет стандартной функции для таких целей."]
["Ниже вы найдете готовую функцию на VBA, которая переводит любое число до миллиарда в его текстовое отображение на украинском языке, то есть в сумму прописью. Перед использованием, эту функцию необходимо добавить в вашу книгу."]
["Для этого:"]
["1. Нажмите ALT+F11 , чтобы открыть редактор Visual Basic"]
["2. Добавьте новый пустой модуль через меню Insert - Module"]
["3. Скопируйте и вставьте туда текст этой функции:"]
[]
["1. Function SUMINWORDS(n As Double, curr As Variant, kop As Variant) As String  "]
["2.  'moonexcel.com.ua  "]
["3.  Dim Nums1, Nums2, Nums3, Nums4 As Variant  "]
["4.    "]
["5.  Nums0 = Array(\"\", \"одна \", \"дві \", \"три \", \"чотири \", \"п'ять \", \"шість \", \"сім \", \"вісім \", \"дев'ять \")  "]
["6.  Nums1 = Array(\"\", \"один \", \"два \", \"три \", \"чотири \", \"п'ять \", \"шість \", \"сім \", \"вісім \", \"дев'ять \")  "]
["7.  Nums2 = Array(\"\", \"десять \", \"двадцять \", \"тридцять \", \"сорок \", \"п'ятдесят \", \"шістдесят \", \"сімдесят \", _  "]
["8.                         \"вісімдесят \", \"дев'яносто \")  "]
["9.  Nums3 = Array(\"\", \"сто \", \"двісті \", \"триста \", \"чотириста \", \"п'ятсот \", \"шістсот \", \"сімсот \", _  "]
["10.                         \"вісімсот \", \"дев'ятсот \")  "]
["11.  Nums4 = Array(\"\", \"одна \", \"дві \", \"три \", \"чотири \", \"п'ять \", \"шість \", \"сім \", \"вісім \", \"дев'ять \")  "]
["12.  Nums5 = Array(\"десять \", \"одинадцять \", \"дванадцять \", \"тринадцять \", \"чотирнадцять \", _  "]
["13.                         \"п'ятнадцять \", \"шістнадцять \", \"сімнадцять \", \"вісімнадцять \", \"дев'ятнадцять \")  "]
["14.     "]
["15.  If n < 1 Then  "]
["16.    SUMINWORDS = \"Нуль \" & curr & \" \" & Round((n - Fix(n)) * 100) & \" \" & kop  "]
["17.      "]
["18. If curr = \"\" Then  "]
["19.    SUMINWORDS = \"Нуль\"  "]
["20. End If  "]
["21.         "]
["22.    Exit Function  "]
["23.  End If  "]
["24.  'разделяем число на разряды, используя вспомогательную функцию Class  "]
["25.  ed = Class(n, 1)  "]
["26.  dec = Class(n, 2)  "]
["27.  sot = Class(n, 3)  "]
["28.  tys = Class(n, 4)  "]
["29.  dectys = Class(n, 5)  "]
["30.  sottys = Class(n, 6)  "]
["31.  mil = Class(n, 7)  "]
["32.  decmil = Class(n, 8)  "]
["33.  sotmil = Class(n, 9)  "]
["34.  bil = Class(n, 10)  "]
["35.      "]
["36. 'проверяем миллиарды  "]
["37.    "]
["38.  Select Case bil  "]
["39.    "]
["40. Case 1  "]
["41.      bil_txt = Nums1(bil) & \"мільярд \"  "]
["42. Case 2 To 4  "]
["43.      bil_txt = Nums1(bil) & \"мільярди \"  "]
["44. Case 5 To 9  "]
["45.      bil_txt = Nums1(bil) & \"мільярдів \"  "]
["46.             "]
["47.  End Select  "]
["48.      "]
["49. 'проверяем миллионы  "]
["50.    "]
["51.  Select Case sotmil  "]
["52.    Case 1 To 9  "]
["53.      sotmil_txt = Nums3(sotmil)  "]
["54.  End Select  "]
["55.     "]
["56.  Select Case decmil  "]
["57.    Case 1  "]
["58.      mil_txt = Nums5(mil) & \"мільйонів \"  "]
["59.      GoTo www  "]
["60.    Case 2 To 9  "]
["61.      decmil_txt = Nums2(decmil)  "]
["62.  End Select  "]
["63.    "]
["64.  Select Case mil  "]
["65.  Case 0  "]
["66.      If decmil > 0 Then mil_txt = Nums4(mil) & \"мільйонів \"  "]
["67.    Case 1  "]
["68.      mil_txt = Nums1(mil) & \"мільйон \"  "]
["69.    Case 2, 3, 4  "]
["70.      mil_txt = Nums1(mil) & \"мільйона \"  "]
["71.    Case 5 To 9  "]
["72.      mil_txt = Nums1(mil) & \"мільйонів \"  "]
["73.  End Select  "]
["74.    "]
["75.  If decmil = 0 And mil = 0 And sotmil <> 0 Then sotmil_txt = sotmil_txt & \"мільйонів \"  "]
["76.    "]
["77. www:  "]
["78.  sottys_txt = Nums3(sottys)  "]
["79.  'проверяем тысячи  "]
["80.  Select Case dectys  "]
["81.    Case 1  "]
["82.      tys_txt = Nums5(tys) & \"тисяч \"  "]
["83.      GoTo eee  "]
["84.    Case 2 To 9  "]
["85.      dectys_txt = Nums2(dectys)  "]
["86.  End Select  "]
["87.    "]
["88.  Select Case tys  "]
["89.    Case 0  "]
["90.      If dectys > 0 Then tys_txt = Nums4(tys) & \"тисяч \"  "]
["91.    Case 1  "]
["92.      tys_txt = Nums4(tys) & \"тисячa \"  "]
["93.    Case 2, 3, 4  "]
["94.      tys_txt = Nums4(tys) & \"тисячі \"  "]
["95.    Case 5 To 9  "]
["96.      tys_txt = Nums4(tys) & \"тисяч \"  "]
["97.  End Select  "]
["98.    "]
["99.  If dectys = 0 And tys = 0 And sottys <> 0 Then sottys_txt = sottys_txt & \" тисяч \"  "]
["100.    "]
["101. eee:  "]
["102.  sot_txt = Nums3(sot)  "]
["103.  'проверяем десятки  "]
["104.  Select Case dec  "]
["105.    Case 1  "]
["106.      ed_txt = Nums5(ed)  "]
["107.      GoTo rrr  "]
["108.    Case 2 To 9  "]
["109.      dec_txt = Nums2(dec)  "]
["110.  End Select  "]
["111.     "]
["112.  ed_txt = Nums0(ed)  "]
["113.   "]
["114. rrr:  "]
["115. 'формируем итоговую строку  "]
["116.    "]
["117.  SUMINWORDS = bil_txt & sotmil_txt & decmil_txt & mil_txt & sottys_txt & dectys_txt _  "]
["118.  & tys_txt & sot_txt & dec_txt & ed_txt & curr & \" \" & Round((n - Fix(n)) * 100) & \" \" & kop  "]
["119.   "]
["120. If curr = \"\" Then  "]
["121.    SUMINWORDS = bil_txt & sotmil_txt & decmil_txt & mil_txt & sottys_txt & dectys_txt _  "]
["122.  & tys_txt & sot_txt & dec_txt & ed_txt  "]
["123.  End If  "]
["124.    "]
["125.  SUMINWORDS = UCase(Mid(SUMINWORDS, 1, 1)) + Mid(SUMINWORDS, 2)  "]
["126.    "]
["127. End Function  "]
["128.     "]
["129. 'вспомогательная функция для выделения из числа разрядов  "]
["130. Private Function Class(M, I)  "]
["131.   Class = Int(Int(M - (10 ^ I) * Int(M /(10 ^ I))) /10 ^ (I - 1))  "]
["132. End Function  "]
["Сохраните файл и вернитесь в Excel. Теперь вы можете вставить созданную функцию в любую ячейку листа этой книги обычным способом - через мастер функций (кнопка "]
[" в строке формул, категория Определены пользователем ) или просто набрав ее в ячейке вручную и указав в качестве аргумента ячейку с суммой. Также, в параметрах функции можно указывать название валюты (гривна, доллар, евро ...) и название сотых (копейки, центы ...):"]
[{"$f":"SUMINWORDS(текст,валюта,сотые)","v":{"$error":"#VALUE!"}}]
[]
[]
[]
[]
[]
[]
["Если в параметре \"валюта\" проставить пустые кавычки (\"\"), тогда сумма будет выводиться как целое число прописью:"]

{"sheet":"2","index":1,"n_rows":51,"n_cols":9,"rows_kept":51,"cut":false,"hidden":false,"merged":[[0,0,0,8],[1,0,1,8],[2,0,2,8],[3,2,3,5],[4,2,4,5]]}
["Додаток до річного плану закупівель на 2016 рік "]
["Дошкільний навчальний заклад № 2,26243332"]
["(найменування замовника,код за ЄДРПОУ)"]
["Предмет закупівлі","Код КЕКВ (для бюджетних коштів)","Очікувана вартість предмета закупівлі",null,null,null,"Процедура закупівлі","Орієнтовний початок проведення процедури закупівлі","Примітки"]
[1,2,3,null,null,null,4,5,6]
["10.73.1 Макарони,локшина,кускус і подібні борошняні вироби(15851000-8 Борошняні вироби(макарони)",2230,633.32000000000005,"Шістсот тридцять три грн. 32 коп.","в т.ч.ПДВ-",{"$f":"C6/6","v":105.55333333333334}]
["10.11.1 М'ясо великої рогатої худоби,свиней,овець,кіз,коней та ін..тварин родини конячих,свіже чиа охолоджене(15111000-9 М'ясо великої рогатої худоби родини бикових(яловичина)",2230,23134.649573987255,"Двадцять три тисячі сто тридцять чотири грн. 65 коп.","в т.ч.ПДВ-",{"$f":"C7/6","v":3855.774928997876}]
["10.12.1 М'ясо  свійської птиці,свіже чи охолоджене(15112000-6 М'ясо свійської птиці)",2230,8131.0210921979697,"Вісім тисяч сто тридцять одна грн.02 коп.","в т.ч.ПДВ-",{"$f":"C8/6","v":1355.1701820329949}]
["10.12.4 Субпродукти харчові свійської птиці(15114000-0 Потрухи(печінка)",2230,2284.1056530089486,"Дві тисячі двісті вісімдесят чотири грн. 11 коп.","в т.ч.ПДВ-",380.68427550149141]
["10.13.1.Консерви та готові страви з м’яса,м’ясних субпродуктів чи крові (15130000-8 Мясопродукти (ковбаса,сосиски)",2230,6858.0415345982956,"Шість тисяч вісімсот пятдесят вісім грн. 04 коп.","в т.ч.ПДВ-",1143.0069224330493]
["10.20.1 Продукція рибна,свіжа,охолоджена чи заморожена (15221000-3 Морожена риба)",2230,16069.037825254396,"Шістнадцять тисяч шістдесят девять грн. 04 коп","в т.ч.ПДВ-",2678.1729708757325]
["01.24.1 Яблука (03222000-3 Фрукти і горіхи(яблука,апельсини,лимони,ягоди)",2230,6801.1824960110343,"Шість тисяч вісімсот одна грн. 18 коп.","в т.ч.ПДВ-",1133.5304160018391]
["10.39.1 Плоди та овочі,оброблені та законсервовані,крім картоплі(15331000-7 Оброблені овочі(консерви овочеві)",2230,4921.1596222849548,"Чотири тисячі девятсот двадцять одна грн. 16 коп.","в т.ч.ПДВ-",820.19327038082577]
["10.72.1 Вироби хлібобулочні,зниженої вологості,та кондитерські,борошняні,тривалого зберігання(15820000-2 Сухарі та печиво; пресерви з хлібобулочних і кондитерських виробів (печиво)",2230,1621.6131953423003,"Одна тисяча шістсот двадцять одна грн 61 коп.","в т.ч.ПДВ-",270.26886589038338]
["10.71.1 Вироби  хлібобулочні,кондитерські та кулінарні,борошняні,нетривалого зберігання(15810000-9 Хлібопродукти, свіжовипечені хлібобулочні та кондитерські вироби)",2230,6251.2052767641262,"Шість тисяч двісті пятдесят одна грн. 21 коп.","в т.ч.ПДВ-",1041.8675461273544]
["10.51.1 Молоко та вершки,рідинні,оброблені(15511000-3 Молоко)",2230,25492.236017094947,"Двадцять пять тисяч чотириста девяносто дві грн. 24 коп.","в т.ч.ПДВ-",4248.7060028491578]
["10.51.5 Продукти молочні, інші (15550000-8 Молочні продукти різні (кефір,сметана)",2230,4670.544017779358,"Чотири тисячі шістсот сімдесят грн. 54 коп.","в т.ч.ПДВ-",778.42400296322637]
["10.51.4 Сир сичужний та кисломолочний сир(15540000-5 Сирні продукти)",2230,17667.335941835659,"Сімнадцять тисяч шістсот шістдесят сім грн. 34 коп.","в т.ч.ПДВ-",2944.5559903059434]
["10.32.1 Соки фруктові та овочеві (15321000-4 Фруктові соки)",2230,4689.6335114442836,"Чотири тисячі шістсот вісімдесят девять грн. 63 коп.","в т.ч.ПДВ-",781.60558524071394]
["10.61.2 Борошно зернових і овочевих культур;їхні суміші(15612000-1 Борошно зернових та овочевих культур і супутня продукція)",2230,1019.629740339573,"Одна тисяча девятнадцять грн. 63 коп.","в т.ч.ПДВ-",169.93829005659549]
["10.61.1 Рис напівобрушений чи повністю обрушений,або лущений чи дроблений(15614000-5 Рис оброблений)",2230,505.40017458800816,"Пятсот пять грн. 40 коп.","в т.ч.ПДВ-",84.233362431334697]
["0.81.1 Цукор-сирець,тростинний і очищений тростинний чи буряковий цукор (сахароза);меляса (15831000-2 Цукор)",2230,4578.6061849257512,"Чотири тисячі пятсот сімдесят вісім грн. 61 коп.","в т.ч.ПДВ-",763.1010308209585]
["10.39.2 Плоди й горіхи,оброблені та законсервовані(15332000-4 Оброблені фрукти та горіхи(повидло,сухофрукти)",2230,3052.2840408369761,"Три тисячі пятдесят дві грн. 28 коп.","в т.ч.ПДВ-",508.71400680616267]
["10.51.3 Масло вершкове та молочні пасти(15530000-2 Вершкове масло)",2230,7995.7090921765193,"Сім тисяч девятсот девяносто пять грн. 71 коп.","в т.ч.ПДВ-",1332.6181820294198]
["01.47.2 Яйця у шкаралупі свіжі (03142000-8 Продукція тваринництва (03142500-3 Яйця)",2230,6068.0501057380598,"Шість тисяч шістдесят вісім грн. 05 коп.","в т.ч.ПДВ-",1011.3416842896767]
["10.41.5 Олії рафіновані(15421000-5 Рафіновані олії)",2230,1819.5860754753655,"Одна тисяча вісімсот девятнадцять грн. 59 коп.","в т.ч.ПДВ-",303.26434591256094]
["10.61.3 Крупи,крупка,гранули та інші продукти з зерна зернових культур(15613000-8 Продукція із зерна зернових культур(крупи)",2230,1904.9661284335116,"Одна тисяча девятсот чотири грн. 97 коп.","в т.ч.ПДВ-",317.49435473891862]
["10.82.1 Какао терте,какао-масло,жири й олія,какао-порошок(15841000-5 Какао)",2230,2280.6709076660786,"Дві тисячі двісті вісімдесят грн.67 коп.","в т.ч.ПДВ-",380.11181794434646]
["10.83.1 Чай і кава,оброблені(15860000-4 Кава, чай та супутня продукція)",2230,2320.7239042440128,"Дві тисячі триста двадцять грн. 72 коп.","в т.ч.ПДВ-",386.78731737400216]
["10.84.3 Сіль харчова(14410000-8 Камяна сіль)",2230,88.612065559283195,"Вісімдесят вісім грн.61 коп.","в т.ч.ПДВ-",14.768677593213866]
["01.13.5 Коренеплоди та бульби їстівні з високим умістом крохмалю та інуліну(03212000-0 Картопля та сушені овочі)",2230,6317.792672118725,"Шість тисяч триста сімнадцять грн.79 коп.","в т.ч.ПДВ-",1052.9654453531209]
["01.13.4 Овочі коренеплодні,цибулинні та бульбоподібні(03221000-6 Овочі)",2230,7838.8785113594859,"Сім тисяч вісімсот тридцять вісім грн. 88 коп.","в т.ч.ПДВ-",1306.4797518932476]
["35.30.1 Пара та гаряча вода,постачання пари та гарячої води(09320000-8 Пара, гаряча вода та пов’язана продукція)",2271,104281,"Сто чотири тисячі двісті вісімдесят одна грн. 00 коп.","в т.ч.ПДВ-",17380.166666666668]
["38.11.6 Послуги підприємств щодо перевезення інших безпечних відходів(90512000-9 Послуги з перевезення сміття)",2240,4927,"Чотири тисячі девятсот двадцять сім грн.00 коп.","в т.ч.ПДВ-",821.16666666666663]
[" 36.00.2 Обробляння та розподіляння води трубопроводами(65110000-7 Розподіл води)",2272,3154.9560000000006,"Дві тисячі пятсот вісім грн. 29 коп.","в т.ч.ПДВ-",525.82600000000014]
["37.00.1 Послуги каналізаційні(90400000-1 Послуги у сфері водовідведення)",2272,3170.0439999999994,"Три тисячі сто сімдесят грн. 04 коп.","в т.ч.ПДВ-",528.34066666666661]
["35.11.1  Енергія електрична (09310000-5 Електрична енергія)",2273,40815,"Сорок тисяч вісімсот п'ятнадцять грн. 00 коп.","в т.ч.ПДВ-",6802.5]
["61.10.1  Послуги щодо передавання даних і повідомлень(64211000-8 Послуги громадського телефонного звязку)",2240,1573,"Одна тисяча пятсот сімдесят три грн. 00 коп.","в т.ч.ПДВ-",262.16666666666669]
["91.01.1 Послуги бібліотек і архівів(92512000-3 Послуги архівів)",2240,263,"Двісті шістдесят три грн. 00 коп.","без ПДВ"]
["71.20.1 Послуги щодо технічного випробування й аналізування(71632000-7 Послуги з технічних випробувань (повірка,атестація)",2240,1447,"Одна тисяча чотириста сорок сім грн.00 коп.","в т.ч.ПДВ-",241.16666666666666]
["58.29.1 Програмне забезпечення системне на фізичних носіях(48443000-5 Пакети програмного забезпечення для бухгалтерського обліку)",2240,7392,"Сім тисяч триста девяносто дві грн.00 коп.","в т.ч.ПДВ-",1232]
["43.21.1 Роботи електромонтажні(45310000-3 Електромонтажні роботи(повірка контурів заземлення)",2240,745,"Сімсот сорок пять грн. 00 коп.","в т.ч.ПДВ-",124.16666666666667]
["Капітальний ремонт будівель (45000000-7 Будівельні роботи)",3132,16800,"Шістнадцять тисяч вісімсот грн.00 коп.","в т.ч.ПДВ-",{"$f":"C43/6","v":2800}]
["28.99.3 Машини й устаткування спеціальної призначеності,н.в.і.у.(37535000-7 Каруселі,гойдалки,тири та інші атракціони)",3110,10800,"Десять тисяч вісімсот грн.00 коп.","в т.ч.ПДВ-",{"$f":"C44/6","v":1800}]
["85.60.1 Послуги освітянські допоміжні (80570000-0 Послуги з професійної підготовки у сфері підвищення кваліфікації)",2282,676,"Шістсот сімдесят шість грн.00 коп.","без ПДВ"]
[]
["Затверджений рішенням комітету з конкурсних торгів від__________№_______"]
[]
["Голова комітету з конкурсних торгів      _______________________С.А.Новік  "]
["                                                                                                (підпис)          (ініціали та прізвище)"]
["МП"]

{"sheet":"3","index":2,"n_rows":48,"n_cols":9,"rows_kept":48,"cut":false,"hidden":false,"merged":[[0,0,0,8],[1,0,1,8],[2,0,2,8],[3,2,3,5],[4,2,4,5]]}
["Додаток до річного плану закупівель на  2016 рік "]
["Дошкільний навчальний заклад № 3, 34722166"]
["(найменування замовника,код за ЄДРПОУ)"]
["Предмет закупівлі","Код КЕКВ (для бюджетних коштів)","Очікувана вартість предмета закупівлі",null,null,null,"Процедура закупівлі","Орієнтовний початок проведення процедури закупівлі","Примітки"]
[1,2,3,null,null,null,4,5,6]
["10.73.1 Макарони,локшина,кускус і подібні борошняні вироби(15851000-8 Борошняні вироби(макарони)",2230,1814.62131187718,"Одна тисяча вісімсот чотирнадцять грн. 62 коп.","в т.ч.ПДВ-",{"$f":"C6/6","v":302.43688531286335}]
["10.11.1 М'ясо великої рогатої худоби,свиней,овець,кіз,коней та ін..тварин родини конячих,свіже чиа охолоджене(15111000-9 М'ясо великої рогатої худоби родини бикових(яловичина)",2230,60461.852245966023,{"$f":"SUMINWORDS(C7,\"грн.\",\"коп.\")","v":"Шістдесят тисяч чотириста шістдесят одна грн. 85 коп."},"в т.ч.ПДВ-",{"$f":"C7/6","v":10076.975374327671}]
["10.12.1 М'ясо  свійської птиці,свіже чи охолоджене(15112000-6 М'ясо свійської птиці)",2230,23299.268176238871,{"$f":"SUMINWORDS(C8,\"грн.\",\"коп.\")","v":"Двадцять три тисячі двісті дев'яносто дев'ять грн. 27 коп."},"в т.ч.ПДВ-",3883.2113627064787]
["10.12.4 Субпродукти харчові свійської птиці(15114000-0 Потрухи(печінка)",2230,6545.5034484505049,{"$f":"SUMINWORDS(C9,\"грн.\",\"коп.\")","v":"Шість тисяч п'ятсот сорок п'ять грн. 50 коп."},"в т.ч.ПДВ-",1090.9172414084176]
["10.13.1.Консерви та готові страви з м’яса,м’ясних субпродуктів чи крові (15130000-8 Мясопродукти (ковбаса,сосиски)",2230,19652.91511589901,"Дев'ятнадцять тисяч шістсот п'ятдесят дві грн. 92 коп.","в т.ч.ПДВ-",3275.4858526498351]
["10.20.1 Продукція рибна,свіжа,охолоджена чи заморожена (15221000-3 Морожена риба)",2230,46050.050327409743,"Сорок шість тисяч п'ятдесят грн. 5 коп.","в т.ч.ПДВ-",7675.0083879016238]
["01.24.1 Яблука (03222000-3 Фрукти і горіхи(яблука,апельсини,лимони,ягоди)",2230,19490.201995788972,"Дев'ятнадцять тисяч чотириста дев'яносто грн. 20 коп.","в т.ч.ПДВ-",3248.3669992981618]
["10.39.1 Плоди та овочі,оброблені та законсервовані,крім картоплі(15331000-7 Оброблені овочі(консерви овочеві)",2230,14099.314163165911,"Чотирнадцять тисяч дев'яносто дев'ять грн. 31 коп.","в т.ч.ПДВ-",2349.8856938609852]
["10.72.1 Вироби хлібобулочні,зниженої вологості,та кондитерські,борошняні,тривалого зберігання(15820000-2 Сухарі та печиво; пресерви з хлібобулочних і кондитерських виробів (печиво)",2230,4647.8172428303615,"Чотири тисячі шістсот сорок сім грн. 82 коп.","в т.ч.ПДВ-",774.63620713839362]
["10.71.1 Вироби  хлібобулочні,кондитерські та кулінарні,борошняні,нетривалого зберігання(15810000-9 Хлібопродукти, свіжовипечені хлібобулочні та кондитерські вироби)",2230,17911.660653516763,"Сімнадцять тисяч дев'ятсот одинадцять грн. 66 коп.","в т.ч.ПДВ-",2985.2767755861273]
["10.51.1 Молоко та вершки,рідинні,оброблені(15511000-3 Молоко)",2230,73027.76903990726,"Сімдесят три тисячі двадцять сім грн. 77 коп.","в т.ч.ПДВ-",12171.294839984543]
["10.51.5 Продукти молочні, інші (15550000-8 Молочні продукти різні (кефір,сметана)",2230,13382.370825146136,"Тринадцять тисяч триста вісімдесят дві грн. 37 коп.","в т.ч.ПДВ-",2230.395137524356]
["10.51.4 Сир сичужний та кисломолочний сир(15540000-5 Сирні продукти)",2230,50617.205660257008,"П'ятдесят тисяч шістсот сімнадцять грн. 21 коп.","в т.ч.ПДВ-",8436.2009433761687]
["10.32.1 Соки фруктові та овочеві (15321000-4 Фруктові соки)",2230,13436.328444290733,"Тринадцять тисяч чотириста тридцять шість грн. 33 коп.","в т.ч.ПДВ-",2239.3880740484556]
["10.61.2 Борошно зернових і овочевих культур;їхні суміші(15612000-1 Борошно зернових та овочевих культур і супутня продукція)",2230,2921.650015683465,"Дві тисячі дев'ятсот двадцять одна грн. 65 коп.","в т.ч.ПДВ-",486.94166928057751]
["10.61.1 Рис напівобрушений чи повністю обрушений,або лущений чи дроблений(15614000-5 Рис оброблений)",2230,1448.0284493435804,"Одна тисячa чотириста сорок вісім грн. 3 коп.","в т.ч.ПДВ-",241.33807489059674]
["0.81.1 Цукор-сирець,тростинний і очищений тростинний чи буряковий цукор (сахароза);меляса (15831000-2 Цукор)",2230,13117.523594211798,"Тринадцять тисяч сто сімнадцять грн. 52 коп.","в т.ч.ПДВ-",2186.2539323686328]
["10.39.2 Плоди й горіхи,оброблені та законсервовані(15332000-4 Оброблені фрукти та горіхи(повидло,сухофрукти)",2230,8743.8339646917593,"Вісім тисяч сімсот сорок три грн. 83 коп.","в т.ч.ПДВ-",1457.3056607819599]
["10.51.3 Масло вершкове та молочні пасти(15530000-2 Вершкове масло)",2230,22911.534515212203,"Двадцять дві тисячі дев'ятсот одинадцять грн. 53 коп.","в т.ч.ПДВ-",3818.5890858687003]
["01.47.2 Яйця у шкаралупі свіжі (03142000-8 Продукція тваринництва (03142500-3 Яйця)",2230,17389.056780344701,"Сімнадцять тисяч триста вісімдесят дев'ять грн. 6 коп.","в т.ч.ПДВ-",2898.1761300574503]
["10.41.5 Олії рафіновані(15421000-5 Рафіновані олії)",2230,5213.5346439009891,"П'ять тисяч двісті тринадцять грн. 53 коп.","в т.ч.ПДВ-",868.92244065016484]
["10.61.3 Крупи,крупка,гранули та інші продукти з зерна зернових культур(15613000-8 Продукція із зерна зернових культур(крупи)",2230,5458.0282562345719,"П'ять тисяч чотириста п'ятдесят вісім грн. 3 коп.","в т.ч.ПДВ-",909.67137603909532]
["10.82.1 Какао терте,какао-масло,жири й олія,какао-порошок(15841000-5 Какао)",2230,6535.6605861220069,"Шість тисяч п'ятсот тридцять п'ять грн. 66 коп.","в т.ч.ПДВ-",1089.2767643536679]
["10.83.1 Чай і кава,оброблені(15860000-4 Кава, чай та супутня продукція)",2230,6651.7814951485125,"Шість тисяч шістсот п'ятдесят одна грн. 78 коп.","в т.ч.ПДВ-",1108.6302491914187]
["10.84.3 Сіль харчова(14410000-8 Камяна сіль)",2230,253.95903287673602,"Двісті п'ятдесят три грн. 96 коп.","в т.ч.ПДВ-",42.326505479456003]
["01.13.5 Коренеплоди та бульби їстівні з високим умістом крохмалю та інуліну(03212000-0 Картопля та сушені овочі)",2230,18101.65793804848,"Вісімнадцять тисяч сто одна грн. 66 коп.","в т.ч.ПДВ-",3016.9429896747465]
["01.13.4 Овочі коренеплодні,цибулинні та бульбоподібні(03221000-6 Овочі)",2230,22457.872122422552,"Двадцять дві тисячі чотириста п'ятдесят сім грн. 87 коп.","в т.ч.ПДВ-",3742.9786870704252]
["38.11.6 Послуги підприємств щодо перевезення інших безпечних відходів(90512000-9 Послуги з перевезення сміття)",2240,5410,{"$f":"SUMINWORDS(C33,\"грн.\",\"коп.\")","v":"П'ять тисяч чотириста десять грн. 0 коп."},"в т.ч.ПДВ-",{"$f":"C33/6","v":901.66666666666663}]
["85.60.1 Послуги освітянські допоміжні (80570000-0 Послуги з професійної підготовки у сфері підвищення кваліфікації)",2282,349,"Триста сорок дев'ять грн. 0 коп.","в т.ч.ПДВ-",58.166666666666664]
[" 36.00.2 Обробляння та розподіляння води трубопроводами(65110000-7 Розподіл води)",2272,15374.856000000003,"П'ятнадцять тисяч триста сімдесят чотири грн. 86 коп.","в т.ч.ПДВ-",2562.4760000000006]
["37.00.1 Послуги каналізаційні(90400000-1 Послуги у сфері водовідведення)",2272,18548.143999999997,"Вісімнадцять тисяч п'ятсот сорок вісім грн. 14 коп.","в т.ч.ПДВ-",3091.3573333333329]
["35.11.1  Енергія електрична (09310000-5 Електрична енергія)",2273,67550,"Шістдесят сім тисяч п'ятсот п'ятдесят грн. 0 коп.","в т.ч.ПДВ-",11258.333333333334]
["61.10.1  Послуги щодо передавання даних і повідомлень(64211000-8 Послуги громадського телефонного звязку)",2240,2304,"Дві тисячі триста чотири грн. 0 коп.","в т.ч.ПДВ-",384]
["43.21.1 Роботи електромонтажні(45310000-3 Електромонтажні роботи(повірка контурів заземлення)",2240,745,"Сімсот сорок п'ять грн. 0 коп.","в т.ч.ПДВ-",124.16666666666667]
["91.01.1 Послуги бібліотек і архівів(92512000-3 Послуги архівів)",2240,448,"Чотириста сорок вісім грн. 0 коп.","без ПДВ"]
["71.20.1 Послуги щодо технічного випробування й аналізування(71632000-7 Послуги з технічних випробувань (повірка,атестація)",2240,4047,"Чотири тисячі сорок сім грн. 0 коп.","в т.ч.ПДВ-",674.5]
["58.29.1 Програмне забезпечення системне на фізичних носіях(48443000-5 Пакети програмного забезпечення для бухгалтерського обліку)",2240,7392,"Сім тисяч триста дев'яносто дві грн. 0 коп.","в т.ч.ПДВ-",1232]
[]
["Затверджений рішенням комітету з конкурсних торгів від__________№_______"]
[]
["Голова комітету з конкурсних торгів      _______________________В.В.Антонюк"]
["                                                                                                (підпис)          (ініціали та прізвище)"]
["МП"]

{"sheet":"4","index":3,"n_rows":50,"n_cols":9,"rows_kept":50,"cut":false,"hidden":false,"merged":[[0,0,0,8],[1,0,1,8],[2,0,2,8],[3,2,3,5],[4,2,4,5]]}
["Додаток до річного плану закупівель на  2016 рік "]
["Дошкільний навчальний заклад № 4, код-26243220"]
["(найменування замовника,код за ЄДРПОУ)"]
["Предмет закупівлі","Код КЕКВ (для бюджетних коштів)","Очікувана вартість предмета закупівлі",null,null,null,"Процедура закупівлі","Орієнтовний початок проведення процедури закупівлі","Примітки"]
[1,2,3,null,null,null,4,5,6]
["10.73.1 Макарони,локшина,кускус і подібні борошняні вироби(15851000-8 Борошняні вироби(макарони)",2230,2789.9777339567736,{"$f":"SUMINWORDS(C6,\"грн.\",\"коп.\")","v":"Дві тисячі сімсот вісімдесят дев'ять грн. 98 коп."},"в т.ч.ПДВ-",{"$f":"C6/6","v":464.9962889927956}]
["10.11.1 М'ясо великої рогатої худоби,свиней,овець,кіз,коней та ін..тварин родини конячих,свіже чиа охолоджене(15111000-9 М'ясо великої рогатої худоби родини бикових(яловичина)",2230,90441.319120576984,{"$f":"SUMINWORDS(C7,\"грн.\",\"коп.\")","v":"Дев'яносто тисяч чотириста сорок одна грн. 32 коп."},"в т.ч.ПДВ-",{"$f":"C7/6","v":15073.553186762831}]
["10.12.1 М'ясо  свійської птиці,свіже чи охолоджене(15112000-6 М'ясо свійської птиці)",2230,36134.171795210576,{"$f":"SUMINWORDS(C8,\"грн.\",\"коп.\")","v":"Тридцять шість тисяч сто тридцять чотири грн. 17 коп."},"в т.ч.ПДВ-",6022.3619658684293]
["10.12.4 Субпродукти харчові свійської птиці(15114000-0 Потрухи(печінка)",2230,10220.434915924234,{"$f":"SUMINWORDS(C9,\"грн.\",\"коп.\")","v":"Десять тисяч двісті двадцять грн. 43 коп."},"в т.ч.ПДВ-",1703.4058193207056]
["10.13.1.Консерви та готові страви з м’яса,м’ясних субпродуктів чи крові (15130000-8 Мясопродукти (ковбаса,сосиски)",2230,30686.919872875267,"Тридцять тисяч шістсот вісімдесят шість грн. 92 коп.","в т.ч.ПДВ-",5114.4866454792109]
["10.20.1 Продукція рибна,свіжа,охолоджена чи заморожена (15221000-3 Морожена риба)",2230,72123.877639836952,"Сімдесят дві тисячі сто двадцять три грн. 88 коп.","в т.ч.ПДВ-",12020.646273306158]
["01.24.1 Яблука (03222000-3 Фрукти і горіхи(яблука,апельсини,лимони,ягоди)",2230,30467.877803638272,"Тридцять тисяч чотириста шістдесят сім грн. 88 коп.","в т.ч.ПДВ-",5077.9796339397117]
["10.39.1 Плоди та овочі,оброблені та законсервовані,крім картоплі(15331000-7 Оброблені овочі(консерви овочеві)",2230,21531.363286593409,"Двадцять одна тисячa п'ятсот тридцять одна грн. 36 коп.","в т.ч.ПДВ-",3588.5605477655681]
["10.72.1 Вироби хлібобулочні,зниженої вологості,та кондитерські,борошняні,тривалого зберігання(15820000-2 Сухарі та печиво; пресерви з хлібобулочних і кондитерських виробів (печиво)",2230,7381.3233934073096,"Сім тисяч триста вісімдесят одна грн. 32 коп.","в т.ч.ПДВ-",1230.2205655678849]
["10.71.1 Вироби  хлібобулочні,кондитерські та кулінарні,борошняні,нетривалого зберігання(15810000-9 Хлібопродукти, свіжовипечені хлібобулочні та кондитерські вироби)",2230,27618.501535310763,"Двадцять сім тисяч шістсот вісімнадцять грн. 50 коп.","в т.ч.ПДВ-",4603.0835892184605]
["10.51.1 Молоко та вершки,рідинні,оброблені(15511000-3 Молоко)",2230,110209.80981885639,"Сто десять тисяч двісті дев'ять грн. 81 коп.","в т.ч.ПДВ-",18368.301636476066]
["10.51.5 Продукти молочні, інші (15550000-8 Молочні продукти різні (кефір,сметана)",2230,20603.659019581311,"Двадцять тисяч шістсот три грн. 66 коп.","в т.ч.ПДВ-",3433.9431699302186]
["10.51.4 Сир сичужний та кисломолочний сир(15540000-5 Сирні продукти)",2230,77236.627183680248,"Сімдесят сім тисяч двісті тридцять шість грн. 63 коп.","в т.ч.ПДВ-",12872.771197280041]
["10.32.1 Соки фруктові та овочеві (15321000-4 Фруктові соки)",2230,20572.388680291704,"Двадцять тисяч п'ятсот сімдесят дві грн. 39 коп.","в т.ч.ПДВ-",3428.7314467152842]
["10.61.2 Борошно зернових і овочевих культур;їхні суміші(15612000-1 Борошно зернових та овочевих культур і супутня продукція)",2230,4519.1369374375772,"Чотири тисячі п'ятсот дев'ятнадцять грн. 14 коп.","в т.ч.ПДВ-",753.18948957292957]
["10.61.1 Рис напівобрушений чи повністю обрушений,або лущений чи дроблений(15614000-5 Рис оброблений)",2230,2217.0791822727529,"Дві тисячі двісті сімнадцять грн. 8 коп.","в т.ч.ПДВ-",369.51319704545881]
["0.81.1 Цукор-сирець,тростинний і очищений тростинний чи буряковий цукор (сахароза);меляса (15831000-2 Цукор)",2230,19976.088518595028,"Дев'ятнадцять тисяч дев'ятсот сімдесят шість грн. 9 коп.","в т.ч.ПДВ-",3329.3480864325047]
["10.39.2 Плоди й горіхи,оброблені та законсервовані(15332000-4 Оброблені фрукти та горіхи(повидло,сухофрукти)",2230,13185.94699983288,"Тринадцять тисяч сто вісімдесят п'ять грн. 95 коп.","в т.ч.ПДВ-",2197.6578333054799]
["10.51.3 Масло вершкове та молочні пасти(15530000-2 Вершкове масло)",2230,35532.84669725701,"Тридцять п'ять тисяч п'ятсот тридцять дві грн. 85 коп.","в т.ч.ПДВ-",5922.1411162095019]
["01.47.2 Яйця у шкаралупі свіжі (03142000-8 Продукція тваринництва (03142500-3 Яйця)",2230,27152.032608721027,"Двадцять сім тисяч сто п'ятдесят дві грн. 3 коп.","в т.ч.ПДВ-",4525.3387681201712]
["10.41.5 Олії рафіновані(15421000-5 Рафіновані олії)",2230,8015.8022373543672,"Вісім тисяч п'ятнадцять грн. 80 коп.","в т.ч.ПДВ-",1335.9670395590613]
["10.61.3 Крупи,крупка,гранули та інші продукти з зерна зернових культур(15613000-8 Продукція із зерна зернових культур(крупи)",2230,8370.0511004664768,"Вісім тисяч триста сімдесят грн. 5 коп.","в т.ч.ПДВ-",1395.0085167444129]
["10.82.1 Какао терте,какао-масло,жири й олія,какао-порошок(15841000-5 Какао)",2230,10205.065840862693,"Десять тисяч двісті п'ять грн. 7 коп.","в т.ч.ПДВ-",1700.8443068104489]
["10.83.1 Чай і кава,оброблені(15860000-4 Кава, чай та супутня продукція)",2230,10594.023797137568,"Десять тисяч п'ятсот дев'яносто чотири грн. 2 коп.","в т.ч.ПДВ-",1765.6706328562614]
["10.84.3 Сіль харчова(14410000-8 Камяна сіль)",2230,400.51767865025283,"Чотириста грн. 52 коп.","в т.ч.ПДВ-",66.752946441708801]
["01.13.5 Коренеплоди та бульби їстівні з високим умістом крохмалю та інуліну(03212000-0 Картопля та сушені овочі)",2230,27788.221475317216,"Двадцять сім тисяч сімсот вісімдесят вісім грн. 22 коп.","в т.ч.ПДВ-",4631.3702458862026]
["01.13.4 Овочі коренеплодні,цибулинні та бульбоподібні(03221000-6 Овочі)",2230,34168.93540465922,"Тридцять чотири тисячі сто шістдесят вісім грн. 94 коп.","в т.ч.ПДВ-",5694.8225674432033]
["38.11.6 Послуги підприємств щодо перевезення інших безпечних відходів(90512000-9 Послуги з перевезення сміття)",2240,8457,{"$f":"SUMINWORDS(C33,\"грн.\",\"коп.\")","v":"Вісім тисяч чотириста п'ятдесят сім грн. 0 коп."},"в т.ч.ПДВ-",{"$f":"C33/6","v":1409.5}]
["43.21.1 Роботи електромонтажні(45310000-3 Електромонтажні роботи(повірка контурів заземлення)",2240,745,"Сімсот сорок п'ять грн. 0 коп.","в т.ч.ПДВ-",124.16666666666667]
[" 36.00.2 Обробляння та розподіляння води трубопроводами(65110000-7 Розподіл води)",2272,10406.911200000002,"Десять тисяч чотириста шість грн. 91 коп.","в т.ч.ПДВ-",1734.4852000000003]
["37.00.1 Послуги каналізаційні(90400000-1 Послуги у сфері водовідведення)",2272,25412.088799999998,"Двадцять п'ять тисяч чотириста дванадцять грн. 9 коп.","в т.ч.ПДВ-",4235.348133333333]
["35.11.1  Енергія електрична (09310000-5 Електрична енергія)",2273,78973,"Сімдесят вісім тисяч дев'ятсот сімдесят три грн. 0 коп.","в т.ч.ПДВ-",13162.166666666666]
["61.10.1  Послуги щодо передавання даних і повідомлень(64211000-8 Послуги громадського телефонного звязку)",2240,1587,"Одна тисячa п'ятсот вісімдесят сім грн. 0 коп.","в т.ч.ПДВ-",264.5]
["64.99.1 Послуги фінансові, крім страхування та пенсійного забезпечення, інші, н.в.і.у( 66110000-4 Банківські послуги)",2240,2184,"Дві тисячі сто вісімдесят чотири грн. 0 коп.","без ПДВ"]
["91.01.1 Послуги бібліотек і архівів(92512000-3 Послуги архівів)",2240,961,"Дев'ятсот шістдесят одна грн. 0 коп.","без ПДВ"]
["71.20.1 Послуги щодо технічного випробування й аналізування(71632000-7 Послуги з технічних випробувань (повірка,атестація)",2240,2600,"Дві тисячі шістсот грн. 0 коп.","в т.ч.ПДВ-",433.33333333333331]
["58.29.1 Програмне забезпечення системне на фізичних носіях(48443000-5 Пакети програмного забезпечення для бухгалтерського обліку)",2240,7392,"Сім тисяч триста дев'яносто дві грн. 0 коп.","в т.ч.ПДВ-",1232]
["Поточний ремонт будівель (45400000-1 Завершальні будівельні роботи)",2240,131100,"Сто тридцять одна тисячa сто грн. 0 коп.","в т.ч.ПДВ-",21850]
["85.60.1 Послуги освітянські допоміжні (80570000-0 Послуги з професійної підготовки у сфері підвищення кваліфікації)",2282,1025,"Одна тисячa двадцять п'ять грн. 0 коп.","в т.ч.ПДВ-",170.83333333333334]
[]
["Затверджений рішенням комітету з конкурсних торгів від__________№_______"]
[]
["Голова комітету з конкурсних торгів      _______________________С.Г.Березова"]
["                                                                                                (підпис)          (ініціали та прізвище)"]
["МП"]

{"sheet":"5","index":4,"n_rows":48,"n_cols":9,"rows_kept":48,"cut":false,"hidden":false,"merged":[[0,0,0,8],[1,0,1,8],[2,0,2,8],[3,2,3,5],[4,2,4,5]]}
["Додаток до річного плану закупівель на  2016 рік "]
["Дошкільний навчальний заклад № 5, 38189967"]
["(найменування замовника,код за ЄДРПОУ)"]
["Предмет закупівлі","Код КЕКВ (для бюджетних коштів)","Очікувана вартість предмета закупівлі",null,null,null,"Процедура закупівлі","Орієнтовний початок проведення процедури закупівлі","Примітки"]
[1,2,3,null,null,null,4,5,6]
["10.73.1 Макарони,локшина,кускус і подібні борошняні вироби(15851000-8 Борошняні вироби(макарони)",2230,1866.5222052474558,{"$f":"SUMINWORDS(C6,\"грн.\",\"коп.\")","v":"Одна тисячa вісімсот шістдесят шість грн. 52 коп."},"в т.ч.ПДВ-",{"$f":"C6/6","v":311.08703420790931}]
["10.11.1 М'ясо великої рогатої худоби,свиней,овець,кіз,коней та ін..тварин родини конячих,свіже чиа охолоджене(15111000-9 М'ясо великої рогатої худоби родини бикових(яловичина)",2230,66914.063497893891,{"$f":"SUMINWORDS(C7,\"грн.\",\"коп.\")","v":"Шістдесят шість тисяч дев'ятсот чотирнадцять грн. 6 коп."},"в т.ч.ПДВ-",{"$f":"C7/6","v":11152.343916315649}]
["10.12.1 М'ясо  свійської птиці,свіже чи охолоджене(15112000-6 М'ясо свійської птиці)",2230,24303.400948366187,{"$f":"SUMINWORDS(C8,\"грн.\",\"коп.\")","v":"Двадцять чотири тисячі триста три грн. 40 коп."},"в т.ч.ПДВ-",4050.5668247276976]
["10.12.4 Субпродукти харчові свійської птиці(15114000-0 Потрухи(печінка)",2230,6902.6059389832963,{"$f":"SUMINWORDS(C9,\"грн.\",\"коп.\")","v":"Шість тисяч дев'ятсот дві грн. 61 коп."},"в т.ч.ПДВ-",1150.4343231638827]
["10.13.1.Консерви та готові страви з м’яса,м’ясних субпродуктів чи крові (15130000-8 Мясопродукти (ковбаса,сосиски)",2230,20725.117581207993,"Двадцять тисяч сімсот двадцять п'ять грн. 12 коп.","в т.ч.ПДВ-",3454.1862635346656]
["10.20.1 Продукція рибна,свіжа,охолоджена чи заморожена (15221000-3 Морожена риба)",2230,48800.130501335843,"Сорок вісім тисяч вісімсот грн. 13 коп.","в т.ч.ПДВ-",8133.3550835559736]
["01.24.1 Яблука (03222000-3 Фрукти і горіхи(яблука,апельсини,лимони,ягоди)",2230,20591.493250522028,"Двадцять тисяч п'ятсот дев'яносто одна грн. 49 коп.","в т.ч.ПДВ-",3431.9155417536713]
["10.39.1 Плоди та овочі,оброблені та законсервовані,крім картоплі(15331000-7 Оброблені овочі(консерви овочеві)",2230,14343.979213930023,"Чотирнадцять тисяч триста сорок три грн. 98 коп.","в т.ч.ПДВ-",2390.6632023216703]
["10.72.1 Вироби хлібобулочні,зниженої вологості,та кондитерські,борошняні,тривалого зберігання(15820000-2 Сухарі та печиво; пресерви з хлібобулочних і кондитерських виробів (печиво)",2230,5035.8186207424742,"П'ять тисяч тридцять п'ять грн. 82 коп.","в т.ч.ПДВ-",839.30310345707903]
["10.71.1 Вироби  хлібобулочні,кондитерські та кулінарні,борошняні,нетривалого зберігання(15810000-9 Хлібопродукти, свіжовипечені хлібобулочні та кондитерські вироби)",2230,18509.971149623299,"Вісімнадцять тисяч п'ятсот дев'ять грн. 97 коп.","в т.ч.ПДВ-",3084.9951916038831]
["10.51.1 Молоко та вершки,рідинні,оброблені(15511000-3 Молоко)",2230,72872.375278927735,"Сімдесят дві тисячі вісімсот сімдесят дві грн. 38 коп.","в т.ч.ПДВ-",12145.39587982129]
["10.51.5 Продукти молочні, інші (15550000-8 Молочні продукти різні (кефір,сметана)",2230,13795.783789139243,"Тринадцять тисяч сімсот дев'яносто п'ять грн. 78 коп.","в т.ч.ПДВ-",2299.2972981898738]
["10.51.4 Сир сичужний та кисломолочний сир(15540000-5 Сирні продукти)",2230,51428.373712035202,"П'ятдесят одна тисячa чотириста двадцять вісім грн. 37 коп.","в т.ч.ПДВ-",8571.3956186725336]
["10.32.1 Соки фруктові та овочеві (15321000-4 Фруктові соки)",2230,13727.464175015777,"Тринадцять тисяч сімсот двадцять сім грн. 46 коп.","в т.ч.ПДВ-",2287.910695835963]
["10.61.2 Борошно зернових і овочевих культур;їхні суміші(15612000-1 Борошно зернових та овочевих культур і супутня продукція)",2230,3034.5932844391368,"Три тисячі тридцять чотири грн. 59 коп.","в т.ч.ПДВ-",505.76554740652278]
["10.61.1 Рис напівобрушений чи повністю обрушений,або лущений чи дроблений(15614000-5 Рис оброблений)",2230,1479.4040459180619,"Одна тисячa чотириста сімдесят дев'ять грн. 40 коп.","в т.ч.ПДВ-",246.56734098634365]
["0.81.1 Цукор-сирець,тростинний і очищений тростинний чи буряковий цукор (сахароза);меляса (15831000-2 Цукор)",2230,13284.491854069214,"Тринадцять тисяч двісті вісімдесят чотири грн. 49 коп.","в т.ч.ПДВ-",2214.0819756782025]
["10.39.2 Плоди й горіхи,оброблені та законсервовані(15332000-4 Оброблені фрукти та горіхи(повидло,сухофрукти)",2230,8714.6007636950635,"Вісім тисяч сімсот чотирнадцять грн. 60 коп.","в т.ч.ПДВ-",1452.4334606158438]
["10.51.3 Масло вершкове та молочні пасти(15530000-2 Вершкове масло)",2230,23898.957059664182,"Двадцять три тисячі вісімсот дев'яносто вісім грн. 96 коп.","в т.ч.ПДВ-",3983.1595099440306]
["01.47.2 Яйця у шкаралупі свіжі (03142000-8 Продукція тваринництва (03142500-3 Яйця)",2230,18337.750113589711,"Вісімнадцять тисяч триста тридцять сім грн. 75 коп.","в т.ч.ПДВ-",3056.2916855982853]
["10.41.5 Олії рафіновані(15421000-5 Рафіновані олії)",2230,5362.6495605308546,"П'ять тисяч триста шістдесят дві грн. 65 коп.","в т.ч.ПДВ-",893.77492675514247]
["10.61.3 Крупи,крупка,гранули та інші продукти з зерна зернових культур(15613000-8 Продукція із зерна зернових культур(крупи)",2230,5590.6578505406042,"П'ять тисяч п'ятсот дев'яносто грн. 66 коп.","в т.ч.ПДВ-",931.77630842343399]
["10.82.1 Какао терте,какао-масло,жири й олія,какао-порошок(15841000-5 Какао)",2230,6892.2260804284351,"Шість тисяч вісімсот дев'яносто дві грн. 23 коп.","в т.ч.ПДВ-",1148.7043467380724]
["10.83.1 Чай і кава,оброблені(15860000-4 Кава, чай та супутня продукція)",2230,7239.7568276785933,"Сім тисяч двісті тридцять дев'ять грн. 76 коп.","в т.ч.ПДВ-",1206.6261379464322]
["10.84.3 Сіль харчова(14410000-8 Камяна сіль)",2230,272.12293422437756,"Двісті сімдесят дві грн. 12 коп.","в т.ч.ПДВ-",45.353822370729596]
["01.13.5 Коренеплоди та бульби їстівні з високим умістом крохмалю та інуліну(03212000-0 Картопля та сушені овочі)",2230,18572.725652432615,"Вісімнадцять тисяч п'ятсот сімдесят дві грн. 73 коп.","в т.ч.ПДВ-",3095.454275405436]
["01.13.4 Овочі коренеплодні,цибулинні та бульбоподібні(03221000-6 Овочі)",2230,22709.963901389532,"Двадцять дві тисячі сімсот дев'ять грн. 96 коп.","в т.ч.ПДВ-",3784.993983564922]
["38.11.6 Послуги підприємств щодо перевезення інших безпечних відходів(90512000-9 Послуги з перевезення сміття)",2240,7704,{"$f":"SUMINWORDS(C33,\"грн.\",\"коп.\")","v":"Сім тисяч сімсот чотири грн. 0 коп."},"в т.ч.ПДВ-",{"$f":"C33/6","v":1284}]
["43.21.1 Роботи електромонтажні(45310000-3 Електромонтажні роботи(повірка контурів заземлення)",2240,745,"Сімсот сорок п'ять грн. 0 коп.","в т.ч.ПДВ-",124.16666666666667]
[" 36.00.2 Обробляння та розподіляння води трубопроводами(65110000-7 Розподіл води)",2272,11846.637600000002,"Одинадцять тисяч вісімсот сорок шість грн. 64 коп.","в т.ч.ПДВ-",1974.4396000000004]
["37.00.1 Послуги каналізаційні(90400000-1 Послуги у сфері водовідведення)",2272,10388.362399999998,"Десять тисяч триста вісімдесят вісім грн. 36 коп.","в т.ч.ПДВ-",1731.3937333333331]
["35.11.1  Енергія електрична (09310000-5 Електрична енергія)",2273,76723,"Сімдесят шість тисяч сімсот двадцять три грн. 0 коп.","в т.ч.ПДВ-",12787.166666666666]
["61.10.1  Послуги щодо передавання даних і повідомлень(64211000-8 Послуги громадського телефонного звязку)",2240,2613,"Дві тисячі шістсот тринадцять грн. 0 коп.","в т.ч.ПДВ-",435.5]
["85.60.1 Послуги освітянські допоміжні (80570000-0 Послуги з професійної підготовки у сфері підвищення кваліфікації)",2282,1374,"Одна тисячa триста сімдесят чотири грн. 0 коп.","в т.ч.ПДВ-",229]
["91.01.1 Послуги бібліотек і архівів(92512000-3 Послуги архівів)",2240,514,"П'ятсот чотирнадцять грн. 0 коп.","без ПДВ"]
["71.20.1 Послуги щодо технічного випробування й аналізування(71632000-7 Послуги з технічних випробувань (повірка,атестація)",2240,147,"Сто сорок сім грн. 0 коп.","в т.ч.ПДВ-",24.5]
["58.29.1 Програмне забезпечення системне на фізичних носіях(48443000-5 Пакети програмного забезпечення для бухгалтерського обліку)",2240,7392,"Сім тисяч триста дев'яносто дві грн. 0 коп.","в т.ч.ПДВ-",1232]
[]
["Затверджений рішенням комітету з конкурсних торгів від__________№_______"]
[]
["Голова комітету з конкурсних торгів      _______________________О.О.Онищук"]
["                                                                                                (підпис)          (ініціали та прізвище)"]
["МП"]

{"sheet":"6","index":5,"n_rows":49,"n_cols":9,"rows_kept":49,"cut":false,"hidden":false,"merged":[[0,0,0,8],[1,0,1,8],[2,0,2,8],[3,2,3,5],[4,2,4,5]]}
["Додаток до річного плану закупівель на  2016 рік "]
["Дошкільний навчальний заклад № 6,  37836283"]
["(найменування замовника,код за ЄДРПОУ)"]
["Предмет закупівлі","Код КЕКВ (для бюджетних коштів)","Очікувана вартість предмета закупівлі",null,null,null,"Процедура закупівлі","Орієнтовний початок проведення процедури закупівлі","Примітки"]
[1,2,3,null,null,null,4,5,6]
["10.73.1 Макарони,локшина,кускус і подібні борошняні вироби(15851000-8 Борошняні вироби(макарони)",2230,2098.4441499845684,{"$f":"SUMINWORDS(C6,\"грн.\",\"коп.\")","v":"Дві тисячі дев'яносто вісім грн. 44 коп."},"в т.ч.ПДВ-",{"$f":"C6/6","v":349.74069166409475}]
["10.11.1 М'ясо великої рогатої худоби,свиней,овець,кіз,коней та ін..тварин родини конячих,свіже чиа охолоджене(15111000-9 М'ясо великої рогатої худоби родини бикових(яловичина)",2230,74853.722033181635,{"$f":"SUMINWORDS(C7,\"грн.\",\"коп.\")","v":"Сімдесят чотири тисячі вісімсот п'ятдесят три грн. 72 коп."},"в т.ч.ПДВ-",{"$f":"C7/6","v":12475.620338863606}]
["10.12.1 М'ясо  свійської птиці,свіже чи охолоджене(15112000-6 М'ясо свійської птиці)",2230,27171.97333886561,{"$f":"SUMINWORDS(C8,\"грн.\",\"коп.\")","v":"Двадцять сім тисяч сто сімдесят одна грн. 97 коп."},"в т.ч.ПДВ-",4528.662223144268]
["10.12.4 Субпродукти харчові свійської птиці(15114000-0 Потрухи(печінка)",2230,7684.2161671873901,{"$f":"SUMINWORDS(C9,\"грн.\",\"коп.\")","v":"Сім тисяч шістсот вісімдесят чотири грн. 22 коп."},"в т.ч.ПДВ-",1280.7026945312316]
["10.13.1.Консерви та готові страви з м’яса,м’ясних субпродуктів чи крові (15130000-8 Мясопродукти (ковбаса,сосиски)",2230,23071.90718869798,"Двадцять три тисячі сімдесят одна грн. 91 коп.","в т.ч.ПДВ-",3845.3178647829968]
["10.20.1 Продукція рибна,свіжа,охолоджена чи заморожена (15221000-3 Морожена риба)",2230,54222.152171518479,"П'ятдесят чотири тисячі двісті двадцять дві грн. 15 коп.","в т.ч.ПДВ-",9037.0253619197465]
["01.24.1 Яблука (03222000-3 Фрукти і горіхи(яблука,апельсини,лимони,ягоди)",2230,22906.572493367359,"Двадцять дві тисячі дев'ятсот шість грн. 57 коп.","в т.ч.ПДВ-",3817.7620822278932]
["10.39.1 Плоди та овочі,оброблені та законсервовані,крім картоплі(15331000-7 Оброблені овочі(консерви овочеві)",2230,16197.275037479068,"Шістнадцять тисяч сто дев'яносто сім грн. 28 коп.","в т.ч.ПДВ-",2699.5458395798446]
["10.72.1 Вироби хлібобулочні,зниженої вологості,та кондитерські,борошняні,тривалого зберігання(15820000-2 Сухарі та печиво; пресерви з хлібобулочних і кондитерських виробів (печиво)",2230,5547.339609802998,"П'ять тисяч п'ятсот сорок сім грн. 34 коп.","в т.ч.ПДВ-",924.556601633833]
["10.71.1 Вироби  хлібобулочні,кондитерські та кулінарні,борошняні,нетривалого зберігання(15810000-9 Хлібопродукти, свіжовипечені хлібобулочні та кондитерські вироби)",2230,20771.392131497752,"Двадцять тисяч сімсот сімдесят одна грн. 39 коп.","в т.ч.ПДВ-",3461.8986885829586]
["10.51.1 Молоко та вершки,рідинні,оброблені(15511000-3 Молоко)",2230,82931.739582232156,"Вісімдесят дві тисячі дев'ятсот тридцять одна грн. 74 коп.","в т.ч.ПДВ-",13821.956597038692]
["10.51.5 Продукти молочні, інші (15550000-8 Молочні продукти різні (кефір,сметана)",2230,15496.23279442913,"П'ятнадцять тисяч чотириста дев'яносто шість грн. 23 коп.","в т.ч.ПДВ-",2582.7054657381882]
["10.51.4 Сир сичужний та кисломолочний сир(15540000-5 Сирні продукти)",2230,58103.527204598453,"П'ятдесят вісім тисяч сто три грн. 53 коп.","в т.ч.ПДВ-",9683.9212007664082]
["10.32.1 Соки фруктові та овочеві (15321000-4 Фруктові соки)",2230,15474.860490389479,"П'ятнадцять тисяч чотириста сімдесят чотири грн. 86 коп.","в т.ч.ПДВ-",2579.1434150649134]
["10.61.2 Борошно зернових і овочевих культур;їхні суміші(15612000-1 Борошно зернових та овочевих культур і супутня продукція)",2230,3398.4984453744005,"Три тисячі триста дев'яносто вісім грн. 50 коп.","в т.ч.ПДВ-",566.41640756240008]
["10.61.1 Рис напівобрушений чи повністю обрушений,або лущений чи дроблений(15614000-5 Рис оброблений)",2230,1667.7203398692134,"Одна тисячa шістсот шістдесят сім грн. 72 коп.","в т.ч.ПДВ-",277.95338997820221]
["0.81.1 Цукор-сирець,тростинний і очищений тростинний чи буряковий цукор (сахароза);меляса (15831000-2 Цукор)",2230,15028.356510850368,"П'ятнадцять тисяч двадцять вісім грн. 36 коп.","в т.ч.ПДВ-",2504.7260851417282]
["10.39.2 Плоди й горіхи,оброблені та законсервовані(15332000-4 Оброблені фрукти та горіхи(повидло,сухофрукти)",2230,9922.4762072975336,"Дев'ять тисяч дев'ятсот двадцять дві грн. 48 коп.","в т.ч.ПДВ-",1653.746034549589]
["10.51.3 Масло вершкове та молочні пасти(15530000-2 Вершкове масло)",2230,26719.79223942912,"Двадцять шість тисяч сімсот дев'ятнадцять грн. 79 коп.","в т.ч.ПДВ-",4453.2987065715197]
["01.47.2 Яйця у шкаралупі свіжі (03142000-8 Продукція тваринництва (03142500-3 Яйця)",2230,20414.208363956481,"Двадцять тисяч чотириста чотирнадцять грн. 21 коп.","в т.ч.ПДВ-",3402.3680606594135]
["10.41.5 Олії рафіновані(15421000-5 Рафіновані олії)",2230,6028.9776178801922,"Шість тисяч двадцять вісім грн. 98 коп.","в т.ч.ПДВ-",1004.8296029800321]
["10.61.3 Крупи,крупка,гранули та інші продукти з зерна зернових культур(15613000-8 Продукція із зерна зернових культур(крупи)",2230,6295.8282782271226,"Шість тисяч двісті дев'яносто п'ять грн. 83 коп.","в т.ч.ПДВ-",1049.3047130378538]
["10.82.1 Какао терте,какао-масло,жири й олія,какао-порошок(15841000-5 Какао)",2230,7672.6609549059058,"Сім тисяч шістсот сімдесят дві грн. 66 коп.","в т.ч.ПДВ-",1278.7768258176509]
["10.83.1 Чай і кава,оброблені(15860000-4 Кава, чай та супутня продукція)",2230,7961.2549912100339,"Сім тисяч дев'ятсот шістдесят одна грн. 25 коп.","в т.ч.ПДВ-",1326.875831868339]
["10.84.3 Сіль харчова(14410000-8 Камяна сіль)",2230,301.05494413721601,"Триста одна грн. 5 коп.","в т.ч.ПДВ-",50.175824022869335]
["01.13.5 Коренеплоди та бульби їстівні з високим умістом крохмалю та інуліну(03212000-0 Картопля та сушені овочі)",2230,20901.345543834264,"Двадцять тисяч дев'ятсот одна грн. 35 коп.","в т.ч.ПДВ-",3483.5575906390441]
["01.13.4 Овочі коренеплодні,цибулинні та бульбоподібні(03221000-6 Овочі)",2230,25706.471625592218,"Двадцять п'ять тисяч сімсот шість грн. 47 коп.","в т.ч.ПДВ-",4284.4119375987029]
["43.21.1 Роботи електромонтажні(45310000-3 Електромонтажні роботи(повірка контурів заземлення)",2240,745,"Сімсот сорок п'ять грн. 0 коп.","в т.ч.ПДВ-",124.16666666666667]
["38.11.6 Послуги підприємств щодо перевезення інших безпечних відходів(90512000-9 Послуги з перевезення сміття)",2240,5975,{"$f":"SUMINWORDS(C34,\"грн.\",\"коп.\")","v":"П'ять тисяч дев'ятсот сімдесят п'ять грн. 0 коп."},"в т.ч.ПДВ-",{"$f":"C34/6","v":995.83333333333337}]
["26.51.6 Інструменти та прилади вимірювальні,контрольні та випробувальні,інші(38421000-0 Прилади для вимірювання витрати рідин і газів)",2210,1320,"Одна тисячa триста двадцять грн. 0 коп.","в т.ч.ПДВ-",220]
[" 36.00.2 Обробляння та розподіляння води трубопроводами(65110000-7 Розподіл води)",2272,9064.9440000000013,"Дев'ять тисяч шістдесят чотири грн. 94 коп.","в т.ч.ПДВ-",1510.8240000000003]
["37.00.1 Послуги каналізаційні(90400000-1 Послуги у сфері водовідведення)",2272,13325.055999999999,"Тринадцять тисяч триста двадцять п'ять грн. 6 коп.","в т.ч.ПДВ-",2220.8426666666664]
["35.11.1  Енергія електрична (09310000-5 Електрична енергія)",2273,74864,"Сімдесят чотири тисячі вісімсот шістдесят чотири грн. 0 коп.","в т.ч.ПДВ-",12477.333333333334]
["61.10.1  Послуги щодо передавання даних і повідомлень(64211000-8 Послуги громадського телефонного звязку)",2240,2200,"Дві тисячі двісті грн. 0 коп.","в т.ч.ПДВ-",366.66666666666669]
["85.60.1 Послуги освітянські допоміжні (80570000-0 Послуги з професійної підготовки у сфері підвищення кваліфікації)",2282,349,"Триста сорок дев'ять грн. 0 коп.","в т.ч.ПДВ-",58.166666666666664]
["91.01.1 Послуги бібліотек і архівів(92512000-3 Послуги архівів)",2240,593,"П'ятсот дев'яносто три грн. 0 коп.","без ПДВ"]
["71.20.1 Послуги щодо технічного випробування й аналізування(71632000-7 Послуги з технічних випробувань (повірка,атестація)",2240,1447,"Одна тисячa чотириста сорок сім грн. 0 коп.","в т.ч.ПДВ-",241.16666666666666]
["58.29.1 Програмне забезпечення системне на фізичних носіях(48443000-5 Пакети програмного забезпечення для бухгалтерського обліку)",2240,7392,"Сім тисяч триста дев'яносто дві грн. 0 коп.","в т.ч.ПДВ-",1232]
[]
["Затверджений рішенням комітету з конкурсних торгів від__________№_______"]
[]
["Голова комітету з конкурсних торгів      _______________________Л.В.Гаріпова"]
["                                                                                                (підпис)          (ініціали та прізвище)"]
["МП"]

{"sheet":"7","index":6,"n_rows":50,"n_cols":9,"rows_kept":50,"cut":false,"hidden":false,"merged":[[0,0,0,8],[1,0,1,8],[2,0,2,8],[3,2,3,5],[4,2,4,5]]}
["Додаток до річного плану закупівель на 2016 рік "]
["Дошкільний навчальний заклад № 7, 38394724"]
["(найменування замовника,код за ЄДРПОУ)"]
["Предмет закупівлі","Код КЕКВ (для бюджетних коштів)","Очікувана вартість предмета закупівлі",null,null,null,"Процедура закупівлі","Орієнтовний початок проведення процедури закупівлі","Примітки"]
[1,2,3,null,null,null,4,5,6]
["10.73.1 Макарони,локшина,кускус і подібні борошняні вироби(15851000-8 Борошняні вироби(макарони)",2230,4655.3017292070217,{"$f":"SUMINWORDS(C6,\"грн.\",\"коп.\")","v":"Чотири тисячі шістсот п'ятдесят п'ять грн. 30 коп."},"в т.ч.ПДВ-",{"$f":"C6/6","v":775.88362153450362}]
["10.11.1 М'ясо великої рогатої худоби,свиней,овець,кіз,коней та ін..тварин родини конячих,свіже чиа охолоджене(15111000-9 М'ясо великої рогатої худоби родини бикових(яловичина)",2230,158922.69229546495,{"$f":"SUMINWORDS(C7,\"грн.\",\"коп.\")","v":"Сто п'ятдесят вісім тисяч дев'ятсот двадцять дві грн. 69 коп."},"в т.ч.ПДВ-",{"$f":"C7/6","v":26487.115382577493}]
["10.12.1 М'ясо  свійської птиці,свіже чи охолоджене(15112000-6 М'ясо свійської птиці)",2230,60200.936204530866,{"$f":"SUMINWORDS(C8,\"грн.\",\"коп.\")","v":"Шістдесят тисяч двісті грн. 94 коп."},"в т.ч.ПДВ-",10033.489367421811]
["10.12.4 Субпродукти харчові свійської птиці(15114000-0 Потрухи(печінка)",2230,17007.423440783328,{"$f":"SUMINWORDS(C9,\"грн.\",\"коп.\")","v":"Сімнадцять тисяч сім грн. 42 коп."},"в т.ч.ПДВ-",2834.5705734638882]
["10.13.1.Консерви та готові страви з м’яса,м’ясних субпродуктів чи крові (15130000-8 Мясопродукти (ковбаса,сосиски)",2230,51064.895443755457,"П'ятдесят одна тисячa шістдесят чотири грн. 90 коп.","в т.ч.ПДВ-",8510.8159072925755]
["10.20.1 Продукція рибна,свіжа,охолоджена чи заморожена (15221000-3 Морожена риба)",2230,119954.85938589653,"Сто дев'ятнадцять тисяч дев'ятсот п'ятдесят чотири грн. 86 коп.","в т.ч.ПДВ-",19992.47656431609]
["01.24.1 Яблука (03222000-3 Фрукти і горіхи(яблука,апельсини,лимони,ягоди)",2230,50690.231769284648,"П'ятдесят тисяч шістсот дев'яносто грн. 23 коп.","в т.ч.ПДВ-",8448.371961547442]
["10.39.1 Плоди та овочі,оброблені та законсервовані,крім картоплі(15331000-7 Оброблені овочі(консерви овочеві)",2230,35969.928788886413,"Тридцять п'ять тисяч дев'ятсот шістдесят дев'ять грн. 93 коп.","в т.ч.ПДВ-",5994.9881314810691]
["10.72.1 Вироби хлібобулочні,зниженої вологості,та кондитерські,борошняні,тривалого зберігання(15820000-2 Сухарі та печиво; пресерви з хлібобулочних і кондитерських виробів (печиво)",2230,12246.97935211905,"Дванадцять тисяч двісті сорок шість грн. 98 коп.","в т.ч.ПДВ-",2041.163225353175]
["10.71.1 Вироби  хлібобулочні,кондитерські та кулінарні,борошняні,нетривалого зберігання(15810000-9 Хлібопродукти, свіжовипечені хлібобулочні та кондитерські вироби)",2230,46060.300441539875,"Сорок шість тисяч шістдесят грн. 30 коп.","в т.ч.ПДВ-",7676.7167402566456]
["10.51.1 Молоко та вершки,рідинні,оброблені(15511000-3 Молоко)",2230,184504.06718502543,"Сто вісімдесят чотири тисячі п'ятсот чотири грн. 7 коп.","в т.ч.ПДВ-",30750.677864170906]
["10.51.5 Продукти молочні, інші (15550000-8 Молочні продукти різні (кефір,сметана)",2230,34370.522941007926,"Тридцять чотири тисячі триста сімдесят грн. 52 коп.","в т.ч.ПДВ-",5728.4204901679877]
["10.51.4 Сир сичужний та кисломолочний сир(15540000-5 Сирні продукти)",2230,129048.58685949323,"Сто двадцять дев'ять тисяч сорок вісім грн. 59 коп.","в т.ч.ПДВ-",21508.097809915536]
["10.32.1 Соки фруктові та овочеві (15321000-4 Фруктові соки)",2230,34352.011873467993,"Тридцять чотири тисячі триста п'ятдесят дві грн. 1 коп.","в т.ч.ПДВ-",5725.3353122446651]
["10.61.2 Борошно зернових і овочевих культур;їхні суміші(15612000-1 Борошно зернових та овочевих культур і супутня продукція)",2230,7532.5544649604808,"Сім тисяч п'ятсот тридцять дві грн. 55 коп.","в т.ч.ПДВ-",1255.4257441600801]
["10.61.1 Рис напівобрушений чи повністю обрушений,або лущений чи дроблений(15614000-5 Рис оброблений)",2230,3702.1043874605816,"Три тисячі сімсот дві грн. 10 коп.","в т.ч.ПДВ-",617.01739791009697]
["0.81.1 Цукор-сирець,тростинний і очищений тростинний чи буряковий цукор (сахароза);меляса (15831000-2 Цукор)",2230,33388.318338609315,"Тридцять три тисячі триста вісімдесят вісім грн. 32 коп.","в т.ч.ПДВ-",5564.7197231015525]
["10.39.2 Плоди й горіхи,оброблені та законсервовані(15332000-4 Оброблені фрукти та горіхи(повидло,сухофрукти)",2230,22077.755983563264,"Двадцять дві тисячі сімдесят сім грн. 76 коп.","в т.ч.ПДВ-",3679.625997260544]
["10.51.3 Масло вершкове та молочні пасти(15530000-2 Вершкове масло)",2230,59199.105193562886,"П'ятдесят дев'ять тисяч сто дев'яносто дев'ять грн. 11 коп.","в т.ч.ПДВ-",9866.5175322604809]
["01.47.2 Яйця у шкаралупі свіжі (03142000-8 Продукція тваринництва (03142500-3 Яйця)",2230,45182.628689800324,"Сорок п'ять тисяч сто вісімдесят дві грн. 63 коп.","в т.ч.ПДВ-",7530.4381149667206]
["10.41.5 Олії рафіновані(15421000-5 Рафіновані олії)",2230,13375.009256298046,"Тринадцять тисяч триста сімдесят п'ять грн. 1 коп.","в т.ч.ПДВ-",2229.1682093830077]
["10.61.3 Крупи,крупка,гранули та інші продукти з зерна зернових культур(15613000-8 Продукція із зерна зернових культур(крупи)",2230,13972.485485154566,"Тринадцять тисяч дев'ятсот сімдесят дві грн. 49 коп.","в т.ч.ПДВ-",2328.7475808590943]
["10.82.1 Какао терте,какао-масло,жири й олія,какао-порошок(15841000-5 Какао)",2230,16981.848367940045,"Шістнадцять тисяч дев'ятсот вісімдесят одна грн. 85 коп.","в т.ч.ПДВ-",2830.308061323341]
["10.83.1 Чай і кава,оброблені(15860000-4 Кава, чай та супутня продукція)",2230,17568.840096126951,"Сімнадцять тисяч п'ятсот шістдесят вісім грн. 84 коп.","в т.ч.ПДВ-",2928.1400160211583]
["10.84.3 Сіль харчова(14410000-8 Камяна сіль)",2230,665.33216648601604,"Шістсот шістдесят п'ять грн. 33 коп.","в т.ч.ПДВ-",110.888694414336]
["01.13.5 Коренеплоди та бульби їстівні з високим умістом крохмалю та інуліну(03212000-0 Картопля та сушені овочі)",2230,46379.565805561579,"Сорок шість тисяч триста сімдесят дев'ять грн. 57 коп.","в т.ч.ПДВ-",7729.9276342602634]
["01.13.4 Овочі коренеплодні,цибулинні та бульбоподібні(03221000-6 Овочі)",2230,57119.713553859692,"П'ятдесят сім тисяч сто дев'ятнадцять грн. 71 коп.","в т.ч.ПДВ-",9519.9522589766148]
["43.21.1 Роботи електромонтажні(45310000-3 Електромонтажні роботи(повірка контурів заземлення)",2240,745,"Сімсот сорок п'ять грн. 0 коп.","в т.ч.ПДВ-",124.16666666666667]
["38.11.6 Послуги підприємств щодо перевезення інших безпечних відходів(90512000-9 Послуги з перевезення сміття)",2240,10486,{"$f":"SUMINWORDS(C34,\"грн.\",\"коп.\")","v":"Десять тисяч чотириста вісімдесят шість грн. 0 коп."},"в т.ч.ПДВ-",{"$f":"C34/6","v":1747.6666666666667}]
["59.12.1 Послуги щодо поствиробництва кінофільмів,відеофільмів і телевізійних програм(64200000-8 Телекомунікаційні послуги)Створення страхового фонду документації м.Вінниці)",2240,15000,"П'ятнадцять тисяч грн. 0 коп.","в т.ч. ПДВ-",2500]
["37.00.1 Послуги каналізаційні(90400000-1 Послуги у сфері водовідведення)",2272,29616.119999999995,"Двадцять дев'ять тисяч шістсот шістнадцять грн. 12 коп.","в т.ч.ПДВ-",4936.0199999999995]
["35.11.1  Енергія електрична (09310000-5 Електрична енергія)",2273,158332,"Сто п'ятдесят вісім тисяч триста тридцять дві грн. 0 коп.","в т.ч.ПДВ-",26388.666666666668]
["61.10.1  Послуги щодо передавання даних і повідомлень(64211000-8 Послуги громадського телефонного звязку)",2240,2620,"Дві тисячі шістсот двадцять грн. 0 коп.","в т.ч.ПДВ-",436.66666666666669]
["85.60.1 Послуги освітянські допоміжні (80570000-0 Послуги з професійної підготовки у сфері підвищення кваліфікації)",2282,676,"Шістсот сімдесят шість грн. 0 коп.","в т.ч.ПДВ-",112.66666666666667]
["91.01.1 Послуги бібліотек і архівів(92512000-3 Послуги архівів)",2240,988,"Дев'ятсот вісімдесят вісім грн. 0 коп.","без ПДВ"]
["71.20.1 Послуги щодо технічного випробування й аналізування(71632000-7 Послуги з технічних випробувань (повірка,атестація)",2240,2903,"Дві тисячі дев'ятсот три грн. 0 коп.","в т.ч.ПДВ-",483.83333333333331]
["58.29.1 Програмне забезпечення системне на фізичних носіях(48443000-5 Пакети програмного забезпечення для бухгалтерського обліку)",2240,7392,"Сім тисяч триста дев'яносто дві грн. 0 коп.","в т.ч.ПДВ-",1232]
[" 36.00.2 Обробляння та розподіляння води трубопроводами(65110000-7 Розподіл води)",2272,25772.880000000005,"Двадцять п'ять тисяч сімсот сімдесят дві грн. 88 коп.","в т.ч.ПДВ-",4295.4800000000005]
["22.29.2-Вироби пластмасові інші,н.в.і.у.(30192000-1 Офісне приладдя) (приладдя канцелярське - ручки,олівці,фломастери тощо)",2210,1899,{"$f":"SUMINWORDS(C44,\"грн.\",\"коп.\")","v":"Одна тисячa вісімсот дев'яносто дев'ять грн. 0 коп."},"в т.ч.ПДВ-",316.5]
[]
["Затверджений рішенням комітету з конкурсних торгів від__________№_______"]
[]
["Голова комітету з конкурсних торгів      _______________________О.В.Просєкова"]
["                                                                                                (підпис)          (ініціали та прізвище)"]
["МП"]

{"sheet":"9","index":7,"n_rows":49,"n_cols":9,"rows_kept":49,"cut":false,"hidden":false,"merged":[[0,0,0,8],[1,0,1,8],[2,0,2,8],[3,2,3,5],[4,2,4,5]]}
["Додаток до річного плану закупівель на  2016 рік "]
["Дошкільний навчальний заклад № 9,  20087919"]
["(найменування замовника,код за ЄДРПОУ)"]
["Предмет закупівлі","Код КЕКВ (для бюджетних коштів)","Очікувана вартість предмета закупівлі",null,null,null,"Процедура закупівлі","Орієнтовний початок проведення процедури закупівлі","Примітки"]
[1,2,3,null,null,null,4,5,6]
["10.73.1 Макарони,локшина,кускус і подібні борошняні вироби(15851000-8 Борошняні вироби(макарони)",2230,1220.8767607275386,{"$f":"SUMINWORDS(C6,\"грн.\",\"коп.\")","v":"Одна тисячa двісті двадцять грн. 88 коп."},"в т.ч.ПДВ-",{"$f":"C6/6","v":203.47946012125644}]
["10.11.1 М'ясо великої рогатої худоби,свиней,овець,кіз,коней та ін..тварин родини конячих,свіже чиа охолоджене(15111000-9 М'ясо великої рогатої худоби родини бикових(яловичина)",2230,41538.310962628195,{"$f":"SUMINWORDS(C7,\"грн.\",\"коп.\")","v":"Сорок одна тисячa п'ятсот тридцять вісім грн. 31 коп."},"в т.ч.ПДВ-",{"$f":"C7/6","v":6923.0518271046994}]
["10.12.1 М'ясо  свійської птиці,свіже чи охолоджене(15112000-6 М'ясо свійської птиці)",2230,15906.771438132078,{"$f":"SUMINWORDS(C8,\"грн.\",\"коп.\")","v":"П'ятнадцять тисяч дев'ятсот шість грн. 77 коп."},"в т.ч.ПДВ-",2651.1285730220129]
["10.12.4 Субпродукти харчові свійської птиці(15114000-0 Потрухи(печінка)",2230,4520.0269435060109,{"$f":"SUMINWORDS(C9,\"грн.\",\"коп.\")","v":"Чотири тисячі п'ятсот двадцять грн. 3 коп."},"в т.ч.ПДВ-",753.33782391766852]
["10.13.1.Консерви та готові страви з м’яса,м’ясних субпродуктів чи крові (15130000-8 Мясопродукти (ковбаса,сосиски)",2230,13571.409218847622,"Тринадцять тисяч п'ятсот сімдесят одна грн. 41 коп.","в т.ч.ПДВ-",2261.9015364746037]
["10.20.1 Продукція рибна,свіжа,охолоджена чи заморожена (15221000-3 Морожена риба)",2230,31962.68986847248,"Тридцять одна тисячa дев'ятсот шістдесят дві грн. 69 коп.","в т.ч.ПДВ-",5327.1149780787464]
["01.24.1 Яблука (03222000-3 Фрукти і горіхи(яблука,апельсини,лимони,ягоди)",2230,13485.017469153565,"Тринадцять тисяч чотириста вісімдесят п'ять грн. 2 коп.","в т.ч.ПДВ-",2247.5029115255943]
["10.39.1 Плоди та овочі,оброблені та законсервовані,крім картоплі(15331000-7 Оброблені овочі(консерви овочеві)",2230,9377.5273061322459,"Дев'ять тисяч триста сімдесят сім грн. 53 коп.","в т.ч.ПДВ-",1562.9212176887077]
["10.72.1 Вироби хлібобулочні,зниженої вологості,та кондитерські,борошняні,тривалого зберігання(15820000-2 Сухарі та печиво; пресерви з хлібобулочних і кондитерських виробів (печиво)",2230,3301.5283627089257,"Три тисячі триста одна грн. 53 коп.","в т.ч.ПДВ-",550.25472711815428]
["10.71.1 Вироби  хлібобулочні,кондитерські та кулінарні,борошняні,нетривалого зберігання(15810000-9 Хлібопродукти, свіжовипечені хлібобулочні та кондитерські вироби)",2230,12109.795862494913,"Дванадцять тисяч сто дев'ять грн. 80 коп.","в т.ч.ПДВ-",2018.2993104158188]
["10.51.1 Молоко та вершки,рідинні,оброблені(15511000-3 Молоко)",2230,47597.992884747997,"Сорок сім тисяч п'ятсот дев'яносто сім грн. 99 коп.","в т.ч.ПДВ-",7932.9988141246658]
["10.51.5 Продукти молочні, інші (15550000-8 Молочні продукти різні (кефір,сметана)",2230,9024.6266390648034,"Дев'ять тисяч двадцять чотири грн. 63 коп.","в т.ч.ПДВ-",1504.1044398441338]
["10.51.4 Сир сичужний та кисломолочний сир(15540000-5 Сирні продукти)",2230,33619.80524239994,"Тридцять три тисячі шістсот дев'ятнадцять грн. 81 коп.","в т.ч.ПДВ-",5603.300873733323]
["10.32.1 Соки фруктові та овочеві (15321000-4 Фруктові соки)",2230,8976.2300763326439,"Вісім тисяч дев'ятсот сімдесят шість грн. 23 коп.","в т.ч.ПДВ-",1496.0383460554406]
["10.61.2 Борошно зернових і овочевих культур;їхні суміші(15612000-1 Борошно зернових та овочевих культур і супутня продукція)",2230,1985.7825295929872,"Одна тисячa дев'ятсот вісімдесят п'ять грн. 78 коп.","в т.ч.ПДВ-",330.96375493216453]
["10.61.1 Рис напівобрушений чи повністю обрушений,або лущений чи дроблений(15614000-5 Рис оброблений)",2230,967.36519744023644,"Дев'ятсот шістдесят сім грн. 37 коп.","в т.ч.ПДВ-",161.22753290670607]
["0.81.1 Цукор-сирець,тростинний і очищений тростинний чи буряковий цукор (сахароза);меляса (15831000-2 Цукор)",2230,8683.0390329736892,"Вісім тисяч шістсот вісімдесят три грн. 4 коп.","в т.ч.ПДВ-",1447.1731721622816]
["10.39.2 Плоди й горіхи,оброблені та законсервовані(15332000-4 Оброблені фрукти та горіхи(повидло,сухофрукти)",2230,5691.7808588071839,"П'ять тисяч шістсот дев'яносто одна грн. 78 коп.","в т.ч.ПДВ-",948.63014313453061]
["10.51.3 Масло вершкове та молочні пасти(15530000-2 Вершкове масло)",2230,15642.059659282681,"П'ятнадцять тисяч шістсот сорок дві грн. 6 коп.","в т.ч.ПДВ-",2607.0099432137799]
["01.47.2 Яйця у шкаралупі свіжі (03142000-8 Продукція тваринництва (03142500-3 Яйця)",2230,12008.091629364342,"Дванадцять тисяч вісім грн. 9 коп.","в т.ч.ПДВ-",2001.348604894057]
["10.41.5 Олії рафіновані(15421000-5 Рафіновані олії)",2230,3507.6647928278339,"Три тисячі п'ятсот сім грн. 66 коп.","в т.ч.ПДВ-",584.61079880463899]
["10.61.3 Крупи,крупка,гранули та інші продукти з зерна зернових культур(15613000-8 Продукція із зерна зернових культур(крупи)",2230,3656.0998002461029,"Три тисячі шістсот п'ятдесят шість грн. 10 коп.","в т.ч.ПДВ-",609.34996670768385]
["10.82.1 Какао терте,какао-масло,жири й олія,какао-порошок(15841000-5 Какао)",2230,4513.2299105082584,"Чотири тисячі п'ятсот тринадцять грн. 23 коп.","в т.ч.ПДВ-",752.20498508470973]
["10.83.1 Чай і кава,оброблені(15860000-4 Кава, чай та супутня продукція)",2230,4747.3797095184063,"Чотири тисячі сімсот сорок сім грн. 38 коп.","в т.ч.ПДВ-",791.22995158640106]
["10.84.3 Сіль харчова(14410000-8 Камяна сіль)",2230,178.31990206286082,"Сто сімдесят вісім грн. 32 коп.","в т.ч.ПДВ-",29.719983677143471]
["01.13.5 Коренеплоди та бульби їстівні з високим умістом крохмалю та інуліну(03212000-0 Картопля та сушені овочі)",2230,12146.868485134331,"Дванадцять тисяч сто сорок шість грн. 87 коп.","в т.ч.ПДВ-",2024.4780808557218]
["01.13.4 Овочі коренеплодні,цибулинні та бульбоподібні(03221000-6 Овочі)",2230,14842.70959113016,"Чотирнадцять тисяч вісімсот сорок дві грн. 71 коп.","в т.ч.ПДВ-",2473.7849318550266]
["43.21.1 Роботи електромонтажні(45310000-3 Електромонтажні роботи(повірка контурів заземлення)",2240,745,"Сімсот сорок п'ять грн. 0 коп.","в т.ч.ПДВ-",124.16666666666667]
["38.11.6 Послуги підприємств щодо перевезення інших безпечних відходів(90512000-9 Послуги з перевезення сміття)",2240,6270,{"$f":"SUMINWORDS(C34,\"грн.\",\"коп.\")","v":"Шість тисяч двісті сімдесят грн. 0 коп."},"в т.ч.ПДВ-",{"$f":"C34/6","v":1045}]
[" 36.00.2 Обробляння та розподіляння води трубопроводами(65110000-7 Розподіл води)",2272,5341.2072000000007,"П'ять тисяч триста сорок одна грн. 21 коп.","в т.ч.ПДВ-",890.20120000000009]
["37.00.1 Послуги каналізаційні(90400000-1 Послуги у сфері водовідведення)",2272,5179.7927999999993,"П'ять тисяч сто сімдесят дев'ять грн. 79 коп.","в т.ч.ПДВ-",863.29879999999991]
["35.11.1  Енергія електрична (09310000-5 Електрична енергія)",2273,37433,"Тридцять сім тисяч чотириста тридцять три грн. 0 коп.","в т.ч.ПДВ-",6238.833333333333]
["61.10.1  Послуги щодо передавання даних і повідомлень(64211000-8 Послуги громадського телефонного звязку)",2240,1589,"Одна тисячa п'ятсот вісімдесят дев'ять грн. 0 коп.","в т.ч.ПДВ-",264.83333333333331]
["91.01.1 Послуги бібліотек і архівів(92512000-3 Послуги архівів)",2240,435,"Чотириста тридцять п'ять грн. 0 коп.","без ПДВ"]
["58.29.1 Програмне забезпечення системне на фізичних носіях(48443000-5 Пакети програмного забезпечення для бухгалтерського обліку)",2240,7392,"Сім тисяч триста дев'яносто дві грн. 0 коп.","в т.ч.ПДВ-",1232]
["Поточний ремонт будівель (45400000-1 Завершальні будівельні роботи)",2240,32900,"Тридцять дві тисячі дев'ятсот грн. 0 коп.","в т.ч.ПДВ-",5483.333333333333]
["28.99.3 Машини й устаткування спеціальної призначеності,н.в.і.у.(37535000-7 Каруселі,гойдалки,тири та інші атракціони)",3110,29300,"Двадцять дев'ять тисяч триста грн. 0 коп.","в т.ч.ПДВ-",4883.333333333333]
["85.60.1 Послуги освітянські допоміжні (80570000-0 Послуги з професійної підготовки у сфері підвищення кваліфікації)",2282,698,"Шістсот дев'яносто вісім грн. 0 коп.","в т.ч.ПДВ-",116.33333333333333]
[]
["Затверджений рішенням комітету з конкурсних торгів від__________№_______"]
[]
["Голова комітету з конкурсних торгів      _______________________І.В.Бондар"]
["                                                                                                (підпис)          (ініціали та прізвище)"]
["МП"]

{"sheet":"10","index":8,"n_rows":50,"n_cols":9,"rows_kept":50,"cut":false,"hidden":false,"merged":[[0,0,0,8],[1,0,1,8],[2,0,2,8],[3,2,3,5],[4,2,4,5]]}
["Додаток до річного плану закупівель на  2016 рік "]
["Дошкільний навчальний заклад № 10, 26243272"]
["(найменування замовника,код за ЄДРПОУ)"]
["Предмет закупівлі","Код КЕКВ (для бюджетних коштів)","Очікувана вартість предмета закупівлі",null,null,null,"Процедура закупівлі","Орієнтовний початок проведення процедури закупівлі","Примітки"]
[1,2,3,null,null,null,4,5,6]
["10.73.1 Макарони,локшина,кускус і подібні борошняні вироби(15851000-8 Борошняні вироби(макарони)",2230,1765.3907228099472,{"$f":"SUMINWORDS(C6,\"грн.\",\"коп.\")","v":"Одна тисячa сімсот шістдесят п'ять грн. 39 коп."},"в т.ч.ПДВ-",{"$f":"C6/6","v":294.23178713499118}]
["10.11.1 М'ясо великої рогатої худоби,свиней,овець,кіз,коней та ін..тварин родини конячих,свіже чиа охолоджене(15111000-9 М'ясо великої рогатої худоби родини бикових(яловичина)",2230,57393.931244218635,{"$f":"SUMINWORDS(C7,\"грн.\",\"коп.\")","v":"П'ятдесят сім тисяч триста дев'яносто три грн. 93 коп."},"в т.ч.ПДВ-",{"$f":"C7/6","v":9565.6552073697731}]
["10.12.1 М'ясо  свійської птиці,свіже чи охолоджене(15112000-6 М'ясо свійської птиці)",2230,22958.466379331574,{"$f":"SUMINWORDS(C8,\"грн.\",\"коп.\")","v":"Двадцять дві тисячі дев'ятсот п'ятдесят вісім грн. 47 коп."},"в т.ч.ПДВ-",3826.411063221929]
["10.12.4 Субпродукти харчові свійської птиці(15114000-0 Потрухи(печінка)",2230,6514.4587798714201,{"$f":"SUMINWORDS(C9,\"грн.\",\"коп.\")","v":"Шість тисяч п'ятсот чотирнадцять грн. 46 коп."},"в т.ч.ПДВ-",1085.7431299785701]
["10.13.1.Консерви та готові страви з м’яса,м’ясних субпродуктів чи крові (15130000-8 Мясопродукти (ковбаса,сосиски)",2230,19559.703303974838,"Дев'ятнадцять тисяч п'ятсот п'ятдесят дев'ять грн. 70 коп.","в т.ч.ПДВ-",3259.9505506624732]
["10.20.1 Продукція рибна,свіжа,охолоджена чи заморожена (15221000-3 Морожена риба)",2230,46036.687490577038,"Сорок шість тисяч тридцять шість грн. 69 коп.","в т.ч.ПДВ-",7672.7812484295064]
["01.24.1 Яблука (03222000-3 Фрукти і горіхи(яблука,апельсини,лимони,ягоди)",2230,19430.508257471603,"Дев'ятнадцять тисяч чотириста тридцять грн. 51 коп.","в т.ч.ПДВ-",3238.4180429119338]
["10.39.1 Плоди та овочі,оброблені та законсервовані,крім картоплі(15331000-7 Оброблені овочі(консерви овочеві)",2230,13580.007878953973,"Тринадцять тисяч п'ятсот вісімдесят грн. 1 коп.","в т.ч.ПДВ-",2263.3346464923288]
["10.72.1 Вироби хлібобулочні,зниженої вологості,та кондитерські,борошняні,тривалого зберігання(15820000-2 Сухарі та печиво; пресерви з хлібобулочних і кондитерських виробів (печиво)",2230,4741.722290157466,"Чотири тисячі сімсот сорок одна грн. 72 коп.","в т.ч.ПДВ-",790.28704835957762]
["10.71.1 Вироби  хлібобулочні,кондитерські та кулінарні,борошняні,нетривалого зберігання(15810000-9 Хлібопродукти, свіжовипечені хлібобулочні та кондитерські вироби)",2230,17499.903558948059,"Сімнадцять тисяч чотириста дев'яносто дев'ять грн. 90 коп.","в т.ч.ПДВ-",2916.65059315801]
["10.51.1 Молоко та вершки,рідинні,оброблені(15511000-3 Молоко)",2230,69110.951316643594,"Шістдесят дев'ять тисяч сто десять грн. 95 коп.","в т.ч.ПДВ-",11518.491886107266]
["10.51.5 Продукти молочні, інші (15550000-8 Молочні продукти різні (кефір,сметана)",2230,13045.75006760669,"Тринадцять тисяч сорок п'ять грн. 75 коп.","в т.ч.ПДВ-",2174.2916779344482]
["10.51.4 Сир сичужний та кисломолочний сир(15540000-5 Сирні продукти)",2230,48694.917897576946,"Сорок вісім тисяч шістсот дев'яносто чотири грн. 92 коп.","в т.ч.ПДВ-",8115.8196495961574]
["10.32.1 Соки фруктові та овочеві (15321000-4 Фруктові соки)",2230,12991.446224955547,"Дванадцять тисяч дев'ятсот дев'яносто одна грн. 45 коп.","в т.ч.ПДВ-",2165.2410374925912]
["10.61.2 Борошно зернових і овочевих культур;їхні суміші(15612000-1 Борошно зернових та овочевих культур і супутня продукція)",2230,2867.7263481111004,"Дві тисячі вісімсот шістдесят сім грн. 73 коп.","в т.ч.ПДВ-",477.95439135185006]
["10.61.1 Рис напівобрушений чи повністю обрушений,або лущений чи дроблений(15614000-5 Рис оброблений)",2230,1400.0836470953006,"Одна тисячa чотириста грн. 8 коп.","в т.ч.ПДВ-",233.34727451588344]
["0.81.1 Цукор-сирець,тростинний і очищений тростинний чи буряковий цукор (сахароза);меляса (15831000-2 Цукор)",2230,12582.058382652183,"Дванадцять тисяч п'ятсот вісімдесят дві грн. 6 коп.","в т.ч.ПДВ-",2097.0097304420306]
["10.39.2 Плоди й горіхи,оброблені та законсервовані(15332000-4 Оброблені фрукти та горіхи(повидло,сухофрукти)",2230,8265.6952495721616,"Вісім тисяч двісті шістдесят п'ять грн. 70 коп.","в т.ч.ПДВ-",1377.6158749286935]
["10.51.3 Масло вершкове та молочні пасти(15530000-2 Вершкове масло)",2230,22576.404155167198,"Двадцять дві тисячі п'ятсот сімдесят шість грн. 40 коп.","в т.ч.ПДВ-",3762.7340258611998]
["01.47.2 Яйця у шкаралупі свіжі (03142000-8 Продукція тваринництва (03142500-3 Яйця)",2230,17306.582222214802,"Сімнадцять тисяч триста шість грн. 58 коп.","в т.ч.ПДВ-",2884.4303703691335]
["10.41.5 Олії рафіновані(15421000-5 Рафіновані олії)",2230,5072.0916993253195,"П'ять тисяч сімдесят дві грн. 9 коп.","в т.ч.ПДВ-",845.34861655421992]
["10.61.3 Крупи,крупка,гранули та інші продукти з зерна зернових культур(15613000-8 Продукція із зерна зернових культур(крупи)",2230,5289.701801299414,"П'ять тисяч двісті вісімдесят дев'ять грн. 70 коп.","в т.ч.ПДВ-",881.6169668832357]
["10.82.1 Какао терте,какао-масло,жири й олія,какао-порошок(15841000-5 Какао)",2230,6504.6626012550723,"Шість тисяч п'ятсот чотири грн. 66 коп.","в т.ч.ПДВ-",1084.1104335425121]
["10.83.1 Чай і кава,оброблені(15860000-4 Кава, чай та супутня продукція)",2230,6814.3640195900653,"Шість тисяч вісімсот чотирнадцять грн. 36 коп.","в т.ч.ПДВ-",1135.7273365983442]
["10.84.3 Сіль харчова(14410000-8 Камяна сіль)",2230,256.47085043840002,"Двісті п'ятдесят шість грн. 47 коп.","в т.ч.ПДВ-",42.745141739733334]
["01.13.5 Коренеплоди та бульби їстівні з високим умістом крохмалю та інуліну(03212000-0 Картопля та сушені овочі)",2230,17570.309739525139,"Сімнадцять тисяч п'ятсот сімдесят грн. 31 коп.","в т.ч.ПДВ-",2928.384956587523]
["01.13.4 Овочі коренеплодні,цибулинні та бульбоподібні(03221000-6 Овочі)",2230,21512.004054644436,"Двадцять одна тисячa п'ятсот дванадцять грн. 0 коп.","в т.ч.ПДВ-",3585.334009107406]
["43.21.1 Роботи електромонтажні(45310000-3 Електромонтажні роботи(повірка контурів заземлення)",2240,745,"Сімсот сорок п'ять грн. 0 коп.","в т.ч.ПДВ-",124.16666666666667]
["38.11.6 Послуги підприємств щодо перевезення інших безпечних відходів(90512000-9 Послуги з перевезення сміття)",2240,6703,{"$f":"SUMINWORDS(C34,\"грн.\",\"коп.\")","v":"Шість тисяч сімсот три грн. 0 коп."},"в т.ч.ПДВ-",{"$f":"C34/6","v":1117.1666666666667}]
["Поточний ремонт будівель (45400000-1 Завершальні будівельні роботи)",2240,60900,"Шістдесят тисяч дев'ятсот грн. 0 коп.","в т.ч.ПДВ-",10150]
[" 36.00.2 Обробляння та розподіляння води трубопроводами(65110000-7 Розподіл води)",2272,12415.418400000002,"Дванадцять тисяч чотириста п'ятнадцять грн. 42 коп.","в т.ч.ПДВ-",2069.2364000000002]
["37.00.1 Послуги каналізаційні(90400000-1 Послуги у сфері водовідведення)",2272,14768.581599999998,"Чотирнадцять тисяч сімсот шістдесят вісім грн. 58 коп.","в т.ч.ПДВ-",2461.4302666666663]
["35.11.1  Енергія електрична (09310000-5 Електрична енергія)",2273,77338,"Сімдесят сім тисяч триста тридцять вісім грн. 0 коп.","в т.ч.ПДВ-",12889.666666666666]
["61.10.1  Послуги щодо передавання даних і повідомлень(64211000-8 Послуги громадського телефонного звязку)",2240,1627,"Одна тисячa шістсот двадцять сім грн. 0 коп.","в т.ч.ПДВ-",271.16666666666669]
["91.01.1 Послуги бібліотек і архівів(92512000-3 Послуги архівів)",2240,474,"Чотириста сімдесят чотири грн. 0 коп.","без ПДВ"]
["58.29.1 Програмне забезпечення системне на фізичних носіях(48443000-5 Пакети програмного забезпечення для бухгалтерського обліку)",2240,7392,"Сім тисяч триста дев'яносто дві грн. 0 коп.","в т.ч.ПДВ-",1232]
["31.09.1 Меблі, інші (39161000-8 Меблі для дитячого садка)",3110,65200,"Шістдесят п'ять тисяч двісті грн. 0 коп.","в т.ч.ПДВ-",10866.666666666666]
["28.99.3 Машини й устаткування спеціальної призначеності,н.в.і.у.(37535000-7 Каруселі,гойдалки,тири та інші атракціони)",3110,29300,"Двадцять дев'ять тисяч триста грн. 0 коп.","в т.ч.ПДВ-",4883.333333333333]
["13.92.1 Вироби текстильні готові для домашнього господарства (39512000-4 Постільна білизна)",2210,40326,"Сорок тисяч триста двадцять шість грн. 0 коп.","в т.ч.ПДВ-",6721]
[]
["Затверджений рішенням комітету з конкурсних торгів від__________№_______"]
[]
["Голова комітету з конкурсних торгів      _______________________Т.Б.Андрусик"]
["                                                                                                (підпис)          (ініціали та прізвище)"]
["МП"]

{"sheet":"11","index":9,"n_rows":48,"n_cols":9,"rows_kept":48,"cut":false,"hidden":false,"merged":[[0,0,0,8],[1,0,1,8],[2,0,2,8],[3,2,3,5],[4,2,4,5]]}
["Додаток до річного плану закупівель на  2016 рік "]
["Дошкільний навчальний заклад № 11, 40047615"]
["(найменування замовника,код за ЄДРПОУ)"]
["Предмет закупівлі","Код КЕКВ (для бюджетних коштів)","Очікувана вартість предмета закупівлі",null,null,null,"Процедура закупівлі","Орієнтовний початок проведення процедури закупівлі","Примітки"]
[1,2,3,null,null,null,4,5,6]
["10.73.1 Макарони,локшина,кускус і подібні борошняні вироби(15851000-8 Борошняні вироби(макарони)",2230,2365.450870589294,{"$f":"SUMINWORDS(C6,\"грн.\",\"коп.\")","v":"Дві тисячі триста шістдесят п'ять грн. 45 коп."},"в т.ч.ПДВ-",{"$f":"C6/6","v":394.24181176488236}]
["10.11.1 М'ясо великої рогатої худоби,свиней,овець,кіз,коней та ін..тварин родини конячих,свіже чиа охолоджене(15111000-9 М'ясо великої рогатої худоби родини бикових(яловичина)",2230,71564.951115238378,{"$f":"SUMINWORDS(C7,\"грн.\",\"коп.\")","v":"Сімдесят одна тисячa п'ятсот шістдесят чотири грн. 95 коп."},"в т.ч.ПДВ-",{"$f":"C7/6","v":11927.49185253973}]
["10.12.1 М'ясо  свійської птиці,свіже чи охолоджене(15112000-6 М'ясо свійської птиці)",2230,30724.684542073584,{"$f":"SUMINWORDS(C8,\"грн.\",\"коп.\")","v":"Тридцять тисяч сімсот двадцять чотири грн. 68 коп."},"в т.ч.ПДВ-",5120.7807570122641]
["10.12.4 Субпродукти харчові свійської птиці(15114000-0 Потрухи(печінка)",2230,8709.9170313266986,{"$f":"SUMINWORDS(C9,\"грн.\",\"коп.\")","v":"Вісім тисяч сімсот дев'ять грн. 92 коп."},"в т.ч.ПДВ-",1451.6528385544498]
["10.13.1.Консерви та готові страви з м’яса,м’ясних субпродуктів чи крові (15130000-8 Мясопродукти (ковбаса,сосиски)",2230,26151.5804599734,"Двадцять шість тисяч сто п'ятдесят одна грн. 58 коп.","в т.ч.ПДВ-",4358.5967433288997]
["10.20.1 Продукція рибна,свіжа,охолоджена чи заморожена (15221000-3 Морожена риба)",2230,61525.913034768113,"Шістдесят одна тисячa п'ятсот двадцять п'ять грн. 91 коп.","в т.ч.ПДВ-",10254.318839128018]
["01.24.1 Яблука (03222000-3 Фрукти і горіхи(яблука,апельсини,лимони,ягоди)",2230,25974.733746045302,"Двадцять п'ять тисяч дев'ятсот сімдесят чотири грн. 73 коп.","в т.ч.ПДВ-",4329.1222910075503]
["10.39.1 Плоди та овочі,оброблені та законсервовані,крім картоплі(15331000-7 Оброблені овочі(консерви овочеві)",2230,18213.451337611295,"Вісімнадцять тисяч двісті тринадцять грн. 45 коп.","в т.ч.ПДВ-",3035.5752229352161]
["10.72.1 Вироби хлібобулочні,зниженої вологості,та кондитерські,борошняні,тривалого зберігання(15820000-2 Сухарі та печиво; пресерви з хлібобулочних і кондитерських виробів (печиво)",2230,6325.1878494624771,"Шість тисяч триста двадцять п'ять грн. 19 коп.","в т.ч.ПДВ-",1054.1979749104128]
["10.71.1 Вироби  хлібобулочні,кондитерські та кулінарні,борошняні,нетривалого зберігання(15810000-9 Хлібопродукти, свіжовипечені хлібобулочні та кондитерські вироби)",2230,23438.630700910391,"Двадцять три тисячі чотириста тридцять вісім грн. 63 коп.","в т.ч.ПДВ-",3906.438450151732]
["10.51.1 Молоко та вершки,рідинні,оброблені(15511000-3 Молоко)",2230,92850.5139440325,"Дев'яносто дві тисячі вісімсот п'ятдесят грн. 51 коп.","в т.ч.ПДВ-",15475.08565733875]
["10.51.5 Продукти молочні, інші (15550000-8 Молочні продукти різні (кефір,сметана)",2230,17476.632726663454,"Сімнадцять тисяч чотириста сімдесят шість грн. 63 коп.","в т.ч.ПДВ-",2912.7721211105759]
["10.51.4 Сир сичужний та кисломолочний сир(15540000-5 Сирні продукти)",2230,65316.944210759575,"Шістдесят п'ять тисяч триста шістнадцять грн. 94 коп.","в т.ч.ПДВ-",10886.15736845993]
["10.32.1 Соки фруктові та овочеві (15321000-4 Фруктові соки)",2230,17417.587657412856,"Сімнадцять тисяч чотириста сімнадцять грн. 59 коп.","в т.ч.ПДВ-",2902.9312762354762]
["10.61.2 Борошно зернових і овочевих культур;їхні суміші(15612000-1 Борошно зернових та овочевих культур і супутня продукція)",2230,3839.2181070348602,"Три тисячі вісімсот тридцять дев'ять грн. 22 коп.","в т.ч.ПДВ-",639.86968450581003]
["10.61.1 Рис напівобрушений чи повністю обрушений,або лущений чи дроблений(15614000-5 Рис оброблений)",2230,1877.0873718546391,"Одна тисячa вісімсот сімдесят сім грн. 9 коп.","в т.ч.ПДВ-",312.84789530910649]
["0.81.1 Цукор-сирець,тростинний і очищений тростинний чи буряковий цукор (сахароза);меляса (15831000-2 Цукор)",2230,16881.793081452899,"Шістнадцять тисяч вісімсот вісімдесят одна грн. 79 коп.","в т.ч.ПДВ-",2813.6321802421498]
["10.39.2 Плоди й горіхи,оброблені та законсервовані(15332000-4 Оброблені фрукти та горіхи(повидло,сухофрукти)",2230,11106.165963900477,"Одинадцять тисяч сто шість грн. 17 коп.","в т.ч.ПДВ-",1851.0276606500795]
["10.51.3 Масло вершкове та молочні пасти(15530000-2 Вершкове масло)",2230,30213.381168453598,"Тридцять тисяч двісті тринадцять грн. 38 коп.","в т.ч.ПДВ-",5035.5635280755996]
["01.47.2 Яйця у шкаралупі свіжі (03142000-8 Продукція тваринництва (03142500-3 Яйця)",2230,23139.127952898001,"Двадцять три тисячі сто тридцять дев'ять грн. 13 коп.","в т.ч.ПДВ-",3856.5213254830001]
["10.41.5 Олії рафіновані(15421000-5 Рафіновані олії)",2230,6796.1067036656386,"Шість тисяч сімсот дев'яносто шість грн. 11 коп.","в т.ч.ПДВ-",1132.6844506109398]
["10.61.3 Крупи,крупка,гранули та інші продукти з зерна зернових культур(15613000-8 Продукція із зерна зернових культур(крупи)",2230,7090.2838556925299,"Сім тисяч дев'яносто грн. 28 коп.","в т.ч.ПДВ-",1181.713975948755]
["10.82.1 Какао терте,какао-масло,жири й олія,какао-порошок(15841000-5 Какао)",2230,8696.8194117307194,"Вісім тисяч шістсот дев'яносто шість грн. 82 коп.","в т.ч.ПДВ-",1449.4699019551199]
["10.83.1 Чай і кава,оброблені(15860000-4 Кава, чай та супутня продукція)",2230,9086.521484685858,"Дев'ять тисяч вісімдесят шість грн. 52 коп.","в т.ч.ПДВ-",1514.4202474476431]
["10.84.3 Сіль харчова(14410000-8 Камяна сіль)",2230,342.43832214758402,"Триста сорок дві грн. 44 коп.","в т.ч.ПДВ-",57.073053691264001]
["01.13.5 Коренеплоди та бульби їстівні з високим умістом крохмалю та інуліну(03212000-0 Картопля та сушені овочі)",2230,23547.665979931731,"Двадцять три тисячі п'ятсот сорок сім грн. 67 коп.","в т.ч.ПДВ-",3924.6109966552885]
["01.13.4 Овочі коренеплодні,цибулинні та бульбоподібні(03221000-6 Овочі)",2230,28867.211288304658,"Двадцять вісім тисяч вісімсот шістдесят сім грн. 21 коп.","в т.ч.ПДВ-",4811.2018813841096]
["43.21.1 Роботи електромонтажні(45310000-3 Електромонтажні роботи(повірка контурів заземлення)",2240,745,"Сімсот сорок п'ять грн. 0 коп.","в т.ч.ПДВ-",124.16666666666667]
["38.11.6 Послуги підприємств щодо перевезення інших безпечних відходів(90512000-9 Послуги з перевезення сміття)",2240,7219,"Сім тисяч двісті дев'ятнадцять грн. 0 коп.","в т.ч.ПДВ-",1203.1666666666667]
["64.99.1 Послуги фінансові, крім страхування та пенсійного забезпечення, інші, н.в.і.у( 66110000-4 Банківські послуги)",2240,1352,"Одна тисячa триста п'ятдесят дві грн. 0 коп.","в т.ч.ПДВ-",225.33333333333334]
[" 36.00.2 Обробляння та розподіляння води трубопроводами(65110000-7 Розподіл води)",2272,18956.397600000004,"Вісімнадцять тисяч дев'ятсот п'ятдесят шість грн. 40 коп.","в т.ч.ПДВ-",3159.3996000000006]
["37.00.1 Послуги каналізаційні(90400000-1 Послуги у сфері водовідведення)",2272,17705.602399999996,"Сімнадцять тисяч сімсот п'ять грн. 60 коп.","в т.ч.ПДВ-",2950.9337333333328]
["35.11.1  Енергія електрична (09310000-5 Електрична енергія)",2273,102630,"Сто дві тисячі шістсот тридцять грн. 0 коп.","в т.ч.ПДВ-",17105]
["61.10.1  Послуги щодо передавання даних і повідомлень(64211000-8 Послуги громадського телефонного звязку)",2240,2595,"Дві тисячі п'ятсот дев'яносто п'ять грн. 0 коп.","в т.ч.ПДВ-",432.5]
["85.60.1 Послуги освітянські допоміжні (80570000-0 Послуги з професійної підготовки у сфері підвищення кваліфікації)",2282,2600,"Дві тисячі шістсот грн. 0 коп.","в т.ч.ПДВ-",433.33333333333331]
["71.20.1 Послуги щодо технічного випробування й аналізування(71632000-7 Послуги з технічних випробувань (повірка,атестація)",2240,6500,"Шість тисяч п'ятсот грн. 0 коп.","в т.ч.ПДВ-",1083.3333333333333]
["58.29.1 Програмне забезпечення системне на фізичних носіях(48443000-5 Пакети програмного забезпечення для бухгалтерського обліку)",2240,7392,"Сім тисяч триста дев'яносто дві грн. 0 коп.","в т.ч.ПДВ-",1232]
[]
["Затверджений рішенням комітету з конкурсних торгів від__________№_______"]
[]
["Голова комітету з конкурсних торгів      _______________________В.В.Горова"]
["                                                                                                (підпис)          (ініціали та прізвище)"]
["МП"]

{"sheet":"13","index":10,"n_rows":49,"n_cols":9,"rows_kept":49,"cut":false,"hidden":false,"merged":[[0,0,0,8],[1,0,1,8],[2,0,2,8],[3,2,3,5],[4,2,4,5]]}
["Додаток до річного плану закупівель на  2016 рік "]
["Дошкільний навчальний заклад № 13, 26244001"]
["(найменування замовника,код за ЄДРПОУ)"]
["Предмет закупівлі","Код КЕКВ (для бюджетних коштів)","Очікувана вартість предмета закупівлі",null,null,null,"Процедура закупівлі","Орієнтовний початок проведення процедури закупівлі","Примітки"]
[1,2,3,null,null,null,4,5,6]
["10.73.1 Макарони,локшина,кускус і подібні борошняні вироби(15851000-8 Борошняні вироби(макарони)",2230,2446.4981286188781,{"$f":"SUMINWORDS(C6,\"грн.\",\"коп.\")","v":"Дві тисячі чотириста сорок шість грн. 50 коп."},"в т.ч.ПДВ-",{"$f":"C6/6","v":407.74968810314635}]
["10.11.1 М'ясо великої рогатої худоби,свиней,овець,кіз,коней та ін..тварин родини конячих,свіже чиа охолоджене(15111000-9 М'ясо великої рогатої худоби родини бикових(яловичина)",2230,84395.038269039811,{"$f":"SUMINWORDS(C7,\"грн.\",\"коп.\")","v":"Вісімдесят чотири тисячі триста дев'яносто п'ять грн. 4 коп."},"в т.ч.ПДВ-",{"$f":"C7/6","v":14065.839711506635}]
["10.12.1 М'ясо  свійської птиці,свіже чи охолоджене(15112000-6 М'ясо свійської птиці)",2230,32008.512747852081,{"$f":"SUMINWORDS(C8,\"грн.\",\"коп.\")","v":"Тридцять дві тисячі вісім грн. 51 коп."},"в т.ч.ПДВ-",5334.7521246420138]
["10.12.4 Субпродукти харчові свійської птиці(15114000-0 Потрухи(печінка)",2230,9124.5988850080666,{"$f":"SUMINWORDS(C9,\"грн.\",\"коп.\")","v":"Дев'ять тисяч сто двадцять чотири грн. 60 коп."},"в т.ч.ПДВ-",1520.7664808346778]
["10.13.1.Консерви та готові страви з м’яса,м’ясних субпродуктів чи крові (15130000-8 Мясопродукти (ковбаса,сосиски)",2230,27396.665323908932,"Двадцять сім тисяч триста дев'яносто шість грн. 67 коп.","в т.ч.ПДВ-",4566.1108873181556]
["10.20.1 Продукція рибна,свіжа,охолоджена чи заморожена (15221000-3 Морожена риба)",2230,64614.542114092568,"Шістдесят чотири тисячі шістсот чотирнадцять грн. 54 коп.","в т.ч.ПДВ-",10769.090352348761]
["01.24.1 Яблука (03222000-3 Фрукти і горіхи(яблука,апельсини,лимони,ягоди)",2230,27236.849019390775,"Двадцять сім тисяч двісті тридцять шість грн. 85 коп.","в т.ч.ПДВ-",4539.4748365651294]
["10.39.1 Плоди та овочі,оброблені та законсервовані,крім картоплі(15331000-7 Оброблені овочі(консерви овочеві)",2230,18728.971627767474,"Вісімнадцять тисяч сімсот двадцять вісім грн. 97 коп.","в т.ч.ПДВ-",3121.4952712945792]
["10.72.1 Вироби хлібобулочні,зниженої вологості,та кондитерські,борошняні,тривалого зберігання(15820000-2 Сухарі та печиво; пресерви з хлібобулочних і кондитерських виробів (печиво)",2230,6716.4465750532299,"Шість тисяч сімсот шістнадцять грн. 45 коп.","в т.ч.ПДВ-",1119.4077625088717]
["10.71.1 Вироби  хлібобулочні,кондитерські та кулінарні,борошняні,нетривалого зберігання(15810000-9 Хлібопродукти, свіжовипечені хлібобулочні та кондитерські вироби)",2230,24300.562406692774,"Двадцять чотири тисячі триста грн. 56 коп.","в т.ч.ПДВ-",4050.0937344487957]
["10.51.1 Молоко та вершки,рідинні,оброблені(15511000-3 Молоко)",2230,94496.233565536822,"Дев'яносто чотири тисячі чотириста дев'яносто шість грн. 23 коп.","в т.ч.ПДВ-",15749.372260922804]
["10.51.5 Продукти молочні, інші (15550000-8 Молочні продукти різні (кефір,сметана)",2230,18096.41150821872,"Вісімнадцять тисяч дев'яносто шість грн. 41 коп.","в т.ч.ПДВ-",3016.06858470312]
["10.51.4 Сир сичужний та кисломолочний сир(15540000-5 Сирні продукти)",2230,67119.302833347523,"Шістдесят сім тисяч сто дев'ятнадцять грн. 30 коп.","в т.ч.ПДВ-",11186.550472224588]
["10.32.1 Соки фруктові та овочеві (15321000-4 Фруктові соки)",2230,17950.614430774094,"Сімнадцять тисяч дев'ятсот п'ятдесят грн. 61 коп.","в т.ч.ПДВ-",2991.7690717956825]
["10.61.2 Борошно зернових і овочевих культур;їхні суміші(15612000-1 Борошно зернових та овочевих культур і супутня продукція)",2230,3990.8651238112684,"Три тисячі дев'ятсот дев'яносто грн. 87 коп.","в т.ч.ПДВ-",665.14418730187811]
["10.61.1 Рис напівобрушений чи повністю обрушений,або лущений чи дроблений(15614000-5 Рис оброблений)",2230,1934.5314820733686,"Одна тисячa дев'ятсот тридцять чотири грн. 53 коп.","в т.ч.ПДВ-",322.42191367889478]
["0.81.1 Цукор-сирець,тростинний і очищений тростинний чи буряковий цукор (сахароза);меляса (15831000-2 Цукор)",2230,17317.735135268653,"Сімнадцять тисяч триста сімнадцять грн. 74 коп.","в т.ч.ПДВ-",2886.2891892114421]
["10.39.2 Плоди й горіхи,оброблені та законсервовані(15332000-4 Оброблені фрукти та горіхи(повидло,сухофрукти)",2230,11295.560197341889,"Одинадцять тисяч двісті дев'яносто п'ять грн. 56 коп.","в т.ч.ПДВ-",1882.5933662236482]
["10.51.3 Масло вершкове та молочні пасти(15530000-2 Вершкове масло)",2230,31475.844608326563,"Тридцять одна тисячa чотириста сімдесят п'ять грн. 84 коп.","в т.ч.ПДВ-",5245.9741013877601]
["01.47.2 Яйця у шкаралупі свіжі (03142000-8 Продукція тваринництва (03142500-3 Яйця)",2230,24240.789017815921,"Двадцять чотири тисячі двісті сорок грн. 79 коп.","в т.ч.ПДВ-",4040.1315029693201]
["10.41.5 Олії рафіновані(15421000-5 Рафіновані олії)",2230,7028.9611757060393,"Сім тисяч двадцять вісім грн. 96 коп.","в т.ч.ПДВ-",1171.49352928434]
["10.61.3 Крупи,крупка,гранули та інші продукти з зерна зернових культур(15613000-8 Продукція із зерна зернових культур(крупи)",2230,7317.1518285450893,"Сім тисяч триста сімнадцять грн. 15 коп.","в т.ч.ПДВ-",1219.525304757515]
["10.82.1 Какао терте,какао-масло,жири й олія,какао-порошок(15841000-5 Какао)",2230,9110.8776836772286,"Дев'ять тисяч сто десять грн. 88 коп.","в т.ч.ПДВ-",1518.4796139462048]
["10.83.1 Чай і кава,оброблені(15860000-4 Кава, чай та супутня продукція)",2230,9670.0105091537316,"Дев'ять тисяч шістсот сімдесят грн. 1 коп.","в т.ч.ПДВ-",1611.6684181922885]
["10.84.3 Сіль харчова(14410000-8 Камяна сіль)",2230,361.63020442168323,"Триста шістдесят одна грн. 63 коп.","в т.ч.ПДВ-",60.271700736947203]
["01.13.5 Коренеплоди та бульби їстівні з високим умістом крохмалю та інуліну(03212000-0 Картопля та сушені овочі)",2230,24322.544208649659,"Двадцять чотири тисячі триста двадцять дві грн. 54 коп.","в т.ч.ПДВ-",4053.7573681082763]
["01.13.4 Овочі коренеплодні,цибулинні та бульбоподібні(03221000-6 Овочі)",2230,29589.251528338431,"Двадцять дев'ять тисяч п'ятсот вісімдесят дев'ять грн. 25 коп.","в т.ч.ПДВ-",4931.5419213897385]
["43.21.1 Роботи електромонтажні(45310000-3 Електромонтажні роботи(повірка контурів заземлення)",2240,745,"Сімсот сорок п'ять грн. 0 коп.","в т.ч.ПДВ-",124.16666666666667]
["38.11.6 Послуги підприємств щодо перевезення інших безпечних відходів(90512000-9 Послуги з перевезення сміття)",2240,8544,{"$f":"SUMINWORDS(C34,\"грн.\",\"коп.\")","v":"Вісім тисяч п'ятсот сорок чотири грн. 0 коп."},"в т.ч.ПДВ-",{"$f":"C34/6","v":1424}]
["Капітальний ремонт будівель (45000000-7 Будівельні роботи)",3132,32000,"Тридцять дві тисячі грн. 0 коп.","в т.ч.ПДВ-",5333.333333333333]
[" 36.00.2 Обробляння та розподіляння води трубопроводами(65110000-7 Розподіл води)",2272,18840.864000000001,"Вісімнадцять тисяч вісімсот сорок грн. 86 коп.","в т.ч.ПДВ-",3140.1440000000002]
["37.00.1 Послуги каналізаційні(90400000-1 Послуги у сфері водовідведення)",2272,16411.135999999999,"Шістнадцять тисяч чотириста одинадцять грн. 14 коп.","в т.ч.ПДВ-",2735.1893333333333]
["35.11.1  Енергія електрична (09310000-5 Електрична енергія)",2273,52523,"П'ятдесят дві тисячі п'ятсот двадцять три грн. 0 коп.","в т.ч.ПДВ-",8753.8333333333339]
["61.10.1  Послуги щодо передавання даних і повідомлень(64211000-8 Послуги громадського телефонного звязку)",2240,1593,"Одна тисячa п'ятсот дев'яносто три грн. 0 коп.","в т.ч.ПДВ-",265.5]
["91.01.1 Послуги бібліотек і архівів(92512000-3 Послуги архівів)",2240,658,"Шістсот п'ятдесят вісім грн. 0 коп.","без ПДВ"]
["58.29.1 Програмне забезпечення системне на фізичних носіях(48443000-5 Пакети програмного забезпечення для бухгалтерського обліку)",2240,7572,"Сім тисяч п'ятсот сімдесят дві грн. 0 коп.","в т.ч.ПДВ-",1262]
["28.99.3 Машини й устаткування спеціальної призначеності,н.в.і.у.(37535000-7 Каруселі,гойдалки,тири та інші атракціони)",3110,46650,"Сорок шість тисяч шістсот п'ятдесят грн. 0 коп.","в т.ч.ПДВ-",7775]
["85.60.1 Послуги освітянські допоміжні (80570000-0 Послуги з професійної підготовки у сфері підвищення кваліфікації)",2282,1025,"Одна тисячa двадцять п'ять грн. 0 коп.","в т.ч.ПДВ-",170.83333333333334]
[]
["Затверджений рішенням комітету з конкурсних торгів від__________№_______"]
[]
["Голова комітету з конкурсних торгів      _______________________О.Б.Браславець"]
["                                                                                                (підпис)          (ініціали та прізвище)"]
["МП"]

{"sheet":"14","index":11,"n_rows":51,"n_cols":9,"rows_kept":51,"cut":false,"hidden":false,"merged":[[0,0,0,8],[1,0,1,8],[2,0,2,8],[3,2,3,5],[4,2,4,5]]}
["Додаток до річного плану закупівель на  2016 рік "]
["Дошкільний навчальний заклад № 14, 26243253"]
["(найменування замовника,код за ЄДРПОУ)"]
["Предмет закупівлі","Код КЕКВ (для бюджетних коштів)","Очікувана вартість предмета закупівлі",null,null,null,"Процедура закупівлі","Орієнтовний початок проведення процедури закупівлі","Примітки"]
[1,2,3,null,null,null,4,5,6]
["10.73.1 Макарони,локшина,кускус і подібні борошняні вироби(15851000-8 Борошняні вироби(макарони)",2230,3196.5112617669788,{"$f":"SUMINWORDS(C6,\"грн.\",\"коп.\")","v":"Три тисячі сто дев'яносто шість грн. 51 коп."},"в т.ч.ПДВ-",{"$f":"C6/6","v":532.75187696116313}]
["10.11.1 М'ясо великої рогатої худоби,свиней,овець,кіз,коней та ін..тварин родини конячих,свіже чиа охолоджене(15111000-9 М'ясо великої рогатої худоби родини бикових(яловичина)",2230,106953.41995247982,{"$f":"SUMINWORDS(C7,\"грн.\",\"коп.\")","v":"Сто шість тисяч дев'ятсот п'ятдесят три грн. 42 коп."},"в т.ч.ПДВ-",{"$f":"C7/6","v":17825.569992079971}]
["10.12.1 М'ясо  свійської птиці,свіже чи охолоджене(15112000-6 М'ясо свійської птиці)",2230,41529.545827101989,{"$f":"SUMINWORDS(C8,\"грн.\",\"коп.\")","v":"Сорок одна тисячa п'ятсот двадцять дев'ять грн. 55 коп."},"в т.ч.ПДВ-",6921.5909711836648]
["10.12.4 Субпродукти харчові свійської птиці(15114000-0 Потрухи(печінка)",2230,11775.16381378764,{"$f":"SUMINWORDS(C9,\"грн.\",\"коп.\")","v":"Одинадцять тисяч сімсот сімдесят п'ять грн. 16 коп."},"в т.ч.ПДВ-",1962.52730229794]
["10.13.1.Консерви та готові страви з м’яса,м’ясних субпродуктів чи крові (15130000-8 Мясопродукти (ковбаса,сосиски)",2230,35355.003130119279,"Тридцять п'ять тисяч триста п'ятдесят п'ять грн. 0 коп.","в т.ч.ПДВ-",5892.5005216865466]
["10.20.1 Продукція рибна,свіжа,охолоджена чи заморожена (15221000-3 Морожена риба)",2230,83185.568855157369,"Вісімдесят три тисячі сто вісімдесят п'ять грн. 57 коп.","в т.ч.ПДВ-",13864.261475859561]
["01.24.1 Яблука (03222000-3 Фрукти і горіхи(яблука,апельсини,лимони,ягоди)",2230,35117.050716997299,"Тридцять п'ять тисяч сто сімнадцять грн. 5 коп.","в т.ч.ПДВ-",5852.8417861662165]
["10.39.1 Плоди та овочі,оброблені та законсервовані,крім картоплі(15331000-7 Оброблені овочі(консерви овочеві)",2230,24607.609517314238,"Двадцять чотири тисячі шістсот сім грн. 61 коп.","в т.ч.ПДВ-",4101.2682528857067]
["10.72.1 Вироби хлібобулочні,зниженої вологості,та кондитерські,борошняні,тривалого зберігання(15820000-2 Сухарі та печиво; пресерви з хлібобулочних і кондитерських виробів (печиво)",2230,8555.191913261262,"Вісім тисяч п'ятсот п'ятдесят п'ять грн. 19 коп.","в т.ч.ПДВ-",1425.8653188768769]
["10.71.1 Вироби  хлібобулочні,кондитерські та кулінарні,борошняні,нетривалого зберігання(15810000-9 Хлібопродукти, свіжовипечені хлібобулочні та кондитерські вироби)",2230,31676.005756035378,"Тридцять одна тисячa шістсот сімдесят шість грн. 1 коп.","в т.ч.ПДВ-",5279.3342926725627]
["10.51.1 Молоко та вершки,рідинні,оброблені(15511000-3 Молоко)",2230,125403.68314784563,"Сто двадцять п'ять тисяч чотириста три грн. 68 коп.","в т.ч.ПДВ-",20900.613857974273]
["10.51.5 Продукти молочні, інші (15550000-8 Молочні продукти різні (кефір,сметана)",2230,23617.678890846528,"Двадцять три тисячі шістсот сімнадцять грн. 68 коп.","в т.ч.ПДВ-",3936.279815141088]
["10.51.4 Сир сичужний та кисломолочний сир(15540000-5 Сирні продукти)",2230,88245.56455079325,"Вісімдесят вісім тисяч двісті сорок п'ять грн. 56 коп.","в т.ч.ПДВ-",14707.594091798876]
["10.32.1 Соки фруктові та овочеві (15321000-4 Фруктові соки)",2230,23534.123120803764,"Двадцять три тисячі п'ятсот тридцять чотири грн. 12 коп.","в т.ч.ПДВ-",3922.3538534672939]
["10.61.2 Борошно зернових і овочевих культур;їхні суміші(15612000-1 Борошно зернових та овочевих культур і супутня продукція)",2230,5188.9548526897206,"П'ять тисяч сто вісімдесят вісім грн. 95 коп.","в т.ч.ПДВ-",864.82580878162014]
["10.61.1 Рис напівобрушений чи повністю обрушений,або лущений чи дроблений(15614000-5 Рис оброблений)",2230,2536.2642741707164,"Дві тисячі п'ятсот тридцять шість грн. 26 коп.","в т.ч.ПДВ-",422.71071236178608]
["0.81.1 Цукор-сирець,тростинний і очищений тростинний чи буряковий цукор (сахароза);меляса (15831000-2 Цукор)",2230,22806.586918838766,"Двадцять дві тисячі вісімсот шість грн. 59 коп.","в т.ч.ПДВ-",3801.0978198064608]
["10.39.2 Плоди й горіхи,оброблені та законсервовані(15332000-4 Оброблені фрукти та горіхи(повидло,сухофрукти)",2230,14999.62990093888,"Чотирнадцять тисяч дев'ятсот дев'яносто дев'ять грн. 63 коп.","в т.ч.ПДВ-",2499.9383168231466]
["10.51.3 Масло вершкове та молочні пасти(15530000-2 Вершкове масло)",2230,40838.433869313609,"Сорок тисяч вісімсот тридцять вісім грн. 43 коп.","в т.ч.ПДВ-",6806.4056448856018]
["01.47.2 Яйця у шкаралупі свіжі (03142000-8 Продукція тваринництва (03142500-3 Яйця)",2230,31282.390081741603,"Тридцять одна тисячa двісті вісімдесят дві грн. 39 коп.","в т.ч.ПДВ-",5213.7316802902669]
["10.41.5 Олії рафіновані(15421000-5 Рафіновані олії)",2230,9183.80165258952,"Дев'ять тисяч сто вісімдесят три грн. 80 коп.","в т.ч.ПДВ-",1530.6336087649199]
["10.61.3 Крупи,крупка,гранули та інші продукти з зерна зернових культур(15613000-8 Продукція із зерна зернових культур(крупи)",2230,9580.6187425723656,"Дев'ять тисяч п'ятсот вісімдесят грн. 62 коп.","в т.ч.ПДВ-",1596.7697904287277]
["10.82.1 Какао терте,какао-масло,жири й олія,какао-порошок(15841000-5 Какао)",2230,11757.456800533824,"Одинадцять тисяч сімсот п'ятдесят сім грн. 46 коп.","в т.ч.ПДВ-",1959.5761334223041]
["10.83.1 Чай і кава,оброблені(15860000-4 Кава, чай та супутня продукція)",2230,12291.011723621703,"Дванадцять тисяч двісті дев'яносто одна грн. 1 коп.","в т.ч.ПДВ-",2048.5019539369505]
["10.84.3 Сіль харчова(14410000-8 Камяна сіль)",2230,463.07967705548805,"Чотириста шістдесят три грн. 8 коп.","в т.ч.ПДВ-",77.179946175914679]
["01.13.5 Коренеплоди та бульби їстівні з високим умістом крохмалю та інуліну(03212000-0 Картопля та сушені овочі)",2230,31819.313080793891,"Тридцять одна тисячa вісімсот дев'ятнадцять грн. 31 коп.","в т.ч.ПДВ-",5303.2188467989818]
["01.13.4 Овочі коренеплодні,цибулинні та бульбоподібні(03221000-6 Овочі)",2230,38997.338608883947,"Тридцять вісім тисяч дев'ятсот дев'яносто сім грн. 34 коп.","в т.ч.ПДВ-",6499.5564348139915]
["43.21.1 Роботи електромонтажні(45310000-3 Електромонтажні роботи(повірка контурів заземлення)",2240,745,"Сімсот сорок п'ять грн. 0 коп.","в т.ч.ПДВ-",124.16666666666667]
["38.11.6 Послуги підприємств щодо перевезення інших безпечних відходів(90512000-9 Послуги з перевезення сміття)",2240,10290,"Десять тисяч двісті дев'яносто грн. 0 коп.","в т.ч.ПДВ-",1715]
["Поточний ремонт будівель (45400000-1 Завершальні будівельні роботи)",2240,39600,"Тридцять дев'ять тисяч шістсот грн. 0 коп.","в т.ч.ПДВ-",6600]
[" 36.00.2 Обробляння та розподіляння води трубопроводами(65110000-7 Розподіл води)",2272,14326.166400000002,"Чотирнадцять тисяч триста двадцять шість грн. 17 коп.","в т.ч.ПДВ-",2387.6944000000003]
["37.00.1 Послуги каналізаційні(90400000-1 Послуги у сфері водовідведення)",2272,16842.833599999998,"Шістнадцять тисяч вісімсот сорок дві грн. 83 коп.","в т.ч.ПДВ-",2807.1389333333332]
["35.11.1  Енергія електрична (09310000-5 Електрична енергія)",2273,114037,"Сто чотирнадцять тисяч тридцять сім грн. 0 коп.","в т.ч.ПДВ-",19006.166666666668]
["61.10.1  Послуги щодо передавання даних і повідомлень(64211000-8 Послуги громадського телефонного звязку)",2240,1618,"Одна тисячa шістсот вісімнадцять грн. 0 коп.","в т.ч.ПДВ-",269.66666666666669]
["91.01.1 Послуги бібліотек і архівів(92512000-3 Послуги архівів)",2240,711,"Сімсот одинадцять грн. 0 коп.","без ПДВ"]
["58.29.1 Програмне забезпечення системне на фізичних носіях(48443000-5 Пакети програмного забезпечення для бухгалтерського обліку)",2240,7392,"Сім тисяч триста дев'яносто дві грн. 0 коп.","в т.ч.ПДВ-",1232]
["31.09.1 Меблі, інші (39161000-8 Меблі для дитячого садка)",2210,130400,"Сто тридцять тисяч чотириста грн. 0 коп.","в т.ч.ПДВ-",21733.333333333332]
["85.60.1 Послуги освітянські допоміжні (80570000-0 Послуги з професійної підготовки у сфері підвищення кваліфікації)",2282,349,"Триста сорок дев'ять грн. 0 коп.","в т.ч.ПДВ-",58.166666666666664]
["27.51.2 Прилади електричні побутові,інші,н.в.і.у.(39711000-9 Електричні побутові прилади для обробки продуктів харчування)",3110,134200,"Сто тридцять чотири тисячі двісті грн. 0 коп.","в т.ч.ПДВ-",22366.666666666668]
["13.92.1 Вироби текстильні готові для домашнього господарства (39512000-4 Постільна білизна)",2210,80652,"Вісімдесят тисяч шістсот п'ятдесят дві грн. 0 коп.","в т.ч.ПДВ-",13442]
[]
["Затверджений рішенням комітету з конкурсних торгів від__________№_______"]
[]
["Голова комітету з конкурсних торгів      _______________________Н.В.Поплавська"]
["                                                                                                (підпис)          (ініціали та прізвище)"]
["МП"]

{"sheet":"18","index":12,"n_rows":50,"n_cols":9,"rows_kept":50,"cut":false,"hidden":false,"merged":[[0,0,0,8],[1,0,1,8],[2,0,2,8],[3,2,3,5],[4,2,4,5]]}
["Додаток до річного плану закупівель на  2016 рік "]
["Дошкільний навчальний заклад № 18, 26244018"]
["(найменування замовника,код за ЄДРПОУ)"]
["Предмет закупівлі","Код КЕКВ (для бюджетних коштів)","Очікувана вартість предмета закупівлі",null,null,null,"Процедура закупівлі","Орієнтовний початок проведення процедури закупівлі","Примітки"]
[1,2,3,null,null,null,4,5,6]
["10.73.1 Макарони,локшина,кускус і подібні борошняні вироби(15851000-8 Борошняні вироби(макарони)",2230,1725.4481850270599,{"$f":"SUMINWORDS(C6,\"грн.\",\"коп.\")","v":"Одна тисячa сімсот двадцять п'ять грн. 45 коп."},"в т.ч.ПДВ-",{"$f":"C6/6","v":287.57469750450997}]
["10.11.1 М'ясо великої рогатої худоби,свиней,овець,кіз,коней та ін..тварин родини конячих,свіже чиа охолоджене(15111000-9 М'ясо великої рогатої худоби родини бикових(яловичина)",2230,59758.859706883297,{"$f":"SUMINWORDS(C7,\"грн.\",\"коп.\")","v":"П'ятдесят дев'ять тисяч сімсот п'ятдесят вісім грн. 86 коп."},"в т.ч.ПДВ-",{"$f":"C7/6","v":9959.8099511472155}]
["10.12.1 М'ясо  свійської птиці,свіже чи охолоджене(15112000-6 М'ясо свійської птиці)",2230,22331.695378153985,{"$f":"SUMINWORDS(C8,\"грн.\",\"коп.\")","v":"Двадцять дві тисячі триста тридцять одна грн. 70 коп."},"в т.ч.ПДВ-",3721.9492296923308]
["10.12.4 Субпродукти харчові свійської птиці(15114000-0 Потрухи(печінка)",2230,6313.0781657506177,{"$f":"SUMINWORDS(C9,\"грн.\",\"коп.\")","v":"Шість тисяч триста тринадцять грн. 8 коп."},"в т.ч.ПДВ-",1052.1796942917697]
["10.13.1.Консерви та готові страви з м’яса,м’ясних субпродуктів чи крові (15130000-8 Мясопродукти (ковбаса,сосиски)",2230,18955.056748293835,"Вісімнадцять тисяч дев'ятсот п'ятдесят п'ять грн. 6 коп.","в т.ч.ПДВ-",3159.1761247156392]
["10.20.1 Продукція рибна,свіжа,охолоджена чи заморожена (15221000-3 Морожена риба)",2230,44539.713289196836,"Сорок чотири тисячі п'ятсот тридцять дев'ять грн. 71 коп.","в т.ч.ПДВ-",7423.2855481994729]
["01.24.1 Яблука (03222000-3 Фрукти і горіхи(яблука,апельсини,лимони,ягоди)",2230,18818.061885309937,"Вісімнадцять тисяч вісімсот вісімнадцять грн. 6 коп.","в т.ч.ПДВ-",3136.343647551656]
["10.39.1 Плоди та овочі,оброблені та законсервовані,крім картоплі(15331000-7 Оброблені овочі(консерви овочеві)",2230,13323.15536007929,"Тринадцять тисяч триста двадцять три грн. 16 коп.","в т.ч.ПДВ-",2220.5258933465484]
["10.72.1 Вироби хлібобулочні,зниженої вологості,та кондитерські,борошняні,тривалого зберігання(15820000-2 Сухарі та печиво; пресерви з хлібобулочних і кондитерських виробів (печиво)",2230,4553.3829110410361,"Чотири тисячі п'ятсот п'ятдесят три грн. 38 коп.","в т.ч.ПДВ-",758.89715184017268]
["10.71.1 Вироби  хлібобулочні,кондитерські та кулінарні,борошняні,нетривалого зберігання(15810000-9 Хлібопродукти, свіжовипечені хлібобулочні та кондитерські вироби)",2230,17076.629852464674,"Сімнадцять тисяч сімдесят шість грн. 63 коп.","в т.ч.ПДВ-",2846.1049754107789]
["10.51.1 Молоко та вершки,рідинні,оброблені(15511000-3 Молоко)",2230,68260.433838677855,"Шістдесят вісім тисяч двісті шістдесят грн. 43 коп.","в т.ч.ПДВ-",11376.738973112975]
["10.51.5 Продукти молочні, інші (15550000-8 Молочні продукти різні (кефір,сметана)",2230,12740.843387726056,"Дванадцять тисяч сімсот сорок грн. 84 коп.","в т.ч.ПДВ-",2123.4738979543426]
["10.51.4 Сир сичужний та кисломолочний сир(15540000-5 Сирні продукти)",2230,47795.468712011716,"Сорок сім тисяч сімсот дев'яносто п'ять грн. 47 коп.","в т.ч.ПДВ-",7965.911452001953]
["10.32.1 Соки фруктові та овочеві (15321000-4 Фруктові соки)",2230,12727.116467036778,"Дванадцять тисяч сімсот двадцять сім грн. 12 коп.","в т.ч.ПДВ-",2121.186077839463]
["10.61.2 Борошно зернових і овочевих культур;їхні суміші(15612000-1 Борошно зернових та овочевих культур і супутня продукція)",2230,2793.5066879182664,"Дві тисячі сімсот дев'яносто три грн. 51 коп.","в т.ч.ПДВ-",465.58444798637771]
["10.61.1 Рис напівобрушений чи повністю обрушений,або лущений чи дроблений(15614000-5 Рис оброблений)",2230,1371.5969208991187,"Одна тисячa триста сімдесят одна грн. 60 коп.","в т.ч.ПДВ-",228.59948681651977]
["0.81.1 Цукор-сирець,тростинний і очищений тростинний чи буряковий цукор (сахароза);меляса (15831000-2 Цукор)",2230,12363.552042029853,"Дванадцять тисяч триста шістдесят три грн. 55 коп.","в т.ч.ПДВ-",2060.5920070049756]
["10.39.2 Плоди й горіхи,оброблені та законсервовані(15332000-4 Оброблені фрукти та горіхи(повидло,сухофрукти)",2230,8167.4448707818801,"Вісім тисяч сто шістдесят сім грн. 44 коп.","в т.ч.ПДВ-",1361.2408117969801]
["10.51.3 Масло вершкове та молочні пасти(15530000-2 Вершкове масло)",2230,21960.063533736899,"Двадцять одна тисячa дев'ятсот шістдесят грн. 6 коп.","в т.ч.ПДВ-",3660.0105889561496]
["01.47.2 Яйця у шкаралупі свіжі (03142000-8 Продукція тваринництва (03142500-3 Яйця)",2230,16771.586104500391,"Шістнадцять тисяч сімсот сімдесят одна грн. 59 коп.","в т.ч.ПДВ-",2795.2643507500652]
["10.41.5 Олії рафіновані(15421000-5 Рафіновані олії)",2230,4957.3339792801462,"Чотири тисячі дев'ятсот п'ятдесят сім грн. 33 коп.","в т.ч.ПДВ-",826.2223298800244]
["10.61.3 Крупи,крупка,гранули та інші продукти з зерна зернових культур(15613000-8 Продукція із зерна зернових культур(крупи)",2230,5177.4816005173789,"П'ять тисяч сто сімдесят сім грн. 48 коп.","в т.ч.ПДВ-",862.91360008622985]
["10.82.1 Какао терте,какао-масло,жири й олія,какао-порошок(15841000-5 Какао)",2230,6303.5848151254295,"Шість тисяч триста три грн. 58 коп.","в т.ч.ПДВ-",1050.5974691875715]
["10.83.1 Чай і кава,оброблені(15860000-4 Кава, чай та супутня продукція)",2230,6533.7960346227419,"Шість тисяч п'ятсот тридцять три грн. 80 коп.","в т.ч.ПДВ-",1088.9660057704571]
["10.84.3 Сіль харчова(14410000-8 Камяна сіль)",2230,247.2041666379456,"Двісті сорок сім грн. 20 коп.","в т.ч.ПДВ-",41.200694439657603]
["01.13.5 Коренеплоди та бульби їстівні з високим умістом крохмалю та інуліну(03212000-0 Картопля та сушені овочі)",2230,17187.605807707925,"Сімнадцять тисяч сто вісімдесят сім грн. 61 коп.","в т.ч.ПДВ-",2864.6009679513209]
["01.13.4 Овочі коренеплодні,цибулинні та бульбоподібні(03221000-6 Овочі)",2230,21149.299415316771,"Двадцять одна тисячa сто сорок дев'ять грн. 30 коп.","в т.ч.ПДВ-",3524.8832358861287]
["43.21.1 Роботи електромонтажні(45310000-3 Електромонтажні роботи(повірка контурів заземлення)",2240,745,"Сімсот сорок п'ять грн. 0 коп.","в т.ч.ПДВ-",124.16666666666667]
["38.11.6 Послуги підприємств щодо перевезення інших безпечних відходів(90512000-9 Послуги з перевезення сміття)",2240,8109,"Вісім тисяч сто дев'ять грн. 0 коп.","в т.ч.ПДВ-",1351.5]
[" 36.00.2 Обробляння та розподіляння води трубопроводами(65110000-7 Розподіл води)",2272,9775.92,"Дев'ять тисяч сімсот сімдесят п'ять грн. 92 коп.","в т.ч.ПДВ-",1629.32]
["37.00.1 Послуги каналізаційні(90400000-1 Послуги у сфері водовідведення)",2272,7784.08,"Сім тисяч сімсот вісімдесят чотири грн. 8 коп.","в т.ч.ПДВ-",1297.3466666666666]
["35.11.1  Енергія електрична (09310000-5 Електрична енергія)",2273,72421,"Сімдесят дві тисячі чотириста двадцять одна грн. 0 коп.","в т.ч.ПДВ-",12070.166666666666]
["61.10.1  Послуги щодо передавання даних і повідомлень(64211000-8 Послуги громадського телефонного звязку)",2240,1463,"Одна тисячa чотириста шістдесят три грн. 0 коп.","в т.ч.ПДВ-",243.83333333333334]
["Поточний ремонт будівель (45400000-1 Завершальні будівельні роботи)",2240,23900,"Двадцять три тисячі дев'ятсот грн. 0 коп.","в т.ч.ПДВ-",3983.3333333333335]
["91.01.1 Послуги бібліотек і архівів(92512000-3 Послуги архівів)",2240,514,"П'ятсот чотирнадцять грн. 0 коп.","в т.ч.ПДВ-",85.666666666666671]
["71.20.1 Послуги щодо технічного випробування й аналізування(71632000-7 Послуги з технічних випробувань (повірка,атестація)",2240,294,"Двісті дев'яносто чотири грн. 0 коп.","в т.ч.ПДВ-",49]
["58.29.1 Програмне забезпечення системне на фізичних носіях(48443000-5 Пакети програмного забезпечення для бухгалтерського обліку)",2240,7392,"Сім тисяч триста дев'яносто дві грн. 0 коп.","в т.ч.ПДВ-",1232]
["28.99.3 Машини й устаткування спеціальної призначеності,н.в.і.у.(37535000-7 Каруселі,гойдалки,тири та інші атракціони)",3110,73100,"Сімдесят три тисячі сто грн. 0 коп.","в т.ч.ПДВ-",12183.333333333334]
["85.60.1 Послуги освітянські допоміжні (80570000-0 Послуги з професійної підготовки у сфері підвищення кваліфікації)",2282,698,"Шістсот дев'яносто вісім грн. 0 коп.","в т.ч.ПДВ-",116.33333333333333]
[]
["Затверджений рішенням комітету з конкурсних торгів від__________№_______"]
[]
["Голова комітету з конкурсних торгів      _______________________Н.Б.Мельник"]
["                                                                                                (підпис)          (ініціали та прізвище)"]
["МП"]

{"sheet":"19","index":13,"n_rows":49,"n_cols":9,"rows_kept":49,"cut":false,"hidden":false,"merged":[[0,0,0,8],[1,0,1,8],[2,0,2,8],[3,2,3,5],[4,2,4,5]]}
["Додаток до річного плану закупівель на  2016 рік "]
["Дошкільний навчальний заклад № 19, 39498035"]
["(найменування замовника,код за ЄДРПОУ)"]
["Предмет закупівлі","Код КЕКВ (для бюджетних коштів)","Очікувана вартість предмета закупівлі",null,null,null,"Процедура закупівлі","Орієнтовний початок проведення процедури закупівлі","Примітки"]
[1,2,3,null,null,null,4,5,6]
["10.73.1 Макарони,локшина,кускус і подібні борошняні вироби(15851000-8 Борошняні вироби(макарони)",2230,2593.6787340292353,{"$f":"SUMINWORDS(C6,\"грн.\",\"коп.\")","v":"Дві тисячі п'ятсот дев'яносто три грн. 68 коп."},"в т.ч.ПДВ-",{"$f":"C6/6","v":432.27978900487255}]
["10.11.1 М'ясо великої рогатої худоби,свиней,овець,кіз,коней та ін..тварин родини конячих,свіже чиа охолоджене(15111000-9 М'ясо великої рогатої худоби родини бикових(яловичина)",2230,87890.287306034181,{"$f":"SUMINWORDS(C7,\"грн.\",\"коп.\")","v":"Вісімдесят сім тисяч вісімсот дев'яносто грн. 29 коп."},"в т.ч.ПДВ-",{"$f":"C7/6","v":14648.381217672364}]
["10.12.1 М'ясо  свійської птиці,свіже чи охолоджене(15112000-6 М'ясо свійської птиці)",2230,33623.413047353293,{"$f":"SUMINWORDS(C8,\"грн.\",\"коп.\")","v":"Тридцять три тисячі шістсот двадцять три грн. 41 коп."},"в т.ч.ПДВ-",5603.9021745588825]
["10.12.4 Субпродукти харчові свійської птиці(15114000-0 Потрухи(печінка)",2230,9517.2307120504938,{"$f":"SUMINWORDS(C9,\"грн.\",\"коп.\")","v":"Дев'ять тисяч п'ятсот сімнадцять грн. 23 коп."},"в т.ч.ПДВ-",1586.2051186750823]
["10.13.1.Консерви та готові страви з м’яса,м’ясних субпродуктів чи крові (15130000-8 Мясопродукти (ковбаса,сосиски)",2230,28575.544844702988,"Двадцять вісім тисяч п'ятсот сімдесят п'ять грн. 54 коп.","в т.ч.ПДВ-",4762.5908074504978]
["10.20.1 Продукція рибна,свіжа,охолоджена чи заморожена (15221000-3 Морожена риба)",2230,67183.380986153265,"Шістдесят сім тисяч сто вісімдесят три грн. 38 коп.","в т.ч.ПДВ-",11197.230164358878]
["01.24.1 Яблука (03222000-3 Фрукти і горіхи(яблука,апельсини,лимони,ягоди)",2230,28375.070545070525,"Двадцять вісім тисяч триста сімдесят п'ять грн. 7 коп.","в т.ч.ПДВ-",4729.1784241784208]
["10.39.1 Плоди та овочі,оброблені та законсервовані,крім картоплі(15331000-7 Оброблені овочі(консерви овочеві)",2230,20001.611103609699,"Двадцять тисяч одна грн. 61 коп.","в т.ч.ПДВ-",3333.6018506016167]
["10.72.1 Вироби хлібобулочні,зниженої вологості,та кондитерські,борошняні,тривалого зберігання(15820000-2 Сухарі та печиво; пресерви з хлібобулочних і кондитерських виробів (печиво)",2230,6885.8424596392706,"Шість тисяч вісімсот вісімдесят п'ять грн. 84 коп.","в т.ч.ПДВ-",1147.6404099398785]
["10.71.1 Вироби  хлібобулочні,кондитерські та кулінарні,борошняні,нетривалого зберігання(15810000-9 Хлібопродукти, свіжовипечені хлібобулочні та кондитерські вироби)",2230,25683.347063248115,"Двадцять п'ять тисяч шістсот вісімдесят три грн. 35 коп.","в т.ч.ПДВ-",4280.5578438746861]
["10.51.1 Молоко та вершки,рідинні,оброблені(15511000-3 Молоко)",2230,102245.6871342956,"Сто дві тисячі двісті сорок п'ять грн. 69 коп.","в т.ч.ПДВ-",17040.947855715935]
["10.51.5 Продукти молочні, інші (15550000-8 Молочні продукти різні (кефір,сметана)",2230,19156.881529249706,"Дев'ятнадцять тисяч сто п'ятдесят шість грн. 88 коп.","в т.ч.ПДВ-",3192.8135882082843]
["10.51.4 Сир сичужний та кисломолочний сир(15540000-5 Сирні продукти)",2230,71742.82067665919,"Сімдесят одна тисячa сімсот сорок дві грн. 82 коп.","в т.ч.ПДВ-",11957.136779443199]
["10.32.1 Соки фруктові та овочеві (15321000-4 Фруктові соки)",2230,19116.229213081511,"Дев'ятнадцять тисяч сто шістнадцять грн. 23 коп.","в т.ч.ПДВ-",3186.038202180252]
["10.61.2 Борошно зернових і овочевих культур;їхні суміші(15612000-1 Борошно зернових та овочевих культур і супутня продукція)",2230,4203.924835279935,"Чотири тисячі двісті три грн. 92 коп.","в т.ч.ПДВ-",700.65413921332254]
["10.61.1 Рис напівобрушений чи повністю обрушений,або лущений чи дроблений(15614000-5 Рис оброблений)",2230,2060.1493822873031,"Дві тисячі шістдесят грн. 15 коп.","в т.ч.ПДВ-",343.3582303812172]
["0.81.1 Цукор-сирець,тростинний і очищений тростинний чи буряковий цукор (сахароза);меляса (15831000-2 Цукор)",2230,18551.122262651203,"Вісімнадцять тисяч п'ятсот п'ятдесят одна грн. 12 коп.","в т.ч.ПДВ-",3091.853710441867]
["10.39.2 Плоди й горіхи,оброблені та законсервовані(15332000-4 Оброблені фрукти та горіхи(повидло,сухофрукти)",2230,12232.07441934344,"Дванадцять тисяч двісті тридцять дві грн. 7 коп.","в т.ч.ПДВ-",2038.6790698905734]
["10.51.3 Масло вершкове та молочні пасти(15530000-2 Вершкове масло)",2230,33063.870621451802,"Тридцять три тисячі шістдесят три грн. 87 коп.","в т.ч.ПДВ-",5510.6451035753007]
["01.47.2 Яйця у шкаралупі свіжі (03142000-8 Продукція тваринництва (03142500-3 Яйця)",2230,25283.8710645953,"Двадцять п'ять тисяч двісті вісімдесят три грн. 87 коп.","в т.ч.ПДВ-",4213.9785107658836]
["10.41.5 Олії рафіновані(15421000-5 Рафіновані олії)",2230,7451.8214056586085,"Сім тисяч чотириста п'ятдесят одна грн. 82 коп.","в т.ч.ПДВ-",1241.9702342764347]
["10.61.3 Крупи,крупка,гранули та інші продукти з зерна зернових культур(15613000-8 Продукція із зерна зернових культур(крупи)",2230,7778.9496644404462,"Сім тисяч сімсот сімдесят вісім грн. 95 коп.","в т.ч.ПДВ-",1296.4916107400743]
["10.82.1 Какао терте,какао-масло,жири й олія,какао-порошок(15841000-5 Какао)",2230,9502.9190869195918,"Дев'ять тисяч п'ятсот дві грн. 92 коп.","в т.ч.ПДВ-",1583.819847819932]
["10.83.1 Чай і кава,оброблені(15860000-4 Кава, чай та супутня продукція)",2230,9885.8458030943348,"Дев'ять тисяч вісімсот вісімдесят п'ять грн. 85 коп.","в т.ч.ПДВ-",1647.6409671823892]
["10.84.3 Сіль харчова(14410000-8 Камяна сіль)",2230,373.35741356422403,"Триста сімдесят три грн. 36 коп.","в т.ч.ПДВ-",62.226235594037341]
["01.13.5 Коренеплоди та бульби їстівні з високим умістом крохмалю та інуліну(03212000-0 Картопля та сушені овочі)",2230,25828.715194602242,"Двадцять п'ять тисяч вісімсот двадцять вісім грн. 72 коп.","в т.ч.ПДВ-",4304.7858657670404]
["01.13.4 Овочі коренеплодні,цибулинні та бульбоподібні(03221000-6 Овочі)",2230,31728.353454497756,"Тридцять одна тисячa сімсот двадцять вісім грн. 35 коп.","в т.ч.ПДВ-",5288.058909082959]
["43.21.1 Роботи електромонтажні(45310000-3 Електромонтажні роботи(повірка контурів заземлення)",2240,745,"Сімсот сорок п'ять грн. 0 коп.","в т.ч.ПДВ-",124.16666666666667]
["38.11.6 Послуги підприємств щодо перевезення інших безпечних відходів(90512000-9 Послуги з перевезення сміття)",2240,6325,"Шість тисяч триста двадцять п'ять грн. 0 коп.","в т.ч.ПДВ-",1054.1666666666667]
["64.99.1 Послуги фінансові, крім страхування та пенсійного забезпечення, інші, н.в.і.у( 66110000-4 Банківські послуги)",2240,1227,"Одна тисячa двісті двадцять сім грн. 0 коп.","в т.ч.ПДВ-",204.5]
[" 36.00.2 Обробляння та розподіляння води трубопроводами(65110000-7 Розподіл води)",2272,16379.109600000003,"Шістнадцять тисяч триста сімдесят дев'ять грн. 11 коп.","в т.ч.ПДВ-",2729.8516000000004]
["37.00.1 Послуги каналізаційні(90400000-1 Послуги у сфері водовідведення)",2272,13926.890399999997,"Тринадцять тисяч дев'ятсот двадцять шість грн. 89 коп.","в т.ч.ПДВ-",2321.1483999999996]
["35.11.1  Енергія електрична (09310000-5 Електрична енергія)",2273,135915,"Сто тридцять п'ять тисяч дев'ятсот п'ятнадцять грн. 0 коп.","в т.ч.ПДВ-",22652.5]
["61.10.1  Послуги щодо передавання даних і повідомлень(64211000-8 Послуги громадського телефонного звязку)",2240,3026,"Три тисячі двадцять шість грн. 0 коп.","в т.ч.ПДВ-",504.33333333333331]
["85.60.1 Послуги освітянські допоміжні (80570000-0 Послуги з професійної підготовки у сфері підвищення кваліфікації)",2282,676,"Шістсот сімдесят шість грн. 0 коп.","в т.ч.ПДВ-",112.66666666666667]
["91.01.1 Послуги бібліотек і архівів(92512000-3 Послуги архівів)",2240,659,"Шістсот п'ятдесят дев'ять грн. 0 коп.","без ПДВ"]
["71.20.1 Послуги щодо технічного випробування й аналізування(71632000-7 Послуги з технічних випробувань (повірка,атестація)",2240,5200,"П'ять тисяч двісті грн. 0 коп.","в т.ч.ПДВ-",866.66666666666663]
["58.29.1 Програмне забезпечення системне на фізичних носіях(48443000-5 Пакети програмного забезпечення для бухгалтерського обліку)",2240,7392,"Сім тисяч триста дев'яносто дві грн. 0 коп.","в т.ч.ПДВ-",1232]
[]
["Затверджений рішенням комітету з конкурсних торгів від__________№_______"]
[]
["Голова комітету з конкурсних торгів      _______________________В.Ю.Харматова"]
["                                                                                                (підпис)          (ініціали та прізвище)"]
["МП"]

{"sheet":"21","index":14,"n_rows":51,"n_cols":9,"rows_kept":51,"cut":false,"hidden":false,"merged":[[0,0,0,8],[1,0,1,8],[2,0,2,8],[3,2,3,5],[4,2,4,5]]}
["Додаток до річного плану закупівель на  2016 рік "]
["Дошкільний навчальний заклад № 21, 26243237"]
["(найменування замовника,код за ЄДРПОУ)"]
["Предмет закупівлі","Код КЕКВ (для бюджетних коштів)","Очікувана вартість предмета закупівлі",null,null,null,"Процедура закупівлі","Орієнтовний початок проведення процедури закупівлі","Примітки"]
[1,2,3,null,null,null,4,5,6]
["10.73.1 Макарони,локшина,кускус і подібні борошняні вироби(15851000-8 Борошняні вироби(макарони)",2230,2800.5744014714182,{"$f":"SUMINWORDS(C6,\"грн.\",\"коп.\")","v":"Дві тисячі вісімсот грн. 57 коп."},"в т.ч.ПДВ-",{"$f":"C6/6","v":466.76240024523639}]
["10.11.1 М'ясо великої рогатої худоби,свиней,овець,кіз,коней та ін..тварин родини конячих,свіже чиа охолоджене(15111000-9 М'ясо великої рогатої худоби родини бикових(яловичина)",2230,99083.618187263462,{"$f":"SUMINWORDS(C7,\"грн.\",\"коп.\")","v":"Дев'яносто дев'ять тисяч вісімдесят три грн. 62 коп."},"в т.ч.ПДВ-",{"$f":"C7/6","v":16513.936364543912}]
["10.12.1 М'ясо  свійської птиці,свіже чи охолоджене(15112000-6 М'ясо свійської птиці)",2230,36296.776451176018,{"$f":"SUMINWORDS(C8,\"грн.\",\"коп.\")","v":"Тридцять шість тисяч двісті дев'яносто шість грн. 78 коп."},"в т.ч.ПДВ-",6049.4627418626696]
["10.12.4 Субпродукти харчові свійської птиці(15114000-0 Потрухи(печінка)",2230,10272.011470126559,{"$f":"SUMINWORDS(C9,\"грн.\",\"коп.\")","v":"Десять тисяч двісті сімдесят дві грн. 1 коп."},"в т.ч.ПДВ-",1712.00191168776]
["10.13.1.Консерви та готові страви з м’яса,м’ясних субпродуктів чи крові (15130000-8 Мясопродукти (ковбаса,сосиски)",2230,30841.778800029118,"Тридцять тисяч вісімсот сорок одна грн. 78 коп.","в т.ч.ПДВ-",5140.2964666715197]
["10.20.1 Продукція рибна,свіжа,охолоджена чи заморожена (15221000-3 Морожена риба)",2230,72505.42350673434,"Сімдесят дві тисячі п'ятсот п'ять грн. 42 коп.","в т.ч.ПДВ-",12084.237251122389]
["01.24.1 Яблука (03222000-3 Фрукти і горіхи(яблука,апельсини,лимони,ягоди)",2230,30624.438713705757,"Тридцять тисяч шістсот двадцять чотири грн. 44 коп.","в т.ч.ПДВ-",5104.0731189509597]
["10.39.1 Плоди та овочі,оброблені та законсервовані,крім картоплі(15331000-7 Оброблені овочі(консерви овочеві)",2230,21601.232031299856,"Двадцять одна тисячa шістсот одна грн. 23 коп.","в т.ч.ПДВ-",3600.2053385499762]
["10.72.1 Вироби хлібобулочні,зниженої вологості,та кондитерські,борошняні,тривалого зберігання(15820000-2 Сухарі та печиво; пресерви з хлібобулочних і кондитерських виробів (печиво)",2230,7428.5129936992671,"Сім тисяч чотириста двадцять вісім грн. 51 коп.","в т.ч.ПДВ-",1238.0854989498778]
["10.71.1 Вироби  хлібобулочні,кондитерські та кулінарні,борошняні,нетривалого зберігання(15810000-9 Хлібопродукти, свіжовипечені хлібобулочні та кондитерські вироби)",2230,27729.858892550437,"Двадцять сім тисяч сімсот двадцять дев'ять грн. 86 коп.","в т.ч.ПДВ-",4621.6431487584059]
["10.51.1 Молоко та вершки,рідинні,оброблені(15511000-3 Молоко)",2230,110459.87742177238,"Сто десять тисяч чотириста п'ятдесят дев'ять грн. 88 коп.","в т.ч.ПДВ-",18409.979570295396]
["10.51.5 Продукти молочні, інші (15550000-8 Молочні продукти різні (кефір,сметана)",2230,20684.216387123248,"Двадцять тисяч шістсот вісімдесят чотири грн. 22 коп.","в т.ч.ПДВ-",3447.3693978538745]
["10.51.4 Сир сичужний та кисломолочний сир(15540000-5 Сирні продукти)",2230,77482.178083902807,"Сімдесят сім тисяч чотириста вісімдесят дві грн. 18 коп.","в т.ч.ПДВ-",12913.696347317134]
["10.32.1 Соки фруктові та овочеві (15321000-4 Фруктові соки)",2230,20643.528875832311,"Двадцять тисяч шістсот сорок три грн. 53 коп.","в т.ч.ПДВ-",3440.5881459720517]
["10.61.2 Борошно зернових і овочевих культур;їхні суміші(15612000-1 Борошно зернових та овочевих культур і супутня продукція)",2230,4538.5074498697932,"Чотири тисячі п'ятсот тридцять вісім грн. 51 коп.","в т.ч.ПДВ-",756.41790831163223]
["10.61.1 Рис напівобрушений чи повністю обрушений,або лущений чи дроблений(15614000-5 Рис оброблений)",2230,2224.745936435675,"Дві тисячі двісті двадцять чотири грн. 75 коп.","в т.ч.ПДВ-",370.79098940594582]
["0.81.1 Цукор-сирець,тростинний і очищений тростинний чи буряковий цукор (сахароза);меляса (15831000-2 Цукор)",2230,20036.324181824159,"Двадцять тисяч тридцять шість грн. 32 коп.","в т.ч.ПДВ-",3339.3873636373596]
["10.39.2 Плоди й горіхи,оброблені та законсервовані(15332000-4 Оброблені фрукти та горіхи(повидло,сухофрукти)",2230,13215.053030140414,"Тринадцять тисяч двісті п'ятнадцять грн. 5 коп.","в т.ч.ПДВ-",2202.5088383567359]
["10.51.3 Масло вершкове та молочні пасти(15530000-2 Вершкове масло)",2230,35692.745375589126,"Тридцять п'ять тисяч шістсот дев'яносто дві грн. 75 коп.","в т.ч.ПДВ-",5948.7908959315209]
["01.47.2 Яйця у шкаралупі свіжі (03142000-8 Продукція тваринництва (03142500-3 Яйця)",2230,27289.053028406401,"Двадцять сім тисяч двісті вісімдесят дев'ять грн. 5 коп.","в т.ч.ПДВ-",4548.1755047344004]
["10.41.5 Олії рафіновані(15421000-5 Рафіновані олії)",2230,8046.2472083441271,"Вісім тисяч сорок шість грн. 25 коп.","в т.ч.ПДВ-",1341.0412013906878]
["10.61.3 Крупи,крупка,гранули та інші продукти з зерна зернових культур(15613000-8 Продукція із зерна зернових культур(крупи)",2230,8400.078435360796,"Вісім тисяч чотириста грн. 8 коп.","в т.ч.ПДВ-",1400.0130725601327]
["10.82.1 Какао терте,какао-масло,жири й олія,какао-порошок(15841000-5 Какао)",2230,10256.564836336896,"Десять тисяч двісті п'ятдесят шість грн. 56 коп.","в т.ч.ПДВ-",1709.427472722816]
["10.83.1 Чай і кава,оброблені(15860000-4 Кава, чай та супутня продукція)",2230,10664.128604676236,"Десять тисяч шістсот шістдесят чотири грн. 13 коп.","в т.ч.ПДВ-",1777.3547674460394]
["10.84.3 Сіль харчова(14410000-8 Камяна сіль)",2230,402.85745893908484,"Чотириста дві грн. 86 коп.","в т.ч.ПДВ-",67.142909823180801]
["01.13.5 Коренеплоди та бульби їстівні з високим умістом крохмалю та інуліну(03212000-0 Картопля та сушені овочі)",2230,27890.259960300056,"Двадцять сім тисяч вісімсот дев'яносто грн. 26 коп.","в т.ч.ПДВ-",4648.3766600500094]
["01.13.4 Овочі коренеплодні,цибулинні та бульбоподібні(03221000-6 Овочі)",2230,34269.407910871392,"Тридцять чотири тисячі двісті шістдесят дев'ять грн. 41 коп.","в т.ч.ПДВ-",5711.5679851452323]
["43.21.1 Роботи електромонтажні(45310000-3 Електромонтажні роботи(повірка контурів заземлення)",2240,745,"Сімсот сорок п'ять грн. 0 коп.","в т.ч.ПДВ-",124.16666666666667]
["38.11.6 Послуги підприємств щодо перевезення інших безпечних відходів(90512000-9 Послуги з перевезення сміття)",2240,6355,"Шість тисяч триста п'ятдесят п'ять грн. 0 коп.","в т.ч.ПДВ-",1059.1666666666667]
[" 36.00.2 Обробляння та розподіляння води трубопроводами(65110000-7 Розподіл води)",2272,13864.032000000003,"Тринадцять тисяч вісімсот шістдесят чотири грн. 3 коп.","в т.ч.ПДВ-",2310.6720000000005]
["37.00.1 Послуги каналізаційні(90400000-1 Послуги у сфері водовідведення)",2272,22942.967999999997,"Двадцять дві тисячі дев'ятсот сорок дві грн. 97 коп.","в т.ч.ПДВ-",3823.8279999999995]
["35.11.1  Енергія електрична (09310000-5 Електрична енергія)",2273,105391,"Сто п'ять тисяч триста дев'яносто одна грн. 0 коп.","в т.ч.ПДВ-",17565.166666666668]
["61.10.1  Послуги щодо передавання даних і повідомлень(64211000-8 Послуги громадського телефонного звязку)",2240,1647,"Одна тисячa шістсот сорок сім грн. 0 коп.","в т.ч.ПДВ-",274.5]
["Поточний ремонт будівель (45400000-1 Завершальні будівельні роботи)",2240,10100,"Десять тисяч сто грн. 0 коп.","в т.ч.ПДВ-",1683.3333333333333]
["91.01.1 Послуги бібліотек і архівів(92512000-3 Послуги архівів)",2240,856,"Вісімсот п'ятдесят шість грн. 0 коп.","без ПДВ"]
["71.20.1 Послуги щодо технічного випробування й аналізування(71632000-7 Послуги з технічних випробувань (повірка,атестація)",2240,1300,"Одна тисячa триста грн. 0 коп.","в т.ч.ПДВ-",216.66666666666666]
["58.29.1 Програмне забезпечення системне на фізичних носіях(48443000-5 Пакети програмного забезпечення для бухгалтерського обліку)",2240,7572,"Сім тисяч п'ятсот сімдесят дві грн. 0 коп.","в т.ч.ПДВ-",1262]
["31.09.1 Меблі, інші (39161000-8 Меблі для дитячого садка)",2110,20400,"Двадцять тисяч чотириста грн. 0 коп.","в т.ч.ПДВ-",3400]
["85.60.1 Послуги освітянські допоміжні (80570000-0 Послуги з професійної підготовки у сфері підвищення кваліфікації)",2282,698,"Шістсот дев'яносто вісім грн. 0 коп.","в т.ч.ПДВ-",116.33333333333333]
["27.51.2 Прилади електричні побутові,інші,н.в.і.у.(39711000-9 Електричні побутові прилади для обробки продуктів харчування)",3110,134200,"Сто тридцять чотири тисячі двісті грн. 0 коп.","в т.ч.ПДВ-",22366.666666666668]
[]
["Затверджений рішенням комітету з конкурсних торгів від__________№_______"]
[]
["Голова комітету з конкурсних торгів      _______________________О.В.Пасікова"]
["                                                                                                (підпис)          (ініціали та прізвище)"]
["МП"]

{"sheet":"28","index":15,"n_rows":49,"n_cols":9,"rows_kept":49,"cut":false,"hidden":false,"merged":[[0,0,0,8],[1,0,1,8],[2,0,2,8],[3,2,3,5],[4,2,4,5]]}
["Додаток до річного плану закупівель на  2016 рік "]
["Дошкільний навчальний заклад № 28,  26243409"]
["(найменування замовника,код за ЄДРПОУ)"]
["Предмет закупівлі","Код КЕКВ (для бюджетних коштів)","Очікувана вартість предмета закупівлі",null,null,null,"Процедура закупівлі","Орієнтовний початок проведення процедури закупівлі","Примітки"]
[1,2,3,null,null,null,4,5,6]
["10.73.1 Макарони,локшина,кускус і подібні борошняні вироби(15851000-8 Борошняні вироби(макарони)",2230,1208.0410568329951,{"$f":"SUMINWORDS(C6,\"грн.\",\"коп.\")","v":"Одна тисячa двісті вісім грн. 4 коп."},"в т.ч.ПДВ-",{"$f":"C6/6","v":201.3401761388325}]
["10.11.1 М'ясо великої рогатої худоби,свиней,овець,кіз,коней та ін..тварин родини конячих,свіже чиа охолоджене(15111000-9 М'ясо великої рогатої худоби родини бикових(яловичина)",2230,43142.809318260319,{"$f":"SUMINWORDS(C7,\"грн.\",\"коп.\")","v":"Сорок три тисячі сто сорок дві грн. 81 коп."},"в т.ч.ПДВ-",{"$f":"C7/6","v":7190.4682197100528}]
["10.12.1 М'ясо  свійської птиці,свіже чи охолоджене(15112000-6 М'ясо свійської птиці)",2230,15742.84361893065,{"$f":"SUMINWORDS(C8,\"грн.\",\"коп.\")","v":"П'ятнадцять тисяч сімсот сорок дві грн. 84 коп."},"в т.ч.ПДВ-",2623.8072698217752]
["10.12.4 Субпродукти харчові свійської птиці(15114000-0 Потрухи(печінка)",2230,4474.1697063643132,{"$f":"SUMINWORDS(C9,\"грн.\",\"коп.\")","v":"Чотири тисячі чотириста сімдесят чотири грн. 17 коп."},"в т.ч.ПДВ-",745.69495106071884]
["10.13.1.Консерви та готові страви з м’яса,м’ясних субпродуктів чи крові (15130000-8 Мясопродукти (ковбаса,сосиски)",2230,13433.722577003626,"Тринадцять тисяч чотириста тридцять три грн. 72 коп.","в т.ч.ПДВ-",2238.9537628339376]
["10.20.1 Продукція рибна,свіжа,охолоджена чи заморожена (15221000-3 Морожена риба)",2230,31640.686086129004,"Тридцять одна тисячa шістсот сорок грн. 69 коп.","в т.ч.ПДВ-",5273.447681021501]
["01.24.1 Яблука (03222000-3 Фрукти і горіхи(яблука,апельсини,лимони,ягоди)",2230,13348.569625234688,"Тринадцять тисяч триста сорок вісім грн. 57 коп.","в т.ч.ПДВ-",2224.7616042057812]
["10.39.1 Плоди та овочі,оброблені та законсервовані,крім картоплі(15331000-7 Оброблені овочі(консерви овочеві)",2230,9277.3830586959393,"Дев'ять тисяч двісті сімдесят сім грн. 38 коп.","в т.ч.ПДВ-",1546.2305097826566]
["10.72.1 Вироби хлібобулочні,зниженої вологості,та кондитерські,борошняні,тривалого зберігання(15820000-2 Сухарі та печиво; пресерви з хлібобулочних і кондитерських виробів (печиво)",2230,3269.3161414492802,"Три тисячі двісті шістдесят дев'ять грн. 32 коп.","в т.ч.ПДВ-",544.88602357488003]
["10.71.1 Вироби  хлібобулочні,кондитерські та кулінарні,борошняні,нетривалого зберігання(15810000-9 Хлібопродукти, свіжовипечені хлібобулочні та кондитерські вироби)",2230,11983.321853956724,"Одинадцять тисяч дев'ятсот вісімдесят три грн. 32 коп.","в т.ч.ПДВ-",1997.2203089927873]
["10.51.1 Молоко та вершки,рідинні,оброблені(15511000-3 Молоко)",2230,47075.589287071205,"Сорок сім тисяч сімдесят п'ять грн. 59 коп.","в т.ч.ПДВ-",7845.9315478452008]
["10.51.5 Продукти молочні, інші (15550000-8 Молочні продукти різні (кефір,сметана)",2230,8930.0464014483005,"Вісім тисяч дев'ятсот тридцять грн. 5 коп.","в т.ч.ПДВ-",1488.3410669080502]
["10.51.4 Сир сичужний та кисломолочний сир(15540000-5 Сирні продукти)",2230,33260.107719765561,"Тридцять три тисячі двісті шістдесят грн. 11 коп.","в т.ч.ПДВ-",5543.3512866275933]
["10.32.1 Соки фруктові та овочеві (15321000-4 Фруктові соки)",2230,8880.9458051561251,"Вісім тисяч вісімсот вісімдесят грн. 95 коп.","в т.ч.ПДВ-",1480.1576341926875]
["10.61.2 Борошно зернових і овочевих культур;їхні суміші(15612000-1 Борошно зернових та овочевих культур і супутня продукція)",2230,1965.1927599523126,"Одна тисячa дев'ятсот шістдесят п'ять грн. 19 коп.","в т.ч.ПДВ-",327.53212665871877]
["10.61.1 Рис напівобрушений чи повністю обрушений,або лущений чи дроблений(15614000-5 Рис оброблений)",2230,957.09644463245627,"Дев'ятсот п'ятдесят сім грн. 10 коп.","в т.ч.ПДВ-",159.51607410540939]
["0.81.1 Цукор-сирець,тростинний і очищений тростинний чи буряковий цукор (сахароза);меляса (15831000-2 Цукор)",2230,8589.7102954944385,"Вісім тисяч п'ятсот вісімдесят дев'ять грн. 71 коп.","в т.ч.ПДВ-",1431.6183825824064]
["10.39.2 Плоди й горіхи,оброблені та законсервовані(15332000-4 Оброблені фрукти та горіхи(повидло,сухофрукти)",2230,5629.204239783001,"П'ять тисяч шістсот двадцять дев'ять грн. 20 коп.","в т.ч.ПДВ-",938.20070663050012]
["10.51.3 Масло вершкове та молочні пасти(15530000-2 Вершкове масло)",2230,15480.859837072501,"П'ятнадцять тисяч чотириста вісімдесят грн. 86 коп.","в т.ч.ПДВ-",2580.1433061787502]
["01.47.2 Яйця у шкаралупі свіжі (03142000-8 Продукція тваринництва (03142500-3 Яйця)",2230,11886.26538532875,"Одинадцять тисяч вісімсот вісімдесят шість грн. 27 коп.","в т.ч.ПДВ-",1981.044230888125]
["10.41.5 Олії рафіновані(15421000-5 Рафіновані олії)",2230,3470.7869128563757,"Три тисячі чотириста сімдесят грн. 79 коп.","в т.ч.ПДВ-",578.46448547606258]
["10.61.3 Крупи,крупка,гранули та інші продукти з зерна зернових культур(15613000-8 Продукція із зерна зернових культур(крупи)",2230,3617.4313722159791,"Три тисячі шістсот сімнадцять грн. 43 коп.","в т.ч.ПДВ-",602.90522870266318]
["10.82.1 Какао терте,какао-масло,жири й олія,какао-порошок(15841000-5 Какао)",2230,4467.4416316178995,"Чотири тисячі чотириста шістдесят сім грн. 44 коп.","в т.ч.ПДВ-",744.57360526964987]
["10.83.1 Чай і кава,оброблені(15860000-4 Кава, чай та супутня продукція)",2230,4701.3638761296897,"Чотири тисячі сімсот одна грн. 36 коп.","в т.ч.ПДВ-",783.56064602161496]
["10.84.3 Сіль харчова(14410000-8 Камяна сіль)",2230,176.5519043928,"Сто сімдесят шість грн. 55 коп.","в т.ч.ПДВ-",29.425317398800001]
["01.13.5 Коренеплоди та бульби їстівні з високим умістом крохмалю та інуліну(03212000-0 Картопля та сушені овочі)",2230,12018.705110219551,"Дванадцять тисяч вісімнадцять грн. 71 коп.","в т.ч.ПДВ-",2003.1175183699252]
["01.13.4 Овочі коренеплодні,цибулинні та бульбоподібні(03221000-6 Овочі)",2230,14682.838102907346,"Чотирнадцять тисяч шістсот вісімдесят дві грн. 84 коп.","в т.ч.ПДВ-",2447.1396838178912]
["43.21.1 Роботи електромонтажні(45310000-3 Електромонтажні роботи(повірка контурів заземлення)",2240,745,"Сімсот сорок п'ять грн. 0 коп.","в т.ч.ПДВ-",124.16666666666667]
["38.11.6 Послуги підприємств щодо перевезення інших безпечних відходів(90512000-9 Послуги з перевезення сміття)",2240,4127,"Чотири тисячі сто двадцять сім грн. 0 коп.","в т.ч.ПДВ-",687.83333333333337]
["64.99.1 Послуги фінансові, крім страхування та пенсійного забезпечення, інші, н.в.і.у( 66110000-4 Банківські послуги)",2240,1483,"Одна тисячa чотириста вісімдесят три грн. 0 коп.","в т.ч.ПДВ-",247.16666666666666]
[" 36.00.2 Обробляння та розподіляння води трубопроводами(65110000-7 Розподіл води)",2272,17445.573600000003,"Сімнадцять тисяч чотириста сорок п'ять грн. 57 коп.","в т.ч.ПДВ-",2907.5956000000006]
["37.00.1 Послуги каналізаційні(90400000-1 Послуги у сфері водовідведення)",2272,14804.426399999997,"Чотирнадцять тисяч вісімсот чотири грн. 43 коп.","в т.ч.ПДВ-",2467.4043999999994]
["35.11.1  Енергія електрична (09310000-5 Електрична енергія)",2273,53194,"П'ятдесят три тисячі сто дев'яносто чотири грн. 0 коп.","в т.ч.ПДВ-",8865.6666666666661]
["61.10.1  Послуги щодо передавання даних і повідомлень(64211000-8 Послуги громадського телефонного звязку)",2240,1623,"Одна тисячa шістсот двадцять три грн. 0 коп.","в т.ч.ПДВ-",270.5]
["Поточний ремонт будівель (45400000-1 Завершальні будівельні роботи)",2240,4100,"Чотири тисячі сто грн. 0 коп.","в т.ч.ПДВ-",683.33333333333337]
["91.01.1 Послуги бібліотек і архівів(92512000-3 Послуги архівів)",2240,540,"П'ятсот сорок грн. 0 коп.","без ПДВ"]
["58.29.1 Програмне забезпечення системне на фізичних носіях(48443000-5 Пакети програмного забезпечення для бухгалтерського обліку)",2240,7392,"Сім тисяч триста дев'яносто дві грн. 0 коп.","в т.ч.ПДВ-",1232]
["28.99.3 Машини й устаткування спеціальної призначеності,н.в.і.у.(37535000-7 Каруселі,гойдалки,тири та інші атракціони)",3110,62900,"Шістдесят дві тисячі дев'ятсот грн. 0 коп.","в т.ч.ПДВ-",10483.333333333334]
[]
["Затверджений рішенням комітету з конкурсних торгів від__________№_______"]
[]
["Голова комітету з конкурсних торгів      _______________________Т.А.Рублевська"]
["                                                                                                (підпис)          (ініціали та прізвище)"]
["МП"]

{"sheet":"29","index":16,"n_rows":51,"n_cols":9,"rows_kept":51,"cut":false,"hidden":false,"merged":[[0,0,0,8],[1,0,1,8],[2,0,2,8],[3,2,3,5],[4,2,4,5]]}
["Додаток до річного плану закупівель на  2016 рік "]
["Дошкільний навчальний заклад № 29, 26244202"]
["(найменування замовника,код за ЄДРПОУ)"]
["Предмет закупівлі","Код КЕКВ (для бюджетних коштів)","Очікувана вартість предмета закупівлі",null,null,null,"Процедура закупівлі","Орієнтовний початок проведення процедури закупівлі","Примітки"]
[1,2,3,null,null,null,4,5,6]
["10.73.1 Макарони,локшина,кускус і подібні борошняні вироби(15851000-8 Борошняні вироби(макарони)",2230,2829.0349863356923,"Дві тисячі вісімсот двадцять дев'ять грн. 3 коп.","в т.ч.ПДВ-",{"$f":"C6/6","v":471.5058310559487}]
["10.11.1 М'ясо великої рогатої худоби,свиней,овець,кіз,коней та ін..тварин родини конячих,свіже чиа охолоджене(15111000-9 М'ясо великої рогатої худоби родини бикових(яловичина)",2230,90712.681648295227,"Дев'яносто тисяч сімсот дванадцять грн. 68 коп.","в т.ч.ПДВ-",{"$f":"C7/6","v":15118.780274715871}]
["10.12.1 М'ясо  свійської птиці,свіже чи охолоджене(15112000-6 М'ясо свійської птиці)",2230,36730.849439994025,"Тридцять шість тисяч сімсот тридцять грн. 85 коп.","в т.ч.ПДВ-",6121.8082399990044]
["10.12.4 Субпродукти харчові свійської птиці(15114000-0 Потрухи(печінка)",2230,10409.202303795697,"Десять тисяч чотириста дев'ять грн. 20 коп.","в т.ч.ПДВ-",1734.8670506326162]
["10.13.1.Консерви та готові страви з м’яса,м’ясних субпродуктів чи крові (15130000-8 Мясопродукти (ковбаса,сосиски)",2230,31253.695137712395,"Тридцять одна тисячa двісті п'ятдесят три грн. 70 коп.","в т.ч.ПДВ-",5208.9491896187328]
["10.20.1 Продукція рибна,свіжа,охолоджена чи заморожена (15221000-3 Морожена риба)",2230,73518.931668164587,"Сімдесят три тисячі п'ятсот вісімнадцять грн. 93 коп.","в т.ч.ПДВ-",12253.155278027431]
["01.24.1 Яблука (03222000-3 Фрукти і горіхи(яблука,апельсини,лимони,ягоди)",2230,31040.661346853063,"Тридцять одна тисячa сорок грн. 66 коп.","в т.ч.ПДВ-",5173.4435578088442]
["10.39.1 Плоди та овочі,оброблені та законсервовані,крім картоплі(15331000-7 Оброблені овочі(консерви овочеві)",2230,21790.130944228615,"Двадцять одна тисячa сімсот дев'яносто грн. 13 коп.","в т.ч.ПДВ-",3631.6884907047693]
["10.72.1 Вироби хлібобулочні,зниженої вологості,та кондитерські,борошняні,тривалого зберігання(15820000-2 Сухарі та печиво; пресерви з хлібобулочних і кондитерських виробів (печиво)",2230,7553.2526463438726,"Сім тисяч п'ятсот п'ятдесят три грн. 25 коп.","в т.ч.ПДВ-",1258.8754410573122]
["10.71.1 Вироби  хлібобулочні,кондитерські та кулінарні,борошняні,нетривалого зберігання(15810000-9 Хлібопродукти, свіжовипечені хлібобулочні та кондитерські вироби)",2230,28028.26783420235,"Двадцять вісім тисяч двадцять вісім грн. 27 коп.","в т.ч.ПДВ-",4671.3779723670586]
["10.51.1 Молоко та вершки,рідинні,оброблені(15511000-3 Молоко)",2230,111149.12775529872,"Сто одинадцять тисяч сто сорок дев'ять грн. 13 коп.","в т.ч.ПДВ-",18524.854625883119]
["10.51.5 Продукти молочні, інші (15550000-8 Молочні продукти різні (кефір,сметана)",2230,20900.337109205506,"Двадцять тисяч дев'ятсот грн. 34 коп.","в т.ч.ПДВ-",3483.3895182009178]
["10.51.4 Сир сичужний та кисломолочний сир(15540000-5 Сирні продукти)",2230,78146.67733570392,"Сімдесят вісім тисяч сто сорок шість грн. 68 коп.","в т.ч.ПДВ-",13024.44622261732]
["10.32.1 Соки фруктові та овочеві (15321000-4 Фруктові соки)",2230,20835.328970686311,"Двадцять тисяч вісімсот тридцять п'ять грн. 33 коп.","в т.ч.ПДВ-",3472.5548284477186]
["10.61.2 Борошно зернових і овочевих культур;їхні суміші(15612000-1 Борошно зернових та овочевих культур і супутня продукція)",2230,4590.3022256105778,"Чотири тисячі п'ятсот дев'яносто грн. 30 коп.","в т.ч.ПДВ-",765.05037093509634]
["10.61.1 Рис напівобрушений чи повністю обрушений,або лущений чи дроблений(15614000-5 Рис оброблений)",2230,2245.4161660364862,"Дві тисячі двісті сорок п'ять грн. 42 коп.","в т.ч.ПДВ-",374.2360276727477]
["0.81.1 Цукор-сирець,тростинний і очищений тростинний чи буряковий цукор (сахароза);меляса (15831000-2 Цукор)",2230,20199.740029379755,"Двадцять тисяч сто дев'яносто дев'ять грн. 74 коп.","в т.ч.ПДВ-",3366.6233382299592]
["10.39.2 Плоди й горіхи,оброблені та законсервовані(15332000-4 Оброблені фрукти та горіхи(повидло,сухофрукти)",2230,13295.418981208199,"Тринадцять тисяч двісті дев'яносто п'ять грн. 42 коп.","в т.ч.ПДВ-",2215.9031635346996]
["10.51.3 Масло вершкове та молочні пасти(15530000-2 Вершкове масло)",2230,36119.594759449501,"Тридцять шість тисяч сто дев'ятнадцять грн. 59 коп.","в т.ч.ПДВ-",6019.9324599082502]
["01.47.2 Яйця у шкаралупі свіжі (03142000-8 Продукція тваринництва (03142500-3 Яйця)",2230,27653.519904820649,"Двадцять сім тисяч шістсот п'ятдесят три грн. 52 коп.","в т.ч.ПДВ-",4608.9199841367745]
["10.41.5 Олії рафіновані(15421000-5 Рафіновані олії)",2230,8128.0164701754447,"Вісім тисяч сто двадцять вісім грн. 2 коп.","в т.ч.ПДВ-",1354.6694116959075]
["10.61.3 Крупи,крупка,гранули та інші продукти з зерна зернових культур(15613000-8 Продукція із зерна зернових культур(крупи)",2230,8480.9103254677775,"Вісім тисяч чотириста вісімдесят грн. 91 коп.","в т.ч.ПДВ-",1413.4850542446295]
["10.82.1 Какао терте,какао-масло,жири й олія,какао-порошок(15841000-5 Какао)",2230,10393.549368000517,"Десять тисяч триста дев'яносто три грн. 55 коп.","в т.ч.ПДВ-",1732.2582280000861]
["10.83.1 Чай і кава,оброблені(15860000-4 Кава, чай та супутня продукція)",2230,10849.294096142265,"Десять тисяч вісімсот сорок дев'ять грн. 29 коп.","в т.ч.ПДВ-",1808.2156826903774]
["10.84.3 Сіль харчова(14410000-8 Камяна сіль)",2230,409.056079454496,"Чотириста дев'ять грн. 6 коп.","в т.ч.ПДВ-",68.176013242416005]
["01.13.5 Коренеплоди та бульби їстівні з високим умістом крохмалю та інуліну(03212000-0 Картопля та сушені овочі)",2230,28164.681817227451,"Двадцять вісім тисяч сто шістдесят чотири грн. 68 коп.","в т.ч.ПДВ-",4694.1136362045754]
["01.13.4 Овочі коренеплодні,цибулинні та бульбоподібні(03221000-6 Овочі)",2230,34542.321078299363,"Тридцять чотири тисячі п'ятсот сорок дві грн. 32 коп.","в т.ч.ПДВ-",5757.0535130498938]
["43.21.1 Роботи електромонтажні(45310000-3 Електромонтажні роботи(повірка контурів заземлення)",2240,745,"Сімсот сорок п'ять грн. 0 коп.","в т.ч.ПДВ-",124.16666666666667]
["38.11.6 Послуги підприємств щодо перевезення інших безпечних відходів(90512000-9 Послуги з перевезення сміття)",2240,8603,"Вісім тисяч шістсот три грн. 0 коп.","в т.ч.ПДВ-",1433.8333333333333]
["Капітальний ремонт будівель (45000000-7 Будівельні роботи)",3132,387000,"Триста вісімдесят сім тисяч грн. 0 коп.","в т.ч.ПДВ-",64500]
[" 36.00.2 Обробляння та розподіляння води трубопроводами(65110000-7 Розподіл води)",2272,10789.060800000001,"Десять тисяч сімсот вісімдесят дев'ять грн. 6 коп.","в т.ч.ПДВ-",1798.1768000000002]
["37.00.1 Послуги каналізаційні(90400000-1 Послуги у сфері водовідведення)",2272,9871.9391999999989,"Дев'ять тисяч вісімсот сімдесят одна грн. 94 коп.","в т.ч.ПДВ-",1645.3231999999998]
["35.11.1  Енергія електрична (09310000-5 Електрична енергія)",2273,70570,"Сімдесят тисяч п'ятсот сімдесят грн. 0 коп.","в т.ч.ПДВ-",11761.666666666666]
["61.10.1  Послуги щодо передавання даних і повідомлень(64211000-8 Послуги громадського телефонного звязку)",2240,2597,"Дві тисячі п'ятсот дев'яносто сім грн. 0 коп.","в т.ч.ПДВ-",432.83333333333331]
["27.51.2 Прилади електричні побутові,інші,н.в.і.у.(39711000-9 Електричні побутові прилади для обробки продуктів харчування)",3110,134200,"Сто тридцять чотири тисячі двісті грн. 0 коп.","в т.ч.ПДВ-",22366.666666666668]
["91.01.1 Послуги бібліотек і архівів(92512000-3 Послуги архівів)",2240,724,"Сімсот двадцять чотири грн. 0 коп.","без ПДВ"]
["71.20.1 Послуги щодо технічного випробування й аналізування(71632000-7 Послуги з технічних випробувань (повірка,атестація)",2240,1447,"Одна тисячa чотириста сорок сім грн. 0 коп.","в т.ч.ПДВ-",241.16666666666666]
["58.29.1 Програмне забезпечення системне на фізичних носіях(48443000-5 Пакети програмного забезпечення для бухгалтерського обліку)",2240,7392,"Сім тисяч триста дев'яносто дві грн. 0 коп.","в т.ч.ПДВ-",1232]
["31.09.1 Меблі, інші (39161000-8 Меблі для дитячого садка)",2210,61200,"Шістдесят одна тисячa двісті грн. 0 коп.","в т.ч.ПДВ-",10200]
["25.29.1 Цистерни,резервуари та вмістища металеві,інші(34221000-2 Пересувні контейнери спеціального призначення(Контейнер для сміття)",3110,3500,"Три тисячі п'ятсот грн. 0 коп.","в т.ч.ПДВ-",583.33333333333337]
[]
["Затверджений рішенням комітету з конкурсних торгів від__________№_______"]
[]
["Голова комітету з конкурсних торгів      _______________________В.М.Шумило"]
["                                                                                                (підпис)          (ініціали та прізвище)"]
["МП"]

{"sheet":"31","index":17,"n_rows":53,"n_cols":9,"rows_kept":53,"cut":false,"hidden":false,"merged":[[0,0,0,8],[1,0,1,8],[2,0,2,8],[3,2,3,5],[4,2,4,5]]}
["Додаток до річного плану закупівель на  2016 рік "]
["Дошкільний навчальний заклад № 31,  26243987"]
["(найменування замовника,код за ЄДРПОУ)"]
["Предмет закупівлі","Код КЕКВ (для бюджетних коштів)","Очікувана вартість предмета закупівлі",null,null,null,"Процедура закупівлі","Орієнтовний початок проведення процедури закупівлі","Примітки"]
[1,2,3,null,null,null,4,5,6]
["10.73.1 Макарони,локшина,кускус і подібні борошняні вироби(15851000-8 Борошняні вироби(макарони)",2230,4916.1225635451656,{"$f":"SUMINWORDS(C6,\"грн.\",\"коп.\")","v":"Чотири тисячі дев'ятсот шістнадцять грн. 12 коп."},"в т.ч.ПДВ-",{"$f":"C6/6","v":819.35376059086093}]
["10.11.1 М'ясо великої рогатої худоби,свиней,овець,кіз,коней та ін..тварин родини конячих,свіже чиа охолоджене(15111000-9 М'ясо великої рогатої худоби родини бикових(яловичина)",2230,165848.27652810348,{"$f":"SUMINWORDS(C7,\"грн.\",\"коп.\")","v":"Сто шістдесят п'ять тисяч вісімсот сорок вісім грн. 28 коп."},"в т.ч.ПДВ-",{"$f":"C7/6","v":27641.379421350579}]
["10.12.1 М'ясо  свійської птиці,свіже чи охолоджене(15112000-6 М'ясо свійської птиці)",2230,64163.420599806195,{"$f":"SUMINWORDS(C8,\"грн.\",\"коп.\")","v":"Шістдесят чотири тисячі сто шістдесят три грн. 42 коп."},"в т.ч.ПДВ-",10693.903433301033]
["10.12.4 Субпродукти харчові свійської птиці(15114000-0 Потрухи(печінка)",2230,18256.890615106029,{"$f":"SUMINWORDS(C9,\"грн.\",\"коп.\")","v":"Вісімнадцять тисяч двісті п'ятдесят шість грн. 89 коп."},"в т.ч.ПДВ-",3042.8151025176717]
["10.13.1.Консерви та готові страви з м’яса,м’ясних субпродуктів чи крові (15130000-8 Мясопродукти (ковбаса,сосиски)",2230,54816.428463401062,"П'ятдесят чотири тисячі вісімсот шістнадцять грн. 43 коп.","в т.ч.ПДВ-",9136.071410566843]
["10.20.1 Продукція рибна,свіжа,охолоджена чи заморожена (15221000-3 Морожена риба)",2230,129177.2419601431,"Сто двадцять дев'ять тисяч сто сімдесят сім грн. 24 коп.","в т.ч.ПДВ-",21529.540326690516]
["01.24.1 Яблука (03222000-3 Фрукти і горіхи(яблука,апельсини,лимони,ягоди)",2230,54479.682026946401,"П'ятдесят чотири тисячі чотириста сімдесят дев'ять грн. 68 коп.","в т.ч.ПДВ-",9079.9470044910668]
["10.39.1 Плоди та овочі,оброблені та законсервовані,крім картоплі(15331000-7 Оброблені овочі(консерви овочеві)",2230,37708.322321953383,"Тридцять сім тисяч сімсот вісім грн. 32 коп.","в т.ч.ПДВ-",6284.7203869922305]
["10.72.1 Вироби хлібобулочні,зниженої вологості,та кондитерські,борошняні,тривалого зберігання(15820000-2 Сухарі та печиво; пресерви з хлібобулочних і кондитерських виробів (печиво)",2230,13378.435670113113,"Тринадцять тисяч триста сімдесят вісім грн. 44 коп.","в т.ч.ПДВ-",2229.7392783521855]
["10.71.1 Вироби  хлібобулочні,кондитерські та кулінарні,борошняні,нетривалого зберігання(15810000-9 Хлібопродукти, свіжовипечені хлібобулочні та кондитерські вироби)",2230,48791.061249032886,"Сорок вісім тисяч сімсот дев'яносто одна грн. 6 коп.","в т.ч.ПДВ-",8131.843541505481]
["10.51.1 Молоко та вершки,рідинні,оброблені(15511000-3 Молоко)",2230,190923.428384926,"Сто дев'яносто тисяч дев'ятсот двадцять три грн. 43 коп.","в т.ч.ПДВ-",31820.571397487667]
["10.51.5 Продукти молочні, інші (15550000-8 Молочні продукти різні (кефір,сметана)",2230,36349.708833186807,"Тридцять шість тисяч триста сорок дев'ять грн. 71 коп.","в т.ч.ПДВ-",6058.2848055311342]
["10.51.4 Сир сичужний та кисломолочний сир(15540000-5 Сирні продукти)",2230,135167.42752956884,"Сто тридцять п'ять тисяч сто шістдесят сім грн. 43 коп.","в т.ч.ПДВ-",22527.904588261474]
["10.32.1 Соки фруктові та овочеві (15321000-4 Фруктові соки)",2230,36113.992997051209,"Тридцять шість тисяч сто тринадцять грн. 99 коп.","в т.ч.ПДВ-",6018.9988328418685]
["10.61.2 Борошно зернових і овочевих культур;їхні суміші(15612000-1 Борошно зернових та овочевих культур і супутня продукція)",2230,8005.8695534514673,"Вісім тисяч п'ять грн. 87 коп.","в т.ч.ПДВ-",1334.3115922419113]
["10.61.1 Рис напівобрушений чи повністю обрушений,або лущений чи дроблений(15614000-5 Рис оброблений)",2230,3891.9924811264514,"Три тисячі вісімсот дев'яносто одна грн. 99 коп.","в т.ч.ПДВ-",648.66541352107527]
["0.81.1 Цукор-сирець,тростинний і очищений тростинний чи буряковий цукор (сахароза);меляса (15831000-2 Цукор)",2230,34895.45242651322,"Тридцять чотири тисячі вісімсот дев'яносто п'ять грн. 45 коп.","в т.ч.ПДВ-",5815.9087377522037]
["10.39.2 Плоди й горіхи,оброблені та законсервовані(15332000-4 Оброблені фрукти та горіхи(повидло,сухофрукти)",2230,22827.057162297959,"Двадцять дві тисячі вісімсот двадцять сім грн. 6 коп.","в т.ч.ПДВ-",3804.5095270496599]
["10.51.3 Масло вершкове та молочні пасти(15530000-2 Вершкове масло)",2230,63095.648093606702,"Шістдесят три тисячі дев'яносто п'ять грн. 65 коп.","в т.ч.ПДВ-",10515.94134893445]
["01.47.2 Яйця у шкаралупі свіжі (03142000-8 Продукція тваринництва (03142500-3 Яйця)",2230,48502.015167950856,"Сорок вісім тисяч п'ятсот дві грн. 2 коп.","в т.ч.ПДВ-",8083.669194658476]
["10.41.5 Олії рафіновані(15421000-5 Рафіновані олії)",2230,14124.365855811582,"Чотирнадцять тисяч сто двадцять чотири грн. 37 коп.","в т.ч.ПДВ-",2354.0609759685972]
["10.61.3 Крупи,крупка,гранули та інші продукти з зерна зернових культур(15613000-8 Продукція із зерна зернових культур(крупи)",2230,14714.328061146596,"Чотирнадцять тисяч сімсот чотирнадцять грн. 33 коп.","в т.ч.ПДВ-",2452.3880101910995]
["10.82.1 Какао терте,какао-масло,жири й олія,какао-порошок(15841000-5 Какао)",2230,18229.436644256242,"Вісімнадцять тисяч двісті двадцять дев'ять грн. 44 коп.","в т.ч.ПДВ-",3038.2394407093739]
["10.83.1 Чай і кава,оброблені(15860000-4 Кава, чай та супутня продукція)",2230,19247.515983545294,"Дев'ятнадцять тисяч двісті сорок сім грн. 52 коп.","в т.ч.ПДВ-",3207.9193305908825]
["10.84.3 Сіль харчова(14410000-8 Камяна сіль)",2230,721.63837079875202,"Сімсот двадцять одна грн. 64 коп.","в т.ч.ПДВ-",120.273061799792]
["01.13.5 Коренеплоди та бульби їстівні з високим умістом крохмалю та інуліну(03212000-0 Картопля та сушені овочі)",2230,48896.58453163183,"Сорок вісім тисяч вісімсот дев'яносто шість грн. 58 коп.","в т.ч.ПДВ-",8149.430755271972]
["01.13.4 Овочі коренеплодні,цибулинні та бульбоподібні(03221000-6 Овочі)",2230,59638.656573008739,"П'ятдесят дев'ять тисяч шістсот тридцять вісім грн. 66 коп.","в т.ч.ПДВ-",9939.7760955014564]
["43.21.1 Роботи електромонтажні(45310000-3 Електромонтажні роботи(повірка контурів заземлення)",2240,745,"Сімсот сорок п'ять грн. 0 коп.","в т.ч.ПДВ-",124.16666666666667]
["38.11.6 Послуги підприємств щодо перевезення інших безпечних відходів(90512000-9 Послуги з перевезення сміття)",2240,14807,"Чотирнадцять тисяч вісімсот сім грн. 0 коп.","в т.ч.ПДВ-",2467.8333333333335]
["Поточний ремонт будівель (45400000-1 Завершальні будівельні роботи)",2240,120560,"Сто двадцять тисяч п'ятсот шістдесят грн. 0 коп.","в т.ч.ПДВ-",20093.333333333332]
[" 36.00.2 Обробляння та розподіляння води трубопроводами(65110000-7 Розподіл води)",2272,57411.312000000013,"П'ятдесят сім тисяч чотириста одинадцять грн. 31 коп.","в т.ч.ПДВ-",9568.5520000000015]
["37.00.1 Послуги каналізаційні(90400000-1 Послуги у сфері водовідведення)",2272,48864.687999999987,"Сорок вісім тисяч вісімсот шістдесят чотири грн. 69 коп.","в т.ч.ПДВ-",8144.1146666666646]
["35.11.1  Енергія електрична (09310000-5 Електрична енергія)",2273,131061,"Сто тридцять одна тисячa шістдесят одна грн. 0 коп.","в т.ч.ПДВ-",21843.5]
["61.10.1  Послуги щодо передавання даних і повідомлень(64211000-8 Послуги громадського телефонного звязку)",2240,2655,"Дві тисячі шістсот п'ятдесят п'ять грн. 0 коп.","в т.ч.ПДВ-",442.5]
["64.99.1 Послуги фінансові, крім страхування та пенсійного забезпечення, інші, н.в.і.у( 66110000-4 Банківські послуги)",2240,2514,"Дві тисячі п'ятсот чотирнадцять грн. 0 коп.","без ПДВ"]
["91.01.1 Послуги бібліотек і архівів(92512000-3 Послуги архівів)",2240,1119,"Одна тисячa сто дев'ятнадцять грн. 0 коп.","без ПДВ"]
["71.20.1 Послуги щодо технічного випробування й аналізування(71632000-7 Послуги з технічних випробувань (повірка,атестація)",2240,294,"Двісті дев'яносто чотири грн. 0 коп.","в т.ч.ПДВ-",49]
["58.29.1 Програмне забезпечення системне на фізичних носіях(48443000-5 Пакети програмного забезпечення для бухгалтерського обліку)",2240,7392,"Сім тисяч триста дев'яносто дві грн. 0 коп.","в т.ч.ПДВ-",1232]
["13.93.1 Килими та килимові покриви(39533000-7 Килими)",2210,null,"Нуль грн. 0 коп.","в т.ч.ПДВ-",0]
["31.09.1 Меблі, інші (39161000-8 Меблі для дитячого садка)",3110,81600,"Вісімдесят одна тисячa шістсот грн. 0 коп.","в т.ч.ПДВ-",13600]
["26.51.6 Інструменти та прилади вимірювальні,контрольні та випробувальні,інші(38421000-0 Прилади для вимірювання витрати рідин і газів)",3110,13395,"Тринадцять тисяч триста дев'яносто п'ять грн. 0 коп.","в т.ч.ПДВ-",2232.5]
["85.60.1 Послуги освітянські допоміжні (80570000-0 Послуги з професійної підготовки у сфері підвищення кваліфікації)",2282,349,"Триста сорок дев'ять грн. 0 коп.","в т.ч.ПДВ-",58.166666666666664]
[]
["Затверджений рішенням комітету з конкурсних торгів від__________№_______"]
[]
["Голова комітету з конкурсних торгів      _______________________Н.В.Дацюк"]
["                                                                                                (підпис)          (ініціали та прізвище)"]
["МП"]

{"sheet":"34","index":18,"n_rows":50,"n_cols":9,"rows_kept":50,"cut":false,"hidden":false,"merged":[[0,0,0,8],[1,0,1,8],[2,0,2,8],[3,2,3,5],[4,2,4,5]]}
["Додаток до річного плану закупівель на  2016 рік "]
["Дошкільний навчальний заклад № 34,  26243243"]
["(найменування замовника,код за ЄДРПОУ)"]
["Предмет закупівлі","Код КЕКВ (для бюджетних коштів)","Очікувана вартість предмета закупівлі",null,null,null,"Процедура закупівлі","Орієнтовний початок проведення процедури закупівлі","Примітки"]
[1,2,3,null,null,null,4,5,6]
["10.73.1 Макарони,локшина,кускус і подібні борошняні вироби(15851000-8 Борошняні вироби(макарони)",2230,1402.2352862796167,{"$f":"SUMINWORDS(C6,\"грн.\",\"коп.\")","v":"Одна тисячa чотириста дві грн. 24 коп."},"в т.ч.ПДВ-",{"$f":"C6/6","v":233.7058810466028}]
["10.11.1 М'ясо великої рогатої худоби,свиней,овець,кіз,коней та ін..тварин родини конячих,свіже чиа охолоджене(15111000-9 М'ясо великої рогатої худоби родини бикових(яловичина)",2230,51760.373827123869,{"$f":"SUMINWORDS(C7,\"грн.\",\"коп.\")","v":"П'ятдесят одна тисячa сімсот шістдесят грн. 37 коп."},"в т.ч.ПДВ-",{"$f":"C7/6","v":8626.7289711873109}]
["10.12.1 М'ясо  свійської птиці,свіже чи охолоджене(15112000-6 М'ясо свійської птиці)",2230,17964.912664448279,{"$f":"SUMINWORDS(C8,\"грн.\",\"коп.\")","v":"Сімнадцять тисяч дев'ятсот шістдесят чотири грн. 91 коп."},"в т.ч.ПДВ-",2994.1521107413796]
["10.12.4 Субпродукти харчові свійської птиці(15114000-0 Потрухи(печінка)",2230,5038.1575908633895,{"$f":"SUMINWORDS(C9,\"грн.\",\"коп.\")","v":"П'ять тисяч тридцять вісім грн. 16 коп."},"в т.ч.ПДВ-",839.69293181056491]
["10.13.1.Консерви та готові страви з м’яса,м’ясних субпродуктів чи крові (15130000-8 Мясопродукти (ковбаса,сосиски)",2230,15127.099733970777,"П'ятнадцять тисяч сто двадцять сім грн. 10 коп.","в т.ч.ПДВ-",2521.1832889951297]
["10.20.1 Продукція рибна,свіжа,охолоджена чи заморожена (15221000-3 Морожена риба)",2230,35417.560435760432,"Тридцять п'ять тисяч чотириста сімнадцять грн. 56 коп.","в т.ч.ПДВ-",5902.9267392934053]
["01.24.1 Яблука (03222000-3 Фрукти і горіхи(яблука,апельсини,лимони,ягоди)",2230,14997.425449814251,"Чотирнадцять тисяч дев'ятсот дев'яносто сім грн. 43 коп.","в т.ч.ПДВ-",2499.5709083023753]
["10.39.1 Плоди та овочі,оброблені та законсервовані,крім картоплі(15331000-7 Оброблені овочі(консерви овочеві)",2230,10913.655051045367,"Десять тисяч дев'ятсот тринадцять грн. 66 коп.","в т.ч.ПДВ-",1818.9425085075611]
["10.72.1 Вироби хлібобулочні,зниженої вологості,та кондитерські,борошняні,тривалого зберігання(15820000-2 Сухарі та печиво; пресерви з хлібобулочних і кондитерських виробів (печиво)",2230,3561.7916240524801,"Три тисячі п'ятсот шістдесят одна грн. 79 коп.","в т.ч.ПДВ-",593.63193734208005]
["10.71.1 Вироби  хлібобулочні,кондитерські та кулінарні,борошняні,нетривалого зберігання(15810000-9 Хлібопродукти, свіжовипечені хлібобулочні та кондитерські вироби)",2230,13831.063853516844,"Тринадцять тисяч вісімсот тридцять одна грн. 6 коп.","в т.ч.ПДВ-",2305.1773089194739]
["10.51.1 Молоко та вершки,рідинні,оброблені(15511000-3 Молоко)",2230,56693.634727570556,"П'ятдесят шість тисяч шістсот дев'яносто три грн. 63 коп.","в т.ч.ПДВ-",9448.9391212617593]
["10.51.5 Продукти молочні, інші (15550000-8 Молочні продукти різні (кефір,сметана)",2230,10337.550005366351,"Десять тисяч триста тридцять сім грн. 55 коп.","в т.ч.ПДВ-",1722.9250008943918]
["10.51.4 Сир сичужний та кисломолочний сир(15540000-5 Сирні продукти)",2230,39188.382049196305,"Тридцять дев'ять тисяч сто вісімдесят вісім грн. 38 коп.","в т.ч.ПДВ-",6531.3970081993839]
["10.32.1 Соки фруктові та овочеві (15321000-4 Фруктові соки)",2230,10393.699436456842,"Десять тисяч триста дев'яносто три грн. 70 коп.","в т.ч.ПДВ-",1732.2832394094737]
["10.61.2 Борошно зернових і овочевих культур;їхні суміші(15612000-1 Борошно зернових та овочевих культур і супутня продукція)",2230,2254.2539709581097,"Дві тисячі двісті п'ятдесят чотири грн. 25 коп.","в т.ч.ПДВ-",375.70899515968495]
["10.61.1 Рис напівобрушений чи повністю обрушений,або лущений чи дроблений(15614000-5 Рис оброблений)",2230,1120.1253780240052,"Одна тисячa сто двадцять грн. 13 коп.","в т.ч.ПДВ-",186.68756300400085]
["0.81.1 Цукор-сирець,тростинний і очищений тростинний чи буряковий цукор (сахароза);меляса (15831000-2 Цукор)",2230,10160.775494914409,"Десять тисяч сто шістдесят грн. 78 коп.","в т.ч.ПДВ-",1693.4625824857349]
["10.39.2 Плоди й горіхи,оброблені та законсервовані(15332000-4 Оброблені фрукти та горіхи(повидло,сухофрукти)",2230,6789.3396248039999,"Шість тисяч сімсот вісімдесят дев'ять грн. 34 коп.","в т.ч.ПДВ-",1131.5566041340001]
["10.51.3 Масло вершкове та молочні пасти(15530000-2 Вершкове масло)",2230,17665.950426462001,"Сімнадцять тисяч шістсот шістдесят п'ять грн. 95 коп.","в т.ч.ПДВ-",2944.3250710770003]
["01.47.2 Яйця у шкаралупі свіжі (03142000-8 Продукція тваринництва (03142500-3 Яйця)",2230,13384.579063446599,"Тринадцять тисяч триста вісімдесят чотири грн. 58 коп.","в т.ч.ПДВ-",2230.7631772411]
["10.41.5 Олії рафіновані(15421000-5 Рафіновані олії)",2230,4028.7205909405798,"Чотири тисячі двадцять вісім грн. 72 коп.","в т.ч.ПДВ-",671.45343182342992]
["10.61.3 Крупи,крупка,гранули та інші продукти з зерна зернових культур(15613000-8 Продукція із зерна зернових культур(крупи)",2230,4220.3919413026379,"Чотири тисячі двісті двадцять грн. 39 коп.","в т.ч.ПДВ-",703.39865688377301]
["10.82.1 Какао терте,какао-масло,жири й олія,какао-порошок(15841000-5 Какао)",2230,5030.581414035023,"П'ять тисяч тридцять грн. 58 коп.","в т.ч.ПДВ-",838.43023567250384]
["10.83.1 Чай і кава,оброблені(15860000-4 Кава, чай та супутня продукція)",2230,5093.6872706626027,"П'ять тисяч дев'яносто три грн. 69 коп.","в т.ч.ПДВ-",848.94787844376708]
["10.84.3 Сіль харчова(14410000-8 Камяна сіль)",2230,194.97254078630399,"Сто дев'яносто чотири грн. 97 коп.","в т.ч.ПДВ-",32.495423464383997]
["01.13.5 Коренеплоди та бульби їстівні з високим умістом крохмалю та інуліну(03212000-0 Картопля та сушені овочі)",2230,13993.370790742922,"Тринадцять тисяч дев'ятсот дев'яносто три грн. 37 коп.","в т.ч.ПДВ-",2332.2284651238201]
["01.13.4 Овочі коренеплодні,цибулинні та бульбоподібні(03221000-6 Овочі)",2230,17399.709660426277,"Сімнадцять тисяч триста дев'яносто дев'ять грн. 71 коп.","в т.ч.ПДВ-",2899.9516100710462]
["43.21.1 Роботи електромонтажні(45310000-3 Електромонтажні роботи(повірка контурів заземлення)",2240,745,"Сімсот сорок п'ять грн. 0 коп.","в т.ч.ПДВ-",124.16666666666667]
["38.11.6 Послуги підприємств щодо перевезення інших безпечних відходів(90512000-9 Послуги з перевезення сміття)",2240,8229,"Вісім тисяч двісті двадцять дев'ять грн. 0 коп.","в т.ч.ПДВ-",1371.5]
["Капітальний ремонт будівель (45000000-7 Будівельні роботи)",3132,75000,"Сімдесят п'ять тисяч грн. 0 коп.","в т.ч.ПДВ-",12500]
[" 36.00.2 Обробляння та розподіляння води трубопроводами(65110000-7 Розподіл води)",2272,30305.352000000006,"Тридцять тисяч триста п'ять грн. 35 коп.","в т.ч.ПДВ-",5050.8920000000007]
["37.00.1 Послуги каналізаційні(90400000-1 Послуги у сфері водовідведення)",2272,25730.647999999994,"Двадцять п'ять тисяч сімсот тридцять грн. 65 коп.","в т.ч.ПДВ-",4288.4413333333323]
["35.11.1  Енергія електрична (09310000-5 Електрична енергія)",2273,27517,"Двадцять сім тисяч п'ятсот сімнадцять грн. 0 коп.","в т.ч.ПДВ-",4586.166666666667]
["61.10.1  Послуги щодо передавання даних і повідомлень(64211000-8 Послуги громадського телефонного звязку)",2240,1641,"Одна тисячa шістсот сорок одна грн. 0 коп.","в т.ч.ПДВ-",273.5]
["28.99.3 Машини й устаткування спеціальної призначеності,н.в.і.у.(37535000-7 Каруселі,гойдалки,тири та інші атракціони)",3110,29300,"Двадцять дев'ять тисяч триста грн. 0 коп.","в т.ч.ПДВ-",4883.333333333333]
["91.01.1 Послуги бібліотек і архівів(92512000-3 Послуги архівів)",2240,474,"Чотириста сімдесят чотири грн. 0 коп.","без ПДВ"]
["58.29.1 Програмне забезпечення системне на фізичних носіях(48443000-5 Пакети програмного забезпечення для бухгалтерського обліку)",2240,7392,"Сім тисяч триста дев'яносто дві грн. 0 коп.","в т.ч.ПДВ-",1232]
["85.60.1 Послуги освітянські допоміжні (80570000-0 Послуги з професійної підготовки у сфері підвищення кваліфікації)",2282,349,"Триста сорок дев'ять грн. 0 коп.","в т.ч.ПДВ-",58.166666666666664]
["06.20.1 Газ природний,скраплений або в газоподібному стані (09123000-7 Природний газ)",2274,30144,"Тридцять тисяч сто сорок чотири грн. 0 коп.","в т.ч.ПДВ-",5024]
[]
["Затверджений рішенням комітету з конкурсних торгів від__________№_______"]
[]
["Голова комітету з конкурсних торгів      _______________________Н.П.Назарчук"]
["                                                                                                (підпис)          (ініціали та прізвище)"]
["МП"]

{"sheet":"35","index":19,"n_rows":52,"n_cols":9,"rows_kept":52,"cut":false,"hidden":false,"merged":[[0,0,0,8],[1,0,1,8],[2,0,2,8],[3,2,3,5],[4,2,4,5]]}
["Додаток до річного плану закупівель на  2016 рік "]
["Дошкільний навчальний заклад № 35, 26243467"]
["(найменування замовника,код за ЄДРПОУ)"]
["Предмет закупівлі","Код КЕКВ (для бюджетних коштів)","Очікувана вартість предмета закупівлі",null,null,null,"Процедура закупівлі","Орієнтовний початок проведення процедури закупівлі","Примітки"]
[1,2,3,null,null,null,4,5,6]
["10.73.1 Макарони,локшина,кускус і подібні борошняні вироби(15851000-8 Борошняні вироби(макарони)",2230,2111.5132067426684,{"$f":"SUMINWORDS(C6,\"грн.\",\"коп.\")","v":"Дві тисячі сто одинадцять грн. 51 коп."},"в т.ч.ПДВ-",{"$f":"C6/6","v":351.91886779044472}]
["10.11.1 М'ясо великої рогатої худоби,свиней,овець,кіз,коней та ін..тварин родини конячих,свіже чиа охолоджене(15111000-9 М'ясо великої рогатої худоби родини бикових(яловичина)",2230,75014.470181641344,{"$f":"SUMINWORDS(C7,\"грн.\",\"коп.\")","v":"Сімдесят п'ять тисяч чотирнадцять грн. 47 коп."},"в т.ч.ПДВ-",{"$f":"C7/6","v":12502.411696940224}]
["10.12.1 М'ясо  свійської птиці,свіже чи охолоджене(15112000-6 М'ясо свійської птиці)",2230,27509.93638867858,{"$f":"SUMINWORDS(C8,\"грн.\",\"коп.\")","v":"Двадцять сім тисяч п'ятсот дев'ять грн. 94 коп."},"в т.ч.ПДВ-",4584.9893981130963]
["10.12.4 Субпродукти харчові свійської птиці(15114000-0 Потрухи(печінка)",2230,7816.9521653603742,{"$f":"SUMINWORDS(C9,\"грн.\",\"коп.\")","v":"Сім тисяч вісімсот шістнадцять грн. 95 коп."},"в т.ч.ПДВ-",1302.8253608933958]
["10.13.1.Консерви та готові страви з м’яса,м’ясних субпродуктів чи крові (15130000-8 Мясопродукти (ковбаса,сосиски)",2230,23470.44785489155,"Двадцять три тисячі чотириста сімдесят грн. 45 коп.","в т.ч.ПДВ-",3911.7413091485919]
["10.20.1 Продукція рибна,свіжа,охолоджена чи заморожена (15221000-3 Морожена риба)",2230,55275.773247265184,"П'ятдесят п'ять тисяч двісті сімдесят п'ять грн. 77 коп.","в т.ч.ПДВ-",9212.628874544198]
["01.24.1 Яблука (03222000-3 Фрукти і горіхи(яблука,апельсини,лимони,ягоди)",2230,23320.941518714717,"Двадцять три тисячі триста двадцять грн. 94 коп.","в т.ч.ПДВ-",3886.8235864524527]
["10.39.1 Плоди та овочі,оброблені та законсервовані,крім картоплі(15331000-7 Оброблені овочі(консерви овочеві)",2230,16218.915306098126,"Шістнадцять тисяч двісті вісімнадцять грн. 92 коп.","в т.ч.ПДВ-",2703.1525510163542]
["10.72.1 Вироби хлібобулочні,зниженої вологості,та кондитерські,борошняні,тривалого зберігання(15820000-2 Сухарі та печиво; пресерви з хлібобулочних і кондитерських виробів (печиво)",2230,5709.3215165841266,"П'ять тисяч сімсот дев'ять грн. 32 коп.","в т.ч.ПДВ-",951.55358609735447]
["10.71.1 Вироби  хлібобулочні,кондитерські та кулінарні,борошняні,нетривалого зберігання(15810000-9 Хлібопродукти, свіжовипечені хлібобулочні та кондитерські вироби)",2230,20943.727103416571,"Двадцять тисяч дев'ятсот сорок три грн. 73 коп.","в т.ч.ПДВ-",3490.6211839027619]
["10.51.1 Молоко та вершки,рідинні,оброблені(15511000-3 Молоко)",2230,82327.069100987486,"Вісімдесят дві тисячі триста двадцять сім грн. 7 коп.","в т.ч.ПДВ-",13721.178183497914]
["10.51.5 Продукти молочні, інші (15550000-8 Молочні продукти різні (кефір,сметана)",2230,15608.059430287723,"П'ятнадцять тисяч шістсот вісім грн. 6 коп.","в т.ч.ПДВ-",2601.3432383812874]
["10.51.4 Сир сичужний та кисломолочний сир(15540000-5 Сирні продукти)",2230,58147.364546586447,"П'ятдесят вісім тисяч сто сорок сім грн. 36 коп.","в т.ч.ПДВ-",9691.2274244310738]
["10.32.1 Соки фруктові та овочеві (15321000-4 Фруктові соки)",2230,15524.69240905798,"П'ятнадцять тисяч п'ятсот двадцять чотири грн. 69 коп.","в т.ч.ПДВ-",2587.4487348429966]
["10.61.2 Борошно зернових і овочевих культур;їхні суміші(15612000-1 Борошно зернових та овочевих культур і супутня продукція)",2230,3434.3425124255255,"Три тисячі чотириста тридцять чотири грн. 34 коп.","в т.ч.ПДВ-",572.39041873758754]
["10.61.1 Рис напівобрушений чи повністю обрушений,або лущений чи дроблений(15614000-5 Рис оброблений)",2230,1673.0907084350415,"Одна тисячa шістсот сімдесят три грн. 9 коп.","в т.ч.ПДВ-",278.84845140584025]
["0.81.1 Цукор-сирець,тростинний і очищений тростинний чи буряковий цукор (сахароза);меляса (15831000-2 Цукор)",2230,15017.928221736569,"П'ятнадцять тисяч сімнадцять грн. 93 коп.","в т.ч.ПДВ-",2502.9880369560947]
["10.39.2 Плоди й горіхи,оброблені та законсервовані(15332000-4 Оброблені фрукти та горіхи(повидло,сухофрукти)",2230,9844.7228723679837,"Дев'ять тисяч вісімсот сорок чотири грн. 72 коп.","в т.ч.ПДВ-",1640.7871453946639]
["10.51.3 Масло вершкове та молочні пасти(15530000-2 Вершкове масло)",2230,27052.131093254284,"Двадцять сім тисяч п'ятдесят дві грн. 13 коп.","в т.ч.ПДВ-",4508.6885155423806]
["01.47.2 Яйця у шкаралупі свіжі (03142000-8 Продукція тваринництва (03142500-3 Яйця)",2230,20766.840339052622,"Двадцять тисяч сімсот шістдесят шість грн. 84 коп.","в т.ч.ПДВ-",3461.1400565087702]
["10.41.5 Олії рафіновані(15421000-5 Рафіновані олії)",2230,6066.5259370393987,"Шість тисяч шістдесят шість грн. 53 коп.","в т.ч.ПДВ-",1011.0876561732331]
["10.61.3 Крупи,крупка,гранули та інші продукти з зерна зернових культур(15613000-8 Продукція із зерна зернових культур(крупи)",2230,6323.3086560675056,"Шість тисяч триста двадцять три грн. 31 коп.","в т.ч.ПДВ-",1053.884776011251]
["10.82.1 Какао терте,какао-масло,жири й олія,какао-порошок(15841000-5 Какао)",2230,7805.1973500741169,"Сім тисяч вісімсот п'ять грн. 20 коп.","в т.ч.ПДВ-",1300.8662250123527]
["10.83.1 Чай і кава,оброблені(15860000-4 Кава, чай та супутня продукція)",2230,8209.5434462455851,"Вісім тисяч двісті дев'ять грн. 54 коп.","в т.ч.ПДВ-",1368.2572410409309]
["10.84.3 Сіль харчова(14410000-8 Камяна сіль)",2230,308.37577063622405,"Триста вісім грн. 38 коп.","в т.ч.ПДВ-",51.395961772704005]
["01.13.5 Коренеплоди та бульби їстівні з високим умістом крохмалю та інуліну(03212000-0 Картопля та сушені овочі)",2230,21008.203486798229,"Двадцять одна тисячa вісім грн. 20 коп.","в т.ч.ПДВ-",3501.3672477997047]
["01.13.4 Овочі коренеплодні,цибулинні та бульбоподібні(03221000-6 Овочі)",2230,25671.60563520484,"Двадцять п'ять тисяч шістсот сімдесят одна грн. 61 коп.","в т.ч.ПДВ-",4278.6009392008064]
["43.21.1 Роботи електромонтажні(45310000-3 Електромонтажні роботи(повірка контурів заземлення)",2240,745,"Сімсот сорок п'ять грн. 0 коп.","в т.ч.ПДВ-",124.16666666666667]
["38.11.6 Послуги підприємств щодо перевезення інших безпечних відходів(90512000-9 Послуги з перевезення сміття)",2240,7430,"Сім тисяч чотириста тридцять грн. 0 коп.","в т.ч.ПДВ-",1238.3333333333333]
["64.99.1 Послуги фінансові, крім страхування та пенсійного забезпечення, інші, н.в.і.у( 66110000-4 Банківські послуги)",2240,2108,"Дві тисячі сто вісім грн. 0 коп.","в т.ч.ПДВ-",351.33333333333331]
[" 36.00.2 Обробляння та розподіляння води трубопроводами(65110000-7 Розподіл води)",2272,16174.704000000003,"Шістнадцять тисяч сто сімдесят чотири грн. 70 коп.","в т.ч.ПДВ-",2695.7840000000006]
["37.00.1 Послуги каналізаційні(90400000-1 Послуги у сфері водовідведення)",2272,15285.295999999997,"П'ятнадцять тисяч двісті вісімдесят п'ять грн. 30 коп.","в т.ч.ПДВ-",2547.5493333333329]
["35.11.1  Енергія електрична (09310000-5 Електрична енергія)",2273,85846,"Вісімдесят п'ять тисяч вісімсот сорок шість грн. 0 коп.","в т.ч.ПДВ-",14307.666666666666]
["61.10.1  Послуги щодо передавання даних і повідомлень(64211000-8 Послуги громадського телефонного звязку)",2240,1594,"Одна тисячa п'ятсот дев'яносто чотири грн. 0 коп.","в т.ч.ПДВ-",265.66666666666669]
["Поточний ремонт будівель (45400000-1 Завершальні будівельні роботи)",2240,27600,"Двадцять сім тисяч шістсот грн. 0 коп.","в т.ч.ПДВ-",4600]
["91.01.1 Послуги бібліотек і архівів(92512000-3 Послуги архівів)",2240,817,"Вісімсот сімнадцять грн. 0 коп.","без ПДВ"]
["71.20.1 Послуги щодо технічного випробування й аналізування(71632000-7 Послуги з технічних випробувань (повірка,атестація)",2240,1447,"Одна тисячa чотириста сорок сім грн. 0 коп.","в т.ч.ПДВ-",241.16666666666666]
["58.29.1 Програмне забезпечення системне на фізичних носіях(48443000-5 Пакети програмного забезпечення для бухгалтерського обліку)",2240,7392,"Сім тисяч триста дев'яносто дві грн. 0 коп.","в т.ч.ПДВ-",1232]
["Капітальний ремонт будівель (45000000-7 Будівельні роботи)",3132,178725,"Сто сімдесят вісім тисяч сімсот двадцять п'ять грн. 0 коп.","в т.ч.ПДВ-",29787.5]
["31.09.1 Меблі, інші (39161000-8 Меблі для дитячого садка)",2210,20400,"Двадцять тисяч чотириста грн. 0 коп.","в т.ч.ПДВ-",3400]
["85.60.1 Послуги освітянські допоміжні (80570000-0 Послуги з професійної підготовки у сфері підвищення кваліфікації)",2282,349,"Триста сорок дев'ять грн. 0 коп.","в т.ч.ПДВ-",58.166666666666664]
[]
["Затверджений рішенням комітету з конкурсних торгів від__________№_______"]
[]
["Голова комітету з конкурсних торгів      _______________________Н.С.Горобчук"]
["                                                                                                (підпис)          (ініціали та прізвище)"]
["МП"]

{"sheet":"36","index":20,"n_rows":50,"n_cols":9,"rows_kept":50,"cut":false,"hidden":false,"merged":[[0,0,0,8],[1,0,1,8],[2,0,2,8],[3,2,3,5],[4,2,4,5]]}
["Додаток до річного плану закупівель на  2016 рік "]
["Дошкільний навчальний заклад № 36, 01276276"]
["(найменування замовника,код за ЄДРПОУ)"]
["Предмет закупівлі","Код КЕКВ (для бюджетних коштів)","Очікувана вартість предмета закупівлі",null,null,null,"Процедура закупівлі","Орієнтовний початок проведення процедури закупівлі","Примітки"]
[1,2,3,null,null,null,4,5,6]
["10.73.1 Макарони,локшина,кускус і подібні борошняні вироби(15851000-8 Борошняні вироби(макарони)",2230,4436.3491132500385,{"$f":"SUMINWORDS(C6,\"грн.\",\"коп.\")","v":"Чотири тисячі чотириста тридцять шість грн. 35 коп."},"в т.ч.ПДВ-",{"$f":"C6/6","v":739.39151887500645}]
["10.11.1 М'ясо великої рогатої худоби,свиней,овець,кіз,коней та ін..тварин родини конячих,свіже чиа охолоджене(15111000-9 М'ясо великої рогатої худоби родини бикових(яловичина)",2230,153807.12627714302,{"$f":"SUMINWORDS(C7,\"грн.\",\"коп.\")","v":"Сто п'ятдесят три тисячі вісімсот сім грн. 13 коп."},"в т.ч.ПДВ-",{"$f":"C7/6","v":25634.521046190504}]
["10.12.1 М'ясо  свійської птиці,свіже чи охолоджене(15112000-6 М'ясо свійської птиці)",2230,57729.592134874925,{"$f":"SUMINWORDS(C8,\"грн.\",\"коп.\")","v":"П'ятдесят сім тисяч сімсот двадцять дев'ять грн. 59 коп."},"в т.ч.ПДВ-",9621.5986891458215]
["10.12.4 Субпродукти харчові свійської птиці(15114000-0 Потрухи(печінка)",2230,16388.645553545055,{"$f":"SUMINWORDS(C9,\"грн.\",\"коп.\")","v":"Шістнадцять тисяч триста вісімдесят вісім грн. 65 коп."},"в т.ч.ПДВ-",2731.4409255908427]
["10.13.1.Консерви та готові страви з м’яса,м’ясних субпродуктів чи крові (15130000-8 Мясопродукти (ковбаса,сосиски)",2230,49207.010960268111,"Сорок дев'ять тисяч двісті сім грн. 1 коп.","в т.ч.ПДВ-",8201.168493378018]
["10.20.1 Продукція рибна,свіжа,охолоджена чи заморожена (15221000-3 Морожена риба)",2230,115840.81538678915,"Сто п'ятнадцять тисяч вісімсот сорок грн. 82 коп.","в т.ч.ПДВ-",19306.802564464859]
["01.24.1 Яблука (03222000-3 Фрукти і горіхи(яблука,апельсини,лимони,ягоди)",2230,48885.943926186548,"Сорок вісім тисяч вісімсот вісімдесят п'ять грн. 94 коп.","в т.ч.ПДВ-",8147.6573210310917]
["10.39.1 Плоди та овочі,оброблені та законсервовані,крім картоплі(15331000-7 Оброблені овочі(консерви овочеві)",2230,34109.067083821239,"Тридцять чотири тисячі сто дев'ять грн. 7 коп.","в т.ч.ПДВ-",5684.8445139702062]
["10.72.1 Вироби хлібобулочні,зниженої вологості,та кондитерські,борошняні,тривалого зберігання(15820000-2 Сухарі та печиво; пресерви з хлібобулочних і кондитерських виробів (печиво)",2230,11942.910159755629,"Одинадцять тисяч дев'ятсот сорок дві грн. 91 коп.","в т.ч.ПДВ-",1990.4850266259382]
["10.71.1 Вироби  хлібобулочні,кондитерські та кулінарні,борошняні,нетривалого зберігання(15810000-9 Хлібопродукти, свіжовипечені хлібобулочні та кондитерські вироби)",2230,43985.648905173388,"Сорок три тисячі дев'ятсот вісімдесят п'ять грн. 65 коп.","в т.ч.ПДВ-",7330.941484195565]
["10.51.1 Молоко та вершки,рідинні,оброблені(15511000-3 Молоко)",2230,173433.72401543913,"Сто сімдесят три тисячі чотириста тридцять три грн. 72 коп.","в т.ч.ПДВ-",28905.620669239855]
["10.51.5 Продукти молочні, інші (15550000-8 Молочні продукти різні (кефір,сметана)",2230,32786.660935390486,"Тридцять дві тисячі сімсот вісімдесят шість грн. 66 коп.","в т.ч.ПДВ-",5464.4434892317477]
["10.51.4 Сир сичужний та кисломолочний сир(15540000-5 Сирні продукти)",2230,122300.37403681698,"Сто двадцять дві тисячі триста грн. 37 коп.","в т.ч.ПДВ-",20383.395672802832]
["10.32.1 Соки фруктові та овочеві (15321000-4 Фруктові соки)",2230,32637.007819175629,"Тридцять дві тисячі шістсот тридцять сім грн. 1 коп.","в т.ч.ПДВ-",5439.5013031959379]
["10.61.2 Борошно зернових і овочевих культур;їхні суміші(15612000-1 Борошно зернових та овочевих культур і супутня продукція)",2230,7209.5996422868811,"Сім тисяч двісті дев'ять грн. 60 коп.","в т.ч.ПДВ-",1201.5999403811468]
["10.61.1 Рис напівобрушений чи повністю обрушений,або лущений чи дроблений(15614000-5 Рис оброблений)",2230,3517.2789962347406,"Три тисячі п'ятсот сімнадцять грн. 28 коп.","в т.ч.ПДВ-",586.21316603912339]
["0.81.1 Цукор-сирець,тростинний і очищений тростинний чи буряковий цукор (сахароза);меляса (15831000-2 Цукор)",2230,31595.978618694888,"Тридцять одна тисячa п'ятсот дев'яносто п'ять грн. 98 коп.","в т.ч.ПДВ-",5265.996436449148]
["10.39.2 Плоди й горіхи,оброблені та законсервовані(15332000-4 Оброблені фрукти та горіхи(повидло,сухофрукти)",2230,20741.573522606672,"Двадцять тисяч сімсот сорок одна грн. 57 коп.","в т.ч.ПДВ-",3456.9289204344454]
["10.51.3 Масло вершкове та молочні пасти(15530000-2 Вершкове масло)",2230,56768.887878470043,"П'ятдесят шість тисяч сімсот шістдесят вісім грн. 89 коп.","в т.ч.ПДВ-",9461.4813130783405]
["01.47.2 Яйця у шкаралупі свіжі (03142000-8 Продукція тваринництва (03142500-3 Яйця)",2230,43538.757610921712,"Сорок три тисячі п'ятсот тридцять вісім грн. 76 коп.","в т.ч.ПДВ-",7256.4596018202856]
["10.41.5 Олії рафіновані(15421000-5 Рафіновані олії)",2230,12745.942992613747,"Дванадцять тисяч сімсот сорок п'ять грн. 94 коп.","в т.ч.ПДВ-",2124.3238321022914]
["10.61.3 Крупи,крупка,гранули та інші продукти з зерна зернових культур(15613000-8 Продукція із зерна зернових культур(крупи)",2230,13290.286581364548,"Тринадцять тисяч двісті дев'яносто грн. 29 коп.","в т.ч.ПДВ-",2215.0477635607581]
["10.82.1 Какао терте,какао-масло,жири й олія,какао-порошок(15841000-5 Какао)",2230,16364.000973765287,"Шістнадцять тисяч триста шістдесят чотири грн. 0 коп.","в т.ч.ПДВ-",2727.333495627548]
["10.83.1 Чай і кава,оброблені(15860000-4 Кава, чай та супутня продукція)",2230,17166.564083277448,"Сімнадцять тисяч сто шістдесят шість грн. 56 коп.","в т.ч.ПДВ-",2861.0940138795745]
["10.84.3 Сіль харчова(14410000-8 Камяна сіль)",2230,645.6610996942976,"Шістсот сорок п'ять грн. 66 коп.","в т.ч.ПДВ-",107.61018328238293]
["01.13.5 Коренеплоди та бульби їстівні з високим умістом крохмалю та інуліну(03212000-0 Картопля та сушені овочі)",2230,44148.443147956925,"Сорок чотири тисячі сто сорок вісім грн. 44 коп.","в т.ч.ПДВ-",7358.0738579928211]
["01.13.4 Овочі коренеплодні,цибулинні та бульбоподібні(03221000-6 Овочі)",2230,54017.148572473641,"П'ятдесят чотири тисячі сімнадцять грн. 15 коп.","в т.ч.ПДВ-",9002.8580954122735]
["43.21.1 Роботи електромонтажні(45310000-3 Електромонтажні роботи(повірка контурів заземлення)",2240,745,"Сімсот сорок п'ять грн. 0 коп.","в т.ч.ПДВ-",124.16666666666667]
["38.11.6 Послуги підприємств щодо перевезення інших безпечних відходів(90512000-9 Послуги з перевезення сміття)",2240,10071,"Десять тисяч сімдесят одна грн. 0 коп.","в т.ч.ПДВ-",1678.5]
["Поточний ремонт будівель (45400000-1 Завершальні будівельні роботи)",2240,81700,"Вісімдесят одна тисячa сімсот грн. 0 коп.","в т.ч.ПДВ-",13616.666666666666]
[" 36.00.2 Обробляння та розподіляння води трубопроводами(65110000-7 Розподіл води)",2272,31940.596800000007,"Тридцять одна тисячa дев'ятсот сорок грн. 60 коп.","в т.ч.ПДВ-",5323.4328000000014]
["37.00.1 Послуги каналізаційні(90400000-1 Послуги у сфері водовідведення)",2272,38964.403199999993,"Тридцять вісім тисяч дев'ятсот шістдесят чотири грн. 40 коп.","в т.ч.ПДВ-",6494.0671999999986]
["35.11.1  Енергія електрична (09310000-5 Електрична енергія)",2273,128781,"Сто двадцять вісім тисяч сімсот вісімдесят одна грн. 0 коп.","в т.ч.ПДВ-",21463.5]
["61.10.1  Послуги щодо передавання даних і повідомлень(64211000-8 Послуги громадського телефонного звязку)",2240,1594,"Одна тисячa п'ятсот дев'яносто чотири грн. 0 коп.","в т.ч.ПДВ-",265.66666666666669]
["85.60.1 Послуги освітянські допоміжні (80570000-0 Послуги з професійної підготовки у сфері підвищення кваліфікації)",2282,1649,"Одна тисячa шістсот сорок дев'ять грн. 0 коп.","в т.ч.ПДВ-",274.83333333333331]
["91.01.1 Послуги бібліотек і архівів(92512000-3 Послуги архівів)",2240,1093,"Одна тисячa дев'яносто три грн. 0 коп.","без ПДВ"]
["71.20.1 Послуги щодо технічного випробування й аналізування(71632000-7 Послуги з технічних випробувань (повірка,атестація)",2240,1741,"Одна тисячa сімсот сорок одна грн. 0 коп.","в т.ч.ПДВ-",290.16666666666669]
["58.29.1 Програмне забезпечення системне на фізичних носіях(48443000-5 Пакети програмного забезпечення для бухгалтерського обліку)",2240,7392,"Сім тисяч триста дев'яносто дві грн. 0 коп.","в т.ч.ПДВ-",1232]
["31.09.1 Меблі, інші (39161000-8 Меблі для дитячого садка)",2210,102000,"Сто дві тисячі грн. 0 коп.","в т.ч.ПДВ-",17000]
[]
["Затверджений рішенням комітету з конкурсних торгів від__________№_______"]
[]
["Голова комітету з конкурсних торгів      _______________________С.М.Потєєва"]
["                                                                                                (підпис)          (ініціали та прізвище)"]
["МП"]

{"sheet":"38","index":21,"n_rows":52,"n_cols":9,"rows_kept":52,"cut":false,"hidden":false,"merged":[[0,0,0,8],[1,0,1,8],[2,0,2,8],[3,2,3,5],[4,2,4,5]]}
["Додаток до річного плану закупівель на  2016 рік "]
["Дошкільний навчальний заклад № 38, 26243585"]
["(найменування замовника,код за ЄДРПОУ)"]
["Предмет закупівлі","Код КЕКВ (для бюджетних коштів)","Очікувана вартість предмета закупівлі",null,null,null,"Процедура закупівлі","Орієнтовний початок проведення процедури закупівлі","Примітки"]
[1,2,3,null,null,null,4,5,6]
["10.73.1 Макарони,локшина,кускус і подібні борошняні вироби(15851000-8 Борошняні вироби(макарони)",2230,4776.365499347381,{"$f":"SUMINWORDS(C6,\"грн.\",\"коп.\")","v":"Чотири тисячі сімсот сімдесят шість грн. 37 коп."},"в т.ч.ПДВ-",{"$f":"C6/6","v":796.0609165578968}]
["10.11.1 М'ясо великої рогатої худоби,свиней,овець,кіз,коней та ін..тварин родини конячих,свіже чиа охолоджене(15111000-9 М'ясо великої рогатої худоби родини бикових(яловичина)",2230,156891.70278273869,{"$f":"SUMINWORDS(C7,\"грн.\",\"коп.\")","v":"Сто п'ятдесят шість тисяч вісімсот дев'яносто одна грн. 70 коп."},"в т.ч.ПДВ-",{"$f":"C7/6","v":26148.617130456449}]
["10.12.1 М'ясо  свійської птиці,свіже чи охолоджене(15112000-6 М'ясо свійської птиці)",2230,62117.248614100754,{"$f":"SUMINWORDS(C8,\"грн.\",\"коп.\")","v":"Шістдесят дві тисячі сто сімнадцять грн. 25 коп."},"в т.ч.ПДВ-",10352.874769016793]
["10.12.4 Субпродукти харчові свійської птиці(15114000-0 Потрухи(печінка)",2230,17626.148849060024,{"$f":"SUMINWORDS(C9,\"грн.\",\"коп.\")","v":"Сімнадцять тисяч шістсот двадцять шість грн. 15 коп."},"в т.ч.ПДВ-",2937.6914748433373]
["10.13.1.Консерви та готові страви з м’яса,м’ясних субпродуктів чи крові (15130000-8 Мясопродукти (ковбаса,сосиски)",2230,52922.622358831846,"П'ятдесят дві тисячі дев'ятсот двадцять дві грн. 62 коп.","в т.ч.ПДВ-",8820.4370598053083]
["10.20.1 Продукція рибна,свіжа,охолоджена чи заморожена (15221000-3 Морожена риба)",2230,124562.55035310713,"Сто двадцять чотири тисячі п'ятсот шістдесят дві грн. 55 коп.","в т.ч.ПДВ-",20760.42505885119]
["01.24.1 Яблука (03222000-3 Фрукти і горіхи(яблука,апельсини,лимони,ягоди)",2230,52573.258175615803,"П'ятдесят дві тисячі п'ятсот сімдесят три грн. 26 коп.","в т.ч.ПДВ-",8762.2096959359678]
["10.39.1 Плоди та овочі,оброблені та законсервовані,крім картоплі(15331000-7 Оброблені овочі(консерви овочеві)",2230,36740.639556995935,"Тридцять шість тисяч сімсот сорок грн. 64 коп.","в т.ч.ПДВ-",6123.4399261659892]
["10.72.1 Вироби хлібобулочні,зниженої вологості,та кондитерські,борошняні,тривалого зберігання(15820000-2 Сухарі та печиво; пресерви з хлібобулочних і кондитерських виробів (печиво)",2230,12830.364333813315,"Дванадцять тисяч вісімсот тридцять грн. 36 коп.","в т.ч.ПДВ-",2138.3940556355524]
["10.71.1 Вироби  хлібобулочні,кондитерські та кулінарні,борошняні,нетривалого зберігання(15810000-9 Хлібопродукти, свіжовипечені хлібобулочні та кондитерські вироби)",2230,47347.449102783328,"Сорок сім тисяч триста сорок сім грн. 45 коп.","в т.ч.ПДВ-",7891.2415171305547]
["10.51.1 Молоко та вершки,рідинні,оброблені(15511000-3 Молоко)",2230,186971.63106387432,"Сто вісімдесят шість тисяч дев'ятсот сімдесят одна грн. 63 коп.","в т.ч.ПДВ-",31161.938510645719]
["10.51.5 Продукти молочні, інші (15550000-8 Молочні продукти різні (кефір,сметана)",2230,35296.186324763003,"Тридцять п'ять тисяч двісті дев'яносто шість грн. 19 коп.","в т.ч.ПДВ-",5882.6977207938335]
["10.51.4 Сир сичужний та кисломолочний сир(15540000-5 Сирні продукти)",2230,131743.4802142283,"Сто тридцять одна тисячa сімсот сорок три грн. 48 коп.","в т.ч.ПДВ-",21957.246702371383]
["10.32.1 Соки фруктові та овочеві (15321000-4 Фруктові соки)",2230,35148.602190059202,"Тридцять п'ять тисяч сто сорок вісім грн. 60 коп.","в т.ч.ПДВ-",5858.1003650098673]
["10.61.2 Борошно зернових і овочевих культур;їхні суміші(15612000-1 Борошно зернових та овочевих культур і супутня продукція)",2230,7758.9546096756058,"Сім тисяч сімсот п'ятдесят вісім грн. 95 коп.","в т.ч.ПДВ-",1293.159101612601]
["10.61.1 Рис напівобрушений чи повністю обрушений,або лущений чи дроблений(15614000-5 Рис оброблений)",2230,3787.9526491846254,"Три тисячі сімсот вісімдесят сім грн. 95 коп.","в т.ч.ПДВ-",631.32544153077095]
["0.81.1 Цукор-сирець,тростинний і очищений тростинний чи буряковий цукор (сахароза);меляса (15831000-2 Цукор)",2230,34040.364894276892,"Тридцять чотири тисячі сорок грн. 36 коп.","в т.ч.ПДВ-",5673.3941490461484]
["10.39.2 Плоди й горіхи,оброблені та законсервовані(15332000-4 Оброблені фрукти та горіхи(повидло,сухофрукти)",2230,22361.817578005404,"Двадцять дві тисячі триста шістдесят одна грн. 82 коп.","в т.ч.ПДВ-",3726.9695963342342]
["10.51.3 Масло вершкове та молочні пасти(15530000-2 Вершкове масло)",2230,61083.527381490909,"Шістдесят одна тисячa вісімдесят три грн. 53 коп.","в т.ч.ПДВ-",10180.587896915151]
["01.47.2 Яйця у шкаралупі свіжі (03142000-8 Продукція тваринництва (03142500-3 Яйця)",2230,46826.36035088628,"Сорок шість тисяч вісімсот двадцять шість грн. 36 коп.","в т.ч.ПДВ-",7804.3933918143803]
["10.41.5 Олії рафіновані(15421000-5 Рафіновані олії)",2230,13722.833981829952,"Тринадцять тисяч сімсот двадцять дві грн. 83 коп.","в т.ч.ПДВ-",2287.1389969716588]
["10.61.3 Крупи,крупка,гранули та інші продукти з зерна зернових культур(15613000-8 Продукція із зерна зернових культур(крупи)",2230,14311.465027823799,"Чотирнадцять тисяч триста одинадцять грн. 47 коп.","в т.ч.ПДВ-",2385.2441713039666]
["10.82.1 Какао терте,какао-масло,жири й олія,какао-порошок(15841000-5 Какао)",2230,17599.643362068953,"Сімнадцять тисяч п'ятсот дев'яносто дев'ять грн. 64 коп.","в т.ч.ПДВ-",2933.2738936781589]
["10.83.1 Чай і кава,оброблені(15860000-4 Кава, чай та супутня продукція)",2230,18438.777685975841,"Вісімнадцять тисяч чотириста тридцять вісім грн. 78 коп.","в т.ч.ПДВ-",3073.1296143293071]
["10.84.3 Сіль харчова(14410000-8 Камяна сіль)",2230,693.95482065514898,"Шістсот дев'яносто три грн. 95 коп.","в т.ч.ПДВ-",115.65913677585816]
["01.13.5 Коренеплоди та бульби їстівні з високим умістом крохмалю та інуліну(03212000-0 Картопля та сушені овочі)",2230,47537.227713909946,"Сорок сім тисяч п'ятсот тридцять сім грн. 23 коп.","в т.ч.ПДВ-",7922.8712856516577]
["01.13.4 Овочі коренеплодні,цибулинні та бульбоподібні(03221000-6 Овочі)",2230,58199.870128056122,"П'ятдесят вісім тисяч сто дев'яносто дев'ять грн. 87 коп.","в т.ч.ПДВ-",9699.9783546760209]
["43.21.1 Роботи електромонтажні(45310000-3 Електромонтажні роботи(повірка контурів заземлення)",2240,745,"Сімсот сорок п'ять грн. 0 коп.","в т.ч.ПДВ-",124.16666666666667]
["38.11.6 Послуги підприємств щодо перевезення інших безпечних відходів(90512000-9 Послуги з перевезення сміття)",2240,12701,"Дванадцять тисяч сімсот одна грн. 0 коп.","в т.ч.ПДВ-",2116.8333333333335]
["Поточний ремонт будівель (45400000-1 Завершальні будівельні роботи)",2240,21900,"Двадцять одна тисячa дев'ятсот грн. 0 коп.","в т.ч.ПДВ-",3650]
[" 36.00.2 Обробляння та розподіляння води трубопроводами(65110000-7 Розподіл води)",2272,24093.199200000006,"Двадцять чотири тисячі дев'яносто три грн. 20 коп.","в т.ч.ПДВ-",4015.5332000000012]
["37.00.1 Послуги каналізаційні(90400000-1 Послуги у сфері водовідведення)",2272,32446.800799999994,"Тридцять дві тисячі чотириста сорок шість грн. 80 коп.","в т.ч.ПДВ-",5407.8001333333323]
["35.11.1  Енергія електрична (09310000-5 Електрична енергія)",2273,124266,"Сто двадцять чотири тисячі двісті шістдесят шість грн. 0 коп.","в т.ч.ПДВ-",20711]
["61.10.1  Послуги щодо передавання даних і повідомлень(64211000-8 Послуги громадського телефонного звязку)",2240,1596,"Одна тисячa п'ятсот дев'яносто шість грн. 0 коп.","в т.ч.ПДВ-",266]
["26.51.6 Інструменти та прилади вимірювальні,контрольні та випробувальні,інші(38421000-0 Прилади для вимірювання витрати рідин і газів)",2210,1320,"Одна тисячa триста двадцять грн. 0 коп.","в т.ч.ПДВ-",220]
["91.01.1 Послуги бібліотек і архівів(92512000-3 Послуги архівів)",2240,1067,"Одна тисячa шістдесят сім грн. 0 коп.","без ПДВ"]
["71.20.1 Послуги щодо технічного випробування й аналізування(71632000-7 Послуги з технічних випробувань (повірка,атестація)",2240,1594,"Одна тисячa п'ятсот дев'яносто чотири грн. 0 коп.","в т.ч.ПДВ-",265.66666666666669]
["58.29.1 Програмне забезпечення системне на фізичних носіях(48443000-5 Пакети програмного забезпечення для бухгалтерського обліку)",2240,7392,"Сім тисяч триста дев'яносто дві грн. 0 коп.","в т.ч.ПДВ-",1232]
["85.60.1 Послуги освітянські допоміжні (80570000-0 Послуги з професійної підготовки у сфері підвищення кваліфікації)",2282,349,"Триста сорок дев'ять грн. 0 коп.","в т.ч.ПДВ-",58.166666666666664]
["31.09.1 Меблі, інші (39161000-8 Меблі для дитячого садка)",3110,44417,"Сорок чотири тисячі чотириста сімнадцять грн. 0 коп.","в т.ч.ПДВ-",7402.833333333333]
["Капітальний ремонт будівель (45000000-7 Будівельні роботи)",3132,90000,"Дев'яносто тисяч грн. 0 коп.","в т.ч.ПДВ-",15000]
[]
["Затверджений рішенням комітету з конкурсних торгів від__________№_______"]
[]
["Голова комітету з конкурсних торгів      _______________________Н.М.Борак"]
["                                                                                                (підпис)          (ініціали та прізвище)"]
["МП"]

{"sheet":"42","index":22,"n_rows":50,"n_cols":9,"rows_kept":50,"cut":false,"hidden":false,"merged":[[0,0,0,8],[1,0,1,8],[2,0,2,8],[3,2,3,5],[4,2,4,5]]}
["Додаток до річного плану закупівель на  2016 рік "]
["Дошкільний навчальний заклад № 42, 26243378 "]
["(найменування замовника,код за ЄДРПОУ)"]
["Предмет закупівлі","Код КЕКВ (для бюджетних коштів)","Очікувана вартість предмета закупівлі",null,null,null,"Процедура закупівлі","Орієнтовний початок проведення процедури закупівлі","Примітки"]
[1,2,3,null,null,null,4,5,6]
["10.73.1 Макарони,локшина,кускус і подібні борошняні вироби(15851000-8 Борошняні вироби(макарони)",2230,3098.2324914025057,{"$f":"SUMINWORDS(C6,\"грн.\",\"коп.\")","v":"Три тисячі дев'яносто вісім грн. 23 коп."},"в т.ч.ПДВ-",{"$f":"C6/6","v":516.37208190041758}]
["10.11.1 М'ясо великої рогатої худоби,свиней,овець,кіз,коней та ін..тварин родини конячих,свіже чиа охолоджене(15111000-9 М'ясо великої рогатої худоби родини бикових(яловичина)",2230,105516.2219451445,{"$f":"SUMINWORDS(C7,\"грн.\",\"коп.\")","v":"Сто п'ять тисяч п'ятсот шістнадцять грн. 22 коп."},"в т.ч.ПДВ-",{"$f":"C7/6","v":17586.036990857418}]
["10.12.1 М'ясо  свійської птиці,свіже чи охолоджене(15112000-6 М'ясо свійської птиці)",2230,40110.822021252156,{"$f":"SUMINWORDS(C8,\"грн.\",\"коп.\")","v":"Сорок тисяч сто десять грн. 82 коп."},"в т.ч.ПДВ-",6685.1370035420259]
["10.12.4 Субпродукти харчові свійської птиці(15114000-0 Потрухи(печінка)",2230,11341.763892891433,{"$f":"SUMINWORDS(C9,\"грн.\",\"коп.\")","v":"Одинадцять тисяч триста сорок одна грн. 76 коп."},"в т.ч.ПДВ-",1890.2939821485722]
["10.13.1.Консерви та готові страви з м’яса,м’ясних субпродуктів чи крові (15130000-8 Мясопродукти (ковбаса,сосиски)",2230,34053.717152090067,"Тридцять чотири тисячі п'ятдесят три грн. 72 коп.","в т.ч.ПДВ-",5675.6195253483447]
["10.20.1 Продукція рибна,свіжа,охолоджена чи заморожена (15221000-3 Морожена риба)",2230,80026.034037896112,"Вісімдесят тисяч двадцять шість грн. 3 коп.","в т.ч.ПДВ-",13337.672339649353]
["01.24.1 Яблука (03222000-3 Фрукти і горіхи(яблука,апельсини,лимони,ягоди)",2230,33808.906709154719,"Тридцять три тисячі вісімсот вісім грн. 91 коп.","в т.ч.ПДВ-",5634.8177848591195]
["10.39.1 Плоди та овочі,оброблені та законсервовані,крім картоплі(15331000-7 Оброблені овочі(консерви овочеві)",2230,23917.653434463602,"Двадцять три тисячі дев'ятсот сімнадцять грн. 65 коп.","в т.ч.ПДВ-",3986.2755724106005]
["10.72.1 Вироби хлібобулочні,зниженої вологості,та кондитерські,борошняні,тривалого зберігання(15820000-2 Сухарі та печиво; пресерви з хлібобулочних і кондитерських виробів (печиво)",2230,8185.0129780112184,"Вісім тисяч сто вісімдесят п'ять грн. 1 коп.","в т.ч.ПДВ-",1364.1688296685363]
["10.71.1 Вироби  хлібобулочні,кондитерські та кулінарні,борошняні,нетривалого зберігання(15810000-9 Хлібопродукти, свіжовипечені хлібобулочні та кондитерські вироби)",2230,30665.977164595351,"Тридцять тисяч шістсот шістдесят п'ять грн. 98 коп.","в т.ч.ПДВ-",5110.9961940992252]
["10.51.1 Молоко та вершки,рідинні,оброблені(15511000-3 Молоко)",2230,122490.72943691952,"Сто двадцять дві тисячі чотириста дев'яносто грн. 73 коп.","в т.ч.ПДВ-",20415.12157281992]
["10.51.5 Продукти молочні, інші (15550000-8 Молочні продукти різні (кефір,сметана)",2230,22878.660443221441,"Двадцять дві тисячі вісімсот сімдесят вісім грн. 66 коп.","в т.ч.ПДВ-",3813.1100738702403]
["10.51.4 Сир сичужний та кисломолочний сир(15540000-5 Сирні продукти)",2230,85799.793852818766,"Вісімдесят п'ять тисяч сімсот дев'яносто дев'ять грн. 79 коп.","в т.ч.ПДВ-",14299.965642136462]
["10.32.1 Соки фруктові та овочеві (15321000-4 Фруктові соки)",2230,22849.686052945064,"Двадцять дві тисячі вісімсот сорок дев'ять грн. 69 коп.","в т.ч.ПДВ-",3808.2810088241772]
["10.61.2 Борошно зернових і овочевих культур;їхні суміші(15612000-1 Борошно зернових та овочевих культур і супутня продукція)",2230,5017.0758175858327,"П'ять тисяч сімнадцять грн. 8 коп.","в т.ч.ПДВ-",836.17930293097209]
["10.61.1 Рис напівобрушений чи повністю обрушений,або лущений чи дроблений(15614000-5 Рис оброблений)",2230,2462.502729106237,"Дві тисячі чотириста шістдесят дві грн. 50 коп.","в т.ч.ПДВ-",410.41712151770616]
["0.81.1 Цукор-сирець,тростинний і очищений тростинний чи буряковий цукор (сахароза);меляса (15831000-2 Цукор)",2230,22192.846308337852,"Двадцять дві тисячі сто дев'яносто дві грн. 85 коп.","в т.ч.ПДВ-",3698.8077180563087]
["10.39.2 Плоди й горіхи,оброблені та законсервовані(15332000-4 Оброблені фрукти та горіхи(повидло,сухофрукти)",2230,14655.788717910915,"Чотирнадцять тисяч шістсот п'ятдесят п'ять грн. 79 коп.","в т.ч.ПДВ-",2442.6314529851525]
["10.51.3 Масло вершкове та молочні пасти(15530000-2 Вершкове масло)",2230,39443.319688069445,"Тридцять дев'ять тисяч чотириста сорок три грн. 32 коп.","в т.ч.ПДВ-",6573.8866146782411]
["01.47.2 Яйця у шкаралупі свіжі (03142000-8 Продукція тваринництва (03142500-3 Яйця)",2230,30131.001820714086,"Тридцять тисяч сто тридцять одна грн. 0 коп.","в т.ч.ПДВ-",5021.8336367856809]
["10.41.5 Олії рафіновані(15421000-5 Рафіновані олії)",2230,8901.4398337893599,"Вісім тисяч дев'ятсот одна грн. 44 коп.","в т.ч.ПДВ-",1483.5733056315601]
["10.61.3 Крупи,крупка,гранули та інші продукти з зерна зернових культур(15613000-8 Продукція із зерна зернових культур(крупи)",2230,9295.9188547029607,"Дев'ять тисяч двісті дев'яносто п'ять грн. 92 коп.","в т.ч.ПДВ-",1549.31980911716]
["10.82.1 Какао терте,какао-масло,жири й олія,какао-порошок(15841000-5 Какао)",2230,11324.708608841969,"Одинадцять тисяч триста двадцять чотири грн. 71 коп.","в т.ч.ПДВ-",1887.4514348069949]
["10.83.1 Чай і кава,оброблені(15860000-4 Кава, чай та супутня продукція)",2230,11746.047475700778,"Одинадцять тисяч сімсот сорок шість грн. 5 коп.","в т.ч.ПДВ-",1957.6745792834629]
["10.84.3 Сіль харчова(14410000-8 Камяна сіль)",2230,444.26318941255693,"Чотириста сорок чотири грн. 26 коп.","в т.ч.ПДВ-",74.043864902092821]
["01.13.5 Коренеплоди та бульби їстівні з високим умістом крохмалю та інуліну(03212000-0 Картопля та сушені овочі)",2230,30860.611101110419,"Тридцять тисяч вісімсот шістдесят грн. 61 коп.","в т.ч.ПДВ-",5143.4351835184034]
["01.13.4 Овочі коренеплодні,цибулинні та бульбоподібні(03221000-6 Овочі)",2230,37962.264781419486,"Тридцять сім тисяч дев'ятсот шістдесят дві грн. 26 коп.","в т.ч.ПДВ-",6327.0441302365807]
["43.21.1 Роботи електромонтажні(45310000-3 Електромонтажні роботи(повірка контурів заземлення)",2240,745,"Сімсот сорок п'ять грн. 0 коп.","в т.ч.ПДВ-",124.16666666666667]
["38.11.6 Послуги підприємств щодо перевезення інших безпечних відходів(90512000-9 Послуги з перевезення сміття)",2240,5214,"П'ять тисяч двісті чотирнадцять грн. 0 коп.","в т.ч.ПДВ-",869]
["64.99.1 Послуги фінансові, крім страхування та пенсійного забезпечення, інші, н.в.і.у( 66110000-4 Банківські послуги)",2240,1656,"Одна тисячa шістсот п'ятдесят шість грн. 0 коп.","без ПДВ"]
[" 36.00.2 Обробляння та розподіляння води трубопроводами(65110000-7 Розподіл води)",2272,15463.728000000003,"П'ятнадцять тисяч чотириста шістдесят три грн. 73 коп.","в т.ч.ПДВ-",2577.2880000000005]
["37.00.1 Послуги каналізаційні(90400000-1 Послуги у сфері водовідведення)",2272,29332.271999999997,"Двадцять дев'ять тисяч триста тридцять дві грн. 27 коп.","в т.ч.ПДВ-",4888.7119999999995]
["35.11.1  Енергія електрична (09310000-5 Електрична енергія)",2273,81061,"Вісімдесят одна тисячa шістдесят одна грн. 0 коп.","в т.ч.ПДВ-",13510.166666666666]
["61.10.1  Послуги щодо передавання даних і повідомлень(64211000-8 Послуги громадського телефонного звязку)",2240,1623,"Одна тисячa шістсот двадцять три грн. 0 коп.","в т.ч.ПДВ-",270.5]
["Поточний ремонт будівель (45400000-1 Завершальні будівельні роботи)",2240,85900,"Вісімдесят п'ять тисяч дев'ятсот грн. 0 коп.","в т.ч.ПДВ-",14316.666666666666]
["91.01.1 Послуги бібліотек і архівів(92512000-3 Послуги архівів)",2240,764,"Сімсот шістдесят чотири грн. 0 коп.","без ПДВ"]
["71.20.1 Послуги щодо технічного випробування й аналізування(71632000-7 Послуги з технічних випробувань (повірка,атестація)",2240,1300,"Одна тисячa триста грн. 0 коп.","в т.ч.ПДВ-",216.66666666666666]
["58.29.1 Програмне забезпечення системне на фізичних носіях(48443000-5 Пакети програмного забезпечення для бухгалтерського обліку)",2240,7392,"Сім тисяч триста дев'яносто дві грн. 0 коп.","в т.ч.ПДВ-",1232]
["31.09.1 Меблі, інші (39161000-8 Меблі для дитячого садка)",3110,13600,"Тринадцять тисяч шістсот грн. 0 коп.","в т.ч.ПДВ-",2266.6666666666665]
[]
["Затверджений рішенням комітету з конкурсних торгів від__________№_______"]
[]
["Голова комітету з конкурсних торгів      _______________________Т.С.Жаркова"]
["                                                                                                (підпис)          (ініціали та прізвище)"]
["МП"]

{"sheet":"43","index":23,"n_rows":50,"n_cols":9,"rows_kept":50,"cut":false,"hidden":false,"merged":[[0,0,0,8],[1,0,1,8],[2,0,2,8],[3,2,3,5],[4,2,4,5]]}
["Додаток до річного плану закупівель на  2016 рік "]
["Дошкільний навчальний заклад № 43,  26243361"]
["(найменування замовника,код за ЄДРПОУ)"]
["Предмет закупівлі","Код КЕКВ (для бюджетних коштів)","Очікувана вартість предмета закупівлі",null,null,null,"Процедура закупівлі","Орієнтовний початок проведення процедури закупівлі","Примітки"]
[1,2,3,null,null,null,4,5,6]
["10.73.1 Макарони,локшина,кускус і подібні борошняні вироби(15851000-8 Борошняні вироби(макарони)",2230,2151.6346454884933,{"$f":"SUMINWORDS(C6,\"грн.\",\"коп.\")","v":"Дві тисячі сто п'ятдесят одна грн. 63 коп."},"в т.ч.ПДВ-",{"$f":"C6/6","v":358.60577424808224}]
["10.11.1 М'ясо великої рогатої худоби,свиней,овець,кіз,коней та ін..тварин родини конячих,свіже чиа охолоджене(15111000-9 М'ясо великої рогатої худоби родини бикових(яловичина)",2230,73598.557783081473,{"$f":"SUMINWORDS(C7,\"грн.\",\"коп.\")","v":"Сімдесят три тисячі п'ятсот дев'яносто вісім грн. 56 коп."},"в т.ч.ПДВ-",{"$f":"C7/6","v":12266.426297180245}]
["10.12.1 М'ясо  свійської птиці,свіже чи охолоджене(15112000-6 М'ясо свійської птиці)",2230,27864.099048039538,{"$f":"SUMINWORDS(C8,\"грн.\",\"коп.\")","v":"Двадцять сім тисяч вісімсот шістдесят чотири грн. 10 коп."},"в т.ч.ПДВ-",4644.0165080065899]
["10.12.4 Субпродукти харчові свійської птиці(15114000-0 Потрухи(печінка)",2230,7880.6936131763277,{"$f":"SUMINWORDS(C9,\"грн.\",\"коп.\")","v":"Сім тисяч вісімсот вісімдесят грн. 69 коп."},"в т.ч.ПДВ-",1313.4489355293879]
["10.13.1.Консерви та готові страви з м’яса,м’ясних субпродуктів чи крові (15130000-8 Мясопродукти (ковбаса,сосиски)",2230,23661.831951341457,"Двадцять три тисячі шістсот шістдесят одна грн. 83 коп.","в т.ч.ПДВ-",3943.6386585569094]
["10.20.1 Продукція рибна,свіжа,охолоджена чи заморожена (15221000-3 Морожена риба)",2230,55610.90120622042,"П'ятдесят п'ять тисяч шістсот десять грн. 90 коп.","в т.ч.ПДВ-",9268.4835343700706]
["01.24.1 Яблука (03222000-3 Фрукти і горіхи(яблука,апельсини,лимони,ягоди)",2230,23492.644282903162,"Двадцять три тисячі чотириста дев'яносто дві грн. 64 коп.","в т.ч.ПДВ-",3915.4407138171937]
["10.39.1 Плоди та овочі,оброблені та законсервовані,крім картоплі(15331000-7 Оброблені овочі(консерви овочеві)",2230,16606.248859439576,"Шістнадцять тисяч шістсот шість грн. 25 коп.","в т.ч.ПДВ-",2767.7081432399295]
["10.72.1 Вироби хлібобулочні,зниженої вологості,та кондитерські,борошняні,тривалого зберігання(15820000-2 Сухарі та печиво; пресерви з хлібобулочних і кондитерських виробів (печиво)",2230,5690.5052481143193,"П'ять тисяч шістсот дев'яносто грн. 51 коп.","в т.ч.ПДВ-",948.41754135238659]
["10.71.1 Вироби  хлібобулочні,кондитерські та кулінарні,борошняні,нетривалого зберігання(15810000-9 Хлібопродукти, свіжовипечені хлібобулочні та кондитерські вироби)",2230,21298.758012090246,"Двадцять одна тисячa двісті дев'яносто вісім грн. 76 коп.","в т.ч.ПДВ-",3549.7930020150411]
["10.51.1 Молоко та вершки,рідинні,оброблені(15511000-3 Молоко)",2230,85011.389076841573,"Вісімдесят п'ять тисяч одинадцять грн. 39 коп.","в т.ч.ПДВ-",14168.564846140262]
["10.51.5 Продукти молочні, інші (15550000-8 Молочні продукти різні (кефір,сметана)",2230,15889.331869219928,"П'ятнадцять тисяч вісімсот вісімдесят дев'ять грн. 33 коп.","в т.ч.ПДВ-",2648.2219782033212]
["10.51.4 Сир сичужний та кисломолочний сир(15540000-5 Сирні продукти)",2230,59569.937582780964,"П'ятдесят дев'ять тисяч п'ятсот шістдесят дев'ять грн. 94 коп.","в т.ч.ПДВ-",9928.3229304634933]
["10.32.1 Соки фруктові та овочеві (15321000-4 Фруктові соки)",2230,15866.178023290577,"П'ятнадцять тисяч вісімсот шістдесят шість грн. 18 коп.","в т.ч.ПДВ-",2644.3630038817628]
["10.61.2 Борошно зернових і овочевих культур;їхні суміші(15612000-1 Борошно зернових та овочевих культур і супутня продукція)",2230,3484.9363568373842,"Три тисячі чотириста вісімдесят чотири грн. 94 коп.","в т.ч.ПДВ-",580.822726139564]
["10.61.1 Рис напівобрушений чи повністю обрушений,або лущений чи дроблений(15614000-5 Рис оброблений)",2230,1709.8924944661414,"Одна тисячa сімсот дев'ять грн. 89 коп.","в т.ч.ПДВ-",284.98208241102355]
["0.81.1 Цукор-сирець,тростинний і очищений тростинний чи буряковий цукор (сахароза);меляса (15831000-2 Цукор)",2230,15407.204266427352,"П'ятнадцять тисяч чотириста сім грн. 20 коп.","в т.ч.ПДВ-",2567.8673777378922]
["10.39.2 Плоди й горіхи,оброблені та законсервовані(15332000-4 Оброблені фрукти та горіхи(повидло,сухофрукти)",2230,10171.190225165694,"Десять тисяч сто сімдесят одна грн. 19 коп.","в т.ч.ПДВ-",1695.1983708609489]
["10.51.3 Масло вершкове та молочні пасти(15530000-2 Вершкове масло)",2230,27400.399971597122,"Двадцять сім тисяч чотириста грн. 40 коп.","в т.ч.ПДВ-",4566.7333285995201]
["01.47.2 Яйця у шкаралупі свіжі (03142000-8 Продукція тваринництва (03142500-3 Яйця)",2230,20936.178521220321,"Двадцять тисяч дев'ятсот тридцять шість грн. 18 коп.","в т.ч.ПДВ-",3489.3630868700534]
["10.41.5 Олії рафіновані(15421000-5 Рафіновані олії)",2230,6181.7976521324626,"Шість тисяч сто вісімдесят одна грн. 80 коп.","в т.ч.ПДВ-",1030.2996086887438]
["10.61.3 Крупи,крупка,гранули та інші продукти з зерна зернових культур(15613000-8 Продукція із зерна зернових культур(крупи)",2230,6455.1772472378716,"Шість тисяч чотириста п'ятдесят п'ять грн. 18 коп.","в т.ч.ПДВ-",1075.8628745396452]
["10.82.1 Какао терте,какао-масло,жири й олія,какао-порошок(15841000-5 Какао)",2230,7868.8429460888447,"Сім тисяч вісімсот шістдесят вісім грн. 84 коп.","в т.ч.ПДВ-",1311.4738243481409]
["10.83.1 Чай і кава,оброблені(15860000-4 Кава, чай та супутня продукція)",2230,8167.0359792021773,"Вісім тисяч сто шістдесят сім грн. 4 коп.","в т.ч.ПДВ-",1361.1726632003629]
["10.84.3 Сіль харчова(14410000-8 Камяна сіль)",2230,308.7951043214336,"Триста вісім грн. 80 коп.","в т.ч.ПДВ-",51.465850720238933]
["01.13.5 Коренеплоди та бульби їстівні з високим умістом крохмалю та інуліну(03212000-0 Картопля та сушені овочі)",2230,21430.676944935291,"Двадцять одна тисячa чотириста тридцять грн. 68 коп.","в т.ч.ПДВ-",3571.7794908225483]
["01.13.4 Овочі коренеплодні,цибулинні та бульбоподібні(03221000-6 Овочі)",2230,26354.16123467646,"Двадцять шість тисяч триста п'ятдесят чотири грн. 16 коп.","в т.ч.ПДВ-",4392.3602057794096]
["43.21.1 Роботи електромонтажні(45310000-3 Електромонтажні роботи(повірка контурів заземлення)",2240,745,"Сімсот сорок п'ять грн. 0 коп.","в т.ч.ПДВ-",124.16666666666667]
["38.11.6 Послуги підприємств щодо перевезення інших безпечних відходів(90512000-9 Послуги з перевезення сміття)",2240,7190,"Сім тисяч сто дев'яносто грн. 0 коп.","в т.ч.ПДВ-",1198.3333333333333]
["Капітальний ремонт будівель (45000000-7 Будівельні роботи)",3132,98000,"Дев'яносто вісім тисяч грн. 0 коп.","в т.ч.ПДВ-",16333.333333333334]
[" 36.00.2 Обробляння та розподіляння води трубопроводами(65110000-7 Розподіл води)",2272,16014.734400000003,"Шістнадцять тисяч чотирнадцять грн. 73 коп.","в т.ч.ПДВ-",2669.1224000000007]
["37.00.1 Послуги каналізаційні(90400000-1 Послуги у сфері водовідведення)",2272,15802.265599999997,"П'ятнадцять тисяч вісімсот дві грн. 27 коп.","в т.ч.ПДВ-",2633.7109333333328]
["35.11.1  Енергія електрична (09310000-5 Електрична енергія)",2273,99710,"Дев'яносто дев'ять тисяч сімсот десять грн. 0 коп.","в т.ч.ПДВ-",16618.333333333332]
["61.10.1  Послуги щодо передавання даних і повідомлень(64211000-8 Послуги громадського телефонного звязку)",2240,1640,"Одна тисячa шістсот сорок грн. 0 коп.","в т.ч.ПДВ-",273.33333333333331]
["Поточний ремонт будівель (45400000-1 Завершальні будівельні роботи)",2240,7500,"Сім тисяч п'ятсот грн. 0 коп.","в т.ч.ПДВ-",1250]
["91.01.1 Послуги бібліотек і архівів(92512000-3 Послуги архівів)",2240,527,"П'ятсот двадцять сім грн. 0 коп.","без ПДВ"]
["71.20.1 Послуги щодо технічного випробування й аналізування(71632000-7 Послуги з технічних випробувань (повірка,атестація)",2240,147,"Сто сорок сім грн. 0 коп.","в т.ч.ПДВ-",24.5]
["58.29.1 Програмне забезпечення системне на фізичних носіях(48443000-5 Пакети програмного забезпечення для бухгалтерського обліку)",2240,7392,"Сім тисяч триста дев'яносто дві грн. 0 коп.","в т.ч.ПДВ-",1232]
["28.99.3 Машини й устаткування спеціальної призначеності,н.в.і.у.(37535000-7 Каруселі,гойдалки,тири та інші атракціони)",3110,80600,"Вісімдесят тисяч шістсот грн. 0 коп.","в т.ч.ПДВ-",13433.333333333334]
[]
["Затверджений рішенням комітету з конкурсних торгів від__________№_______"]
[]
["Голова комітету з конкурсних торгів      _______________________В.Н.Юсупова"]
["                                                                                                (підпис)          (ініціали та прізвище)"]
["МП"]

{"sheet":"45","index":24,"n_rows":51,"n_cols":9,"rows_kept":51,"cut":false,"hidden":false,"merged":[[0,0,0,8],[1,0,1,8],[2,0,2,8],[3,2,3,5],[4,2,4,5]]}
["Додаток до річного плану закупівель на  2016 рік "]
["Дошкільний навчальний заклад № 45, 26244372"]
["(найменування замовника,код за ЄДРПОУ)"]
["Предмет закупівлі","Код КЕКВ (для бюджетних коштів)","Очікувана вартість предмета закупівлі",null,null,null,"Процедура закупівлі","Орієнтовний початок проведення процедури закупівлі","Примітки"]
[1,2,3,null,null,null,4,5,6]
["10.73.1 Макарони,локшина,кускус і подібні борошняні вироби(15851000-8 Борошняні вироби(макарони)",2230,2852.1764312115256,{"$f":"SUMINWORDS(C6,\"грн.\",\"коп.\")","v":"Дві тисячі вісімсот п'ятдесят дві грн. 18 коп."},"в т.ч.ПДВ-",{"$f":"C6/6","v":475.36273853525427}]
["10.11.1 М'ясо великої рогатої худоби,свиней,овець,кіз,коней та ін..тварин родини конячих,свіже чиа охолоджене(15111000-9 М'ясо великої рогатої худоби родини бикових(яловичина)",2230,94273.962699466763,{"$f":"SUMINWORDS(C7,\"грн.\",\"коп.\")","v":"Дев'яносто чотири тисячі двісті сімдесят три грн. 96 коп."},"в т.ч.ПДВ-",{"$f":"C7/6","v":15712.327116577793}]
["10.12.1 М'ясо  свійської птиці,свіже чи охолоджене(15112000-6 М'ясо свійської птиці)",2230,37393.044951850759,{"$f":"SUMINWORDS(C8,\"грн.\",\"коп.\")","v":"Тридцять сім тисяч триста дев'яносто три грн. 4 коп."},"в т.ч.ПДВ-",6232.1741586417929]
["10.12.4 Субпродукти харчові свійської птиці(15114000-0 Потрухи(печінка)",2230,10676.312850066444,{"$f":"SUMINWORDS(C9,\"грн.\",\"коп.\")","v":"Десять тисяч шістсот сімдесят шість грн. 31 коп."},"в т.ч.ПДВ-",1779.385475011074]
["10.13.1.Консерви та готові страви з м’яса,м’ясних субпродуктів чи крові (15130000-8 Мясопродукти (ковбаса,сосиски)",2230,32055.696226515287,"Тридцять дві тисячі п'ятдесят п'ять грн. 70 коп.","в т.ч.ПДВ-",5342.6160377525475]
["10.20.1 Продукція рибна,свіжа,охолоджена чи заморожена (15221000-3 Морожена риба)",2230,75655.120027120094,"Сімдесят п'ять тисяч шістсот п'ятдесят п'ять грн. 12 коп.","в т.ч.ПДВ-",12609.186671186682]
["01.24.1 Яблука (03222000-3 Фрукти і горіхи(яблука,апельсини,лимони,ягоди)",2230,31877.060155686417,"Тридцять одна тисячa вісімсот сімдесят сім грн. 6 коп.","в т.ч.ПДВ-",5312.8433592810698]
["10.39.1 Плоди та овочі,оброблені та законсервовані,крім картоплі(15331000-7 Оброблені овочі(консерви овочеві)",2230,21798.507604725026,"Двадцять одна тисячa сімсот дев'яносто вісім грн. 51 коп.","в т.ч.ПДВ-",3633.0846007875043]
["10.72.1 Вироби хлібобулочні,зниженої вологості,та кондитерські,борошняні,тривалого зберігання(15820000-2 Сухарі та печиво; пресерви з хлібобулочних і кондитерських виробів (печиво)",2230,7888.2296012091192,"Сім тисяч вісімсот вісімдесят вісім грн. 23 коп.","в т.ч.ПДВ-",1314.7049335348531]
["10.71.1 Вироби  хлібобулочні,кондитерські та кулінарні,борошняні,нетривалого зберігання(15810000-9 Хлібопродукти, свіжовипечені хлібобулочні та кондитерські вироби)",2230,28349.66032831377,"Двадцять вісім тисяч триста сорок дев'ять грн. 66 коп.","в т.ч.ПДВ-",4724.9433880522947]
["10.51.1 Молоко та вершки,рідинні,оброблені(15511000-3 Молоко)",2230,109654.76527488047,"Сто дев'ять тисяч шістсот п'ятдесят чотири грн. 77 коп.","в т.ч.ПДВ-",18275.794212480079]
["10.51.5 Продукти молочні, інші (15550000-8 Молочні продукти різні (кефір,сметана)",2230,21104.136932054455,"Двадцять одна тисячa сто чотири грн. 14 коп.","в т.ч.ПДВ-",3517.3561553424092]
["10.51.4 Сир сичужний та кисломолочний сир(15540000-5 Сирні продукти)",2230,78104.122409929769,"Сімдесят вісім тисяч сто чотири грн. 12 коп.","в т.ч.ПДВ-",13017.353734988295]
["10.32.1 Соки фруктові та овочеві (15321000-4 Фруктові соки)",2230,20905.978018513157,"Двадцять тисяч дев'ятсот п'ять грн. 98 коп.","в т.ч.ПДВ-",3484.3296697521928]
["10.61.2 Борошно зернових і овочевих культур;їхні суміші(15612000-1 Борошно зернових та овочевих культур і супутня продукція)",2230,4659.3181699975803,"Чотири тисячі шістсот п'ятдесят дев'ять грн. 32 коп.","в т.ч.ПДВ-",776.55302833293001]
["10.61.1 Рис напівобрушений чи повністю обрушений,або лущений чи дроблений(15614000-5 Рис оброблений)",2230,2253.0299893808965,"Дві тисячі двісті п'ятдесят три грн. 3 коп.","в т.ч.ПДВ-",375.5049982301494]
["0.81.1 Цукор-сирець,тростинний і очищений тростинний чи буряковий цукор (сахароза);меляса (15831000-2 Цукор)",2230,20141.965570196673,"Двадцять тисяч сто сорок одна грн. 97 коп.","в т.ч.ПДВ-",3356.9942616994454]
["10.39.2 Плоди й горіхи,оброблені та законсервовані(15332000-4 Оброблені фрукти та горіхи(повидло,сухофрукти)",2230,13105.007165078592,"Тринадцять тисяч сто п'ять грн. 1 коп.","в т.ч.ПДВ-",2184.1678608464322]
["10.51.3 Масло вершкове та молочні пасти(15530000-2 Вершкове масло)",2230,36770.770376252643,"Тридцять шість тисяч сімсот сімдесят грн. 77 коп.","в т.ч.ПДВ-",6128.4617293754409]
["01.47.2 Яйця у шкаралупі свіжі (03142000-8 Продукція тваринництва (03142500-3 Яйця)",2230,28363.136894913361,"Двадцять вісім тисяч триста шістдесят три грн. 14 коп.","в т.ч.ПДВ-",4727.1894824855599]
["10.41.5 Олії рафіновані(15421000-5 Рафіновані олії)",2230,8194.5034687466632,"Вісім тисяч сто дев'яносто чотири грн. 50 коп.","в т.ч.ПДВ-",1365.7505781244438]
["10.61.3 Крупи,крупка,гранули та інші продукти з зерна зернових культур(15613000-8 Продукція із зерна зернових культур(крупи)",2230,8525.1374537270258,"Вісім тисяч п'ятсот двадцять п'ять грн. 14 коп.","в т.ч.ПДВ-",1420.8562422878376]
["10.82.1 Какао терте,какао-масло,жири й олія,какао-порошок(15841000-5 Какао)",2230,10660.258244276869,"Десять тисяч шістсот шістдесят грн. 26 коп.","в т.ч.ПДВ-",1776.7097073794782]
["10.83.1 Чай і кава,оброблені(15860000-4 Кава, чай та супутня продукція)",2230,11364.027210265966,"Одинадцять тисяч триста шістдесят чотири грн. 3 коп.","в т.ч.ПДВ-",1894.0045350443277]
["10.84.3 Сіль харчова(14410000-8 Камяна сіль)",2230,424.07700025574405,"Чотириста двадцять чотири грн. 8 коп.","в т.ч.ПДВ-",70.679500042624014]
["01.13.5 Коренеплоди та бульби їстівні з високим умістом крохмалю та інуліну(03212000-0 Картопля та сушені овочі)",2230,28345.085348519686,"Двадцять вісім тисяч триста сорок п'ять грн. 9 коп.","в т.ч.ПДВ-",4724.1808914199473]
["01.13.4 Овочі коренеплодні,цибулинні та бульбоподібні(03221000-6 Овочі)",2230,34406.909753768443,"Тридцять чотири тисячі чотириста шість грн. 91 коп.","в т.ч.ПДВ-",5734.4849589614068]
["43.21.1 Роботи електромонтажні(45310000-3 Електромонтажні роботи(повірка контурів заземлення)",2240,745,"Сімсот сорок п'ять грн. 0 коп.","в т.ч.ПДВ-",124.16666666666667]
["38.11.6 Послуги підприємств щодо перевезення інших безпечних відходів(90512000-9 Послуги з перевезення сміття)",2240,7278,"Сім тисяч двісті сімдесят вісім грн. 0 коп.","в т.ч.ПДВ-",1213]
["02.40.1 Послуги, пов’язані з лісівництвом (77200000-2 Послуги у сфері лісівництва)(видалення сухостою)","2240",43197,"Сорок три тисячі сто дев'яносто сім грн. 0 коп.","в т.ч.ПДВ-",7199.5]
[" 36.00.2 Обробляння та розподіляння води трубопроводами(65110000-7 Розподіл води)",2272,14939.383200000002,"Чотирнадцять тисяч дев'ятсот тридцять дев'ять грн. 38 коп.","в т.ч.ПДВ-",2489.8972000000003]
["37.00.1 Послуги каналізаційні(90400000-1 Послуги у сфері водовідведення)",2272,27959.616799999996,"Двадцять сім тисяч дев'ятсот п'ятдесят дев'ять грн. 62 коп.","в т.ч.ПДВ-",4659.9361333333327]
["35.11.1  Енергія електрична (09310000-5 Електрична енергія)",2273,82627,"Вісімдесят дві тисячі шістсот двадцять сім грн. 0 коп.","в т.ч.ПДВ-",13771.166666666666]
["61.10.1  Послуги щодо передавання даних і повідомлень(64211000-8 Послуги громадського телефонного звязку)",2240,2117,"Дві тисячі сто сімнадцять грн. 0 коп.","в т.ч.ПДВ-",352.83333333333331]
["Поточний ремонт будівель (45400000-1 Завершальні будівельні роботи)",2240,38400,"Тридцять вісім тисяч чотириста грн. 0 коп.","в т.ч.ПДВ-",6400]
["91.01.1 Послуги бібліотек і архівів(92512000-3 Послуги архівів)",2240,711,"Сімсот одинадцять грн. 0 коп.","без ПДВ"]
["71.20.1 Послуги щодо технічного випробування й аналізування(71632000-7 Послуги з технічних випробувань (повірка,атестація)",2240,1594,"Одна тисячa п'ятсот дев'яносто чотири грн. 0 коп.","в т.ч.ПДВ-",265.66666666666669]
["58.29.1 Програмне забезпечення системне на фізичних носіях(48443000-5 Пакети програмного забезпечення для бухгалтерського обліку)",2240,7392,"Сім тисяч триста дев'яносто дві грн. 0 коп.","в т.ч.ПДВ-",1232]
["31.09.1 Меблі, інші (39161000-8 Меблі для дитячого садка)",3110,20400,"Двадцять тисяч чотириста грн. 0 коп.","в т.ч.ПДВ-",3400]
["85.60.1 Послуги освітянські допоміжні (80570000-0 Послуги з професійної підготовки у сфері підвищення кваліфікації)",2282,349,"Триста сорок дев'ять грн. 0 коп.","в т.ч.ПДВ-",58.166666666666664]
[]
["Затверджений рішенням комітету з конкурсних торгів від__________№_______"]
[]
["Голова комітету з конкурсних торгів      _______________________Н.І.Ягніч"]
["                                                                                                (підпис)          (ініціали та прізвище)"]
["МП"]

{"sheet":"46","index":25,"n_rows":50,"n_cols":9,"rows_kept":50,"cut":false,"hidden":false,"merged":[[0,0,0,8],[1,0,1,8],[2,0,2,8],[3,2,3,5],[4,2,4,5]]}
["Додаток до річного плану закупівель на  2016 рік "]
["Дошкільний навчальний заклад № 46, 26243941"]
["(найменування замовника,код за ЄДРПОУ)"]
["Предмет закупівлі","Код КЕКВ (для бюджетних коштів)","Очікувана вартість предмета закупівлі",null,null,null,"Процедура закупівлі","Орієнтовний початок проведення процедури закупівлі","Примітки"]
[1,2,3,null,null,null,4,5,6]
["10.73.1 Макарони,локшина,кускус і подібні борошняні вироби(15851000-8 Борошняні вироби(макарони)",2230,4416.6788756284595,{"$f":"SUMINWORDS(C6,\"грн.\",\"коп.\")","v":"Чотири тисячі чотириста шістнадцять грн. 68 коп."},"в т.ч.ПДВ-",{"$f":"C6/6","v":736.11314593807663}]
["10.11.1 М'ясо великої рогатої худоби,свиней,овець,кіз,коней та ін..тварин родини конячих,свіже чиа охолоджене(15111000-9 М'ясо великої рогатої худоби родини бикових(яловичина)",2230,148043.24001912575,{"$f":"SUMINWORDS(C7,\"грн.\",\"коп.\")","v":"Сто сорок вісім тисяч сорок три грн. 24 коп."},"в т.ч.ПДВ-",{"$f":"C7/6","v":24673.873336520959}]
["10.12.1 М'ясо  свійської птиці,свіже чи охолоджене(15112000-6 М'ясо свійської птиці)",2230,57020.391524262472,{"$f":"SUMINWORDS(C8,\"грн.\",\"коп.\")","v":"П'ятдесят сім тисяч двадцять грн. 39 коп."},"в т.ч.ПДВ-",9503.398587377078]
["10.12.4 Субпродукти харчові свійської птиці(15114000-0 Потрухи(печінка)",2230,16087.991636678693,{"$f":"SUMINWORDS(C9,\"грн.\",\"коп.\")","v":"Шістнадцять тисяч вісімдесят сім грн. 99 коп."},"в т.ч.ПДВ-",2681.3319394464488]
["10.13.1.Консерви та готові страви з м’яса,м’ясних субпродуктів чи крові (15130000-8 Мясопродукти (ковбаса,сосиски)",2230,48304.295691080384,"Сорок вісім тисяч триста чотири грн. 30 коп.","в т.ч.ПДВ-",8050.7159485133971]
["10.20.1 Продукція рибна,свіжа,охолоджена чи заморожена (15221000-3 Морожена риба)",2230,113404.17844063128,"Сто тринадцять тисяч чотириста чотири грн. 18 коп.","в т.ч.ПДВ-",18900.69640677188]
["01.24.1 Яблука (03222000-3 Фрукти і горіхи(яблука,апельсини,лимони,ягоди)",2230,47939.370702721993,"Сорок сім тисяч дев'ятсот тридцять дев'ять грн. 37 коп.","в т.ч.ПДВ-",7989.8951171203325]
["10.39.1 Плоди та овочі,оброблені та законсервовані,крім картоплі(15331000-7 Оброблені овочі(консерви овочеві)",2230,34170.663007672381,"Тридцять чотири тисячі сто сімдесят грн. 66 коп.","в т.ч.ПДВ-",5695.1105012787302]
["10.72.1 Вироби хлібобулочні,зниженої вологості,та кондитерські,борошняні,тривалого зберігання(15820000-2 Сухарі та печиво; пресерви з хлібобулочних і кондитерських виробів (печиво)",2230,11547.665223873295,"Одинадцять тисяч п'ятсот сорок сім грн. 67 коп.","в т.ч.ПДВ-",1924.6108706455491]
["10.71.1 Вироби  хлібобулочні,кондитерські та кулінарні,борошняні,нетривалого зберігання(15810000-9 Хлібопродукти, свіжовипечені хлібобулочні та кондитерські вироби)",2230,43675.199017429484,"Сорок три тисячі шістсот сімдесят п'ять грн. 20 коп.","в т.ч.ПДВ-",7279.1998362382474]
["10.51.1 Молоко та вершки,рідинні,оброблені(15511000-3 Молоко)",2230,175676.24681427429,"Сто сімдесят п'ять тисяч шістсот сімдесят шість грн. 25 коп.","в т.ч.ПДВ-",29279.374469045713]
["10.51.5 Продукти молочні, інші (15550000-8 Молочні продукти різні (кефір,сметана)",2230,32600.148023292302,"Тридцять дві тисячі шістсот грн. 15 коп.","в т.ч.ПДВ-",5433.3580038820501]
["10.51.4 Сир сичужний та кисломолочний сир(15540000-5 Сирні продукти)",2230,122612.35204567347,"Сто двадцять дві тисячі шістсот дванадцять грн. 35 коп.","в т.ч.ПДВ-",20435.392007612245]
["10.32.1 Соки фруктові та овочеві (15321000-4 Фруктові соки)",2230,32617.321597535825,"Тридцять дві тисячі шістсот сімнадцять грн. 32 коп.","в т.ч.ПДВ-",5436.2202662559712]
["10.61.2 Борошно зернових і овочевих культур;їхні суміші(15612000-1 Борошно зернових та овочевих культур і супутня продукція)",2230,7138.2065395466934,"Сім тисяч сто тридцять вісім грн. 21 коп.","в т.ч.ПДВ-",1189.701089924449]
["10.61.1 Рис напівобрушений чи повністю обрушений,або лущений чи дроблений(15614000-5 Рис оброблений)",2230,3515.1574189666126,"Три тисячі п'ятсот п'ятнадцять грн. 16 коп.","в т.ч.ПДВ-",585.85956982776872]
["0.81.1 Цукор-сирець,тростинний і очищений тростинний чи буряковий цукор (сахароза);меляса (15831000-2 Цукор)",2230,31735.300499825258,"Тридцять одна тисячa сімсот тридцять п'ять грн. 30 коп.","в т.ч.ПДВ-",5289.2167499708767]
["10.39.2 Плоди й горіхи,оброблені та законсервовані(15332000-4 Оброблені фрукти та горіхи(повидло,сухофрукти)",2230,21024.446343805081,"Двадцять одна тисячa двадцять чотири грн. 45 коп.","в т.ч.ПДВ-",3504.07439063418]
["10.51.3 Масло вершкове та молочні пасти(15530000-2 Вершкове масло)",2230,56071.489396022109,"П'ятдесят шість тисяч сімдесят одна грн. 49 коп.","в т.ч.ПДВ-",9345.2482326703521]
["01.47.2 Яйця у шкаралупі свіжі (03142000-8 Продукція тваринництва (03142500-3 Яйця)",2230,42740.027906965952,"Сорок дві тисячі сімсот сорок грн. 3 коп.","в т.ч.ПДВ-",7123.3379844943256]
["10.41.5 Олії рафіновані(15421000-5 Рафіновані олії)",2230,12689.429016599775,"Дванадцять тисяч шістсот вісімдесят дев'ять грн. 43 коп.","в т.ч.ПДВ-",2114.9048360999627]
["10.61.3 Крупи,крупка,гранули та інші продукти з зерна зернових культур(15613000-8 Продукція із зерна зернових культур(крупи)",2230,13262.866052480194,"Тринадцять тисяч двісті шістдесят дві грн. 87 коп.","в т.ч.ПДВ-",2210.4776754133659]
["10.82.1 Какао терте,какао-масло,жири й олія,какао-порошок(15841000-5 Какао)",2230,16063.799168052108,"Шістнадцять тисяч шістдесят три грн. 80 коп.","в т.ч.ПДВ-",2677.2998613420182]
["10.83.1 Чай і кава,оброблені(15860000-4 Кава, чай та супутня продукція)",2230,16556.716208465572,"Шістнадцять тисяч п'ятсот п'ятдесят шість грн. 72 коп.","в т.ч.ПДВ-",2759.4527014109285]
["10.84.3 Сіль харчова(14410000-8 Камяна сіль)",2230,628.17047380771203,"Шістсот двадцять вісім грн. 17 коп.","в т.ч.ПДВ-",104.695078967952]
["01.13.5 Коренеплоди та бульби їстівні з високим умістом крохмалю та інуліну(03212000-0 Картопля та сушені овочі)",2230,44015.31971861529,"Сорок чотири тисячі п'ятнадцять грн. 32 коп.","в т.ч.ПДВ-",7335.886619769215]
["01.13.4 Овочі коренеплодні,цибулинні та бульбоподібні(03221000-6 Овочі)",2230,54301.328691997165,"П'ятдесят чотири тисячі триста одна грн. 33 коп.","в т.ч.ПДВ-",9050.2214486661942]
["43.21.1 Роботи електромонтажні(45310000-3 Електромонтажні роботи(повірка контурів заземлення)",2240,745,"Сімсот сорок п'ять грн. 0 коп.","в т.ч.ПДВ-",124.16666666666667]
["38.11.6 Послуги підприємств щодо перевезення інших безпечних відходів(90512000-9 Послуги з перевезення сміття)",2240,5540,"П'ять тисяч п'ятсот сорок грн. 0 коп.","в т.ч.ПДВ-",923.33333333333337]
["Капітальний ремонт будівель (45000000-7 Будівельні роботи)",3132,375000,"Триста сімдесят п'ять тисяч грн. 0 коп.","в т.ч.ПДВ-",62500]
[" 36.00.2 Обробляння та розподіляння води трубопроводами(65110000-7 Розподіл води)",2272,34660.080000000009,"Тридцять чотири тисячі шістсот шістдесят грн. 8 коп.","в т.ч.ПДВ-",5776.6800000000012]
["37.00.1 Послуги каналізаційні(90400000-1 Послуги у сфері водовідведення)",2272,30598.919999999991,"Тридцять тисяч п'ятсот дев'яносто вісім грн. 92 коп.","в т.ч.ПДВ-",5099.8199999999988]
["35.11.1  Енергія електрична (09310000-5 Електрична енергія)",2273,134834,"Сто тридцять чотири тисячі вісімсот тридцять чотири грн. 0 коп.","в т.ч.ПДВ-",22472.333333333332]
["61.10.1  Послуги щодо передавання даних і повідомлень(64211000-8 Послуги громадського телефонного звязку)",2240,1593,"Одна тисячa п'ятсот дев'яносто три грн. 0 коп.","в т.ч.ПДВ-",265.5]
["Поточний ремонт будівель (45400000-1 Завершальні будівельні роботи)",2240,39000,"Тридцять дев'ять тисяч грн. 0 коп.","в т.ч.ПДВ-",6500]
["91.01.1 Послуги бібліотек і архівів(92512000-3 Послуги архівів)",2240,1093,"Одна тисячa дев'яносто три грн. 0 коп.","без ПДВ"]
["71.20.1 Послуги щодо технічного випробування й аналізування(71632000-7 Послуги з технічних випробувань (повірка,атестація)",2240,1300,"Одна тисячa триста грн. 0 коп.","в т.ч.ПДВ-",216.66666666666666]
["58.29.1 Програмне забезпечення системне на фізичних носіях(48443000-5 Пакети програмного забезпечення для бухгалтерського обліку)",2240,7392,"Сім тисяч триста дев'яносто дві грн. 0 коп.","в т.ч.ПДВ-",1232]
["27.51.2 Прилади електричні побутові,інші,н.в.і.у.(39711000-9 Електричні побутові прилади для обробки продуктів харчування)",3110,134200,"Сто тридцять чотири тисячі двісті грн. 0 коп.","в т.ч.ПДВ-",22366.666666666668]
[]
["Затверджений рішенням комітету з конкурсних торгів від__________№_______"]
[]
["Голова комітету з конкурсних торгів      _______________________Н.М.Кірєєва"]
["                                                                                                (підпис)          (ініціали та прізвище)"]
["МП"]

{"sheet":"47","index":26,"n_rows":51,"n_cols":9,"rows_kept":51,"cut":false,"hidden":false,"merged":[[0,0,0,8],[1,0,1,8],[2,0,2,8],[3,2,3,5],[4,2,4,5]]}
["Додаток до річного плану закупівель на  2016 рік "]
["Дошкільний навчальний заклад № 47,  26243601"]
["(найменування замовника,код за ЄДРПОУ)"]
["Предмет закупівлі","Код КЕКВ (для бюджетних коштів)","Очікувана вартість предмета закупівлі",null,null,null,"Процедура закупівлі","Орієнтовний початок проведення процедури закупівлі","Примітки"]
[1,2,3,null,null,null,4,5,6]
["10.73.1 Макарони,локшина,кускус і подібні борошняні вироби(15851000-8 Борошняні вироби(макарони)",2230,2512.6188091602839,{"$f":"SUMINWORDS(C6,\"грн.\",\"коп.\")","v":"Дві тисячі п'ятсот дванадцять грн. 62 коп."},"в т.ч.ПДВ-",{"$f":"C6/6","v":418.76980152671399}]
["10.11.1 М'ясо великої рогатої худоби,свиней,овець,кіз,коней та ін..тварин родини конячих,свіже чиа охолоджене(15111000-9 М'ясо великої рогатої худоби родини бикових(яловичина)",2230,85029.637381805864,{"$f":"SUMINWORDS(C7,\"грн.\",\"коп.\")","v":"Вісімдесят п'ять тисяч двадцять дев'ять грн. 64 коп."},"в т.ч.ПДВ-",{"$f":"C7/6","v":14171.606230300977}]
["10.12.1 М'ясо  свійської птиці,свіже чи охолоджене(15112000-6 М'ясо свійської птиці)",2230,32835.4390167522,{"$f":"SUMINWORDS(C8,\"грн.\",\"коп.\")","v":"Тридцять дві тисячі вісімсот тридцять п'ять грн. 44 коп."},"в т.ч.ПДВ-",5472.5731694587002]
["10.12.4 Субпродукти харчові свійської птиці(15114000-0 Потрухи(печінка)",2230,9352.012382295452,{"$f":"SUMINWORDS(C9,\"грн.\",\"коп.\")","v":"Дев'ять тисяч триста п'ятдесят дві грн. 1 коп."},"в т.ч.ПДВ-",1558.6687303825754]
["10.13.1.Консерви та готові страви з м’яса,м’ясних субпродуктів чи крові (15130000-8 Мясопродукти (ковбаса,сосиски)",2230,28079.475774410905,"Двадцять вісім тисяч сімдесят дев'ять грн. 48 коп.","в т.ч.ПДВ-",4679.9126290684844]
["10.20.1 Продукція рибна,свіжа,охолоджена чи заморожена (15221000-3 Морожена риба)",2230,66198.962513724706,"Шістдесят шість тисяч сто дев'яносто вісім грн. 96 коп.","в т.ч.ПДВ-",11033.160418954118]
["01.24.1 Яблука (03222000-3 Фрукти і горіхи(яблука,апельсини,лимони,ягоди)",2230,27911.52799641875,"Двадцять сім тисяч дев'ятсот одинадцять грн. 53 коп.","в т.ч.ПДВ-",4651.9213327364587]
["10.39.1 Плоди та овочі,оброблені та законсервовані,крім картоплі(15331000-7 Оброблені овочі(консерви овочеві)",2230,19253.071135620365,"Дев'ятнадцять тисяч двісті п'ятдесят три грн. 7 коп.","в т.ч.ПДВ-",3208.8451892700609]
["10.72.1 Вироби хлібобулочні,зниженої вологості,та кондитерські,борошняні,тривалого зберігання(15820000-2 Сухарі та печиво; пресерви з хлібобулочних і кондитерських виробів (печиво)",2230,6869.1527934681599,"Шість тисяч вісімсот шістдесят дев'ять грн. 15 коп.","в т.ч.ПДВ-",1144.8587989113601]
["10.71.1 Вироби  хлібобулочні,кондитерські та кулінарні,борошняні,нетривалого зберігання(15810000-9 Хлібопродукти, свіжовипечені хлібобулочні та кондитерські вироби)",2230,24947.608274473219,"Двадцять чотири тисячі дев'ятсот сорок сім грн. 61 коп.","в т.ч.ПДВ-",4157.9347124122032]
["10.51.1 Молоко та вершки,рідинні,оброблені(15511000-3 Молоко)",2230,97303.684906915194,"Дев'яносто сім тисяч триста три грн. 68 коп.","в т.ч.ПДВ-",16217.280817819199]
["10.51.5 Продукти молочні, інші (15550000-8 Молочні продукти різні (кефір,сметана)",2230,18582.033552107761,"Вісімнадцять тисяч п'ятсот вісімдесят дві грн. 3 коп.","в т.ч.ПДВ-",3097.0055920179602]
["10.51.4 Сир сичужний та кисломолочний сир(15540000-5 Сирні продукти)",2230,69005.23084075404,"Шістдесят дев'ять тисяч п'ять грн. 23 коп.","в т.ч.ПДВ-",11500.87180679234]
["10.32.1 Соки фруктові та овочеві (15321000-4 Фруктові соки)",2230,18446.28504909802,"Вісімнадцять тисяч чотириста сорок шість грн. 29 коп.","в т.ч.ПДВ-",3074.3808415163367]
["10.61.2 Борошно зернових і овочевих культур;їхні суміші(15612000-1 Борошно зернових та овочевих культур і супутня продукція)",2230,4095.4056341290507,"Чотири тисячі дев'яносто п'ять грн. 41 коп.","в т.ч.ПДВ-",682.56760568817515]
["10.61.1 Рис напівобрушений чи повністю обрушений,або лущений чи дроблений(15614000-5 Рис оброблений)",2230,1987.9497324393567,"Одна тисячa дев'ятсот вісімдесят сім грн. 95 коп.","в т.ч.ПДВ-",331.32495540655947]
["0.81.1 Цукор-сирець,тростинний і очищений тростинний чи буряковий цукор (сахароза);меляса (15831000-2 Цукор)",2230,17809.29915458355,"Сімнадцять тисяч вісімсот дев'ять грн. 30 коп.","в т.ч.ПДВ-",2968.2165257639249]
["10.39.2 Плоди й горіхи,оброблені та законсервовані(15332000-4 Оброблені фрукти та горіхи(повидло,сухофрукти)",2230,11632.398486955999,"Одинадцять тисяч шістсот тридцять дві грн. 40 коп.","в т.ч.ПДВ-",1938.7330811593331]
["10.51.3 Масло вершкове та молочні пасти(15530000-2 Вершкове масло)",2230,32289.009623130001,"Тридцять дві тисячі двісті вісімдесят дев'ять грн. 1 коп.","в т.ч.ПДВ-",5381.5016038550002]
["01.47.2 Яйця у шкаралупі свіжі (03142000-8 Продукція тваринництва (03142500-3 Яйця)",2230,24844.945176023004,"Двадцять чотири тисячі вісімсот сорок чотири грн. 95 коп.","в т.ч.ПДВ-",4140.824196003834]
["10.41.5 Олії рафіновані(15421000-5 Рафіновані олії)",2230,7218.9305408978989,"Сім тисяч двісті вісімнадцять грн. 93 коп.","в т.ч.ПДВ-",1203.1550901496498]
["10.61.3 Крупи,крупка,гранули та інші продукти з зерна зернових культур(15613000-8 Продукція із зерна зернових культур(крупи)",2230,7517.5625443771814,"Сім тисяч п'ятсот сімнадцять грн. 56 коп.","в т.ч.ПДВ-",1252.9270907295302]
["10.82.1 Какао терте,какао-масло,жири й олія,какао-порошок(15841000-5 Какао)",2230,9337.9492057807201,"Дев'ять тисяч триста тридцять сім грн. 95 коп.","в т.ч.ПДВ-",1556.32486763012]
["10.83.1 Чай і кава,оброблені(15860000-4 Кава, чай та супутня продукція)",2230,9886.424549211335,"Дев'ять тисяч вісімсот вісімдесят шість грн. 42 коп.","в т.ч.ПДВ-",1647.7374248685558]
["10.84.3 Сіль харчова(14410000-8 Камяна сіль)",2230,370.17236979392004,"Триста сімдесят грн. 17 коп.","в т.ч.ПДВ-",61.695394965653342]
["01.13.5 Коренеплоди та бульби їстівні з високим умістом крохмалю та інуліну(03212000-0 Картопля та сушені овочі)",2230,24985.173741602197,"Двадцять чотири тисячі дев'ятсот вісімдесят п'ять грн. 17 коп.","в т.ч.ПДВ-",4164.1956236003662]
["01.13.4 Овочі коренеплодні,цибулинні та бульбоподібні(03221000-6 Овочі)",2230,30433.038432265013,"Тридцять тисяч чотириста тридцять три грн. 4 коп.","в т.ч.ПДВ-",5072.1730720441692]
["43.21.1 Роботи електромонтажні(45310000-3 Електромонтажні роботи(повірка контурів заземлення)",2240,745,"Сімсот сорок п'ять грн. 0 коп.","в т.ч.ПДВ-",124.16666666666667]
["38.11.6 Послуги підприємств щодо перевезення інших безпечних відходів(90512000-9 Послуги з перевезення сміття)",2240,7260,"Сім тисяч двісті шістдесят грн. 0 коп.","в т.ч.ПДВ-",1210]
[" 36.00.2 Обробляння та розподіляння води трубопроводами(65110000-7 Розподіл води)",2272,22893.427200000006,"Двадцять дві тисячі вісімсот дев'яносто три грн. 43 коп.","в т.ч.ПДВ-",3815.5712000000008]
["37.00.1 Послуги каналізаційні(90400000-1 Послуги у сфері водовідведення)",2272,19920.572799999994,"Дев'ятнадцять тисяч дев'ятсот двадцять грн. 57 коп.","в т.ч.ПДВ-",3320.0954666666657]
["35.11.1  Енергія електрична (09310000-5 Електрична енергія)",2273,79492,"Сімдесят дев'ять тисяч чотириста дев'яносто дві грн. 0 коп.","в т.ч.ПДВ-",13248.666666666666]
["61.10.1  Послуги щодо передавання даних і повідомлень(64211000-8 Послуги громадського телефонного звязку)",2240,1591,"Одна тисячa п'ятсот дев'яносто одна грн. 0 коп.","в т.ч.ПДВ-",265.16666666666669]
["Поточний ремонт будівель (45400000-1 Завершальні будівельні роботи)",2240,53100,"П'ятдесят три тисячі сто грн. 0 коп.","в т.ч.ПДВ-",8850]
["91.01.1 Послуги бібліотек і архівів(92512000-3 Послуги архівів)",2240,606,"Шістсот шість грн. 0 коп.","без ПДВ"]
["58.29.1 Програмне забезпечення системне на фізичних носіях(48443000-5 Пакети програмного забезпечення для бухгалтерського обліку)",2240,7392,"Сім тисяч триста дев'яносто дві грн. 0 коп.","в т.ч.ПДВ-",1232]
["25.29.1 Цистерни,резервуари та вмістища металеві,інші(34221000-2 Пересувні контейнери спеціального призначення(Контейнер для сміття)",3110,7000,"Сім тисяч грн. 0 коп.","в т.ч.ПДВ-",1166.6666666666667]
["31.09.1 Меблі, інші (39161000-8 Меблі для дитячого садка)",3110,88400,"Вісімдесят вісім тисяч чотириста грн. 0 коп.","в т.ч.ПДВ-",14733.333333333334]
["26.51.6 Інструменти та прилади вимірювальні,контрольні та випробувальні,інші(38421000-0 Прилади для вимірювання витрати рідин і газів)",3110,13395,"Тринадцять тисяч триста дев'яносто п'ять грн. 0 коп.","в т.ч.ПДВ-",2232.5]
["28.99.3 Машини й устаткування спеціальної призначеності,н.в.і.у.(37535000-7 Каруселі,гойдалки,тири та інші атракціони)",3110,77450,"Сімдесят сім тисяч чотириста п'ятдесят грн. 0 коп.","в т.ч.ПДВ-",12908.333333333334]
[]
["Затверджений рішенням комітету з конкурсних торгів від__________№_______"]
[]
["Голова комітету з конкурсних торгів      _______________________В.М.Кудряшова"]
["                                                                                                (підпис)          (ініціали та прізвище)"]
["МП"]

{"sheet":"50","index":27,"n_rows":55,"n_cols":9,"rows_kept":55,"cut":false,"hidden":false,"merged":[[42,0,43,0],[0,0,0,8],[1,0,1,8],[2,0,2,8],[3,2,3,5],[4,2,4,5]]}
["Додаток до річного плану закупівель на  2016 рік "]
["Дошкільний навчальний заклад № 50, 37028304"]
["(найменування замовника,код за ЄДРПОУ)"]
["Предмет закупівлі","Код КЕКВ (для бюджетних коштів)","Очікувана вартість предмета закупівлі",null,null,null,"Процедура закупівлі","Орієнтовний початок проведення процедури закупівлі","Примітки"]
[1,2,3,null,null,null,4,5,6]
["10.73.1 Макарони,локшина,кускус і подібні борошняні вироби(15851000-8 Борошняні вироби(макарони)",2230,2117.0352497612075,{"$f":"SUMINWORDS(C6,\"грн.\",\"коп.\")","v":"Дві тисячі сто сімнадцять грн. 4 коп."},"в т.ч.ПДВ-",{"$f":"C6/6","v":352.83920829353457}]
["10.11.1 М'ясо великої рогатої худоби,свиней,овець,кіз,коней та ін..тварин родини конячих,свіже чиа охолоджене(15111000-9 М'ясо великої рогатої худоби родини бикових(яловичина)",2230,69149.845861491936,{"$f":"SUMINWORDS(C7,\"грн.\",\"коп.\")","v":"Шістдесят дев'ять тисяч сто сорок дев'ять грн. 85 коп."},"в т.ч.ПДВ-",{"$f":"C7/6","v":11524.974310248655}]
["10.12.1 М'ясо  свійської птиці,свіже чи охолоджене(15112000-6 М'ясо свійської птиці)",2230,27522.272962588933,{"$f":"SUMINWORDS(C8,\"грн.\",\"коп.\")","v":"Двадцять сім тисяч п'ятсот двадцять дві грн. 27 коп."},"в т.ч.ПДВ-",4587.0454937648219]
["10.12.4 Субпродукти харчові свійської птиці(15114000-0 Потрухи(печінка)",2230,7807.4109585306469,{"$f":"SUMINWORDS(C9,\"грн.\",\"коп.\")","v":"Сім тисяч вісімсот сім грн. 41 коп."},"в т.ч.ПДВ-",1301.2351597551078]
["10.13.1.Консерви та готові страви з м’яса,м’ясних субпродуктів чи крові (15130000-8 Мясопродукти (ковбаса,сосиски)",2230,23441.800321603292,"Двадцять три тисячі чотириста сорок одна грн. 80 коп.","в т.ч.ПДВ-",3906.9667202672154]
["10.20.1 Продукція рибна,свіжа,охолоджена чи заморожена (15221000-3 Морожена риба)",2230,55167.423889307669,"П'ятдесят п'ять тисяч сто шістдесят сім грн. 42 коп.","в т.ч.ПДВ-",9194.5706482179448]
["01.24.1 Яблука (03222000-3 Фрукти і горіхи(яблука,апельсини,лимони,ягоди)",2230,23285.947750747277,"Двадцять три тисячі двісті вісімдесят п'ять грн. 95 коп.","в т.ч.ПДВ-",3880.9912917912129]
["10.39.1 Плоди та овочі,оброблені та законсервовані,крім картоплі(15331000-7 Оброблені овочі(консерви овочеві)",2230,16289.321852830322,"Шістнадцять тисяч двісті вісімдесят дев'ять грн. 32 коп.","в т.ч.ПДВ-",2714.8869754717202]
["10.72.1 Вироби хлібобулочні,зниженої вологості,та кондитерські,борошняні,тривалого зберігання(15820000-2 Сухарі та печиво; пресерви з хлібобулочних і кондитерських виробів (печиво)",2230,5679.2357649840378,"П'ять тисяч шістсот сімдесят дев'ять грн. 24 коп.","в т.ч.ПДВ-",946.53929416400626]
["10.71.1 Вироби  хлібобулочні,кондитерські та кулінарні,борошняні,нетривалого зберігання(15810000-9 Хлібопродукти, свіжовипечені хлібобулочні та кондитерські вироби)",2230,20983.319328221784,"Двадцять тисяч дев'ятсот вісімдесят три грн. 32 коп.","в т.ч.ПДВ-",3497.2198880369638]
["10.51.1 Молоко та вершки,рідинні,оброблені(15511000-3 Молоко)",2230,82938.432709446337,"Вісімдесят дві тисячі дев'ятсот тридцять вісім грн. 43 коп.","в т.ч.ПДВ-",13823.072118241056]
["10.51.5 Продукти молочні, інші (15550000-8 Молочні продукти різні (кефір,сметана)",2230,15643.467054608185,"П'ятнадцять тисяч шістсот сорок три грн. 47 коп.","в т.ч.ПДВ-",2607.2445091013642]
["10.51.4 Сир сичужний та кисломолочний сир(15540000-5 Сирні продукти)",2230,58411.778541186344,"П'ятдесят вісім тисяч чотириста одинадцять грн. 78 коп.","в т.ч.ПДВ-",9735.2964235310574]
["10.32.1 Соки фруктові та овочеві (15321000-4 Фруктові соки)",2230,15581.735121795811,"П'ятнадцять тисяч п'ятсот вісімдесят одна грн. 74 коп.","в т.ч.ПДВ-",2596.9558536326354]
["10.61.2 Борошно зернових і овочевих культур;їхні суміші(15612000-1 Борошно зернових та овочевих культур і супутня продукція)",2230,3438.1387981328849,"Три тисячі чотириста тридцять вісім грн. 14 коп.","в т.ч.ПДВ-",573.02313302214748]
["10.61.1 Рис напівобрушений чи повністю обрушений,або лущений чи дроблений(15614000-5 Рис оброблений)",2230,1679.2381817730586,"Одна тисячa шістсот сімдесят дев'ять грн. 24 коп.","в т.ч.ПДВ-",279.87303029550975]
["0.81.1 Цукор-сирець,тростинний і очищений тростинний чи буряковий цукор (сахароза);меляса (15831000-2 Цукор)",2230,15093.950697980057,"П'ятнадцять тисяч дев'яносто три грн. 95 коп.","в т.ч.ПДВ-",2515.6584496633427]
["10.39.2 Плоди й горіхи,оброблені та законсервовані(15332000-4 Оброблені фрукти та горіхи(повидло,сухофрукти)",2230,9919.7661058082413,"Дев'ять тисяч дев'ятсот дев'ятнадцять грн. 77 коп.","в т.ч.ПДВ-",1653.2943509680401]
["10.51.3 Масло вершкове та молочні пасти(15530000-2 Вершкове масло)",2230,27064.262368657804,"Двадцять сім тисяч шістдесят чотири грн. 26 коп.","в т.ч.ПДВ-",4510.7103947763007]
["01.47.2 Яйця у шкаралупі свіжі (03142000-8 Продукція тваринництва (03142500-3 Яйця)",2230,20741.492772036301,"Двадцять тисяч сімсот сорок одна грн. 49 коп.","в т.ч.ПДВ-",3456.9154620060503]
["10.41.5 Олії рафіновані(15421000-5 Рафіновані олії)",2230,6082.3911549743098,"Шість тисяч вісімдесят дві грн. 39 коп.","в т.ч.ПДВ-",1013.7318591623849]
["10.61.3 Крупи,крупка,гранули та інші продукти з зерна зернових культур(15613000-8 Продукція із зерна зернових культур(крупи)",2230,6343.9890882035288,"Шість тисяч триста сорок три грн. 99 коп.","в т.ч.ПДВ-",1057.3315147005881]
["10.82.1 Какао терте,какао-масло,жири й олія,какао-порошок(15841000-5 Какао)",2230,7795.6704909238324,"Сім тисяч сімсот дев'яносто п'ять грн. 67 коп.","в т.ч.ПДВ-",1299.278415153972]
["10.83.1 Чай і кава,оброблені(15860000-4 Кава, чай та супутня продукція)",2230,8160.8186223709999,"Вісім тисяч сто шістдесят грн. 82 коп.","в т.ч.ПДВ-",1360.1364370618332]
["10.84.3 Сіль харчова(14410000-8 Камяна сіль)",2230,307.25844181190411,"Триста сім грн. 26 коп.","в т.ч.ПДВ-",51.20974030198402]
["01.13.5 Коренеплоди та бульби їстівні з високим умістом крохмалю та інуліну(03212000-0 Картопля та сушені овочі)",2230,21071.380524599725,"Двадцять одна тисячa сімдесят одна грн. 38 коп.","в т.ч.ПДВ-",3511.8967540999543]
["01.13.4 Овочі коренеплодні,цибулинні та бульбоподібні(03221000-6 Овочі)",2230,25807.615220260916,"Двадцять п'ять тисяч вісімсот сім грн. 62 коп.","в т.ч.ПДВ-",4301.269203376819]
["43.21.1 Роботи електромонтажні(45310000-3 Електромонтажні роботи(повірка контурів заземлення)",2240,745,"Сімсот сорок п'ять грн. 0 коп.","в т.ч.ПДВ-",124.16666666666667]
["38.11.6 Послуги підприємств щодо перевезення інших безпечних відходів(90512000-9 Послуги з перевезення сміття)",2240,9167,"Дев'ять тисяч сто шістдесят сім грн. 0 коп.","в т.ч.ПДВ-",1527.8333333333333]
["85.60.1 Послуги освітянські допоміжні (80570000-0 Послуги з професійної підготовки у сфері підвищення кваліфікації)",2282,349,"Триста сорок дев'ять грн. 0 коп.","в т.ч.ПДВ-",58.166666666666664]
[" 36.00.2 Обробляння та розподіляння води трубопроводами(65110000-7 Розподіл води)",2272,16263.576000000003,"Шістнадцять тисяч двісті шістдесят три грн. 58 коп.","в т.ч.ПДВ-",2710.5960000000005]
["37.00.1 Послуги каналізаційні(90400000-1 Послуги у сфері водовідведення)",2272,13587.423999999997,"Тринадцять тисяч п'ятсот вісімдесят сім грн. 42 коп.","в т.ч.ПДВ-",2264.5706666666661]
["35.11.1  Енергія електрична (09310000-5 Електрична енергія)",2273,114551,"Сто чотирнадцять тисяч п'ятсот п'ятдесят одна грн. 0 коп.","в т.ч.ПДВ-",19091.833333333332]
["61.10.1  Послуги щодо передавання даних і повідомлень(64211000-8 Послуги громадського телефонного звязку)",2240,2061,"Дві тисячі шістдесят одна грн. 0 коп.","в т.ч.ПДВ-",343.5]
["91.01.1 Послуги бібліотек і архівів(92512000-3 Послуги архівів)",2240,461,"Чотириста шістдесят одна грн. 0 коп.","без ПДВ"]
["58.29.1 Програмне забезпечення системне на фізичних носіях(48443000-5 Пакети програмного забезпечення для бухгалтерського обліку)",2240,7392,"Сім тисяч триста дев'яносто дві грн. 0 коп.","в т.ч.ПДВ-",1232]
["13.93.1 Килими та килимові покриви(39533000-7 Килими)",3110,72000,"Сімдесят дві тисячі грн. 0 коп.","в т.ч.ПДВ-",12000]
["31.09.1 Меблі, інші (39161000-8 Меблі для дитячого садка)",3110,48000,"Сорок вісім тисяч грн. 0 коп.","в т.ч.ПДВ-",8000]
[null,2210,130400,"Сто тридцять тисяч чотириста грн. 0 коп.","в т.ч.ПДВ-",21733.333333333332]
["23.41.1 Вироби господарські та декоративні керамічні(39221000-7 Кухонне приладдя(посуд)",2210,107524,"Сто сім тисяч п'ятсот двадцять чотири грн. 0 коп.","в т.ч.ПДВ-",17920.666666666668]
["32.99.5 Вироби, інші, н.в.і.у.(35111000-5 Протипожежне обладнання)",2210,91496,"Дев'яносто одна тисячa чотириста дев'яносто шість грн. 0 коп.","в т.ч.ПДВ-",15249.333333333334]
["27.52.1 Устатковання побутове неелектричне для приготування та підігрівання їжі(39314000-6 Промислове кухонне обладнання)",3110,178902,"Сто сімдесят вісім тисяч дев'ятсот дві грн. 0 коп.","в т.ч.ПДВ-",29817]
["13.92.1 Вироби текстильні готові для домашнього господарства (39512000-4 Постільна білизна)",2210,80652,"Вісімдесят тисяч шістсот п'ятдесят дві грн. 0 коп.","в т.ч.ПДВ-",13442]
["13.99.1 Тюль,мереживо та вишивка;нитки позументні та стрічкові нитки;пряжа синельна;пряжа фасонна петляста (39561000-2 Тюль,мереживо,вузькі тканини,оздоблювальні матеріали та вишиті вироби)",2210,93600,"Дев'яносто три тисячі шістсот грн. 0 коп.","в т.ч.ПДВ-",15600]
[]
["Затверджений рішенням комітету з конкурсних торгів від__________№_______"]
[]
["Голова комітету з конкурсних торгів      _______________________Н.В.Сас"]
["                                                                                                (підпис)          (ініціали та прізвище)"]
["МП"]

{"sheet":"51","index":28,"n_rows":52,"n_cols":9,"rows_kept":52,"cut":false,"hidden":false,"merged":[[0,0,0,8],[1,0,1,8],[2,0,2,8],[3,2,3,5],[4,2,4,5]]}
["Додаток до річного плану закупівель на  2016 рік "]
["Дошкільний навчальний заклад № 51, 26243214"]
["(найменування замовника,код за ЄДРПОУ)"]
["Предмет закупівлі","Код КЕКВ (для бюджетних коштів)","Очікувана вартість предмета закупівлі",null,null,null,"Процедура закупівлі","Орієнтовний початок проведення процедури закупівлі","Примітки"]
[1,2,3,null,null,null,4,5,6]
["10.73.1 Макарони,локшина,кускус і подібні борошняні вироби(15851000-8 Борошняні вироби(макарони)",2230,1778.5086537680947,{"$f":"SUMINWORDS(C6,\"грн.\",\"коп.\")","v":"Одна тисячa сімсот сімдесят вісім грн. 51 коп."},"в т.ч.ПДВ-",{"$f":"C6/6","v":296.41810896134911}]
["10.11.1 М'ясо великої рогатої худоби,свиней,овець,кіз,коней та ін..тварин родини конячих,свіже чиа охолоджене(15111000-9 М'ясо великої рогатої худоби родини бикових(яловичина)",2230,63302.4149303179,{"$f":"SUMINWORDS(C7,\"грн.\",\"коп.\")","v":"Шістдесят три тисячі триста дві грн. 41 коп."},"в т.ч.ПДВ-",{"$f":"C7/6","v":10550.402488386317}]
["10.12.1 М'ясо  свійської птиці,свіже чи охолоджене(15112000-6 М'ясо свійської птиці)",2230,23063.906787562595,{"$f":"SUMINWORDS(C8,\"грн.\",\"коп.\")","v":"Двадцять три тисячі шістдесят три грн. 91 коп."},"в т.ч.ПДВ-",3843.984464593766]
["10.12.4 Субпродукти харчові свійської птиці(15114000-0 Потрухи(печінка)",2230,6530.090538059203,{"$f":"SUMINWORDS(C9,\"грн.\",\"коп.\")","v":"Шість тисяч п'ятсот тридцять грн. 9 коп."},"в т.ч.ПДВ-",1088.3484230098672]
["10.13.1.Консерви та готові страви з м’яса,м’ясних субпродуктів чи крові (15130000-8 Мясопродукти (ковбаса,сосиски)",2230,19606.637755877007,"Дев'ятнадцять тисяч шістсот шість грн. 64 коп.","в т.ч.ПДВ-",3267.7729593128347]
["10.20.1 Продукція рибна,свіжа,охолоджена чи заморожена (15221000-3 Морожена риба)",2230,46102.324298481486,"Сорок шість тисяч сто дві грн. 32 коп.","в т.ч.ПДВ-",7683.7207164135807]
["01.24.1 Яблука (03222000-3 Фрукти і горіхи(яблука,апельсини,лимони,ягоди)",2230,19469.973237278275,"Дев'ятнадцять тисяч чотириста шістдесят дев'ять грн. 97 коп.","в т.ч.ПДВ-",3244.995539546379]
["10.39.1 Плоди та овочі,оброблені та законсервовані,крім картоплі(15331000-7 Оброблені овочі(консерви овочеві)",2230,13711.511341824045,"Тринадцять тисяч сімсот одинадцять грн. 51 коп.","в т.ч.ПДВ-",2285.2518903040077]
["10.72.1 Вироби хлібобулочні,зниженої вологості,та кондитерські,борошняні,тривалого зберігання(15820000-2 Сухарі та печиво; пресерви з хлібобулочних і кондитерських виробів (печиво)",2230,4727.7498531603233,"Чотири тисячі сімсот двадцять сім грн. 75 коп.","в т.ч.ПДВ-",787.95830886005388]
["10.71.1 Вироби  хлібобулочні,кондитерські та кулінарні,борошняні,нетривалого зберігання(15810000-9 Хлібопродукти, свіжовипечені хлібобулочні та кондитерські вироби)",2230,17613.345848273573,"Сімнадцять тисяч шістсот тринадцять грн. 35 коп.","в т.ч.ПДВ-",2935.557641378929]
["10.51.1 Молоко та вершки,рідинні,оброблені(15511000-3 Молоко)",2230,70057.408947152784,"Сімдесят тисяч п'ятдесят сім грн. 41 коп.","в т.ч.ПДВ-",11676.234824525463]
["10.51.5 Продукти молочні, інші (15550000-8 Молочні продукти різні (кефір,сметана)",2230,13136.773733696053,"Тринадцять тисяч сто тридцять шість грн. 77 коп.","в т.ч.ПДВ-",2189.4622889493421]
["10.51.4 Сир сичужний та кисломолочний сир(15540000-5 Сирні продукти)",2230,49179.553121754572,"Сорок дев'ять тисяч сто сімдесят дев'ять грн. 55 коп.","в т.ч.ПДВ-",8196.5921869590948]
["10.32.1 Соки фруктові та овочеві (15321000-4 Фруктові соки)",2230,13105.953266689161,"Тринадцять тисяч сто п'ять грн. 95 коп.","в т.ч.ПДВ-",2184.3255444481933]
["10.61.2 Борошно зернових і овочевих культур;їхні суміші(15612000-1 Борошно зернових та овочевих культур і супутня продукція)",2230,2883.367509533924,"Дві тисячі вісімсот вісімдесят три грн. 37 коп.","в т.ч.ПДВ-",480.56125158898732]
["10.61.1 Рис напівобрушений чи повністю обрушений,або лущений чи дроблений(15614000-5 Рис оброблений)",2230,1412.4240312090053,"Одна тисячa чотириста дванадцять грн. 42 коп.","в т.ч.ПДВ-",235.40400520150089]
["0.81.1 Цукор-сирець,тростинний і очищений тростинний чи буряковий цукор (сахароза);меляса (15831000-2 Цукор)",2230,12715.718184423888,"Дванадцять тисяч сімсот п'ятнадцять грн. 72 коп.","в т.ч.ПДВ-",2119.2863640706478]
["10.39.2 Плоди й горіхи,оброблені та законсервовані(15332000-4 Оброблені фрукти та горіхи(повидло,сухофрукти)",2230,8380.9995476774166,"Вісім тисяч триста вісімдесят грн. 100 коп.","в т.ч.ПДВ-",1396.833257946236]
["10.51.3 Масло вершкове та молочні пасти(15530000-2 Вершкове масло)",2230,22680.089881869426,"Двадцять дві тисячі шістсот вісімдесят грн. 9 коп.","в т.ч.ПДВ-",3780.014980311571]
["01.47.2 Яйця у шкаралупі свіжі (03142000-8 Продукція тваринництва (03142500-3 Яйця)",2230,17348.110201360294,"Сімнадцять тисяч триста сорок вісім грн. 11 коп.","в т.ч.ПДВ-",2891.3517002267158]
["10.41.5 Олії рафіновані(15421000-5 Рафіновані олії)",2230,5109.7804374983853,"П'ять тисяч сто дев'ять грн. 78 коп.","в т.ч.ПДВ-",851.63007291639758]
["10.61.3 Крупи,крупка,гранули та інші продукти з зерна зернових культур(15613000-8 Продукція із зерна зернових культур(крупи)",2230,5333.5368239010177,"П'ять тисяч триста тридцять три грн. 54 коп.","в т.ч.ПДВ-",888.92280398350294]
["10.82.1 Какао терте,какао-масло,жири й олія,какао-порошок(15841000-5 Какао)",2230,6520.2708530395648,"Шість тисяч п'ятсот двадцять грн. 27 коп.","в т.ч.ПДВ-",1086.7118088399275]
["10.83.1 Чай і кава,оброблені(15860000-4 Кава, чай та супутня продукція)",2230,6788.2717287988489,"Шість тисяч сімсот вісімдесят вісім грн. 27 коп.","в т.ч.ПДВ-",1131.3786214664749]
["10.84.3 Сіль харчова(14410000-8 Камяна сіль)",2230,256.27375088768645,"Двісті п'ятдесят шість грн. 27 коп.","в т.ч.ПДВ-",42.71229181461441]
["01.13.5 Коренеплоди та бульби їстівні з високим умістом крохмалю та інуліну(03212000-0 Картопля та сушені овочі)",2230,17709.870629192716,"Сімнадцять тисяч сімсот дев'ять грн. 87 коп.","в т.ч.ПДВ-",2951.6451048654526]
["01.13.4 Овочі коренеплодні,цибулинні та бульбоподібні(03221000-6 Овочі)",2230,21747.134135197055,"Двадцять одна тисячa сімсот сорок сім грн. 13 коп.","в т.ч.ПДВ-",3624.522355866176]
["43.21.1 Роботи електромонтажні(45310000-3 Електромонтажні роботи(повірка контурів заземлення)",2240,745,"Сімсот сорок п'ять грн. 0 коп.","в т.ч.ПДВ-",124.16666666666667]
["38.11.6 Послуги підприємств щодо перевезення інших безпечних відходів(90512000-9 Послуги з перевезення сміття)",2240,6162,"Шість тисяч сто шістдесят дві грн. 0 коп.","в т.ч.ПДВ-",1027]
["64.99.1 Послуги фінансові, крім страхування та пенсійного забезпечення, інші, н.в.і.у( 66110000-4 Банківські послуги)",2240,1097,"Одна тисячa дев'яносто сім грн. 0 коп.","без ПДВ"]
[" 36.00.2 Обробляння та розподіляння води трубопроводами(65110000-7 Розподіл води)",2272,26137.255200000007,"Двадцять шість тисяч сто тридцять сім грн. 26 коп.","в т.ч.ПДВ-",4356.2092000000011]
["37.00.1 Послуги каналізаційні(90400000-1 Послуги у сфері водовідведення)",2272,21923.744799999993,"Двадцять одна тисячa дев'ятсот двадцять три грн. 74 коп.","в т.ч.ПДВ-",3653.9574666666654]
["35.11.1  Енергія електрична (09310000-5 Електрична енергія)",2273,48988,"Сорок вісім тисяч дев'ятсот вісімдесят вісім грн. 0 коп.","в т.ч.ПДВ-",8164.666666666667]
["61.10.1  Послуги щодо передавання даних і повідомлень(64211000-8 Послуги громадського телефонного звязку)",2240,1645,"Одна тисячa шістсот сорок п'ять грн. 0 коп.","в т.ч.ПДВ-",274.16666666666669]
["85.60.1 Послуги освітянські допоміжні (80570000-0 Послуги з професійної підготовки у сфері підвищення кваліфікації)",2282,349,"Триста сорок дев'ять грн. 0 коп.","в т.ч.ПДВ-",58.166666666666664]
["91.01.1 Послуги бібліотек і архівів(92512000-3 Послуги архівів)",2240,579,"П'ятсот сімдесят дев'ять грн. 0 коп.","без ПДВ"]
["71.20.1 Послуги щодо технічного випробування й аналізування(71632000-7 Послуги з технічних випробувань (повірка,атестація)",2240,1447,"Одна тисячa чотириста сорок сім грн. 0 коп.","в т.ч.ПДВ-",241.16666666666666]
["58.29.1 Програмне забезпечення системне на фізичних носіях(48443000-5 Пакети програмного забезпечення для бухгалтерського обліку)",2240,7392,"Сім тисяч триста дев'яносто дві грн. 0 коп.","в т.ч.ПДВ-",1232]
["31.09.1 Меблі, інші (39161000-8 Меблі для дитячого садка)",3110,118200,"Сто вісімнадцять тисяч двісті грн. 0 коп.","в т.ч.ПДВ-",19700]
["27.52.1 Устатковання побутове неелектричне для приготування та підігрівання їжі(39314000-6 Промислове кухонне обладнання)",3110,88654,"Вісімдесят вісім тисяч шістсот п'ятдесят чотири грн. 0 коп.","в т.ч.ПДВ-",14775.666666666666]
["13.92.1 Вироби текстильні готові для домашнього господарства (39512000-4 Постільна білизна)",2210,67210,"Шістдесят сім тисяч двісті десять грн. 0 коп.","в т.ч.ПДВ-",11201.666666666666]
[]
["Затверджений рішенням комітету з конкурсних торгів від__________№_______"]
[]
["Голова комітету з конкурсних торгів      _______________________О.В.Атаманенко"]
["                                                                                                (підпис)          (ініціали та прізвище)"]
["МП"]

{"sheet":"52","index":29,"n_rows":50,"n_cols":9,"rows_kept":50,"cut":false,"hidden":false,"merged":[[1,0,1,8],[2,0,2,8],[4,2,4,5],[0,0,0,8],[3,2,3,5]]}
["Додаток до річного плану закупівель на  2016 рік "]
["Дошкільний навчальний заклад № 52, 26443208"]
["(найменування замовника,код за ЄДРПОУ)"]
["Предмет закупівлі","Код КЕКВ (для бюджетних коштів)","Очікувана вартість предмета закупівлі",null,null,null,"Процедура закупівлі","Орієнтовний початок проведення процедури закупівлі","Примітки"]
[1,2,3,null,null,null,4,5,6]
["10.73.1 Макарони,локшина,кускус і подібні борошняні вироби(15851000-8 Борошняні вироби(макарони)",2230,2471.9659757602321,{"$f":"SUMINWORDS(C6,\"грн.\",\"коп.\")","v":"Дві тисячі чотириста сімдесят одна грн. 97 коп."},"в т.ч.ПДВ-",{"$f":"C6/6","v":411.994329293372}]
["10.11.1 М'ясо великої рогатої худоби,свиней,овець,кіз,коней та ін..тварин родини конячих,свіже чиа охолоджене(15111000-9 М'ясо великої рогатої худоби родини бикових(яловичина)",2230,89256.867780395711,{"$f":"SUMINWORDS(C7,\"грн.\",\"коп.\")","v":"Вісімдесят дев'ять тисяч двісті п'ятдесят шість грн. 87 коп."},"в т.ч.ПДВ-",{"$f":"C7/6","v":14876.144630065952}]
["10.12.1 М'ясо  свійської птиці,свіже чи охолоджене(15112000-6 М'ясо свійської птиці)",2230,32124.629420710495,{"$f":"SUMINWORDS(C8,\"грн.\",\"коп.\")","v":"Тридцять дві тисячі сто двадцять чотири грн. 63 коп."},"в т.ч.ПДВ-",5354.1049034517491]
["10.12.4 Субпродукти харчові свійської птиці(15114000-0 Потрухи(печінка)",2230,9110.3836935397558,{"$f":"SUMINWORDS(C9,\"грн.\",\"коп.\")","v":"Дев'ять тисяч сто десять грн. 38 коп."},"в т.ч.ПДВ-",1518.3972822566259]
["10.13.1.Консерви та готові страви з м’яса,м’ясних субпродуктів чи крові (15130000-8 Мясопродукти (ковбаса,сосиски)",2230,27353.98412245771,"Двадцять сім тисяч триста п'ятдесят три грн. 98 коп.","в т.ч.ПДВ-",4558.9973537429514]
["10.20.1 Продукція рибна,свіжа,охолоджена чи заморожена (15221000-3 Морожена риба)",2230,64366.093597498832,"Шістдесят чотири тисячі триста шістдесят шість грн. 9 коп.","в т.ч.ПДВ-",10727.682266249805]
["01.24.1 Яблука (03222000-3 Фрукти і горіхи(яблука,апельсини,лимони,ягоди)",2230,27170.815291013259,"Двадцять сім тисяч сто сімдесят грн. 82 коп.","в т.ч.ПДВ-",4528.4692151688769]
["10.39.1 Плоди та овочі,оброблені та законсервовані,крім картоплі(15331000-7 Оброблені овочі(консерви овочеві)",2230,19025.880257013032,"Дев'ятнадцять тисяч двадцять п'ять грн. 88 коп.","в т.ч.ПДВ-",3170.9800428355052]
["10.72.1 Вироби хлібобулочні,зниженої вологості,та кондитерські,борошняні,тривалого зберігання(15820000-2 Сухарі та печиво; пресерви з хлібобулочних і кондитерських виробів (печиво)",2230,6622.4141587771328,"Шість тисяч шістсот двадцять дві грн. 41 коп.","в т.ч.ПДВ-",1103.7356931295221]
["10.71.1 Вироби  хлібобулочні,кондитерські та кулінарні,борошняні,нетривалого зберігання(15810000-9 Хлібопродукти, свіжовипечені хлібобулочні та кондитерські вироби)",2230,24498.244307824811,"Двадцять чотири тисячі чотириста дев'яносто вісім грн. 24 коп.","в т.ч.ПДВ-",4083.0407179708018]
["10.51.1 Молоко та вершки,рідинні,оброблені(15511000-3 Молоко)",2230,96922.377114475574,"Дев'яносто шість тисяч дев'ятсот двадцять дві грн. 38 коп.","в т.ч.ПДВ-",16153.729519079263]
["10.51.5 Продукти молочні, інші (15550000-8 Молочні продукти різні (кефір,сметана)",2230,18265.088146124701,"Вісімнадцять тисяч двісті шістдесят п'ять грн. 9 коп.","в т.ч.ПДВ-",3044.1813576874501]
["10.51.4 Сир сичужний та кисломолочний сир(15540000-5 Сирні продукти)",2230,68227.172945769184,"Шістдесят вісім тисяч двісті двадцять сім грн. 17 коп.","в т.ч.ПДВ-",11371.195490961531]
["10.32.1 Соки фруктові та овочеві (15321000-4 Фруктові соки)",2230,18197.361813515661,"Вісімнадцять тисяч сто дев'яносто сім грн. 36 коп.","в т.ч.ПДВ-",3032.8936355859437]
["10.61.2 Борошно зернових і овочевих культур;їхні суміші(15612000-1 Борошно зернових та овочевих культур і супутня продукція)",2230,4013.5252317277559,"Чотири тисячі тринадцять грн. 53 коп.","в т.ч.ПДВ-",668.92087195462602]
["10.61.1 Рис напівобрушений чи повністю обрушений,або лущений чи дроблений(15614000-5 Рис оброблений)",2230,1961.1233618039269,"Одна тисячa дев'ятсот шістдесят одна грн. 12 коп.","в т.ч.ПДВ-",326.85389363398781]
["0.81.1 Цукор-сирець,тростинний і очищений тростинний чи буряковий цукор (сахароза);меляса (15831000-2 Цукор)",2230,17631.844802929678,"Сімнадцять тисяч шістсот тридцять одна грн. 84 коп.","в т.ч.ПДВ-",2938.6408004882796]
["10.39.2 Плоди й горіхи,оброблені та законсервовані(15332000-4 Оброблені фрукти та горіхи(повидло,сухофрукти)",2230,11592.685414066873,"Одинадцять тисяч п'ятсот дев'яносто дві грн. 69 коп.","в т.ч.ПДВ-",1932.1142356778121]
["10.51.3 Масло вершкове та молочні пасти(15530000-2 Вершкове масло)",2230,31590.028931107143,"Тридцять одна тисячa п'ятсот дев'яносто грн. 3 коп.","в т.ч.ПДВ-",5265.0048218511902]
["01.47.2 Яйця у шкаралупі свіжі (03142000-8 Продукція тваринництва (03142500-3 Яйця)",2230,24203.024348752235,"Двадцять чотири тисячі двісті три грн. 2 коп.","в т.ч.ПДВ-",4033.837391458706]
["10.41.5 Олії рафіновані(15421000-5 Рафіновані олії)",2230,7102.1320915924343,"Сім тисяч сто дві грн. 13 коп.","в т.ч.ПДВ-",1183.6886819320723]
["10.61.3 Крупи,крупка,гранули та інші продукти з зерна зернових культур(15613000-8 Продукція із зерна зернових культур(крупи)",2230,7408.4139440113204,"Сім тисяч чотириста вісім грн. 41 коп.","в т.ч.ПДВ-",1234.7356573352201]
["10.82.1 Какао терте,какао-масло,жири й олія,какао-порошок(15841000-5 Какао)",2230,9096.6838684366867,"Дев'ять тисяч дев'яносто шість грн. 68 коп.","в т.ч.ПДВ-",1516.113978072781]
["10.83.1 Чай і кава,оброблені(15860000-4 Кава, чай та супутня продукція)",2230,9515.0280146781424,"Дев'ять тисяч п'ятсот п'ятнадцять грн. 3 коп.","в т.ч.ПДВ-",1585.838002446357]
["10.84.3 Сіль харчова(14410000-8 Камяна сіль)",2230,358.38833182942085,"Триста п'ятдесят вісім грн. 39 коп.","в т.ч.ПДВ-",59.731388638236808]
["01.13.5 Коренеплоди та бульби їстівні з високим умістом крохмалю та інуліну(03212000-0 Картопля та сушені овочі)",2230,24605.736130276113,"Двадцять чотири тисячі шістсот п'ять грн. 74 коп.","в т.ч.ПДВ-",4100.9560217126855]
["01.13.4 Овочі коренеплодні,цибулинні та бульбоподібні(03221000-6 Овочі)",2230,30148.107108012588,"Тридцять тисяч сто сорок вісім грн. 11 коп.","в т.ч.ПДВ-",5024.6845180020982]
["43.21.1 Роботи електромонтажні(45310000-3 Електромонтажні роботи(повірка контурів заземлення)",2240,745,"Сімсот сорок п'ять грн. 0 коп.","в т.ч.ПДВ-",124.16666666666667]
["38.11.6 Послуги підприємств щодо перевезення інших безпечних відходів(90512000-9 Послуги з перевезення сміття)",2240,9492,"Дев'ять тисяч чотириста дев'яносто дві грн. 0 коп.","в т.ч.ПДВ-",1582]
["Поточний ремонт будівель (45400000-1 Завершальні будівельні роботи)",2240,87400,"Вісімдесят сім тисяч чотириста грн. 0 коп.","в т.ч.ПДВ-",14566.666666666666]
[" 36.00.2 Обробляння та розподіляння води трубопроводами(65110000-7 Розподіл води)",2272,25604.023200000007,"Двадцять п'ять тисяч шістсот чотири грн. 2 коп.","в т.ч.ПДВ-",4267.3372000000008]
["37.00.1 Послуги каналізаційні(90400000-1 Послуги у сфері водовідведення)",2272,22665.976799999993,"Двадцять дві тисячі шістсот шістдесят п'ять грн. 98 коп.","в т.ч.ПДВ-",3777.6627999999987]
["35.11.1  Енергія електрична (09310000-5 Електрична енергія)",2273,71091,"Сімдесят одна тисячa дев'яносто одна грн. 0 коп.","в т.ч.ПДВ-",11848.5]
["61.10.1  Послуги щодо передавання даних і повідомлень(64211000-8 Послуги громадського телефонного звязку)",2240,1674,"Одна тисячa шістсот сімдесят чотири грн. 0 коп.","в т.ч.ПДВ-",279]
["91.01.1 Послуги бібліотек і архівів(92512000-3 Послуги архівів)",2240,803,"Вісімсот три грн. 0 коп.","без ПДВ"]
["71.20.1 Послуги щодо технічного випробування й аналізування(71632000-7 Послуги з технічних випробувань (повірка,атестація)",2240,1447,"Одна тисячa чотириста сорок сім грн. 0 коп.","в т.ч.ПДВ-",241.16666666666666]
["58.29.1 Програмне забезпечення системне на фізичних носіях(48443000-5 Пакети програмного забезпечення для бухгалтерського обліку)",2240,7392,"Сім тисяч триста дев'яносто дві грн. 0 коп.","в т.ч.ПДВ-",1232]
["31.09.1 Меблі, інші (39161000-8 Меблі для дитячого садка)",3110,20400,"Двадцять тисяч чотириста грн. 0 коп.","в т.ч.ПДВ-",3400]
["27.51.2 Прилади електричні побутові,інші,н.в.і.у.(39711000-9 Електричні побутові прилади для обробки продуктів харчування)",3110,134200,"Сто тридцять чотири тисячі двісті грн. 0 коп.","в т.ч.ПДВ-",22366.666666666668]
[]
["Затверджений рішенням комітету з конкурсних торгів від__________№_______"]
[]
["Голова комітету з конкурсних торгів      _______________________ К.В.Шундровська  "]
["                                                                                                (підпис)          (ініціали та прізвище)"]
["МП"]

{"sheet":"57","index":30,"n_rows":49,"n_cols":9,"rows_kept":49,"cut":false,"hidden":false,"merged":[[0,0,0,8],[1,0,1,8],[2,0,2,8],[3,2,3,5],[4,2,4,5]]}
["Додаток до річного плану закупівель на  2016 рік "]
["Дошкільний навчальний заклад № 57, 26243289"]
["(найменування замовника,код за ЄДРПОУ)"]
["Предмет закупівлі","Код КЕКВ (для бюджетних коштів)","Очікувана вартість предмета закупівлі",null,null,null,"Процедура закупівлі","Орієнтовний початок проведення процедури закупівлі","Примітки"]
[1,2,3,null,null,null,4,5,6]
["10.73.1 Макарони,локшина,кускус і подібні борошняні вироби(15851000-8 Борошняні вироби(макарони)",2230,2760.6290157178842,{"$f":"SUMINWORDS(C6,\"грн.\",\"коп.\")","v":"Дві тисячі сімсот шістдесят грн. 63 коп."},"в т.ч.ПДВ-",{"$f":"C6/6","v":460.10483595298069}]
["10.11.1 М'ясо великої рогатої худоби,свиней,овець,кіз,коней та ін..тварин родини конячих,свіже чиа охолоджене(15111000-9 М'ясо великої рогатої худоби родини бикових(яловичина)",2230,93095.96179138968,{"$f":"SUMINWORDS(C7,\"грн.\",\"коп.\")","v":"Дев'яносто три тисячі дев'яносто п'ять грн. 96 коп."},"в т.ч.ПДВ-",{"$f":"C7/6","v":15515.99363189828}]
["10.12.1 М'ясо  свійської птиці,свіже чи охолоджене(15112000-6 М'ясо свійської птиці)",2230,35888.339943014515,{"$f":"SUMINWORDS(C8,\"грн.\",\"коп.\")","v":"Тридцять п'ять тисяч вісімсот вісімдесят вісім грн. 34 коп."},"в т.ч.ПДВ-",5981.3899905024191]
["10.12.4 Субпродукти харчові свійської птиці(15114000-0 Потрухи(печінка)",2230,10180.466842609245,{"$f":"SUMINWORDS(C9,\"грн.\",\"коп.\")","v":"Десять тисяч сто вісімдесят грн. 47 коп."},"в т.ч.ПДВ-",1696.7444737682074]
["10.13.1.Консерви та готові страви з м’яса,м’ясних субпродуктів чи крові (15130000-8 Мясопродукти (ковбаса,сосиски)",2230,30566.915482320488,"Тридцять тисяч п'ятсот шістдесят шість грн. 92 коп.","в т.ч.ПДВ-",5094.485913720081]
["10.20.1 Продукція рибна,свіжа,охолоджена чи заморожена (15221000-3 Морожена риба)",2230,71934.895817589975,"Сімдесят одна тисячa дев'ятсот тридцять чотири грн. 90 коп.","в т.ч.ПДВ-",11989.149302931663]
["01.24.1 Яблука (03222000-3 Фрукти і горіхи(яблука,апельсини,лимони,ягоди)",2230,30363.592739555635,"Тридцять тисяч триста шістдесят три грн. 59 коп.","в т.ч.ПДВ-",5060.5987899259389]
["10.39.1 Плоди та овочі,оброблені та законсервовані,крім картоплі(15331000-7 Оброблені овочі(консерви овочеві)",2230,21241.813960769876,"Двадцять одна тисячa двісті сорок одна грн. 81 коп.","в т.ч.ПДВ-",3540.3023267949793]
["10.72.1 Вироби хлібобулочні,зниженої вологості,та кондитерські,борошняні,тривалого зберігання(15820000-2 Сухарі та печиво; пресерви з хлібобулочних і кондитерських виробів (печиво)",2230,7405.084373380163,"Сім тисяч чотириста п'ять грн. 8 коп.","в т.ч.ПДВ-",1234.1807288966938]
["10.71.1 Вироби  хлібобулочні,кондитерські та кулінарні,борошняні,нетривалого зберігання(15810000-9 Хлібопродукти, свіжовипечені хлібобулочні та кондитерські вироби)",2230,27362.168463997703,"Двадцять сім тисяч триста шістдесят дві грн. 17 коп.","в т.ч.ПДВ-",4560.3614106662835]
["10.51.1 Молоко та вершки,рідинні,оброблені(15511000-3 Молоко)",2230,108158.28361048248,"Сто вісім тисяч сто п'ятдесят вісім грн. 28 коп.","в т.ч.ПДВ-",18026.380601747082]
["10.51.5 Продукти молочні, інші (15550000-8 Молочні продукти різні (кефір,сметана)",2230,20399.110585595179,"Двадцять тисяч триста дев'яносто дев'ять грн. 11 коп.","в т.ч.ПДВ-",3399.851764265863]
["10.51.4 Сир сичужний та кисломолочний сир(15540000-5 Сирні продукти)",2230,76171.070113587281,"Сімдесят шість тисяч сто сімдесят одна грн. 7 коп.","в т.ч.ПДВ-",12695.178352264547]
["10.32.1 Соки фруктові та овочеві (15321000-4 Фруктові соки)",2230,20318.941534990052,"Двадцять тисяч триста вісімнадцять грн. 94 коп.","в т.ч.ПДВ-",3386.4902558316753]
["10.61.2 Борошно зернових і овочевих культур;їхні суміші(15612000-1 Борошно зернових та овочевих культур і супутня продукція)",2230,4483.2791739585573,"Чотири тисячі чотириста вісімдесят три грн. 28 коп.","в т.ч.ПДВ-",747.21319565975955]
["10.61.1 Рис напівобрушений чи повністю обрушений,або лущений чи дроблений(15614000-5 Рис оброблений)",2230,2189.7652714582518,"Дві тисячі сто вісімдесят дев'ять грн. 77 коп.","в т.ч.ПДВ-",364.96087857637531]
["0.81.1 Цукор-сирець,тростинний і очищений тростинний чи буряковий цукор (сахароза);меляса (15831000-2 Цукор)",2230,19683.173642552178,"Дев'ятнадцять тисяч шістсот вісімдесят три грн. 17 коп.","в т.ч.ПДВ-",3280.5289404253631]
["10.39.2 Плоди й горіхи,оброблені та законсервовані(15332000-4 Оброблені фрукти та горіхи(повидло,сухофрукти)",2230,12936.189564300019,"Дванадцять тисяч дев'ятсот тридцять шість грн. 19 коп.","в т.ч.ПДВ-",2156.0315940500032]
["10.51.3 Масло вершкове та молочні пасти(15530000-2 Вершкове масло)",2230,35291.105844114121,"Тридцять п'ять тисяч двісті дев'яносто одна грн. 11 коп.","в т.ч.ПДВ-",5881.8509740190202]
["01.47.2 Яйця у шкаралупі свіжі (03142000-8 Продукція тваринництва (03142500-3 Яйця)",2230,27045.851762320304,"Двадцять сім тисяч сорок п'ять грн. 85 коп.","в т.ч.ПДВ-",4507.6419603867171]
["10.41.5 Олії рафіновані(15421000-5 Рафіновані олії)",2230,7931.4813058789978,"Сім тисяч дев'ятсот тридцять одна грн. 48 коп.","в т.ч.ПДВ-",1321.913550979833]
["10.61.3 Крупи,крупка,гранули та інші продукти з зерна зернових культур(15613000-8 Продукція із зерна зернових культур(крупи)",2230,8272.6694109218188,"Вісім тисяч двісті сімдесят дві грн. 67 коп.","в т.ч.ПДВ-",1378.7782351536364]
["10.82.1 Какао терте,какао-масло,жири й олія,какао-порошок(15841000-5 Какао)",2230,10165.157869913593,"Десять тисяч сто шістдесят п'ять грн. 16 коп.","в т.ч.ПДВ-",1694.1929783189323]
["10.83.1 Чай і кава,оброблені(15860000-4 Кава, чай та супутня продукція)",2230,10640.706054873852,"Десять тисяч шістсот сорок грн. 71 коп.","в т.ч.ПДВ-",1773.451009145642]
["10.84.3 Сіль харчова(14410000-8 Камяна сіль)",2230,400.63815661838089,"Чотириста грн. 64 коп.","в т.ч.ПДВ-",66.773026103063486]
["01.13.5 Коренеплоди та бульби їстівні з високим умістом крохмалю та інуліну(03212000-0 Картопля та сушені овочі)",2230,27477.354310332201,"Двадцять сім тисяч чотириста сімдесят сім грн. 35 коп.","в т.ч.ПДВ-",4579.5590517220335]
["01.13.4 Овочі коренеплодні,цибулинні та бульбоподібні(03221000-6 Овочі)",2230,33654.353213463139,"Тридцять три тисячі шістсот п'ятдесят чотири грн. 35 коп.","в т.ч.ПДВ-",5609.0588689105234]
["43.21.1 Роботи електромонтажні(45310000-3 Електромонтажні роботи(повірка контурів заземлення)",2240,745,"Сімсот сорок п'ять грн. 0 коп.","в т.ч.ПДВ-",124.16666666666667]
["38.11.6 Послуги підприємств щодо перевезення інших безпечних відходів(90512000-9 Послуги з перевезення сміття)",2240,9268,"Дев'ять тисяч двісті шістдесят вісім грн. 0 коп.","в т.ч.ПДВ-",1544.6666666666667]
["Поточний ремонт будівель (45400000-1 Завершальні будівельні роботи)",2240,118700,"Сто вісімнадцять тисяч сімсот грн. 0 коп.","в т.ч.ПДВ-",19783.333333333332]
[" 36.00.2 Обробляння та розподіляння води трубопроводами(65110000-7 Розподіл води)",2272,12557.613600000002,"Дванадцять тисяч п'ятсот п'ятдесят сім грн. 61 коп.","в т.ч.ПДВ-",2092.9356000000002]
["37.00.1 Послуги каналізаційні(90400000-1 Послуги у сфері водовідведення)",2272,23225.386399999996,"Двадцять три тисячі двісті двадцять п'ять грн. 39 коп.","в т.ч.ПДВ-",3870.8977333333328]
["35.11.1  Енергія електрична (09310000-5 Електрична енергія)",2273,77081,"Сімдесят сім тисяч вісімдесят одна грн. 0 коп.","в т.ч.ПДВ-",12846.833333333334]
["85.60.1 Послуги освітянські допоміжні (80570000-0 Послуги з професійної підготовки у сфері підвищення кваліфікації)",2282,676,"Шістсот сімдесят шість грн. 0 коп.","в т.ч.ПДВ-",112.66666666666667]
["91.01.1 Послуги бібліотек і архівів(92512000-3 Послуги архівів)",2240,711,"Сімсот одинадцять грн. 0 коп.","без ПДВ"]
["71.20.1 Послуги щодо технічного випробування й аналізування(71632000-7 Послуги з технічних випробувань (повірка,атестація)",2240,2747,"Дві тисячі сімсот сорок сім грн. 0 коп.","в т.ч.ПДВ-",457.83333333333331]
["58.29.1 Програмне забезпечення системне на фізичних носіях(48443000-5 Пакети програмного забезпечення для бухгалтерського обліку)",2240,7392,"Сім тисяч триста дев'яносто дві грн. 0 коп.","в т.ч.ПДВ-",1232]
["27.51.2 Прилади електричні побутові,інші,н.в.і.у.(39711000-9 Електричні побутові прилади для обробки продуктів харчування)",3110,134200,"Сто тридцять чотири тисячі двісті грн. 0 коп.","в т.ч.ПДВ-",22366.666666666668]
[]
["Затверджений рішенням комітету з конкурсних торгів від__________№_______"]
[]
["Голова комітету з конкурсних торгів      _______________________   Т.М.Поповська"]
["                                                                                                (підпис)          (ініціали та прізвище)"]
["МП"]

{"sheet":"58","index":31,"n_rows":49,"n_cols":9,"rows_kept":49,"cut":false,"hidden":false,"merged":[[0,0,0,8],[1,0,1,8],[2,0,2,8],[3,2,3,5],[4,2,4,5]]}
["Додаток до річного плану закупівель на  2016 рік "]
["Дошкільний навчальний заклад № 58, 26244047"]
["(найменування замовника,код за ЄДРПОУ)"]
["Предмет закупівлі","Код КЕКВ (для бюджетних коштів)","Очікувана вартість предмета закупівлі",null,null,null,"Процедура закупівлі","Орієнтовний початок проведення процедури закупівлі","Примітки"]
[1,2,3,null,null,null,4,5,6]
["10.73.1 Макарони,локшина,кускус і подібні борошняні вироби(15851000-8 Борошняні вироби(макарони)",2230,450.41545414944142,{"$f":"SUMINWORDS(C6,\"грн.\",\"коп.\")","v":"Чотириста п'ятдесят грн. 42 коп."},"в т.ч.ПДВ-",{"$f":"C6/6","v":75.069242358240231}]
["10.11.1 М'ясо великої рогатої худоби,свиней,овець,кіз,коней та ін..тварин родини конячих,свіже чиа охолоджене(15111000-9 М'ясо великої рогатої худоби родини бикових(яловичина)",2230,15889.024230762294,{"$f":"SUMINWORDS(C7,\"грн.\",\"коп.\")","v":"П'ятнадцять тисяч вісімсот вісімдесят дев'ять грн. 2 коп."},"в т.ч.ПДВ-",{"$f":"C7/6","v":2648.1707051270491}]
["10.12.1 М'ясо  свійської птиці,свіже чи охолоджене(15112000-6 М'ясо свійської птиці)",2230,5670.388535906578,{"$f":"SUMINWORDS(C8,\"грн.\",\"коп.\")","v":"П'ять тисяч шістсот сімдесят грн. 39 коп."},"в т.ч.ПДВ-",945.06475598442967]
["10.12.4 Субпродукти харчові свійської птиці(15114000-0 Потрухи(печінка)",2230,1567.933270594614,{"$f":"SUMINWORDS(C9,\"грн.\",\"коп.\")","v":"Одна тисячa п'ятсот шістдесят сім грн. 93 коп."},"в т.ч.ПДВ-",261.322211765769]
["10.13.1.Консерви та готові страви з м’яса,м’ясних субпродуктів чи крові (15130000-8 Мясопродукти (ковбаса,сосиски)",2230,4707.7294691036286,"Чотири тисячі сімсот сім грн. 73 коп.","в т.ч.ПДВ-",784.62157818393814]
["10.20.1 Продукція рибна,свіжа,охолоджена чи заморожена (15221000-3 Морожена риба)",2230,10951.573883856188,"Десять тисяч дев'ятсот п'ятдесят одна грн. 57 коп.","в т.ч.ПДВ-",1825.2623139760315]
["01.24.1 Яблука (03222000-3 Фрукти і горіхи(яблука,апельсини,лимони,ягоди)",2230,4656.0692025833714,"Чотири тисячі шістсот п'ятдесят шість грн. 7 коп.","в т.ч.ПДВ-",776.01153376389527]
["10.39.1 Плоди та овочі,оброблені та законсервовані,крім картоплі(15331000-7 Оброблені овочі(консерви овочеві)",2230,3552.6380418595927,"Три тисячі п'ятсот п'ятдесят дві грн. 64 коп.","в т.ч.ПДВ-",592.10634030993208]
["10.72.1 Вироби хлібобулочні,зниженої вологості,та кондитерські,борошняні,тривалого зберігання(15820000-2 Сухарі та печиво; пресерви з хлібобулочних і кондитерських виробів (печиво)",2230,1068.4450499961142,"Одна тисячa шістдесят вісім грн. 45 коп.","в т.ч.ПДВ-",178.07417499935238]
["10.71.1 Вироби  хлібобулочні,кондитерські та кулінарні,борошняні,нетривалого зберігання(15810000-9 Хлібопродукти, свіжовипечені хлібобулочні та кондитерські вироби)",2230,4417.2015503993116,"Чотири тисячі чотириста сімнадцять грн. 20 коп.","в т.ч.ПДВ-",736.20025839988523]
["10.51.1 Молоко та вершки,рідинні,оброблені(15511000-3 Молоко)",2230,18876.248762687308,"Вісімнадцять тисяч вісімсот сімдесят шість грн. 25 коп.","в т.ч.ПДВ-",3146.0414604478847]
["10.51.5 Продукти молочні, інші (15550000-8 Молочні продукти різні (кефір,сметана)",2230,3311.4577631580578,"Три тисячі триста одинадцять грн. 46 коп.","в т.ч.ПДВ-",551.90962719300967]
["10.51.4 Сир сичужний та кисломолочний сир(15540000-5 Сирні продукти)",2230,12776.58555836264,"Дванадцять тисяч сімсот сімдесят шість грн. 59 коп.","в т.ч.ПДВ-",2129.4309263937735]
["10.32.1 Соки фруктові та овочеві (15321000-4 Фруктові соки)",2230,3366.215908443593,"Три тисячі триста шістдесят шість грн. 22 коп.","в т.ч.ПДВ-",561.03598474059879]
["10.61.2 Борошно зернових і овочевих культур;їхні суміші(15612000-1 Борошно зернових та овочевих культур і супутня продукція)",2230,715.38115118175006,"Сімсот п'ятнадцять грн. 38 коп.","в т.ч.ПДВ-",119.23019186362501]
["10.61.1 Рис напівобрушений чи повністю обрушений,або лущений чи дроблений(15614000-5 Рис оброблений)",2230,362.77591920063952,"Триста шістдесят дві грн. 78 коп.","в т.ч.ПДВ-",60.462653200106587]
["0.81.1 Цукор-сирець,тростинний і очищений тростинний чи буряковий цукор (сахароза);меляса (15831000-2 Цукор)",2230,3325.5187131603066,"Три тисячі триста двадцять п'ять грн. 52 коп.","в т.ч.ПДВ-",554.25311886005113]
["10.39.2 Плоди й горіхи,оброблені та законсервовані(15332000-4 Оброблені фрукти та горіхи(повидло,сухофрукти)",2230,2263.6602573453119,"Дві тисячі двісті шістдесят три грн. 66 коп.","в т.ч.ПДВ-",377.27670955755201]
["10.51.3 Масло вершкове та молочні пасти(15530000-2 Вершкове масло)",2230,5576.0250353090414,"П'ять тисяч п'ятсот сімдесят шість грн. 3 коп.","в т.ч.ПДВ-",929.3375058848402]
["01.47.2 Яйця у шкаралупі свіжі (03142000-8 Продукція тваринництва (03142500-3 Яйця)",2230,4165.436758973161,"Чотири тисячі сто шістдесят п'ять грн. 44 коп.","в т.ч.ПДВ-",694.23945982886016]
["10.41.5 Олії рафіновані(15421000-5 Рафіновані олії)",2230,1294.0752756437639,"Одна тисячa двісті дев'яносто чотири грн. 8 коп.","в т.ч.ПДВ-",215.67921260729398]
["10.61.3 Крупи,крупка,гранули та інші продукти з зерна зернових культур(15613000-8 Продукція із зерна зернових культур(крупи)",2230,1362.6055865084691,"Одна тисячa триста шістдесят дві грн. 61 коп.","в т.ч.ПДВ-",227.10093108474484]
["10.82.1 Какао терте,какао-масло,жири й олія,какао-порошок(15841000-5 Какао)",2230,1565.5754762027425,"Одна тисячa п'ятсот шістдесят п'ять грн. 58 коп.","в т.ч.ПДВ-",260.92924603379043]
["10.83.1 Чай і кава,оброблені(15860000-4 Кава, чай та супутня продукція)",2230,1518.2001492994225,"Одна тисячa п'ятсот вісімнадцять грн. 20 коп.","в т.ч.ПДВ-",253.03335821657041]
["10.84.3 Сіль харчова(14410000-8 Камяна сіль)",2230,59.394840500352018,"П'ятдесят дев'ять грн. 39 коп.","в т.ч.ПДВ-",9.8991400833920036]
["01.13.5 Коренеплоди та бульби їстівні з високим умістом крохмалю та інуліну(03212000-0 Картопля та сушені овочі)",2230,4508.6854357310358,"Чотири тисячі п'ятсот вісім грн. 69 коп.","в т.ч.ПДВ-",751.4475726218393]
["01.13.4 Овочі коренеплодні,цибулинні та бульбоподібні(03221000-6 Овочі)",2230,5704.738782755283,"П'ять тисяч сімсот чотири грн. 74 коп.","в т.ч.ПДВ-",950.78979712588045]
["43.21.1 Роботи електромонтажні(45310000-3 Електромонтажні роботи(повірка контурів заземлення)",2240,745,"Сімсот сорок п'ять грн. 0 коп.","в т.ч.ПДВ-",124.16666666666667]
["38.11.6 Послуги підприємств щодо перевезення інших безпечних відходів(90512000-9 Послуги з перевезення сміття)",2240,13365,"Тринадцять тисяч триста шістдесят п'ять грн. 0 коп.","в т.ч.ПДВ-",2227.5]
["Капітальний ремонт будівель (45000000-7 Будівельні роботи)",3132,398000,"Триста дев'яносто вісім тисяч грн. 0 коп.","в т.ч.ПДВ-",66333.333333333328]
[" 36.00.2 Обробляння та розподіляння води трубопроводами(65110000-7 Розподіл води)",2272,3101.6328000000008,"Три тисячі сто одна грн. 63 коп.","в т.ч.ПДВ-",516.93880000000013]
["37.00.1 Послуги каналізаційні(90400000-1 Послуги у сфері водовідведення)",2272,2469.3671999999992,"Дві тисячі чотириста шістдесят дев'ять грн. 37 коп.","в т.ч.ПДВ-",411.56119999999987]
["35.11.1  Енергія електрична (09310000-5 Електрична енергія)",2273,58722,"П'ятдесят вісім тисяч сімсот двадцять дві грн. 0 коп.","в т.ч.ПДВ-",9787]
["61.10.1  Послуги щодо передавання даних і повідомлень(64211000-8 Послуги громадського телефонного звязку)",2240,1584,"Одна тисячa п'ятсот вісімдесят чотири грн. 0 коп.","в т.ч.ПДВ-",264]
["91.01.1 Послуги бібліотек і архівів(92512000-3 Послуги архівів)",2240,198,"Сто дев'яносто вісім грн. 0 коп.","без ПДВ"]
["71.20.1 Послуги щодо технічного випробування й аналізування(71632000-7 Послуги з технічних випробувань (повірка,атестація)",2240,147,"Сто сорок сім грн. 0 коп.","в т.ч.ПДВ-",24.5]
["58.29.1 Програмне забезпечення системне на фізичних носіях(48443000-5 Пакети програмного забезпечення для бухгалтерського обліку)",2240,7392,"Сім тисяч триста дев'яносто дві грн. 0 коп.","в т.ч.ПДВ-",1232]
["27.51.2 Прилади електричні побутові,інші,н.в.і.у.(39711000-9 Електричні побутові прилади для обробки продуктів харчування)",3110,137180,"Сто тридцять сім тисяч сто вісімдесят грн. 0 коп.","в т.ч.ПДВ-",22863.333333333332]
[]
[null,"\"___\"_____________________2015р."]
[]
["                                                                                    Завідуюча _______________________   М.М.Рудюк"]
["                                                                                                (підпис)          (ініціали та прізвище)"]
["МП"]

{"sheet":"60","index":32,"n_rows":53,"n_cols":9,"rows_kept":53,"cut":false,"hidden":false,"merged":[[0,0,0,8],[1,0,1,8],[2,0,2,8],[3,2,3,5],[4,2,4,5]]}
["Додаток до річного плану закупівель на  2016 рік "]
["Дошкільний навчальний заклад № 60, 26243384"]
["(найменування замовника,код за ЄДРПОУ)"]
["Предмет закупівлі","Код КЕКВ (для бюджетних коштів)","Очікувана вартість предмета закупівлі",null,null,null,"Процедура закупівлі","Орієнтовний початок проведення процедури закупівлі","Примітки"]
[1,2,3,null,null,null,4,5,6]
["10.73.1 Макарони,локшина,кускус і подібні борошняні вироби(15851000-8 Борошняні вироби(макарони)",2230,2660.2006812095683,{"$f":"SUMINWORDS(C6,\"грн.\",\"коп.\")","v":"Дві тисячі шістсот шістдесят грн. 20 коп."},"в т.ч.ПДВ-",{"$f":"C6/6","v":443.36678020159474}]
["10.11.1 М'ясо великої рогатої худоби,свиней,овець,кіз,коней та ін..тварин родини конячих,свіже чиа охолоджене(15111000-9 М'ясо великої рогатої худоби родини бикових(яловичина)",2230,97831.707329171462,{"$f":"SUMINWORDS(C7,\"грн.\",\"коп.\")","v":"Дев'яносто сім тисяч вісімсот тридцять одна грн. 71 коп."},"в т.ч.ПДВ-",{"$f":"C7/6","v":16305.28455486191}]
["10.12.1 М'ясо  свійської птиці,свіже чи охолоджене(15112000-6 М'ясо свійської птиці)",2230,34629.648694576681,{"$f":"SUMINWORDS(C8,\"грн.\",\"коп.\")","v":"Тридцять чотири тисячі шістсот двадцять дев'ять грн. 65 коп."},"в т.ч.ПДВ-",5771.6081157627805]
["10.12.4 Субпродукти харчові свійської птиці(15114000-0 Потрухи(печінка)",2230,9833.6971744361599,{"$f":"SUMINWORDS(C9,\"грн.\",\"коп.\")","v":"Дев'ять тисяч вісімсот тридцять три грн. 70 коп."},"в т.ч.ПДВ-",1638.9495290726934]
["10.13.1.Консерви та готові страви з м’яса,м’ясних субпродуктів чи крові (15130000-8 Мясопродукти (ковбаса,сосиски)",2230,29525.73738088852,"Двадцять дев'ять тисяч п'ятсот двадцять п'ять грн. 74 коп.","в т.ч.ПДВ-",4920.9562301480864]
["10.20.1 Продукція рибна,свіжа,охолоджена чи заморожена (15221000-3 Морожена риба)",2230,69516.909872011383,"Шістдесят дев'ять тисяч п'ятсот шістнадцять грн. 91 коп.","в т.ч.ПДВ-",11586.151645335231]
["01.24.1 Яблука (03222000-3 Фрукти і горіхи(яблука,апельсини,лимони,ягоди)",2230,29334.495237767635,"Двадцять дев'ять тисяч триста тридцять чотири грн. 50 коп.","в т.ч.ПДВ-",4889.0825396279388]
["10.39.1 Плоди та овочі,оброблені та законсервовані,крім картоплі(15331000-7 Оброблені овочі(консерви овочеві)",2230,20447.047050792302,"Двадцять тисяч чотириста сорок сім грн. 5 коп.","в т.ч.ПДВ-",3407.8411751320505]
["10.72.1 Вироби хлібобулочні,зниженої вологості,та кондитерські,борошняні,тривалого зберігання(15820000-2 Сухарі та печиво; пресерви з хлібобулочних і кондитерських виробів (печиво)",2230,7171.1033523071164,"Сім тисяч сто сімдесят одна грн. 10 коп.","в т.ч.ПДВ-",1195.1838920511861]
["10.71.1 Вироби  хлібобулочні,кондитерські та кулінарні,борошняні,нетривалого зберігання(15810000-9 Хлібопродукти, свіжовипечені хлібобулочні та кондитерські вироби)",2230,26378.705417914112,"Двадцять шість тисяч триста сімдесят вісім грн. 71 коп.","в т.ч.ПДВ-",4396.4509029856854]
["10.51.1 Молоко та вершки,рідинні,оброблені(15511000-3 Молоко)",2230,103912.10326534885,"Сто три тисячі дев'ятсот дванадцять грн. 10 коп.","в т.ч.ПДВ-",17318.683877558142]
["10.51.5 Продукти молочні, інші (15550000-8 Молочні продукти різні (кефір,сметана)",2230,19661.271334684883,"Дев'ятнадцять тисяч шістсот шістдесят одна грн. 27 коп.","в т.ч.ПДВ-",3276.8785557808137]
["10.51.4 Сир сичужний та кисломолочний сир(15540000-5 Сирні продукти)",2230,73311.695254376318,"Сімдесят три тисячі триста одинадцять грн. 70 коп.","в т.ч.ПДВ-",12218.615875729387]
["10.32.1 Соки фруктові та овочеві (15321000-4 Фруктові соки)",2230,19566.830660314481,"Дев'ятнадцять тисяч п'ятсот шістдесят шість грн. 83 коп.","в т.ч.ПДВ-",3261.138443385747]
["10.61.2 Борошно зернових і овочевих культур;їхні суміші(15612000-1 Борошно зернових та овочевих культур і супутня продукція)",2230,4324.2612428264001,"Чотири тисячі триста двадцять чотири грн. 26 коп.","в т.ч.ПДВ-",720.71020713773339]
["10.61.1 Рис напівобрушений чи повністю обрушений,або лущений чи дроблений(15614000-5 Рис оброблений)",2230,2108.7105437395585,"Дві тисячі сто вісім грн. 71 коп.","в т.ч.ПДВ-",351.45175728992643]
["0.81.1 Цукор-сирець,тростинний і очищений тростинний чи буряковий цукор (сахароза);меляса (15831000-2 Цукор)",2230,18938.220743214373,"Вісімнадцять тисяч дев'ятсот тридцять вісім грн. 22 коп.","в т.ч.ПДВ-",3156.3701238690624]
["10.39.2 Плоди й горіхи,оброблені та законсервовані(15332000-4 Оброблені фрукти та горіхи(повидло,сухофрукти)",2230,12426.813028831273,"Дванадцять тисяч чотириста двадцять шість грн. 81 коп.","в т.ч.ПДВ-",2071.1355048052123]
["10.51.3 Масло вершкове та молочні пасти(15530000-2 Вершкове масло)",2230,34053.361046104139,"Тридцять чотири тисячі п'ятдесят три грн. 36 коп.","в т.ч.ПДВ-",5675.5601743506895]
["01.47.2 Яйця у шкаралупі свіжі (03142000-8 Продукція тваринництва (03142500-3 Яйця)",2230,26124.609034842932,"Двадцять шість тисяч сто двадцять чотири грн. 61 коп.","в т.ч.ПДВ-",4354.1015058071553]
["10.41.5 Олії рафіновані(15421000-5 Рафіновані олії)",2230,7642.9436381235446,"Сім тисяч шістсот сорок дві грн. 94 коп.","в т.ч.ПДВ-",1273.8239396872575]
["10.61.3 Крупи,крупка,гранули та інші продукти з зерна зернових культур(15613000-8 Продукція із зерна зернових культур(крупи)",2230,7968.4606191644561,"Сім тисяч дев'ятсот шістдесят вісім грн. 46 коп.","в т.ч.ПДВ-",1328.0767698607426]
["10.82.1 Какао терте,какао-масло,жири й олія,какао-порошок(15841000-5 Какао)",2230,9818.909659888137,"Дев'ять тисяч вісімсот вісімнадцять грн. 91 коп.","в т.ч.ПДВ-",1636.4849433146894]
["10.83.1 Чай і кава,оброблені(15860000-4 Кава, чай та супутня продукція)",2230,10308.819976237548,"Десять тисяч триста вісім грн. 82 коп.","в т.ч.ПДВ-",1718.136662706258]
["10.84.3 Сіль харчова(14410000-8 Камяна сіль)",2230,387.57654467594887,"Триста вісімдесят сім грн. 58 коп.","в т.ч.ПДВ-",64.596090779324811]
["01.13.5 Коренеплоди та бульби їстівні з високим умістом крохмалю та інуліну(03212000-0 Картопля та сушені овочі)",2230,26471.283457826488,"Двадцять шість тисяч чотириста сімдесят одна грн. 28 коп.","в т.ч.ПДВ-",4411.8805763044147]
["01.13.4 Овочі коренеплодні,цибулинні та бульбоподібні(03221000-6 Овочі)",2230,32375.878121585843,"Тридцять дві тисячі триста сімдесят п'ять грн. 88 коп.","в т.ч.ПДВ-",5395.9796869309739]
["43.21.1 Роботи електромонтажні(45310000-3 Електромонтажні роботи(повірка контурів заземлення)",2240,745,"Сімсот сорок п'ять грн. 0 коп.","в т.ч.ПДВ-",124.16666666666667]
["38.11.6 Послуги підприємств щодо перевезення інших безпечних відходів(90512000-9 Послуги з перевезення сміття)",2240,8149,"Вісім тисяч сто сорок дев'ять грн. 0 коп.","в т.ч.ПДВ-",1358.1666666666667]
["Капітальний ремонт будівель (45000000-7 Будівельні роботи)",3132,390000,"Триста дев'яносто тисяч грн. 0 коп.","в т.ч.ПДВ-",65000]
[" 36.00.2 Обробляння та розподіляння води трубопроводами(65110000-7 Розподіл води)",2272,40374.549600000006,"Сорок тисяч триста сімдесят чотири грн. 55 коп.","в т.ч.ПДВ-",6729.0916000000007]
["37.00.1 Послуги каналізаційні(90400000-1 Послуги у сфері водовідведення)",2272,42969.450399999994,"Сорок дві тисячі дев'ятсот шістдесят дев'ять грн. 45 коп.","в т.ч.ПДВ-",7161.5750666666654]
["35.11.1  Енергія електрична (09310000-5 Електрична енергія)",2273,101655,"Сто одна тисячa шістсот п'ятдесят п'ять грн. 0 коп.","в т.ч.ПДВ-",16942.5]
["61.10.1  Послуги щодо передавання даних і повідомлень(64211000-8 Послуги громадського телефонного звязку)",2240,1647,"Одна тисячa шістсот сорок сім грн. 0 коп.","в т.ч.ПДВ-",274.5]
["Поточний ремонт будівель (45400000-1 Завершальні будівельні роботи)",2240,118100,"Сто вісімнадцять тисяч сто грн. 0 коп.","в т.ч.ПДВ-",19683.333333333332]
["91.01.1 Послуги бібліотек і архівів(92512000-3 Послуги архівів)",2240,975,"Дев'ятсот сімдесят п'ять грн. 0 коп.","без ПДВ"]
["71.20.1 Послуги щодо технічного випробування й аналізування(71632000-7 Послуги з технічних випробувань (повірка,атестація)",2240,1447,"Одна тисячa чотириста сорок сім грн. 0 коп.","в т.ч.ПДВ-",241.16666666666666]
["58.29.1 Програмне забезпечення системне на фізичних носіях(48443000-5 Пакети програмного забезпечення для бухгалтерського обліку)",2240,7392,"Сім тисяч триста дев'яносто дві грн. 0 коп.","в т.ч.ПДВ-",1232]
["31.09.1 Меблі, інші (39161000-8 Меблі для дитячого садка)",3110,88437,"Вісімдесят вісім тисяч чотириста тридцять сім грн. 0 коп.","в т.ч.ПДВ-",14739.5]
["27.52.1 Устатковання побутове неелектричне для приготування та підігрівання їжі(39314000-6 Промислове кухонне обладнання)",3110,20000,"Двадцять тисяч грн. 0 коп.","в т.ч.ПДВ-",3333.3333333333335]
["27.51.2 Прилади електричні побутові,інші,н.в.і.у.(39711000-9 Електричні побутові прилади для обробки продуктів харчування)",3110,134200,"Сто тридцять чотири тисячі двісті грн. 0 коп.","в т.ч.ПДВ-",22366.666666666668]
["13.92.1 Вироби текстильні готові для домашнього господарства (39512000-4 Постільна білизна)",2210,55926,"П'ятдесят п'ять тисяч дев'ятсот двадцять шість грн. 0 коп.","в т.ч.ПДВ-",9321]
[]
["Затверджений рішенням комітету з конкурсних торгів від__________№_______"]
[]
["Голова комітету з конкурсних торгів       ___________________О.Ф.Козловська   "]
["                                                                                                (підпис)          (ініціали та прізвище)"]
["МП"]

{"sheet":"61","index":33,"n_rows":51,"n_cols":9,"rows_kept":51,"cut":false,"hidden":false,"merged":[[0,0,0,8],[1,0,1,8],[2,0,2,8],[3,2,3,5],[4,2,4,5]]}
["Додаток до річного плану закупівель на  2016 рік "]
["Дошкільний навчальний заклад № 61, 26243318"]
["(найменування замовника,код за ЄДРПОУ)"]
["Предмет закупівлі","Код КЕКВ (для бюджетних коштів)","Очікувана вартість предмета закупівлі",null,null,null,"Процедура закупівлі","Орієнтовний початок проведення процедури закупівлі","Примітки"]
[1,2,3,null,null,null,4,5,6]
["10.73.1 Макарони,локшина,кускус і подібні борошняні вироби(15851000-8 Борошняні вироби(макарони)",2230,3234.1341959756678,{"$f":"SUMINWORDS(C6,\"грн.\",\"коп.\")","v":"Три тисячі двісті тридцять чотири грн. 13 коп."},"в т.ч.ПДВ-",{"$f":"C6/6","v":539.0223659959446}]
["10.11.1 М'ясо великої рогатої худоби,свиней,овець,кіз,коней та ін..тварин родини конячих,свіже чиа охолоджене(15111000-9 М'ясо великої рогатої худоби родини бикових(яловичина)",2230,108373.08264350207,{"$f":"SUMINWORDS(C7,\"грн.\",\"коп.\")","v":"Сто вісім тисяч триста сімдесят три грн. 8 коп."},"в т.ч.ПДВ-",{"$f":"C7/6","v":18062.180440583677}]
["10.12.1 М'ясо  свійської птиці,свіже чи охолоджене(15112000-6 М'ясо свійської птиці)",2230,41687.881540163755,{"$f":"SUMINWORDS(C8,\"грн.\",\"коп.\")","v":"Сорок одна тисячa шістсот вісімдесят сім грн. 88 коп."},"в т.ч.ПДВ-",6947.9802566939588]
["10.12.4 Субпродукти харчові свійської птиці(15114000-0 Потрухи(печінка)",2230,11747.524080469024,{"$f":"SUMINWORDS(C9,\"грн.\",\"коп.\")","v":"Одинадцять тисяч сімсот сорок сім грн. 52 коп."},"в т.ч.ПДВ-",1957.9206800781706]
["10.13.1.Консерви та готові страви з м’яса,м’ясних субпродуктів чи крові (15130000-8 Мясопродукти (ковбаса,сосиски)",2230,35272.014657648848,"Тридцять п'ять тисяч двісті сімдесят дві грн. 1 коп.","в т.ч.ПДВ-",5878.6691096081413]
["10.20.1 Продукція рибна,свіжа,охолоджена чи заморожена (15221000-3 Морожена риба)",2230,82762.536270371973,"Вісімдесят дві тисячі сімсот шістдесят дві грн. 54 коп.","в т.ч.ПДВ-",13793.756045061995]
["01.24.1 Яблука (03222000-3 Фрукти і горіхи(яблука,апельсини,лимони,ягоди)",2230,34998.245416354606,"Тридцять чотири тисячі дев'ятсот дев'яносто вісім грн. 25 коп.","в т.ч.ПДВ-",5833.0409027257674]
["10.39.1 Плоди та овочі,оброблені та законсервовані,крім картоплі(15331000-7 Оброблені овочі(консерви овочеві)",2230,25052.422869738548,"Двадцять п'ять тисяч п'ятдесят дві грн. 42 коп.","в т.ч.ПДВ-",4175.4038116230913]
["10.72.1 Вироби хлібобулочні,зниженої вологості,та кондитерські,борошняні,тривалого зберігання(15820000-2 Сухарі та печиво; пресерви з хлібобулочних і кондитерських виробів (печиво)",2230,8406.3114369603536,"Вісім тисяч чотириста шість грн. 31 коп.","в т.ч.ПДВ-",1401.0519061600589]
["10.71.1 Вироби  хлібобулочні,кондитерські та кулінарні,борошняні,нетривалого зберігання(15810000-9 Хлібопродукти, свіжовипечені хлібобулочні та кондитерські вироби)",2230,31964.674048464822,"Тридцять одна тисячa дев'ятсот шістдесят чотири грн. 67 коп.","в т.ч.ПДВ-",5327.4456747441372]
["10.51.1 Молоко та вершки,рідинні,оброблені(15511000-3 Молоко)",2230,129075.46508563902,"Сто двадцять дев'ять тисяч сімдесят п'ять грн. 47 коп.","в т.ч.ПДВ-",21512.577514273169]
["10.51.5 Продукти молочні, інші (15550000-8 Молочні продукти різні (кефір,сметана)",2230,23865.661942348968,"Двадцять три тисячі вісімсот шістдесят п'ять грн. 66 коп.","в т.ч.ПДВ-",3977.610323724828]
["10.51.4 Сир сичужний та кисломолочний сир(15540000-5 Сирні продукти)",2230,89907.069218564939,"Вісімдесят дев'ять тисяч дев'ятсот сім грн. 7 коп.","в т.ч.ПДВ-",14984.51153642749]
["10.32.1 Соки фруктові та овочеві (15321000-4 Фруктові соки)",2230,23902.277288540874,"Двадцять три тисячі дев'ятсот дві грн. 28 коп.","в т.ч.ПДВ-",3983.7128814234788]
["10.61.2 Борошно зернових і овочевих культур;їхні суміші(15612000-1 Борошно зернових та овочевих культур і супутня продукція)",2230,5221.2817167135036,"П'ять тисяч двісті двадцять одна грн. 28 коп.","в т.ч.ПДВ-",870.21361945225055]
["10.61.1 Рис напівобрушений чи повністю обрушений,або лущений чи дроблений(15614000-5 Рис оброблений)",2230,2575.9401209496978,"Дві тисячі п'ятсот сімдесят п'ять грн. 94 коп.","в т.ч.ПДВ-",429.32335349161627]
["0.81.1 Цукор-сирець,тростинний і очищений тростинний чи буряковий цукор (сахароза);меляса (15831000-2 Цукор)",2230,23278.750077556197,"Двадцять три тисячі двісті сімдесят вісім грн. 75 коп.","в т.ч.ПДВ-",3879.7916795926994]
["10.39.2 Плоди й горіхи,оброблені та законсервовані(15332000-4 Оброблені фрукти та горіхи(повидло,сухофрукти)",2230,15449.48156880341,"П'ятнадцять тисяч чотириста сорок дев'ять грн. 48 коп.","в т.ч.ПДВ-",2574.9135948005683]
["10.51.3 Масло вершкове та молочні пасти(15530000-2 Вершкове масло)",2230,40994.134646151964,"Сорок тисяч дев'ятсот дев'яносто чотири грн. 13 коп.","в т.ч.ПДВ-",6832.3557743586607]
["01.47.2 Яйця у шкаралупі свіжі (03142000-8 Продукція тваринництва (03142500-3 Яйця)",2230,31208.96121628362,"Тридцять одна тисячa двісті вісім грн. 96 коп.","в т.ч.ПДВ-",5201.49353604727]
["10.41.5 Олії рафіновані(15421000-5 Рафіновані олії)",2230,9291.8949884378108,"Дев'ять тисяч двісті дев'яносто одна грн. 89 коп.","в т.ч.ПДВ-",1548.6491647396351]
["10.61.3 Крупи,крупка,гранули та інші продукти з зерна зернових культур(15613000-8 Продукція із зерна зернових культур(крупи)",2230,9716.3553209846086,"Дев'ять тисяч сімсот шістнадцять грн. 36 коп.","в т.ч.ПДВ-",1619.3925534974348]
["10.82.1 Какао терте,какао-масло,жири й олія,какао-порошок(15841000-5 Какао)",2230,11729.858630723957,"Одинадцять тисяч сімсот двадцять дев'ять грн. 86 коп.","в т.ч.ПДВ-",1954.9764384539928]
["10.83.1 Чай і кава,оброблені(15860000-4 Кава, чай та супутня продукція)",2230,12046.51578235026,"Дванадцять тисяч сорок шість грн. 52 коп.","в т.ч.ПДВ-",2007.75263039171]
["10.84.3 Сіль харчова(14410000-8 Камяна сіль)",2230,457.86452282430724,"Чотириста п'ятдесят сім грн. 86 коп.","в т.ч.ПДВ-",76.310753804051203]
["01.13.5 Коренеплоди та бульби їстівні з високим умістом крохмалю та інуліну(03212000-0 Картопля та сушені овочі)",2230,32239.488469102675,"Тридцять дві тисячі двісті тридцять дев'ять грн. 49 коп.","в т.ч.ПДВ-",5373.2480781837794]
["01.13.4 Овочі коренеплодні,цибулинні та бульбоподібні(03221000-6 Овочі)",2230,39838.172264013483,"Тридцять дев'ять тисяч вісімсот тридцять вісім грн. 17 коп.","в т.ч.ПДВ-",6639.6953773355808]
["43.21.1 Роботи електромонтажні(45310000-3 Електромонтажні роботи(повірка контурів заземлення)",2240,745,"Сімсот сорок п'ять грн. 0 коп.","в т.ч.ПДВ-",124.16666666666667]
["38.11.6 Послуги підприємств щодо перевезення інших безпечних відходів(90512000-9 Послуги з перевезення сміття)",2240,9934,"Дев'ять тисяч дев'ятсот тридцять чотири грн. 0 коп.","в т.ч.ПДВ-",1655.6666666666667]
["64.99.1 Послуги фінансові, крім страхування та пенсійного забезпечення, інші, н.в.і.у( 66110000-4 Банківські послуги)",2240,1867,"Одна тисячa вісімсот шістдесят сім грн. 0 коп.","без ПДВ"]
[" 36.00.2 Обробляння та розподіляння води трубопроводами(65110000-7 Розподіл води)",2272,14166.196800000002,"Чотирнадцять тисяч сто шістдесят шість грн. 20 коп.","в т.ч.ПДВ-",2361.0328000000004]
["37.00.1 Послуги каналізаційні(90400000-1 Послуги у сфері водовідведення)",2272,28391.803199999998,"Двадцять вісім тисяч триста дев'яносто одна грн. 80 коп.","в т.ч.ПДВ-",4731.9672]
["35.11.1  Енергія електрична (09310000-5 Електрична енергія)",2273,83462,"Вісімдесят три тисячі чотириста шістдесят дві грн. 0 коп.","в т.ч.ПДВ-",13910.333333333334]
["61.10.1  Послуги щодо передавання даних і повідомлень(64211000-8 Послуги громадського телефонного звязку)",2240,1645,"Одна тисячa шістсот сорок п'ять грн. 0 коп.","в т.ч.ПДВ-",274.16666666666669]
["Поточний ремонт будівель (45400000-1 Завершальні будівельні роботи)",2240,20200,"Двадцять тисяч двісті грн. 0 коп.","в т.ч.ПДВ-",3366.6666666666665]
["91.01.1 Послуги бібліотек і архівів(92512000-3 Послуги архівів)",2240,869,"Вісімсот шістдесят дев'ять грн. 0 коп.","без ПДВ"]
["71.20.1 Послуги щодо технічного випробування й аналізування(71632000-7 Послуги з технічних випробувань (повірка,атестація)",2240,1594,"Одна тисячa п'ятсот дев'яносто чотири грн. 0 коп.","в т.ч.ПДВ-",265.66666666666669]
["58.29.1 Програмне забезпечення системне на фізичних носіях(48443000-5 Пакети програмного забезпечення для бухгалтерського обліку)",2240,7392,"Сім тисяч триста дев'яносто дві грн. 0 коп.","в т.ч.ПДВ-",1232]
["Капітальний ремонт будівель (45000000-7 Будівельні роботи)",3132,110000,"Сто десять тисяч грн. 0 коп.","в т.ч.ПДВ-",18333.333333333332]
["31.09.1 Меблі, інші (39161000-8 Меблі для дитячого садка)",3110,27200,"Двадцять сім тисяч двісті грн. 0 коп.","в т.ч.ПДВ-",4533.333333333333]
[]
["Затверджений рішенням комітету з конкурсних торгів від__________№_______"]
[]
["Голова комітету з конкурсних торгів      _______________________   Г.Г.Горенюк"]
["                                                                                                (підпис)          (ініціали та прізвище)"]
["МП"]

{"sheet":"67","index":34,"n_rows":53,"n_cols":9,"rows_kept":53,"cut":false,"hidden":false,"merged":[[0,0,0,8],[1,0,1,8],[2,0,2,8],[3,2,3,5],[4,2,4,5]]}
["Додаток до річного плану закупівель на  2016 рік "]
["Дошкільний навчальний заклад № 67, 26243355"]
["(найменування замовника,код за ЄДРПОУ)"]
["Предмет закупівлі","Код КЕКВ (для бюджетних коштів)","Очікувана вартість предмета закупівлі",null,null,null,"Процедура закупівлі","Орієнтовний початок проведення процедури закупівлі","Примітки"]
[1,2,3,null,null,null,4,5,6]
["10.73.1 Макарони,локшина,кускус і подібні борошняні вироби(15851000-8 Борошняні вироби(макарони)",2230,2607.7269723120003,{"$f":"SUMINWORDS(C6,\"грн.\",\"коп.\")","v":"Дві тисячі шістсот сім грн. 73 коп."},"в т.ч.ПДВ-",{"$f":"C6/6","v":434.62116205200005}]
["10.11.1 М'ясо великої рогатої худоби,свиней,овець,кіз,коней та ін..тварин родини конячих,свіже чиа охолоджене(15111000-9 М'ясо великої рогатої худоби родини бикових(яловичина)",2230,92157.806374100022,{"$f":"SUMINWORDS(C7,\"грн.\",\"коп.\")","v":"Дев'яносто дві тисячі сто п'ятдесят сім грн. 81 коп."},"в т.ч.ПДВ-",{"$f":"C7/6","v":15359.634395683337}]
["10.12.1 М'ясо  свійської птиці,свіже чи охолоджене(15112000-6 М'ясо свійської птиці)",2230,34048.079699759997,{"$f":"SUMINWORDS(C8,\"грн.\",\"коп.\")","v":"Тридцять чотири тисячі сорок вісім грн. 8 коп."},"в т.ч.ПДВ-",5674.6799499599992]
["10.12.4 Субпродукти харчові свійської птиці(15114000-0 Потрухи(печінка)",2230,9690.7885893000002,{"$f":"SUMINWORDS(C9,\"грн.\",\"коп.\")","v":"Дев'ять тисяч шістсот дев'яносто грн. 79 коп."},"в т.ч.ПДВ-",1615.1314315500001]
["10.13.1.Консерви та готові страви з м’яса,м’ясних субпродуктів чи крові (15130000-8 Мясопродукти (ковбаса,сосиски)",2230,29096.653458600002,"Двадцять дев'ять тисяч дев'яносто шість грн. 65 коп.","в т.ч.ПДВ-",4849.4422431000003]
["10.20.1 Продукція рибна,свіжа,охолоджена чи заморожена (15221000-3 Морожена риба)",2230,68576.37944774401,"Шістдесят вісім тисяч п'ятсот сімдесят шість грн. 38 коп.","в т.ч.ПДВ-",11429.396574624001]
["01.24.1 Яблука (03222000-3 Фрукти і горіхи(яблука,апельсини,лимони,ягоди)",2230,28919.325975750005,"Двадцять вісім тисяч дев'ятсот дев'ятнадцять грн. 33 коп.","в т.ч.ПДВ-",4819.8876626250012]
["10.39.1 Плоди та овочі,оброблені та законсервовані,крім картоплі(15331000-7 Оброблені овочі(консерви овочеві)",2230,19996.048690285501,"Дев'ятнадцять тисяч дев'ятсот дев'яносто шість грн. 5 коп.","в т.ч.ПДВ-",3332.67478171425]
["10.72.1 Вироби хлібобулочні,зниженої вологості,та кондитерські,борошняні,тривалого зберігання(15820000-2 Сухарі та печиво; пресерви з хлібобулочних і кондитерських виробів (печиво)",2230,7106.3176504319999,"Сім тисяч сто шість грн. 32 коп.","в т.ч.ПДВ-",1184.386275072]
["10.71.1 Вироби  хлібобулочні,кондитерські та кулінарні,борошняні,нетривалого зберігання(15810000-9 Хлібопродукти, свіжовипечені хлібобулочні та кондитерські вироби)",2230,25884.225871560004,"Двадцять п'ять тисяч вісімсот вісімдесят чотири грн. 23 коп.","в т.ч.ПДВ-",4314.0376452600003]
["10.51.1 Молоко та вершки,рідинні,оброблені(15511000-3 Молоко)",2230,101187.86001408,"Сто одна тисячa сто вісімдесят сім грн. 86 коп.","в т.ч.ПДВ-",16864.643335680001]
["10.51.5 Продукти молочні, інші (15550000-8 Молочні продукти різні (кефір,сметана)",2230,19282.658381279998,"Дев'ятнадцять тисяч двісті вісімдесят дві грн. 66 коп.","в т.ч.ПДВ-",3213.7763968799995]
["10.51.4 Сир сичужний та кисломолочний сир(15540000-5 Сирні продукти)",2230,71674.251156900005,"Сімдесят одна тисячa шістсот сімдесят чотири грн. 25 коп.","в т.ч.ПДВ-",11945.708526150001]
["10.32.1 Соки фруктові та овочеві (15321000-4 Фруктові соки)",2230,19152.862774920002,"Дев'ятнадцять тисяч сто п'ятдесят дві грн. 86 коп.","в т.ч.ПДВ-",3192.1437958200004]
["10.61.2 Борошно зернових і овочевих культур;їхні суміші(15612000-1 Борошно зернових та овочевих культур і супутня продукція)",2230,4247.7940701000007,"Чотири тисячі двісті сорок сім грн. 79 коп.","в т.ч.ПДВ-",707.96567835000008]
["10.61.1 Рис напівобрушений чи повністю обрушений,або лущений чи дроблений(15614000-5 Рис оброблений)",2230,2064.0973685220001,"Дві тисячі шістдесят чотири грн. 10 коп.","в т.ч.ПДВ-",344.016228087]
["0.81.1 Цукор-сирець,тростинний і очищений тростинний чи буряковий цукор (сахароза);меляса (15831000-2 Цукор)",2230,18502.071140700002,"Вісімнадцять тисяч п'ятсот дві грн. 7 коп.","в т.ч.ПДВ-",3083.6785234500003]
["10.39.2 Плоди й горіхи,оброблені та законсервовані(15332000-4 Оброблені фрукти та горіхи(повидло,сухофрукти)",2230,12097.7306352,"Дванадцять тисяч дев'яносто сім грн. 73 коп.","в т.ч.ПДВ-",2016.2884391999999]
["10.51.3 Масло вершкове та молочні пасти(15530000-2 Вершкове масло)",2230,33481.470204000005,"Тридцять три тисячі чотириста вісімдесят одна грн. 47 коп.","в т.ч.ПДВ-",5580.2450340000005]
["01.47.2 Яйця у шкаралупі свіжі (03142000-8 Продукція тваринництва (03142500-3 Яйця)",2230,25744.952142000006,"Двадцять п'ять тисяч сімсот сорок чотири грн. 95 коп.","в т.ч.ПДВ-",4290.8253570000006]
["10.41.5 Олії рафіновані(15421000-5 Рафіновані олії)",2230,7492.1829822,"Сім тисяч чотириста дев'яносто дві грн. 18 коп.","в т.ч.ПДВ-",1248.6971636999999]
["10.61.3 Крупи,крупка,гранули та інші продукти з зерна зернових культур(15613000-8 Продукція із зерна зернових культур(крупи)",2230,7804.2219364619996,"Сім тисяч вісімсот чотири грн. 22 коп.","в т.ч.ПДВ-",1300.703656077]
["10.82.1 Какао терте,какао-масло,жири й олія,какао-порошок(15841000-5 Какао)",2230,9676.2159748800004,"Дев'ять тисяч шістсот сімдесят шість грн. 22 коп.","в т.ч.ПДВ-",1612.7026624800001]
["10.83.1 Чай і кава,оброблені(15860000-4 Кава, чай та супутня продукція)",2230,10225.021180752001,"Десять тисяч двісті двадцять п'ять грн. 2 коп.","в т.ч.ПДВ-",1704.1701967920001]
["10.84.3 Сіль харчова(14410000-8 Камяна сіль)",2230,383.20781184000003,"Триста вісімдесят три грн. 21 коп.","в т.ч.ПДВ-",63.867968640000008]
["01.13.5 Коренеплоди та бульби їстівні з високим умістом крохмалю та інуліну(03212000-0 Картопля та сушені овочі)",2230,25935.097875120005,"Двадцять п'ять тисяч дев'ятсот тридцять п'ять грн. 10 коп.","в т.ч.ПДВ-",4322.5163125200006]
["01.13.4 Овочі коренеплодні,цибулинні та бульбоподібні(03221000-6 Овочі)",2230,31619.951713153136,"Тридцять одна тисячa шістсот дев'ятнадцять грн. 95 коп.","в т.ч.ПДВ-",5269.9919521921893]
["43.21.1 Роботи електромонтажні(45310000-3 Електромонтажні роботи(повірка контурів заземлення)",2240,745,"Сімсот сорок п'ять грн. 0 коп.","в т.ч.ПДВ-",124.16666666666667]
["38.11.6 Послуги підприємств щодо перевезення інших безпечних відходів(90512000-9 Послуги з перевезення сміття)",2240,7649,"Сім тисяч шістсот сорок дев'ять грн. 0 коп.","в т.ч.ПДВ-",1274.8333333333333]
["Поточний ремонт будівель (45400000-1 Завершальні будівельні роботи)",2240,39000,"Тридцять дев'ять тисяч грн. 0 коп.","в т.ч.ПДВ-",6500]
[" 36.00.2 Обробляння та розподіляння води трубопроводами(65110000-7 Розподіл води)",2272,21524.798400000003,"Двадцять одна тисячa п'ятсот двадцять чотири грн. 80 коп.","в т.ч.ПДВ-",3587.4664000000007]
["37.00.1 Послуги каналізаційні(90400000-1 Послуги у сфері водовідведення)",2272,29184.201599999997,"Двадцять дев'ять тисяч сто вісімдесят чотири грн. 20 коп.","в т.ч.ПДВ-",4864.0335999999998]
["35.11.1  Енергія електрична (09310000-5 Електрична енергія)",2273,88113,"Вісімдесят вісім тисяч сто тринадцять грн. 0 коп.","в т.ч.ПДВ-",14685.5]
["61.10.1  Послуги щодо передавання даних і повідомлень(64211000-8 Послуги громадського телефонного звязку)",2240,1645,"Одна тисячa шістсот сорок п'ять грн. 0 коп.","в т.ч.ПДВ-",274.16666666666669]
["85.60.1 Послуги освітянські допоміжні (80570000-0 Послуги з професійної підготовки у сфері підвищення кваліфікації)",2282,676,"Шістсот сімдесят шість грн. 0 коп.","в т.ч.ПДВ-",112.66666666666667]
["91.01.1 Послуги бібліотек і архівів(92512000-3 Послуги архівів)",2240,896,"Вісімсот дев'яносто шість грн. 0 коп.","без ПДВ"]
["71.20.1 Послуги щодо технічного випробування й аналізування(71632000-7 Послуги з технічних випробувань (повірка,атестація)",2240,1300,"Одна тисячa триста грн. 0 коп.","в т.ч.ПДВ-",216.66666666666666]
["58.29.1 Програмне забезпечення системне на фізичних носіях(48443000-5 Пакети програмного забезпечення для бухгалтерського обліку)",2240,7392,"Сім тисяч триста дев'яносто дві грн. 0 коп.","в т.ч.ПДВ-",1232]
["13.93.1 Килими та килимові покриви(39533000-7 Килими)",2210,null,"Нуль грн. 0 коп.","в т.ч.ПДВ-",0]
["31.09.1 Меблі, інші (39161000-8 Меблі для дитячого садка)",3110,130400,"Сто тридцять тисяч чотириста грн. 0 коп.","в т.ч.ПДВ-",21733.333333333332]
["27.51.2 Прилади електричні побутові,інші,н.в.і.у.(39711000-9 Електричні побутові прилади для обробки продуктів харчування)",3110,160548,"Сто шістдесят тисяч п'ятсот сорок вісім грн. 0 коп.","в т.ч.ПДВ-",26758]
["13.92.1 Вироби текстильні готові для домашнього господарства (39512000-4 Постільна білизна)",2210,80652,"Вісімдесят тисяч шістсот п'ятдесят дві грн. 0 коп.","в т.ч.ПДВ-",13442]
[]
["Затверджений рішенням комітету з конкурсних торгів від__________№_______"]
[]
["Голова комітету з конкурсних торгів       ___________________Л.В.Баглай   "]
["                                                                                                (підпис)          (ініціали та прізвище)"]
["МП"]

{"sheet":"71","index":35,"n_rows":51,"n_cols":9,"rows_kept":51,"cut":false,"hidden":false,"merged":[[0,0,0,8],[1,0,1,8],[2,0,2,8],[3,2,3,5],[4,2,4,5]]}
["Додаток до річного плану закупівель на  2016 рік "]
["Дошкільний навчальний заклад №71  26243651"]
["(найменування замовника,код за ЄДРПОУ)"]
["Предмет закупівлі","Код КЕКВ (для бюджетних коштів)","Очікувана вартість предмета закупівлі",null,null,null,"Процедура закупівлі","Орієнтовний початок проведення процедури закупівлі","Примітки"]
[1,2,3,null,null,null,4,5,6]
["10.73.1 Макарони,локшина,кускус і подібні борошняні вироби(15851000-8 Борошняні вироби(макарони)",2230,3111.1364067082036,{"$f":"SUMINWORDS(C6,\"грн.\",\"коп.\")","v":"Три тисячі сто одинадцять грн. 14 коп."},"в т.ч.ПДВ-",{"$f":"C6/6","v":518.52273445136723}]
["10.11.1 М'ясо великої рогатої худоби,свиней,овець,кіз,коней та ін..тварин родини конячих,свіже чиа охолоджене(15111000-9 М'ясо великої рогатої худоби родини бикових(яловичина)",2230,105740.48742033968,{"$f":"SUMINWORDS(C7,\"грн.\",\"коп.\")","v":"Сто п'ять тисяч сімсот сорок грн. 49 коп."},"в т.ч.ПДВ-",{"$f":"C7/6","v":17623.414570056611}]
["10.12.1 М'ясо  свійської птиці,свіже чи охолоджене(15112000-6 М'ясо свійської птиці)",2230,40442.657685571059,{"$f":"SUMINWORDS(C8,\"грн.\",\"коп.\")","v":"Сорок тисяч чотириста сорок дві грн. 66 коп."},"в т.ч.ПДВ-",6740.4429475951765]
["10.12.4 Субпродукти харчові свійської птиці(15114000-0 Потрухи(печінка)",2230,11471.888580810841,{"$f":"SUMINWORDS(C9,\"грн.\",\"коп.\")","v":"Одинадцять тисяч чотириста сімдесят одна грн. 89 коп."},"в т.ч.ПДВ-",1911.98143013514]
["10.13.1.Консерви та готові страви з м’яса,м’ясних субпродуктів чи крові (15130000-8 Мясопродукти (ковбаса,сосиски)",2230,34444.417342885681,"Тридцять чотири тисячі чотириста сорок чотири грн. 42 коп.","в т.ч.ПДВ-",5740.7362238142805]
["10.20.1 Продукція рибна,свіжа,охолоджена чи заморожена (15221000-3 Морожена риба)",2230,81058.463073896957,"Вісімдесят одна тисячa п'ятдесят вісім грн. 46 коп.","в т.ч.ПДВ-",13509.743845649493]
["01.24.1 Яблука (03222000-3 Фрукти і горіхи(яблука,апельсини,лимони,ягоди)",2230,34215.049736465517,"Тридцять чотири тисячі двісті п'ятнадцять грн. 5 коп.","в т.ч.ПДВ-",5702.5082894109191]
["10.39.1 Плоди та овочі,оброблені та законсервовані,крім картоплі(15331000-7 Оброблені овочі(консерви овочеві)",2230,23939.892206977755,"Двадцять три тисячі дев'ятсот тридцять дев'ять грн. 89 коп.","в т.ч.ПДВ-",3989.9820344962923]
["10.72.1 Вироби хлібобулочні,зниженої вологості,та кондитерські,борошняні,тривалого зберігання(15820000-2 Сухарі та печиво; пресерви з хлібобулочних і кондитерських виробів (печиво)",2230,8343.5457324378931,"Вісім тисяч триста сорок три грн. 55 коп.","в т.ч.ПДВ-",1390.5909554063155]
["10.71.1 Вироби  хлібобулочні,кондитерські та кулінарні,борошняні,нетривалого зберігання(15810000-9 Хлібопродукти, свіжовипечені хлібобулочні та кондитерські вироби)",2230,30835.661623376189,"Тридцять тисяч вісімсот тридцять п'ять грн. 66 коп.","в т.ч.ПДВ-",5139.2769372293651]
["10.51.1 Молоко та вершки,рідинні,оброблені(15511000-3 Молоко)",2230,121906.03749264045,"Сто двадцять одна тисячa дев'ятсот шість грн. 4 коп.","в т.ч.ПДВ-",20317.672915440075]
["10.51.5 Продукти молочні, інші (15550000-8 Молочні продукти різні (кефір,сметана)",2230,22988.905480133799,"Двадцять дві тисячі дев'ятсот вісімдесят вісім грн. 91 коп.","в т.ч.ПДВ-",3831.4842466889663]
["10.51.4 Сир сичужний та кисломолочний сир(15540000-5 Сирні продукти)",2230,85846.57702283551,"Вісімдесят п'ять тисяч вісімсот сорок шість грн. 58 коп.","в т.ч.ПДВ-",14307.762837139251]
["10.32.1 Соки фруктові та овочеві (15321000-4 Фруктові соки)",2230,22899.400497853527,"Двадцять дві тисячі вісімсот дев'яносто дев'ять грн. 40 коп.","в т.ч.ПДВ-",3816.5667496422543]
["10.61.2 Борошно зернових і овочевих культур;їхні суміші(15612000-1 Борошно зернових та овочевих культур і супутня продукція)",2230,5052.305429307864,"П'ять тисяч п'ятдесят дві грн. 31 коп.","в т.ч.ПДВ-",842.05090488464396]
["10.61.1 Рис напівобрушений чи повністю обрушений,або лущений чи дроблений(15614000-5 Рис оброблений)",2230,2467.8604375657496,"Дві тисячі чотириста шістдесят сім грн. 86 коп.","в т.ч.ПДВ-",411.31007292762496]
["0.81.1 Цукор-сирець,тростинний і очищений тростинний чи буряковий цукор (сахароза);меляса (15831000-2 Цукор)",2230,22183.694529164997,"Двадцять дві тисячі сто вісімдесят три грн. 69 коп.","в т.ч.ПДВ-",3697.2824215274995]
["10.39.2 Плоди й горіхи,оброблені та законсервовані(15332000-4 Оброблені фрукти та горіхи(повидло,сухофрукти)",2230,14580.553559624834,"Чотирнадцять тисяч п'ятсот вісімдесят грн. 55 коп.","в т.ч.ПДВ-",2430.0922599374721]
["10.51.3 Масло вершкове та молочні пасти(15530000-2 Вершкове масло)",2230,39769.633124994238,"Тридцять дев'ять тисяч сімсот шістдесят дев'ять грн. 63 коп.","в т.ч.ПДВ-",6628.2721874990393]
["01.47.2 Яйця у шкаралупі свіжі (03142000-8 Продукція тваринництва (03142500-3 Яйця)",2230,30476.696480349601,"Тридцять тисяч чотириста сімдесят шість грн. 70 коп.","в т.ч.ПДВ-",5079.4494133916005]
["10.41.5 Олії рафіновані(15421000-5 Рафіновані олії)",2230,8938.5136899420959,"Вісім тисяч дев'ятсот тридцять вісім грн. 51 коп.","в т.ч.ПДВ-",1489.7522816570161]
["10.61.3 Крупи,крупка,гранули та інші продукти з зерна зернових культур(15613000-8 Продукція із зерна зернових культур(крупи)",2230,9323.181070131146,"Дев'ять тисяч триста двадцять три грн. 18 коп.","в т.ч.ПДВ-",1553.8635116885243]
["10.82.1 Какао терте,какао-масло,жири й олія,какао-порошок(15841000-5 Какао)",2230,11454.637620538942,"Одинадцять тисяч чотириста п'ятдесят чотири грн. 64 коп.","в т.ч.ПДВ-",1909.1062700898237]
["10.83.1 Чай і кава,оброблені(15860000-4 Кава, чай та супутня продукція)",2230,11989.011882524301,"Одинадцять тисяч дев'ятсот вісімдесят дев'ять грн. 1 коп.","в т.ч.ПДВ-",1998.1686470873835]
["10.84.3 Сіль харчова(14410000-8 Камяна сіль)",2230,451.4315804783617,"Чотириста п'ятдесят одна грн. 43 коп.","в т.ч.ПДВ-",75.238596746393611]
["01.13.5 Коренеплоди та бульби їстівні з високим умістом крохмалю та інуліну(03212000-0 Картопля та сушені овочі)",2230,30966.375351147475,"Тридцять тисяч дев'ятсот шістдесят шість грн. 38 коп.","в т.ч.ПДВ-",5161.0625585245789]
["01.13.4 Овочі коренеплодні,цибулинні та бульбоподібні(03221000-6 Овочі)",2230,37929.98485433717,"Тридцять сім тисяч дев'ятсот двадцять дев'ять грн. 98 коп.","в т.ч.ПДВ-",6321.664142389528]
["43.21.1 Роботи електромонтажні(45310000-3 Електромонтажні роботи(повірка контурів заземлення)",2240,745,"Сімсот сорок п'ять грн. 0 коп.","в т.ч.ПДВ-",124.16666666666667]
["38.11.6 Послуги підприємств щодо перевезення інших безпечних відходів(90512000-9 Послуги з перевезення сміття)",2240,8886,"Вісім тисяч вісімсот вісімдесят шість грн. 0 коп.","в т.ч.ПДВ-",1481]
["Поточний ремонт будівель (45400000-1 Завершальні будівельні роботи)",2240,23500,"Двадцять три тисячі п'ятсот грн. 0 коп.","в т.ч.ПДВ-",3916.6666666666665]
[" 36.00.2 Обробляння та розподіляння води трубопроводами(65110000-7 Розподіл води)",2272,13010.860800000002,"Тринадцять тисяч десять грн. 86 коп.","в т.ч.ПДВ-",2168.4768000000004]
["37.00.1 Послуги каналізаційні(90400000-1 Послуги у сфері водовідведення)",2272,20324.139199999998,"Двадцять тисяч триста двадцять чотири грн. 14 коп.","в т.ч.ПДВ-",3387.3565333333331]
["35.11.1  Енергія електрична (09310000-5 Електрична енергія)",2273,82451,"Вісімдесят дві тисячі чотириста п'ятдесят одна грн. 0 коп.","в т.ч.ПДВ-",13741.833333333334]
["61.10.1  Послуги щодо передавання даних і повідомлень(64211000-8 Послуги громадського телефонного звязку)",2240,1551,"Одна тисячa п'ятсот п'ятдесят одна грн. 0 коп.","в т.ч.ПДВ-",258.5]
["Капітальний ремонт будівель (45000000-7 Будівельні роботи)",2240,90000,"Дев'яносто тисяч грн. 0 коп.","в т.ч.ПДВ-",15000]
["91.01.1 Послуги бібліотек і архівів(92512000-3 Послуги архівів)",2240,724,"Сімсот двадцять чотири грн. 0 коп.","без ПДВ"]
["71.20.1 Послуги щодо технічного випробування й аналізування(71632000-7 Послуги з технічних випробувань (повірка,атестація)",2240,147,"Сто сорок сім грн. 0 коп.","в т.ч.ПДВ-",24.5]
["58.29.1 Програмне забезпечення системне на фізичних носіях(48443000-5 Пакети програмного забезпечення для бухгалтерського обліку)",2240,7392,"Сім тисяч триста дев'яносто дві грн. 0 коп.","в т.ч.ПДВ-",1232]
["31.09.1 Меблі, інші (39161000-8 Меблі для дитячого садка)",3110,34000,"Тридцять чотири тисячі грн. 0 коп.","в т.ч.ПДВ-",5666.666666666667]
["85.60.1 Послуги освітянські допоміжні (80570000-0 Послуги з професійної підготовки у сфері підвищення кваліфікації)",2282,676,"Шістсот сімдесят шість грн. 0 коп.","в т.ч.ПДВ-",112.66666666666667]
[]
["Затверджений рішенням комітету з конкурсних торгів від__________№_______"]
[]
["Голова комітету з конкурсних торгів       ___________________Н.Г.Лимаренко   "]
["                                                                                                (підпис)          (ініціали та прізвище)"]
["МП"]

{"sheet":"73","index":36,"n_rows":57,"n_cols":9,"rows_kept":57,"cut":false,"hidden":false,"merged":[[0,0,0,8],[1,0,1,8],[2,0,2,8],[3,2,3,5],[4,2,4,5]]}
["Додаток до річного плану закупівель на  2016 рік "]
["Дошкільний навчальний заклад № 73, 26243349"]
["(найменування замовника,код за ЄДРПОУ)"]
["Предмет закупівлі","Код КЕКВ (для бюджетних коштів)","Очікувана вартість предмета закупівлі",null,null,null,"Процедура закупівлі","Орієнтовний початок проведення процедури закупівлі","Примітки"]
[1,2,3,null,null,null,4,5,6]
["10.73.1 Макарони,локшина,кускус і подібні борошняні вироби(15851000-8 Борошняні вироби(макарони)",2230,2480.6984498043539,{"$f":"SUMINWORDS(C6,\"грн.\",\"коп.\")","v":"Дві тисячі чотириста вісімдесят грн. 70 коп."},"в т.ч.ПДВ-",{"$f":"C6/6","v":413.44974163405897}]
["10.11.1 М'ясо великої рогатої худоби,свиней,овець,кіз,коней та ін..тварин родини конячих,свіже чиа охолоджене(15111000-9 М'ясо великої рогатої худоби родини бикових(яловичина)",2230,85939.68708245884,{"$f":"SUMINWORDS(C7,\"грн.\",\"коп.\")","v":"Вісімдесят п'ять тисяч дев'ятсот тридцять дев'ять грн. 69 коп."},"в т.ч.ПДВ-",{"$f":"C7/6","v":14323.281180409807}]
["10.12.1 М'ясо  свійської птиці,свіже чи охолоджене(15112000-6 М'ясо свійської птиці)",2230,32444.847379070001,{"$f":"SUMINWORDS(C8,\"грн.\",\"коп.\")","v":"Тридцять дві тисячі чотириста сорок чотири грн. 85 коп."},"в т.ч.ПДВ-",5407.4745631783335]
["10.12.4 Субпродукти харчові свійської птиці(15114000-0 Потрухи(печінка)",2230,9246.5597815401197,{"$f":"SUMINWORDS(C9,\"грн.\",\"коп.\")","v":"Дев'ять тисяч двісті сорок шість грн. 56 коп."},"в т.ч.ПДВ-",1541.0932969233534]
["10.13.1.Консерви та готові страви з м’яса,м’ясних субпродуктів чи крові (15130000-8 Мясопродукти (ковбаса,сосиски)",2230,27762.853679912441,"Двадцять сім тисяч сімсот шістдесят дві грн. 85 коп.","в т.ч.ПДВ-",4627.1422799854072]
["10.20.1 Продукція рибна,свіжа,охолоджена чи заморожена (15221000-3 Морожена риба)",2230,65470.619462307463,"Шістдесят п'ять тисяч чотириста сімдесят грн. 62 коп.","в т.ч.ПДВ-",10911.769910384577]
["01.24.1 Яблука (03222000-3 Фрукти і горіхи(яблука,апельсини,лимони,ягоди)",2230,27599.692100977671,"Двадцять сім тисяч п'ятсот дев'яносто дев'ять грн. 69 коп.","в т.ч.ПДВ-",4599.9486834962781]
["10.39.1 Плоди та овочі,оброблені та законсервовані,крім картоплі(15331000-7 Оброблені овочі(консерви овочеві)",2230,18996.012094314261,"Вісімнадцять тисяч дев'ятсот дев'яносто шість грн. 1 коп.","в т.ч.ПДВ-",3166.0020157190434]
["10.72.1 Вироби хлібобулочні,зниженої вологості,та кондитерські,борошняні,тривалого зберігання(15820000-2 Сухарі та печиво; пресерви з хлібобулочних і кондитерських виробів (печиво)",2230,6801.9383408559897,"Шість тисяч вісімсот одна грн. 94 коп.","в т.ч.ПДВ-",1133.656390142665]
["10.71.1 Вироби  хлібобулочні,кондитерські та кулінарні,борошняні,нетривалого зберігання(15810000-9 Хлібопродукти, свіжовипечені хлібобулочні та кондитерські вироби)",2230,24637.434819193091,"Двадцять чотири тисячі шістсот тридцять сім грн. 43 коп.","в т.ч.ПДВ-",4106.2391365321819]
["10.51.1 Молоко та вершки,рідинні,оброблені(15511000-3 Молоко)",2230,95891.1231873824,"Дев'яносто п'ять тисяч вісімсот дев'яносто одна грн. 12 коп.","в т.ч.ПДВ-",15981.853864563733]
["10.51.5 Продукти молочні, інші (15550000-8 Молочні продукти різні (кефір,сметана)",2230,18348.377052235744,"Вісімнадцять тисяч триста сорок вісім грн. 38 коп.","в т.ч.ПДВ-",3058.0628420392909]
["10.51.4 Сир сичужний та кисломолочний сир(15540000-5 Сирні продукти)",2230,68078.545540558247,"Шістдесят вісім тисяч сімдесят вісім грн. 55 коп.","в т.ч.ПДВ-",11346.424256759708]
["10.32.1 Соки фруктові та овочеві (15321000-4 Фруктові соки)",2230,18204.619281025578,"Вісімнадцять тисяч двісті чотири грн. 62 коп.","в т.ч.ПДВ-",3034.1032135042628]
["10.61.2 Борошно зернових і овочевих культур;їхні суміші(15612000-1 Борошно зернових та овочевих культур і супутня продукція)",2230,4045.6871259554478,"Чотири тисячі сорок п'ять грн. 69 коп.","в т.ч.ПДВ-",674.28118765924125]
["10.61.1 Рис напівобрушений чи повністю обрушений,або лущений чи дроблений(15614000-5 Рис оброблений)",2230,1961.9054965565954,"Одна тисячa дев'ятсот шістдесят одна грн. 91 коп.","в т.ч.ПДВ-",326.98424942609921]
["0.81.1 Цукор-сирець,тростинний і очищений тростинний чи буряковий цукор (сахароза);меляса (15831000-2 Цукор)",2230,17566.681382803687,"Сімнадцять тисяч п'ятсот шістдесят шість грн. 68 коп.","в т.ч.ПДВ-",2927.7802304672809]
["10.39.2 Плоди й горіхи,оброблені та законсервовані(15332000-4 Оброблені фрукти та горіхи(повидло,сухофрукти)",2230,11462.662266989737,"Одинадцять тисяч чотириста шістдесят дві грн. 66 коп.","в т.ч.ПДВ-",1910.4437111649561]
["10.51.3 Масло вершкове та молочні пасти(15530000-2 Вершкове масло)",2230,31904.917997572618,"Тридцять одна тисячa дев'ятсот чотири грн. 92 коп.","в т.ч.ПДВ-",5317.48633292877]
["01.47.2 Яйця у шкаралупі свіжі (03142000-8 Продукція тваринництва (03142500-3 Яйця)",2230,24564.795409605329,"Двадцять чотири тисячі п'ятсот шістдесят чотири грн. 80 коп.","в т.ч.ПДВ-",4094.1325682675547]
["10.41.5 Олії рафіновані(15421000-5 Рафіновані олії)",2230,7127.2211036402969,"Сім тисяч сто двадцять сім грн. 22 коп.","в т.ч.ПДВ-",1187.8701839400494]
["10.61.3 Крупи,крупка,гранули та інші продукти з зерна зернових культур(15613000-8 Продукція із зерна зернових культур(крупи)",2230,7420.2136033527149,"Сім тисяч чотириста двадцять грн. 21 коп.","в т.ч.ПДВ-",1236.7022672254525]
["10.82.1 Какао терте,какао-масло,жири й олія,какао-порошок(15841000-5 Какао)",2230,9232.6551803648708,"Дев'ять тисяч двісті тридцять дві грн. 66 коп.","в т.ч.ПДВ-",1538.7758633941451]
["10.83.1 Чай і кава,оброблені(15860000-4 Кава, чай та супутня продукція)",2230,9792.093262019469,"Дев'ять тисяч сімсот дев'яносто дві грн. 9 коп.","в т.ч.ПДВ-",1632.0155436699115]
["10.84.3 Сіль харчова(14410000-8 Камяна сіль)",2230,366.32659012752003,"Триста шістдесят шість грн. 33 коп.","в т.ч.ПДВ-",61.054431687920008]
["01.13.5 Коренеплоди та бульби їстівні з високим умістом крохмалю та інуліну(03212000-0 Картопля та сушені овочі)",2230,24664.093004788156,"Двадцять чотири тисячі шістсот шістдесят чотири грн. 9 коп.","в т.ч.ПДВ-",4110.6821674646926]
["01.13.4 Овочі коренеплодні,цибулинні та бульбоподібні(03221000-6 Овочі)",2230,30015.739055322956,"Тридцять тисяч п'ятнадцять грн. 74 коп.","в т.ч.ПДВ-",5002.6231758871591]
["43.21.1 Роботи електромонтажні(45310000-3 Електромонтажні роботи(повірка контурів заземлення)",2240,745,"Сімсот сорок п'ять грн. 0 коп.","в т.ч.ПДВ-",124.16666666666667]
["38.11.6 Послуги підприємств щодо перевезення інших безпечних відходів(90512000-9 Послуги з перевезення сміття)",2240,7981,"Сім тисяч дев'ятсот вісімдесят одна грн. 0 коп.","в т.ч.ПДВ-",1330.1666666666667]
[" 36.00.2 Обробляння та розподіляння води трубопроводами(65110000-7 Розподіл води)",2272,13481.882400000002,"Тринадцять тисяч чотириста вісімдесят одна грн. 88 коп.","в т.ч.ПДВ-",2246.9804000000004]
["37.00.1 Послуги каналізаційні(90400000-1 Послуги у сфері водовідведення)",2272,16680.117599999998,"Шістнадцять тисяч шістсот вісімдесят грн. 12 коп.","в т.ч.ПДВ-",2780.0195999999996]
["35.11.1  Енергія електрична (09310000-5 Електрична енергія)",2273,95671,"Дев'яносто п'ять тисяч шістсот сімдесят одна грн. 0 коп.","в т.ч.ПДВ-",15945.166666666666]
["61.10.1  Послуги щодо передавання даних і повідомлень(64211000-8 Послуги громадського телефонного звязку)",2240,1645,"Одна тисячa шістсот сорок п'ять грн. 0 коп.","в т.ч.ПДВ-",274.16666666666669]
["91.01.1 Послуги бібліотек і архівів(92512000-3 Послуги архівів)",2240,566,"П'ятсот шістдесят шість грн. 0 коп.","без ПДВ"]
["71.20.1 Послуги щодо технічного випробування й аналізування(71632000-7 Послуги з технічних випробувань (повірка,атестація)",2240,441,"Чотириста сорок одна грн. 0 коп.","в т.ч.ПДВ-",73.5]
["58.29.1 Програмне забезпечення системне на фізичних носіях(48443000-5 Пакети програмного забезпечення для бухгалтерського обліку)",2240,7392,"Сім тисяч триста дев'яносто дві грн. 0 коп.","в т.ч.ПДВ-",1232]
["13.93.1 Килими та килимові покриви(39533000-7 Килими)",2210,70000,"Сімдесят тисяч грн. 0 коп.","в т.ч.ПДВ-",11666.666666666666]
["31.09.1 Меблі, інші (39161000-8 Меблі для дитячого садка)",3110,158200,"Сто п'ятдесят вісім тисяч двісті грн. 0 коп.","в т.ч.ПДВ-",26366.666666666668]
["31.01.1 Меблі конторські/офісні та меблі для підприємств торгівлі (39130000-2  Офісні меблі)",3110,14600,"Чотирнадцять тисяч шістсот грн. 0 коп.","в т.ч.ПДВ-",2433.3333333333335]
["23.41.1 Вироби господарські та декоративні керамічні(39221000-7 Кухонне приладдя(посуд)",2210,93661,"Дев'яносто три тисячі шістсот шістдесят одна грн. 0 коп.","в т.ч.ПДВ-",15610.166666666666]
["27.52.1 Устатковання побутове неелектричне для приготування та підігрівання їжі(39314000-6 Промислове кухонне обладнання)",3110,158134,"Сто п'ятдесят вісім тисяч сто тридцять чотири грн. 0 коп.","в т.ч.ПДВ-",26355.666666666668]
["32.99.5 Вироби, інші, н.в.і.у.(35111000-5 Протипожежне обладнання)",2210,76830,"Сімдесят шість тисяч вісімсот тридцять грн. 0 коп.","в т.ч.ПДВ-",{"$f":"C47/6","v":12805}]
["32.30.1 Вироби спортивні (37400000-2 Спортивні товари та інвентар)",2210,24881,"Двадцять чотири тисячі вісімсот вісімдесят одна грн. 0 коп.","в т.ч.ПДВ-",4146.833333333333]
["27.51.2 Прилади електричні побутові,інші,н.в.і.у.(39711000-9 Електричні побутові прилади для обробки продуктів харчування)",3110,199900,"Сто дев'яносто дев'ять тисяч дев'ятсот грн. 0 коп.","в т.ч.ПДВ-",33316.666666666664]
["13.92.1 Вироби текстильні готові для домашнього господарства (39512000-4 Постільна білизна)",2210,67210,"Шістдесят сім тисяч двісті десять грн. 0 коп.","в т.ч.ПДВ-",11201.666666666666]
["13.99.1 Тюль,мереживо та вишивка;нитки позументні та стрічкові нитки;пряжа синельна;пряжа фасонна петляста (39561000-2 Тюль,мереживо,вузькі тканини,оздоблювальні матеріали та вишиті вироби)",2210,78000,"Сімдесят вісім тисяч грн. 0 коп.","в т.ч.ПДВ-",13000]
[]
["Затверджений рішенням комітету з конкурсних торгів від__________№_______"]
[]
["Голова комітету з конкурсних торгів      _______________________   В.В.Гуменчук"]
["                                                                                                (підпис)          (ініціали та прізвище)"]
["МП"]

{"sheet":"74","index":37,"n_rows":50,"n_cols":9,"rows_kept":50,"cut":false,"hidden":false,"merged":[[0,0,0,8],[1,0,1,8],[2,0,2,8],[3,2,3,5],[4,2,4,5]]}
["Додаток до річного плану закупівель на  2016 рік "]
["Дошкільний навчальний заклад №74, 26243591"]
["(найменування замовника,код за ЄДРПОУ)"]
["Предмет закупівлі","Код КЕКВ (для бюджетних коштів)","Очікувана вартість предмета закупівлі",null,null,null,"Процедура закупівлі","Орієнтовний початок проведення процедури закупівлі","Примітки"]
[1,2,3,null,null,null,4,5,6]
["10.73.1 Макарони,локшина,кускус і подібні борошняні вироби(15851000-8 Борошняні вироби(макарони)",2230,2279.289293320684,{"$f":"SUMINWORDS(C6,\"грн.\",\"коп.\")","v":"Дві тисячі двісті сімдесят дев'ять грн. 29 коп."},"в т.ч.ПДВ-",{"$f":"C6/6","v":379.88154888678065}]
["10.11.1 М'ясо великої рогатої худоби,свиней,овець,кіз,коней та ін..тварин родини конячих,свіже чиа охолоджене(15111000-9 М'ясо великої рогатої худоби родини бикових(яловичина)",2230,78042.179049729049,{"$f":"SUMINWORDS(C7,\"грн.\",\"коп.\")","v":"Сімдесят вісім тисяч сорок дві грн. 18 коп."},"в т.ч.ПДВ-",{"$f":"C7/6","v":13007.029841621508}]
["10.12.1 М'ясо  свійської птиці,свіже чи охолоджене(15112000-6 М'ясо свійської птиці)",2230,29577.319224727988,{"$f":"SUMINWORDS(C8,\"грн.\",\"коп.\")","v":"Двадцять дев'ять тисяч п'ятсот сімдесят сім грн. 32 коп."},"в т.ч.ПДВ-",4929.553204121331]
["10.12.4 Субпродукти харчові свійської птиці(15114000-0 Потрухи(печінка)",2230,8378.4636637902258,{"$f":"SUMINWORDS(C9,\"грн.\",\"коп.\")","v":"Вісім тисяч триста сімдесят вісім грн. 46 коп."},"в т.ч.ПДВ-",1396.4106106317042]
["10.13.1.Консерви та готові страви з м’яса,м’ясних субпродуктів чи крові (15130000-8 Мясопродукти (ковбаса,сосиски)",2230,25156.38964716965,"Двадцять п'ять тисяч сто п'ятдесят шість грн. 39 коп.","в т.ч.ПДВ-",4192.7316078616086]
["10.20.1 Продукція рибна,свіжа,охолоджена чи заморожена (15221000-3 Морожена риба)",2230,59165.104461726929,"П'ятдесят дев'ять тисяч сто шістдесят п'ять грн. 10 коп.","в т.ч.ПДВ-",9860.8507436211548]
["01.24.1 Яблука (03222000-3 Фрукти і горіхи(яблука,апельсини,лимони,ягоди)",2230,24983.165357220045,"Двадцять чотири тисячі дев'ятсот вісімдесят три грн. 17 коп.","в т.ч.ПДВ-",4163.8608928700078]
["10.39.1 Плоди та овочі,оброблені та законсервовані,крім картоплі(15331000-7 Оброблені овочі(консерви овочеві)",2230,17563.276993082505,"Сімнадцять тисяч п'ятсот шістдесят три грн. 28 коп.","в т.ч.ПДВ-",2927.2128321804175]
["10.72.1 Вироби хлібобулочні,зниженої вологості,та кондитерські,борошняні,тривалого зберігання(15820000-2 Сухарі та печиво; пресерви з хлібобулочних і кондитерських виробів (печиво)",2230,6073.4817953989186,"Шість тисяч сімдесят три грн. 48 коп.","в т.ч.ПДВ-",1012.2469658998198]
["10.71.1 Вироби  хлібобулочні,кондитерські та кулінарні,борошняні,нетривалого зберігання(15810000-9 Хлібопродукти, свіжовипечені хлібобулочні та кондитерські вироби)",2230,22577.692083183298,"Двадцять дві тисячі п'ятсот сімдесят сім грн. 69 коп.","в т.ч.ПДВ-",3762.9486805305496]
["10.51.1 Молоко та вершки,рідинні,оброблені(15511000-3 Молоко)",2230,89655.928713373709,"Вісімдесят дев'ять тисяч шістсот п'ятдесят п'ять грн. 93 коп.","в т.ч.ПДВ-",14942.654785562285]
["10.51.5 Продукти молочні, інші (15550000-8 Молочні продукти різні (кефір,сметана)",2230,16837.484743798919,"Шістнадцять тисяч вісімсот тридцять сім грн. 48 коп.","в т.ч.ПДВ-",2806.2474572998199]
["10.51.4 Сир сичужний та кисломолочний сир(15540000-5 Сирні продукти)",2230,62990.958733623142,"Шістдесят дві тисячі дев'ятсот дев'яносто грн. 96 коп.","в т.ч.ПДВ-",10498.493122270524]
["10.32.1 Соки фруктові та овочеві (15321000-4 Фруктові соки)",2230,16790.935679733833,"Шістнадцять тисяч сімсот дев'яносто грн. 94 коп.","в т.ч.ПДВ-",2798.4892799556387]
["10.61.2 Борошно зернових і овочевих культур;їхні суміші(15612000-1 Борошно зернових та овочевих культур і супутня продукція)",2230,3696.9198464574279,"Три тисячі шістсот дев'яносто шість грн. 92 коп.","в т.ч.ПДВ-",616.15330774290464]
["10.61.1 Рис напівобрушений чи повністю обрушений,або лущений чи дроблений(15614000-5 Рис оброблений)",2230,1809.5533058872202,"Одна тисячa вісімсот дев'ять грн. 55 коп.","в т.ч.ПДВ-",301.59221764787003]
["0.81.1 Цукор-сирець,тростинний і очищений тростинний чи буряковий цукор (сахароза);меляса (15831000-2 Цукор)",2230,16284.269865136355,"Шістнадцять тисяч двісті вісімдесят чотири грн. 27 коп.","в т.ч.ПДВ-",2714.0449775227257]
["10.39.2 Плоди й горіхи,оброблені та законсервовані(15332000-4 Оброблені фрукти та горіхи(повидло,сухофрукти)",2230,10724.961106582032,"Десять тисяч сімсот двадцять чотири грн. 96 коп.","в т.ч.ПДВ-",1787.4935177636719]
["10.51.3 Масло вершкове та молочні пасти(15530000-2 Вершкове масло)",2230,29085.109676358843,"Двадцять дев'ять тисяч вісімдесят п'ять грн. 11 коп.","в т.ч.ПДВ-",4847.5182793931408]
["01.47.2 Яйця у шкаралупі свіжі (03142000-8 Продукція тваринництва (03142500-3 Яйця)",2230,22258.575146911382,"Двадцять дві тисячі двісті п'ятдесят вісім грн. 58 коп.","в т.ч.ПДВ-",3709.7625244852302]
["10.41.5 Олії рафіновані(15421000-5 Рафіновані олії)",2230,6548.5584327824117,"Шість тисяч п'ятсот сорок вісім грн. 56 коп.","в т.ч.ПДВ-",1091.4264054637354]
["10.61.3 Крупи,крупка,гранули та інші продукти з зерна зернових культур(15613000-8 Продукція із зерна зернових культур(крупи)",2230,6833.9817986552025,"Шість тисяч вісімсот тридцять три грн. 98 коп.","в т.ч.ПДВ-",1138.9969664425337]
["10.82.1 Какао терте,какао-масло,жири й олія,какао-порошок(15841000-5 Какао)",2230,8365.8644703108439,"Вісім тисяч триста шістдесят п'ять грн. 86 коп.","в т.ч.ПДВ-",1394.3107450518073]
["10.83.1 Чай і кава,оброблені(15860000-4 Кава, чай та супутня продукція)",2230,8722.3146811036295,"Вісім тисяч сімсот двадцять дві грн. 31 коп.","в т.ч.ПДВ-",1453.7191135172716]
["10.84.3 Сіль харчова(14410000-8 Камяна сіль)",2230,329.05427517108484,"Триста двадцять дев'ять грн. 5 коп.","в т.ч.ПДВ-",54.842379195180804]
["01.13.5 Коренеплоди та бульби їстівні з високим умістом крохмалю та інуліну(03212000-0 Картопля та сушені овочі)",2230,22693.841004187114,"Двадцять дві тисячі шістсот дев'яносто три грн. 84 коп.","в т.ч.ПДВ-",3782.3068340311856]
["01.13.4 Овочі коренеплодні,цибулинні та бульбоподібні(03221000-6 Овочі)",2230,27848.32733444386,"Двадцять сім тисяч вісімсот сорок вісім грн. 33 коп.","в т.ч.ПДВ-",4641.387889073977]
["43.21.1 Роботи електромонтажні(45310000-3 Електромонтажні роботи(повірка контурів заземлення)",2240,745,"Сімсот сорок п'ять грн. 0 коп.","в т.ч.ПДВ-",124.16666666666667]
["38.11.6 Послуги підприємств щодо перевезення інших безпечних відходів(90512000-9 Послуги з перевезення сміття)",2240,8997,"Вісім тисяч дев'ятсот дев'яносто сім грн. 0 коп.","в т.ч.ПДВ-",1499.5]
["Поточний ремонт будівель (45400000-1 Завершальні будівельні роботи)",2240,67600,"Шістдесят сім тисяч шістсот грн. 0 коп.","в т.ч.ПДВ-",11266.666666666666]
[" 36.00.2 Обробляння та розподіляння води трубопроводами(65110000-7 Розподіл води)",2272,12042.156000000003,"Дванадцять тисяч сорок дві грн. 16 коп.","в т.ч.ПДВ-",2007.0260000000005]
["37.00.1 Послуги каналізаційні(90400000-1 Послуги у сфері водовідведення)",2272,21314.843999999997,"Двадцять одна тисячa триста чотирнадцять грн. 84 коп.","в т.ч.ПДВ-",3552.4739999999997]
["35.11.1  Енергія електрична (09310000-5 Електрична енергія)",2273,107812,"Сто сім тисяч вісімсот дванадцять грн. 0 коп.","в т.ч.ПДВ-",17968.666666666668]
["61.10.1  Послуги щодо передавання даних і повідомлень(64211000-8 Послуги громадського телефонного звязку)",2240,1647,"Одна тисячa шістсот сорок сім грн. 0 коп.","в т.ч.ПДВ-",274.5]
["Капітальний ремонт будівель (45000000-7 Будівельні роботи)",2240,112000,"Сто дванадцять тисяч грн. 0 коп.","в т.ч.ПДВ-",18666.666666666668]
["91.01.1 Послуги бібліотек і архівів(92512000-3 Послуги архівів)",2240,619,"Шістсот дев'ятнадцять грн. 0 коп.","без ПДВ"]
["71.20.1 Послуги щодо технічного випробування й аналізування(71632000-7 Послуги з технічних випробувань (повірка,атестація)",2240,147,"Сто сорок сім грн. 0 коп.","в т.ч.ПДВ-",24.5]
["58.29.1 Програмне забезпечення системне на фізичних носіях(48443000-5 Пакети програмного забезпечення для бухгалтерського обліку)",2240,7392,"Сім тисяч триста дев'яносто дві грн. 0 коп.","в т.ч.ПДВ-",1232]
["85.60.1 Послуги освітянські допоміжні (80570000-0 Послуги з професійної підготовки у сфері підвищення кваліфікації)",2282,676,"Шістсот сімдесят шість грн. 0 коп.","в т.ч.ПДВ-",112.66666666666667]
[]
["Затверджений рішенням комітету з конкурсних торгів від__________№_______"]
[]
["Голова комітету з конкурсних торгів       ___________________О.В.Целік"]
["                                                                                                (підпис)          (ініціали та прізвище)"]
["МП"]

{"sheet":"75","index":38,"n_rows":49,"n_cols":9,"rows_kept":49,"cut":false,"hidden":false,"merged":[[0,0,0,8],[1,0,1,8],[2,0,2,8],[3,2,3,5],[4,2,4,5]]}
["Додаток до річного плану закупівель на  2016 рік "]
["Дошкільний навчальний заклад № 75, 26243295"]
["(найменування замовника,код за ЄДРПОУ)"]
["Предмет закупівлі","Код КЕКВ (для бюджетних коштів)","Очікувана вартість предмета закупівлі",null,null,null,"Процедура закупівлі","Орієнтовний початок проведення процедури закупівлі","Примітки"]
[1,2,3,null,null,null,4,5,6]
["10.73.1 Макарони,локшина,кускус і подібні борошняні вироби(15851000-8 Борошняні вироби(макарони)",2230,2999.8693606230954,{"$f":"SUMINWORDS(C6,\"грн.\",\"коп.\")","v":"Дві тисячі дев'ятсот дев'яносто дев'ять грн. 87 коп."},"в т.ч.ПДВ-",{"$f":"C6/6","v":499.9782267705159}]
["10.11.1 М'ясо великої рогатої худоби,свиней,овець,кіз,коней та ін..тварин родини конячих,свіже чиа охолоджене(15111000-9 М'ясо великої рогатої худоби родини бикових(яловичина)",2230,102732.93858863777,{"$f":"SUMINWORDS(C7,\"грн.\",\"коп.\")","v":"Сто дві тисячі сімсот тридцять дві грн. 94 коп."},"в т.ч.ПДВ-",{"$f":"C7/6","v":17122.156431439627}]
["10.12.1 М'ясо  свійської птиці,свіже чи охолоджене(15112000-6 М'ясо свійської птиці)",2230,38878.52331474825,{"$f":"SUMINWORDS(C8,\"грн.\",\"коп.\")","v":"Тридцять вісім тисяч вісімсот сімдесят вісім грн. 52 коп."},"в т.ч.ПДВ-",6479.7538857913751]
["10.12.4 Субпродукти харчові свійської птиці(15114000-0 Потрухи(печінка)",2230,11002.381156208392,{"$f":"SUMINWORDS(C9,\"грн.\",\"коп.\")","v":"Одинадцять тисяч дві грн. 38 коп."},"в т.ч.ПДВ-",1833.7301927013987]
["10.13.1.Консерви та готові страви з м’яса,м’ясних субпродуктів чи крові (15130000-8 Мясопродукти (ковбаса,сосиски)",2230,33034.718358740982,"Тридцять три тисячі тридцять чотири грн. 72 коп.","в т.ч.ПДВ-",5505.786393123497]
["10.20.1 Продукція рибна,свіжа,охолоджена чи заморожена (15221000-3 Морожена риба)",2230,77659.930520924099,"Сімдесят сім тисяч шістсот п'ятдесят дев'ять грн. 93 коп.","в т.ч.ПДВ-",12943.321753487349]
["01.24.1 Яблука (03222000-3 Фрукти і горіхи(яблука,апельсини,лимони,ягоди)",2230,32801.790930672083,"Тридцять дві тисячі вісімсот одна грн. 79 коп.","в т.ч.ПДВ-",5466.9651551120141]
["10.39.1 Плоди та овочі,оброблені та законсервовані,крім картоплі(15331000-7 Оброблені овочі(консерви овочеві)",2230,23138.9911174265,"Двадцять три тисячі сто тридцять вісім грн. 99 коп.","в т.ч.ПДВ-",3856.4985195710833]
["10.72.1 Вироби хлібобулочні,зниженої вологості,та кондитерські,борошняні,тривалого зберігання(15820000-2 Сухарі та печиво; пресерви з хлібобулочних і кондитерських виробів (печиво)",2230,7956.2278420817584,"Сім тисяч дев'ятсот п'ятдесят шість грн. 23 коп.","в т.ч.ПДВ-",1326.0379736802931]
["10.71.1 Вироби  хлібобулочні,кондитерські та кулінарні,борошняні,нетривалого зберігання(15810000-9 Хлібопродукти, свіжовипечені хлібобулочні та кондитерські вироби)",2230,29702.867599829944,"Двадцять дев'ять тисяч сімсот дві грн. 87 коп.","в т.ч.ПДВ-",4950.477933304991]
["10.51.1 Молоко та вершки,рідинні,оброблені(15511000-3 Молоко)",2230,118328.48616335346,"Сто вісімнадцять тисяч триста двадцять вісім грн. 49 коп.","в т.ч.ПДВ-",19721.414360558909]
["10.51.5 Продукти молочні, інші (15550000-8 Молочні продукти різні (кефір,сметана)",2230,22156.040276404456,"Двадцять дві тисячі сто п'ятдесят шість грн. 4 коп.","в т.ч.ПДВ-",3692.6733794007428]
["10.51.4 Сир сичужний та кисломолочний сир(15540000-5 Сирні продукти)",2230,82998.259941887693,"Вісімдесят дві тисячі дев'ятсот дев'яносто вісім грн. 26 коп.","в т.ч.ПДВ-",13833.043323647949]
["10.32.1 Соки фруктові та овочеві (15321000-4 Фруктові соки)",2230,22112.901182640649,"Двадцять дві тисячі сто дванадцять грн. 90 коп.","в т.ч.ПДВ-",3685.4835304401081]
["10.61.2 Борошно зернових і овочевих культур;їхні суміші(15612000-1 Борошно зернових та овочевих культур і супутня продукція)",2230,4861.3721904751101,"Чотири тисячі вісімсот шістдесят одна грн. 37 коп.","в т.ч.ПДВ-",810.22869841251838]
["10.61.1 Рис напівобрушений чи повністю обрушений,або лущений чи дроблений(15614000-5 Рис оброблений)",2230,2383.0996795551482,"Дві тисячі триста вісімдесят три грн. 10 коп.","в т.ч.ПДВ-",397.18327992585802]
["0.81.1 Цукор-сирець,тростинний і очищений тростинний чи буряковий цукор (сахароза);меляса (15831000-2 Цукор)",2230,21462.89887213114,"Двадцять одна тисячa чотириста шістдесят дві грн. 90 коп.","в т.ч.ПДВ-",3577.1498120218566]
["10.39.2 Плоди й горіхи,оброблені та законсервовані(15332000-4 Оброблені фрукти та горіхи(повидло,сухофрукти)",2230,14156.466126174795,"Чотирнадцять тисяч сто п'ятдесят шість грн. 47 коп.","в т.ч.ПДВ-",2359.4110210291324]
["10.51.3 Масло вершкове та молочні пасти(15530000-2 Вершкове масло)",2230,38231.528221764551,"Тридцять вісім тисяч двісті тридцять одна грн. 53 коп.","в т.ч.ПДВ-",6371.9213702940915]
["01.47.2 Яйця у шкаралупі свіжі (03142000-8 Продукція тваринництва (03142500-3 Яйця)",2230,29229.383522759133,"Двадцять дев'ять тисяч двісті двадцять дев'ять грн. 38 коп.","в т.ч.ПДВ-",4871.5639204598556]
["10.41.5 Олії рафіновані(15421000-5 Рафіновані олії)",2230,8618.8356415843646,"Вісім тисяч шістсот вісімнадцять грн. 84 коп.","в т.ч.ПДВ-",1436.4726069307274]
["10.61.3 Крупи,крупка,гранули та інші продукти з зерна зернових культур(15613000-8 Продукція із зерна зернових культур(крупи)",2230,8997.9304240920446,"Вісім тисяч дев'ятсот дев'яносто сім грн. 93 коп.","в т.ч.ПДВ-",1499.6550706820074]
["10.82.1 Какао терте,какао-масло,жири й олія,какао-порошок(15841000-5 Какао)",2230,10985.836222138903,"Десять тисяч дев'ятсот вісімдесят п'ять грн. 84 коп.","в т.ч.ПДВ-",1830.9727036898173]
["10.83.1 Чай і кава,оброблені(15860000-4 Кава, чай та супутня продукція)",2230,11421.585540000724,"Одинадцять тисяч чотириста двадцять одна грн. 59 коп.","в т.ч.ПДВ-",1903.5975900001206]
["10.84.3 Сіль харчова(14410000-8 Камяна сіль)",2230,431.48659937201285,"Чотириста тридцять одна грн. 49 коп.","в т.ч.ПДВ-",71.914433228668813]
["01.13.5 Коренеплоди та бульби їстівні з високим умістом крохмалю та інуліну(03212000-0 Картопля та сушені овочі)",2230,29875.158730986401,"Двадцять дев'ять тисяч вісімсот сімдесят п'ять грн. 16 коп.","в т.ч.ПДВ-",4979.1931218310665]
["01.13.4 Овочі коренеплодні,цибулинні та бульбоподібні(03221000-6 Овочі)",2230,36709.492222060217,"Тридцять шість тисяч сімсот дев'ять грн. 49 коп.","в т.ч.ПДВ-",6118.2487036767025]
["43.21.1 Роботи електромонтажні(45310000-3 Електромонтажні роботи(повірка контурів заземлення)",2240,745,"Сімсот сорок п'ять грн. 0 коп.","в т.ч.ПДВ-",124.16666666666667]
["38.11.6 Послуги підприємств щодо перевезення інших безпечних відходів(90512000-9 Послуги з перевезення сміття)",2240,8394,"Вісім тисяч триста дев'яносто чотири грн. 0 коп.","в т.ч.ПДВ-",1399]
["02.40.1 Послуги, пов’язані з лісівництвом (77200000-2 Послуги у сфері лісівництва)(видалення сухостою)","2240",18513,"Вісімнадцять тисяч п'ятсот тринадцять грн. 0 коп.","в т.ч.ПДВ-",3085.5]
[" 36.00.2 Обробляння та розподіляння води трубопроводами(65110000-7 Розподіл води)",2272,14237.294400000002,"Чотирнадцять тисяч двісті тридцять сім грн. 29 коп.","в т.ч.ПДВ-",2372.8824000000004]
["37.00.1 Послуги каналізаційні(90400000-1 Послуги у сфері водовідведення)",2272,23720.705599999998,"Двадцять три тисячі сімсот двадцять грн. 71 коп.","в т.ч.ПДВ-",3953.4509333333331]
["35.11.1  Енергія електрична (09310000-5 Електрична енергія)",2273,76802,"Сімдесят шість тисяч вісімсот дві грн. 0 коп.","в т.ч.ПДВ-",12800.333333333334]
["61.10.1  Послуги щодо передавання даних і повідомлень(64211000-8 Послуги громадського телефонного звязку)",2240,1591,"Одна тисячa п'ятсот дев'яносто одна грн. 0 коп.","в т.ч.ПДВ-",265.16666666666669]
["Поточний ремонт будівель (45400000-1 Завершальні будівельні роботи)",2240,51560,"П'ятдесят одна тисячa п'ятсот шістдесят грн. 0 коп.","в т.ч.ПДВ-",8593.3333333333339]
["91.01.1 Послуги бібліотек і архівів(92512000-3 Послуги архівів)",2240,737,"Сімсот тридцять сім грн. 0 коп.","без ПДВ"]
["71.20.1 Послуги щодо технічного випробування й аналізування(71632000-7 Послуги з технічних випробувань (повірка,атестація)",2240,1594,"Одна тисячa п'ятсот дев'яносто чотири грн. 0 коп.","в т.ч.ПДВ-",265.66666666666669]
["58.29.1 Програмне забезпечення системне на фізичних носіях(48443000-5 Пакети програмного забезпечення для бухгалтерського обліку)",2240,7392,"Сім тисяч триста дев'яносто дві грн. 0 коп.","в т.ч.ПДВ-",1232]
[]
["Затверджений рішенням комітету з конкурсних торгів від__________№_______"]
[]
["Голова комітету з конкурсних торгів      _______________________   Л.А.Скоропад"]
["                                                                                                (підпис)          (ініціали та прізвище)"]
["МП"]

{"sheet":"77","index":39,"n_rows":52,"n_cols":9,"rows_kept":52,"cut":false,"hidden":false,"merged":[[0,0,0,8],[1,0,1,8],[2,0,2,8],[3,2,3,5],[4,2,4,5]]}
["Додаток до річного плану закупівель на  2016 рік "]
["Дошкільний навчальний заклад № 77,26243177"]
["(найменування замовника,код за ЄДРПОУ)"]
["Предмет закупівлі","Код КЕКВ (для бюджетних коштів)","Очікувана вартість предмета закупівлі",null,null,null,"Процедура закупівлі","Орієнтовний початок проведення процедури закупівлі","Примітки"]
[1,2,3,null,null,null,4,5,6]
["10.73.1 Макарони,локшина,кускус і подібні борошняні вироби(15851000-8 Борошняні вироби(макарони)",2230,3944.2199570516159,{"$f":"SUMINWORDS(C6,\"грн.\",\"коп.\")","v":"Три тисячі дев'ятсот сорок чотири грн. 22 коп."},"в т.ч.ПДВ-",{"$f":"C6/6","v":657.36999284193598}]
["10.11.1 М'ясо великої рогатої худоби,свиней,овець,кіз,коней та ін..тварин родини конячих,свіже чиа охолоджене(15111000-9 М'ясо великої рогатої худоби родини бикових(яловичина)",2230,134143.45129148872,{"$f":"SUMINWORDS(C7,\"грн.\",\"коп.\")","v":"Сто тридцять чотири тисячі сто сорок три грн. 45 коп."},"в т.ч.ПДВ-",{"$f":"C7/6","v":22357.241881914786}]
["10.12.1 М'ясо  свійської птиці,свіже чи охолоджене(15112000-6 М'ясо свійської птиці)",2230,51012.38058027783,{"$f":"SUMINWORDS(C8,\"грн.\",\"коп.\")","v":"П'ятдесят одна тисячa дванадцять грн. 38 коп."},"в т.ч.ПДВ-",8502.0634300463043]
["10.12.4 Субпродукти харчові свійської птиці(15114000-0 Потрухи(печінка)",2230,14413.085405142479,{"$f":"SUMINWORDS(C9,\"грн.\",\"коп.\")","v":"Чотирнадцять тисяч чотириста тринадцять грн. 9 коп."},"в т.ч.ПДВ-",2402.1809008570799]
["10.13.1.Консерви та готові страви з м’яса,м’ясних субпродуктів чи крові (15130000-8 Мясопродукти (ковбаса,сосиски)",2230,43275.379236492961,"Сорок три тисячі двісті сімдесят п'ять грн. 38 коп.","в т.ч.ПДВ-",7212.5632060821599]
["10.20.1 Продукція рибна,свіжа,охолоджена чи заморожена (15221000-3 Морожена риба)",2230,101661.58455399369,"Сто одна тисячa шістсот шістдесят одна грн. 58 коп.","в т.ч.ПДВ-",16943.597425665615]
["01.24.1 Яблука (03222000-3 Фрукти і горіхи(яблука,апельсини,лимони,ягоди)",2230,42958.637151154806,"Сорок дві тисячі дев'ятсот п'ятдесят вісім грн. 64 коп.","в т.ч.ПДВ-",7159.772858525801]
["10.39.1 Плоди та овочі,оброблені та законсервовані,крім картоплі(15331000-7 Оброблені овочі(консерви овочеві)",2230,30472.385382181303,"Тридцять тисяч чотириста сімдесят дві грн. 39 коп.","в т.ч.ПДВ-",5078.7308970302174]
["10.72.1 Вироби хлібобулочні,зниженої вологості,та кондитерські,борошняні,тривалого зберігання(15820000-2 Сухарі та печиво; пресерви з хлібобулочних і кондитерських виробів (печиво)",2230,10381.532466132172,"Десять тисяч триста вісімдесят одна грн. 53 коп.","в т.ч.ПДВ-",1730.2554110220287]
["10.71.1 Вироби  хлібобулочні,кондитерські та кулінарні,борошняні,нетривалого зберігання(15810000-9 Хлібопродукти, свіжовипечені хлібобулочні та кондитерські вироби)",2230,39026.50994403792,"Тридцять дев'ять тисяч двадцять шість грн. 51 коп.","в т.ч.ПДВ-",6504.4183240063203]
["10.51.1 Молоко та вершки,рідинні,оброблені(15511000-3 Молоко)",2230,156275.60130171187,"Сто п'ятдесят шість тисяч двісті сімдесят п'ять грн. 60 коп.","в т.ч.ПДВ-",26045.93355028531]
["10.51.5 Продукти молочні, інші (15550000-8 Молочні продукти різні (кефір,сметана)",2230,29121.170092433276,"Двадцять дев'ять тисяч сто двадцять одна грн. 17 коп.","в т.ч.ПДВ-",4853.5283487388797]
["10.51.4 Сир сичужний та кисломолочний сир(15540000-5 Сирні продукти)",2230,109323.77383835879,"Сто дев'ять тисяч триста двадцять три грн. 77 коп.","в т.ч.ПДВ-",18220.628973059796]
["10.32.1 Соки фруктові та овочеві (15321000-4 Фруктові соки)",2230,29102.943651365662,"Двадцять дев'ять тисяч сто дві грн. 94 коп.","в т.ч.ПДВ-",4850.4906085609437]
["10.61.2 Борошно зернових і овочевих культур;їхні суміші(15612000-1 Борошно зернових та овочевих культур і супутня продукція)",2230,6382.58532368328,"Шість тисяч триста вісімдесят дві грн. 59 коп.","в т.ч.ПДВ-",1063.7642206138801]
["10.61.1 Рис напівобрушений чи повністю обрушений,або лущений чи дроблений(15614000-5 Рис оброблений)",2230,3136.4141284241423,"Три тисячі сто тридцять шість грн. 41 коп.","в т.ч.ПДВ-",522.73568807069034]
["0.81.1 Цукор-сирець,тростинний і очищений тростинний чи буряковий цукор (сахароза);меляса (15831000-2 Цукор)",2230,28284.088339284721,"Двадцять вісім тисяч двісті вісімдесят чотири грн. 9 коп.","в т.ч.ПДВ-",4714.0147232141198]
["10.39.2 Плоди й горіхи,оброблені та законсервовані(15332000-4 Оброблені фрукти та горіхи(повидло,сухофрукти)",2230,18699.71624423808,"Вісімнадцять тисяч шістсот дев'яносто дев'ять грн. 72 коп.","в т.ч.ПДВ-",3116.6193740396798]
["10.51.3 Масло вершкове та молочні пасти(15530000-2 Вершкове масло)",2230,50163.460479849608,"П'ятдесят тисяч сто шістдесят три грн. 46 коп.","в т.ч.ПДВ-",8360.5767466416019]
["01.47.2 Яйця у шкаралупі свіжі (03142000-8 Продукція тваринництва (03142500-3 Яйця)",2230,38290.402329451201,"Тридцять вісім тисяч двісті дев'яносто грн. 40 коп.","в т.ч.ПДВ-",6381.7337215752004]
["10.41.5 Олії рафіновані(15421000-5 Рафіновані олії)",2230,11332.021317429599,"Одинадцять тисяч триста тридцять дві грн. 2 коп.","в т.ч.ПДВ-",1888.6702195715998]
["10.61.3 Крупи,крупка,гранули та інші продукти з зерна зернових культур(15613000-8 Продукція із зерна зернових культур(крупи)",2230,11837.752882952107,"Одинадцять тисяч вісімсот тридцять сім грн. 75 коп.","в т.ч.ПДВ-",1972.9588138253512]
["10.82.1 Какао терте,какао-масло,жири й олія,какао-порошок(15841000-5 Какао)",2230,14391.411592503166,"Чотирнадцять тисяч триста дев'яносто одна грн. 41 коп.","в т.ч.ПДВ-",2398.5685987505276]
["10.83.1 Чай і кава,оброблені(15860000-4 Кава, чай та супутня продукція)",2230,14893.426507711449,"Чотирнадцять тисяч вісімсот дев'яносто три грн. 43 коп.","в т.ч.ПДВ-",2482.2377512852413]
["10.84.3 Сіль харчова(14410000-8 Камяна сіль)",2230,563.92876001587206,"П'ятсот шістдесят три грн. 93 коп.","в т.ч.ПДВ-",93.98812666931201]
["01.13.5 Коренеплоди та бульби їстівні з високим умістом крохмалю та інуліну(03212000-0 Картопля та сушені овочі)",2230,39294.283830184133,"Тридцять дев'ять тисяч двісті дев'яносто чотири грн. 28 коп.","в т.ч.ПДВ-",6549.0473050306891]
["01.13.4 Овочі коренеплодні,цибулинні та бульбоподібні(03221000-6 Овочі)",2230,48386.854090848537,"Сорок вісім тисяч триста вісімдесят шість грн. 85 коп.","в т.ч.ПДВ-",8064.4756818080896]
["43.21.1 Роботи електромонтажні(45310000-3 Електромонтажні роботи(повірка контурів заземлення)",2240,745,"Сімсот сорок п'ять грн. 0 коп.","в т.ч.ПДВ-",124.16666666666667]
["38.11.6 Послуги підприємств щодо перевезення інших безпечних відходів(90512000-9 Послуги з перевезення сміття)",2240,11833,"Одинадцять тисяч вісімсот тридцять три грн. 0 коп.","в т.ч.ПДВ-",1972.1666666666667]
["Поточний ремонт будівель (45400000-1 Завершальні будівельні роботи)",2240,29400,"Двадцять дев'ять тисяч чотириста грн. 0 коп.","в т.ч.ПДВ-",4900]
[" 36.00.2 Обробляння та розподіляння води трубопроводами(65110000-7 Розподіл води)",2272,43929.429600000003,"Сорок три тисячі дев'ятсот двадцять дев'ять грн. 43 коп.","в т.ч.ПДВ-",7321.5716000000002]
["37.00.1 Послуги каналізаційні(90400000-1 Послуги у сфері водовідведення)",2272,37109.570399999997,"Тридцять сім тисяч сто дев'ять грн. 57 коп.","в т.ч.ПДВ-",6184.9283999999998]
["35.11.1  Енергія електрична (09310000-5 Електрична енергія)",2273,111587,"Сто одинадцять тисяч п'ятсот вісімдесят сім грн. 0 коп.","в т.ч.ПДВ-",18597.833333333332]
["61.10.1  Послуги щодо передавання даних і повідомлень(64211000-8 Послуги громадського телефонного звязку)",2240,1623,"Одна тисячa шістсот двадцять три грн. 0 коп.","в т.ч.ПДВ-",270.5]
["Капітальний ремонт будівель (45000000-7 Будівельні роботи)",3132,493100,"Чотириста дев'яносто три тисячі сто грн. 0 коп.","в т.ч.ПДВ-",82183.333333333328]
["91.01.1 Послуги бібліотек і архівів(92512000-3 Послуги архівів)",2240,896,"Вісімсот дев'яносто шість грн. 0 коп.","без ПДВ"]
["71.20.1 Послуги щодо технічного випробування й аналізування(71632000-7 Послуги з технічних випробувань (повірка,атестація)",2240,1447,"Одна тисячa чотириста сорок сім грн. 0 коп.","в т.ч.ПДВ-",241.16666666666666]
["33.13.1 Ремонтування та технічне обслуговування електронного й оптичного устатковання(50410000-2 Послуги з ремонту і технічного обслуговування вимірювальних, випробувальних і контрольних приладів",2240,2400,{"$f":"SUMINWORDS(C43,\"грн.\",\"коп.\")","v":"Дві тисячі чотириста грн. 0 коп."},"в т.ч.ПДВ-",400]
["58.29.1 Програмне забезпечення системне на фізичних носіях(48443000-5 Пакети програмного забезпечення для бухгалтерського обліку)",2240,7392,"Сім тисяч триста дев'яносто дві грн. 0 коп.","в т.ч.ПДВ-",1232]
["31.09.1 Меблі, інші (39161000-8 Меблі для дитячого садка)",3110,54400,"П'ятдесят чотири тисячі чотириста грн. 0 коп.","в т.ч.ПДВ-",9066.6666666666661]
["27.51.2 Прилади електричні побутові,інші,н.в.і.у.(39711000-9 Електричні побутові прилади для обробки продуктів харчування)",3110,134200,"Сто тридцять чотири тисячі двісті грн. 0 коп.","в т.ч.ПДВ-",22366.666666666668]
[]
["Затверджений рішенням комітету з конкурсних торгів від__________№_______"]
[]
["Голова комітету з конкурсних торгів      _______________________  О.М.Шестопаль"]
["                                                                                                (підпис)          (ініціали та прізвище)"]
["МП"]

{"sheet":"Аркуш1","index":40,"n_rows":57,"n_cols":9,"rows_kept":57,"cut":false,"hidden":false,"merged":[[0,0,0,8],[1,0,1,8],[2,0,2,8],[3,2,3,5],[4,2,4,5]]}
["Додаток до річного плану закупівель на  2016 рік "]
["Дошкільний навчальний заклад № 77,26243177"]
["(найменування замовника,код за ЄДРПОУ)"]
["Предмет закупівлі","Код КЕКВ (для бюджетних коштів)","Очікувана вартість предмета закупівлі",null,null,null,"Процедура закупівлі","Орієнтовний початок проведення процедури закупівлі","Примітки"]
[1,2,3,null,null,null,4,5,6]
["10.73.1 Макарони,локшина,кускус і подібні борошняні вироби(15851000-8 Борошняні вироби(макарони)",2230,3944.2199570516159,{"$f":"SUMINWORDS(C6,\"грн.\",\"коп.\")","v":"Три тисячі дев'ятсот сорок чотири грн. 22 коп."},"в т.ч.ПДВ-",{"$f":"C6/6","v":657.36999284193598}]
["10.11.1 М'ясо великої рогатої худоби,свиней,овець,кіз,коней та ін..тварин родини конячих,свіже чиа охолоджене(15111000-9 М'ясо великої рогатої худоби родини бикових(яловичина)15113000-3 Свинина)",2230,134143.45129148872,{"$f":"SUMINWORDS(C7,\"грн.\",\"коп.\")","v":"Сто тридцять чотири тисячі сто сорок три грн. 45 коп."},"в т.ч.ПДВ-",{"$f":"C7/6","v":22357.241881914786}]
["10.12.1 М'ясо  свійської птиці,свіже чи охолоджене(15112000-6 М'ясо свійської птиці)",2230,51012.38058027783,{"$f":"SUMINWORDS(C8,\"грн.\",\"коп.\")","v":"П'ятдесят одна тисячa дванадцять грн. 38 коп."},"в т.ч.ПДВ-",8502.0634300463043]
["10.12.4 Субпродукти харчові свійської птиці(15114000-0 Потрухи(печінка)",2230,14413.085405142479,{"$f":"SUMINWORDS(C9,\"грн.\",\"коп.\")","v":"Чотирнадцять тисяч чотириста тринадцять грн. 9 коп."},"в т.ч.ПДВ-",2402.1809008570799]
["10.13.1.Консерви та готові страви з м’яса,м’ясних субпродуктів чи крові (15130000-8 Мясопродукти (ковбаса,сосиски)",2230,43275.379236492961,"Сорок три тисячі двісті сімдесят п'ять грн. 38 коп.","в т.ч.ПДВ-",7212.5632060821599]
["10.20.1 Продукція рибна,свіжа,охолоджена чи заморожена (15221000-3 Морожена риба,15241000-9 Панірована риба та рибні консерви (оселедець)",2230,101661.58455399369,"Сто одна тисячa шістсот шістдесят одна грн. 58 коп.","в т.ч.ПДВ-",16943.597425665615]
["01.24.1 Яблука (03222000-3 Фрукти і горіхи(яблука,апельсини,лимони,ягоди)",2230,42958.637151154806,"Сорок дві тисячі дев'ятсот п'ятдесят вісім грн. 64 коп.","в т.ч.ПДВ-",7159.772858525801]
["10.39.1 Плоди та овочі,оброблені та законсервовані,крім картоплі(15331000-7 Оброблені овочі(консерви овочеві)",2230,30472.385382181303,"Тридцять тисяч чотириста сімдесят дві грн. 39 коп.","в т.ч.ПДВ-",5078.7308970302174]
["10.72.1 Вироби хлібобулочні,зниженої вологості,та кондитерські,борошняні,тривалого зберігання(15820000-2 Сухарі та печиво; пресерви з хлібобулочних і кондитерських виробів (печиво)",2230,10381.532466132172,"Десять тисяч триста вісімдесят одна грн. 53 коп.","в т.ч.ПДВ-",1730.2554110220287]
["10.71.1 Вироби  хлібобулочні,кондитерські та кулінарні,борошняні,нетривалого зберігання(15810000-9 Хлібопродукти, свіжовипечені хлібобулочні та кондитерські вироби)",2230,39026.50994403792,"Тридцять дев'ять тисяч двадцять шість грн. 51 коп.","в т.ч.ПДВ-",6504.4183240063203]
["10.51.1 Молоко та вершки,рідинні,оброблені(15511000-3 Молоко)",2230,156275.60130171187,"Сто п'ятдесят шість тисяч двісті сімдесят п'ять грн. 60 коп.","в т.ч.ПДВ-",26045.93355028531]
["10.51.5 Продукти молочні, інші (15550000-8 Молочні продукти різні (кефір,сметана)",2230,29121.170092433276,"Двадцять дев'ять тисяч сто двадцять одна грн. 17 коп.","в т.ч.ПДВ-",4853.5283487388797]
["10.51.4 Сир сичужний та кисломолочний сир(15540000-5 Сирні продукти)",2230,109323.77383835879,"Сто дев'ять тисяч триста двадцять три грн. 77 коп.","в т.ч.ПДВ-",18220.628973059796]
["10.32.1 Соки фруктові та овочеві (15321000-4 Фруктові соки)",2230,29102.943651365662,"Двадцять дев'ять тисяч сто дві грн. 94 коп.","в т.ч.ПДВ-",4850.4906085609437]
["10.61.2 Борошно зернових і овочевих культур;їхні суміші(15612000-1 Борошно зернових та овочевих культур і супутня продукція)",2230,6382.58532368328,"Шість тисяч триста вісімдесят дві грн. 59 коп.","в т.ч.ПДВ-",1063.7642206138801]
["10.61.1 Рис напівобрушений чи повністю обрушений,або лущений чи дроблений(15614000-5 Рис оброблений)",2230,3136.4141284241423,"Три тисячі сто тридцять шість грн. 41 коп.","в т.ч.ПДВ-",522.73568807069034]
["0.81.1 Цукор-сирець,тростинний і очищений тростинний чи буряковий цукор (сахароза);меляса (15831000-2 Цукор)",2230,28284.088339284721,"Двадцять вісім тисяч двісті вісімдесят чотири грн. 9 коп.","в т.ч.ПДВ-",4714.0147232141198]
["10.39.2 Плоди й горіхи,оброблені та законсервовані(15332000-4 Оброблені фрукти та горіхи(повидло,сухофрукти)",2230,18699.71624423808,"Вісімнадцять тисяч шістсот дев'яносто дев'ять грн. 72 коп.","в т.ч.ПДВ-",3116.6193740396798]
["10.51.3 Масло вершкове та молочні пасти(15530000-2 Вершкове масло)",2230,50163.460479849608,"П'ятдесят тисяч сто шістдесят три грн. 46 коп.","в т.ч.ПДВ-",8360.5767466416019]
["01.47.2 Яйця у шкаралупі свіжі (03142000-8 Продукція тваринництва (03142500-3 Яйця)",2230,38290.402329451201,"Тридцять вісім тисяч двісті дев'яносто грн. 40 коп.","в т.ч.ПДВ-",6381.7337215752004]
["10.41.5 Олії рафіновані(15421000-5 Рафіновані олії)",2230,11332.021317429599,"Одинадцять тисяч триста тридцять дві грн. 2 коп.","в т.ч.ПДВ-",1888.6702195715998]
["10.61.3 Крупи,крупка,гранули та інші продукти з зерна зернових культур(15613000-8 Продукція із зерна зернових культур(крупи)",2230,11837.752882952107,"Одинадцять тисяч вісімсот тридцять сім грн. 75 коп.","в т.ч.ПДВ-",1972.9588138253512]
["10.82.1 Какао терте,какао-масло,жири й олія,какао-порошок(15841000-5 Какао)",2230,14391.411592503166,"Чотирнадцять тисяч триста дев'яносто одна грн. 41 коп.","в т.ч.ПДВ-",2398.5685987505276]
["10.83.1 Чай і кава,оброблені(15860000-4 Кава, чай та супутня продукція)",2230,14893.426507711449,"Чотирнадцять тисяч вісімсот дев'яносто три грн. 43 коп.","в т.ч.ПДВ-",2482.2377512852413]
["10.84.3 Сіль харчова(14410000-8 Камяна сіль)",2230,563.92876001587206,"П'ятсот шістдесят три грн. 93 коп.","в т.ч.ПДВ-",93.98812666931201]
["01.13.5 Коренеплоди та бульби їстівні з високим умістом крохмалю та інуліну(03212000-0 Картопля та сушені овочі)",2230,39294.283830184133,"Тридцять дев'ять тисяч двісті дев'яносто чотири грн. 28 коп.","в т.ч.ПДВ-",6549.0473050306891]
["01.13.4 Овочі коренеплодні,цибулинні та бульбоподібні(03221000-6 Овочі)",2230,48386.854090848537,"Сорок вісім тисяч триста вісімдесят шість грн. 85 коп.","в т.ч.ПДВ-",8064.4756818080896]
["35.30.1 Пара та гаряча вода,постачання пари та гарячої води(09320000-8 Пара, гаряча вода та пов’язана продукція)",2271,null,"Нуль грн. 0 коп.","в т.ч.ПДВ-",0]
["38.11.6 Послуги підприємств щодо перевезення інших безпечних відходів(90512000-9 Послуги з перевезення сміття)",2240,null,"Нуль грн. 0 коп.","в т.ч.ПДВ-",0]
["81.29.1 Послуги щодо очищування, інші (90921000-9 Послуги з дезінфікування та витравлювання)",2240,null,"Нуль грн. 0 коп.","в т.ч.ПДВ-",0]
[" 36.00.2 Обробляння та розподіляння води трубопроводами(65110000-7 Розподіл води)",2272,null,"Нуль грн. 0 коп.","в т.ч.ПДВ-",0]
["37.00.1 Послуги каналізаційні(90400000-1 Послуги у сфері водовідведення)",2272,null,"Нуль грн. 0 коп.","в т.ч.ПДВ-",0]
["35.11.1  Енергія електрична (09310000-5 Електрична енергія)",2273,null,"Нуль грн. 0 коп.","в т.ч.ПДВ-",0]
["61.10.1  Послуги щодо передавання даних і повідомлень(64211000-8 Послуги громадського телефонного звязку)",2240,null,"Нуль грн. 0 коп.","в т.ч.ПДВ-",0]
[" 61.10.4 Послуги звязку Інтернетом проподовими мережами(64216000-3 Послуги систем електронної передачі електронних повідомлень та інформації(інтернет)",2240,null,"Нуль грн. 0 коп.","в т.ч.ПДВ-",0]
["91.01.1 Послуги бібліотек і архівів(92512000-3 Послуги архівів)",2240,null,"Нуль грн. 0 коп.","в т.ч.ПДВ-",0]
["71.20.1 Послуги щодо технічного випробування й аналізування(71632000-7 Послуги з технічних випробувань (повірка,атестація)",2240,null,"Нуль грн. 0 коп.","в т.ч.ПДВ-",0]
["58.29.1 Програмне забезпечення системне на фізичних носіях(48443000-5 Пакети програмного забезпечення для бухгалтерського обліку)",2240,null,"Нуль грн. 0 коп.","в т.ч.ПДВ-",0]
["13.93.1 Килими та килимові покриви(39533000-7 Килими)",2210,null,"Нуль грн. 0 коп.","в т.ч.ПДВ-",0]
["31.09.1 Меблі, інші (39161000-8 Меблі для дитячого садка)",3110,null,"Нуль грн. 0 коп.","в т.ч.ПДВ-",0]
["31.01.1 Меблі конторські/офісні та меблі для підприємств торгівлі (39130000-2  Офісні меблі)",3110,null,"Нуль грн. 0 коп.","в т.ч.ПДВ-",0]
["31.02.1 Меблі кухонні (39141000-2 Кухонні меблі та обладнання)",2210,null,"Нуль грн. 0 коп.","в т.ч.ПДВ-",0]
["27.52.1 Устатковання побутове неелектричне для приготування та підігрівання їжі(39314000-6 Промислове кухонне обладнання)",3110,null,"Нуль грн. 0 коп.","в т.ч.ПДВ-",0]
["27.51.2 Прилади електричні побутові,інші,н.в.і.у.(39711000-9 Електричні побутові прилади для обробки продуктів харчування)",3110,null,"Нуль грн. 0 коп.","в т.ч.ПДВ-",0]
["13.92.1 Вироби текстильні готові для домашнього господарства (39512000-4 Постільна білизна)",2210,null,"Нуль грн. 0 коп.","в т.ч.ПДВ-",0]
["13.99.1 Тюль,мереживо та вишивка;нитки позументні та стрічкові нитки;пряжа синельна;пряжа фасонна петляста (39561000-2 Тюль,мереживо,вузькі тканини,оздоблювальні матеріали та вишиті вироби)",2210,null,"Нуль грн. 0 коп.","в т.ч.ПДВ-",0]
[]
["Затверджений рішенням комітету з конкурсних торгів від__________№_______"]
[]
["Голова комітету з конкурсних торгів      _______________________  О.М.Шестопаль"]
["                                                                                                (підпис)          (ініціали та прізвище)"]
["МП"]

{"sheet":"Аркуш2","index":41,"n_rows":0,"n_cols":0,"rows_kept":0,"cut":false,"hidden":false,"merged":[]}